{"text_format":"1","workbook":"xlsx","n_sheets":3,"sheets":["2.2_Centres","Param","recap"],"not_rendered":{"charts":0,"images":2,"macros":1,"external_links":0,"defined_names":6,"comments":2,"pivot_tables":1},"unopened":[],"bounds":{"document_bytes":16777216,"sheet_cells":100000,"rows_first":2000,"rows_last":500,"rows_between":2000,"halvings":0,"cell_chars":16384,"cell_head_chars":4096},"cells_cut":0,"cells_raw":0,"read":"whole","date_system":"1900"}

{"sheet":"2.2_Centres","index":0,"n_rows":128,"n_cols":19,"rows_kept":128,"cut":false,"hidden":false,"merged":[[10,10,10,12],[6,2,6,10],[8,7,8,10],[9,4,9,5],[9,7,9,10],[5,2,5,10],[0,1,0,11],[1,2,1,4],[1,5,1,11],[2,1,2,11],[4,2,4,10]]}
[null,"Centre investigateur coordonnateur et centre(s) co-investigateur(s)\npour l'Appel à Projets Interrégional Recherche en Soins (APIRES 2024)"]
[null,"(D'après grille DGOS v1-2-juillet-2022)"]
[]
[]
[null,"Acronyme  :"]
[null,"Titre français :"]
[null,"Titre anglais : (le cas échéant)"]
[]
[null,"Nombre total de patients ou d'observations prévu à recruter (NP) :",null,{"$f":"IF(C9<>SUM(L22,L27:L128),\"/!\\ Vérifier le nombre total de patients ->\" & SUM(L22,L27:L128),\"\")","v":""},null,null,null,"[formule automatique]"]
[null,"Durée prévisionnelle de Recrutement (DUR) en mois :",null,null,"Nombre d'inclusion par mois et par centre =(NP/DUR)/NC",null,null,{"$f":"IF(C9=\"\",\"Renseigner cellules C9 à C11 \n[DUR et NC] ≠ 0\",IF(OR(C9=0,C9=\"N/A\",C9=\"NA\"),\"N/A\",IF(AND(C9>0,C10>0,C11>0),ROUND((C9/C10)/C11,1),\"Renseigner cellules C10 et/ou C11\n[DUR et NC] ≠ 0\")))","v":"Renseigner cellules C9 à C11 \n[DUR et NC] ≠ 0"}]
[null,"Nombre de centre(s) d'inclusion prévus (NC) :",null,{"$f":"IF(C11=\"\",\"\",IF(C11<>E24+1,\"/!\\ Vérifier le nombre total de centres d'inclusion -> \"&E24+1,\"\"))","v":""},null,null,null,null,"Index d'interrégionalité (intra GIRCI SOHO) :",{"$f":"IFERROR(COUNTIF($J$22:$J$128,$J$22)/$C$11,\"\")","v":""},{"$f":"IF(J11=\"\",\"\",IF(J11<1,\"/!\\ Les centres associés doivent faire partie de l’interrégion\",\"OK\"))","v":""}]
[]
["Exemples de complétion de centre",null,null,null,null,null,null,null,null,null,null,null,"[formule automatique]"]
[null,"Nom","Prénom","Courriel","Etablissement de santé","Site d'exercice, GH","Discipline","Ville","N° Département","Interrégion (GIRCI)","Pays","Recrutement total par centre","Recrutement attendu par mois par centre\n[DUR]/centre"]
[null,null,null,"Prévilégier un courriel professionnel",null,null,null,null,null,null,null,"A","A/DUR"]
["Ex 1 : ","Durand","Laure","laure.durand@adresse.fr","HCL","Hôpital Femme Mère Enfant, Groupement Hospitalier Est - HCL (Bron)","Obstétrique ","BRON",{"$f":"IFERROR(VLOOKUP(H16,Ville_sup3K_Dept[],2,FALSE),\"\")","v":"69"},{"$f":"VLOOKUP(I16,Param!$H$2:$J$103,3,FALSE)","v":"AURA"},"France",null,{"$f":"IF(L16=\"\",\"\",L16/C$10)","v":""}]
["Ex 2 :","Dupont","Kévin","kevin.dupont@adresse.fr","CHR Orléans","CHR Orléans","Urgences","ORLEANS",{"$f":"IFERROR(VLOOKUP(H17,Ville_sup3K_Dept[],2,FALSE),\"\")","v":"45"},{"$f":"VLOOKUP(I17,Param!$H$2:$J$103,3,FALSE)","v":"GO"},"France",null,{"$f":"IF(L17=\"\",\"\",L17/C$10)","v":""}]
[null,null,"[formule automatique]"]
["Centre investigateur coordonnateur",null,{"$f":"IF(COUNTBLANK(B22:H22)>0,\"Données incomplètes\",\"\")","v":"Données incomplètes"},null,null,null,null,"(Taper les premières lettres)","[formule automatique]","[formule automatique]",null,null,"[formule automatique]"]
[null,"Nom Investigateur coordonnateur","Prénom Investigateur coordonnateur","Courriel Investigateur coordonnateur","Etablissement de santé coordonnateur","Site d'exercice, GH\ncoordonnateur","Discipline","Ville","N° Département","Interrégion (GIRCI)","Pays","Recrutement total par centre","Recrutement attendu par mois par centre\n[DUR]/centre"]
["N",null,null,null,"E_coordonnateur",null,null,null,null,null,null,"A","A/DUR"]
[1,null,null,null,null,null,null,null,{"$f":"IFERROR(VLOOKUP(H22,Ville_sup3K_Dept[],2,FALSE),\"\")","v":""},{"$f":"IFERROR(VLOOKUP(I22,Param!$H$2:$J$103,3,FALSE),\"\")","v":""},null,null,{"$f":"IF(OR(L22=\"\",L22=\"NA\"),\"\", IF(C$10=\"\",\"Renseigner cellule C10\", ROUND(L22/C$10,1)))","v":""},{"$f":"IF(COUNTBLANK(B22:H22)>0,\"la ligne doit être entièrement complétée.\",\"\")&IF(AND(OR(E22=F22,F22=\"\"),SUMPRODUCT(ISNUMBER(SEARCH({\"@aphp\";\"@chu-lyon\";\"@ap-hm\"},D22))*1)<>0),\" Merci d'indiquer votre site d'exercice dans la colone F\",\"\")","v":"la ligne doit être entièrement complétée."}]
[null,null,null,null,"[formule automatique]"]
["Centre(s) co-investigateur(s)",null,null,"Recrutants des participants :",{"$f":"COUNTIF(L27:L127,\">0\")","v":0},null,null,null,null,null,null,{"$f":"\"n=\"&SUM(L27:L127)","v":"n=0"},"[formule automatique]",null,{"$f":"CONCATENATE(S27,S28,S29,S30,S31,S32,S33,S34,S35,S36,S37,S38,S39,S40,S41,S42,S43,S44,S45,S46,S47,S48,S49,S50,S51,S52,S53,S54,S55,S56,S57,S58,S59,S60,S61,S62,S63,S64,S65,S66,S67,S68,S69,S70,S71,S72,S73,S74,S75,S76,S77,S78,S79,S80,S81,S82,S83,S84,S85,S86,S87,S88,S89,S90,S91,S92,S93,S94,S95,S96,S97,S98,S99,S100,S101,S102,S103,S104,S105,S106,S107,S108,S109,S110,S111,S112,S113,S114,S115,S116,S117,S118,S119,S120,S121,S122,S123,S124,S125,S126,S127,S128)","v":"Total général"}]
[null,"Nom co-investigateur(s)","Prénom co-investigateur(s)","Courriel co-investigateur(s)","Etablissement(s) de santé \nco-investigateur(s)","Site d'exercice, GH\nco-investigateur(s)","Discipline","Ville","N° Département","Interrégion (GIRCI)","Pays","Recrutement total par centre","Recrutement attendu par mois par centre\n[DUR]/centre",null,{"$f":"CONCATENATE(O27,O28,O29,O30,O31,O32,O33,O34,O35,O36,O37,O38,O39,O40,O41,O42,O43,O44,O45,O46,O47,O48,O49,O50,O51,O52,O53,O54,O55,O56,O57,O58,O59,O60,O61,O62,O63,O64,O65,O66,O67,O68,O69,O70,O71,O72,O73,O74,O75,O76,O77,O78,O79,O80,O81,O82,O83,O84,O85,O86,O87,O88,O89,O90,O91,O92,O93,O94,O95,O96,O97,O98,O99,O100,O101,O102,O103,O104,O105,O106,O107,O108,O109,O110,O111,O112,O113,O114,O115,O116,O117,O118,O119,O120,O121,O122,O123,O124,O125,O126,O127,O128)","v":""}]
["N+1",null,null,null,null,null,null,"(Taper les premières lettres)","[formule automatique]","[formule automatique]",null,"A","A/DUR",null,"Etablissement(s) de santé \nco-investigateur(s)","Etablissements de santé co-investigateurs","Interrégion (GIRCI)",null,"Étiquettes de lignes"]
[2,null,null,null,null,null,null,null,{"$f":"IFERROR(VLOOKUP(H27,Ville_sup3K_Dept[],2,FALSE),\"\")","v":""},{"$f":"IFERROR(VLOOKUP(I27,Param!$H$2:$J$103,3,FALSE),\"\")","v":""},null,null,{"$f":"IF(OR(L27=\"\",L27=\"NA\"),\"\", IF(C$10=\"\",\"Renseigner cellule C10\", ROUND(L27/C$10,1)))","v":""},{"$f":"IF(COUNTBLANK(B27:L27)=9,\"\",IF(COUNTBLANK(B27:H27)>0,\"la ligne doit être entièrement complétée (SVP : ne pas supprimer de lignes et indiquer uniquement des centres inclueurs).\",\"\"))&IF(AND(OR(E27=F27,F27=\"\"),SUMPRODUCT(ISNUMBER(SEARCH({\"@aphp\";\"@chu-lyon\";\"@ap-hm\"},D27))*1)<>0),\" Merci d'indiquer votre site d'exercice dans la colone F\",\"\")","v":"la ligne doit être entièrement complétée (SVP : ne pas supprimer de lignes et indiquer uniquement des centres inclueurs)."},{"$f":"IF(E27=\"\",\"\",UPPER(E27)& \" (\" & LOWER(J27) & \")\"&\" |\")","v":""},{"$f":"IF(E27=\"\",\"\",UPPER(E27) & \" (\" & I27 & \"-\" & H27 &\")\" &\" ; \")","v":""},{"$f":"IF(J27=\"\",\"\",\"|\"&J27 &\" : \")","v":""},null,""]
[3,null,null,null,null,null,null,null,{"$f":"IFERROR(VLOOKUP(H28,Ville_sup3K_Dept[],2,FALSE),\"\")","v":""},{"$f":"IFERROR(VLOOKUP(I28,Param!$H$2:$J$103,3,FALSE),\"\")","v":""},null,null,{"$f":"IF(OR(L28=\"\",L28=\"NA\"),\"\", IF(C$10=\"\",\"Renseigner cellule C10\", ROUND(L28/C$10,1)))","v":""},{"$f":"IF(COUNTBLANK(B28:L28)=9,\"\",IF(COUNTBLANK(B28:H28)>0,\"la ligne doit être entièrement complétée (SVP : ne pas supprimer de lignes et indiquer uniquement des centres inclueurs).\",\"\"))&IF(AND(OR(E28=F28,F28=\"\"),SUMPRODUCT(ISNUMBER(SEARCH({\"@aphp\";\"@chu-lyon\";\"@ap-hm\"},D28))*1)<>0),\" Merci d'indiquer votre site d'exercice dans la colone F\",\"\")","v":"la ligne doit être entièrement complétée (SVP : ne pas supprimer de lignes et indiquer uniquement des centres inclueurs)."},{"$f":"IF(E28=\"\",\"\",UPPER(E28)& \" (\" & LOWER(J28) & \")\"&\" |\")","v":""},{"$f":"IF(E28=\"\",\"\",UPPER(E28) & \" (\" & J28 & \"-\" & I28 &\")\" &\" ; \")","v":""},{"$f":"IF(J28=\"\",\"\",\"|\"&J28 &\" : \")","v":""}]
[4,null,null,null,null,null,null,null,{"$f":"IFERROR(VLOOKUP(H29,Ville_sup3K_Dept[],2,FALSE),\"\")","v":""},{"$f":"IFERROR(VLOOKUP(I29,Param!$H$2:$J$103,3,FALSE),\"\")","v":""},null,null,{"$f":"IF(OR(L29=\"\",L29=\"NA\"),\"\", IF(C$10=\"\",\"Renseigner cellule C10\", ROUND(L29/C$10,1)))","v":""},{"$f":"IF(COUNTBLANK(B29:L29)=9,\"\",IF(COUNTBLANK(B29:H29)>0,\"la ligne doit être entièrement complétée (SVP : ne pas supprimer de lignes et indiquer uniquement des centres inclueurs).\",\"\"))&IF(AND(OR(E29=F29,F29=\"\"),SUMPRODUCT(ISNUMBER(SEARCH({\"@aphp\";\"@chu-lyon\";\"@ap-hm\"},D29))*1)<>0),\" Merci d'indiquer votre site d'exercice dans la colone F\",\"\")","v":"la ligne doit être entièrement complétée (SVP : ne pas supprimer de lignes et indiquer uniquement des centres inclueurs)."},{"$f":"IF(E29=\"\",\"\",UPPER(E29)& \" (\" & LOWER(J29) & \")\"&\" |\")","v":""},"","",null,"Total général"]
[5,null,null,null,null,null,null,null,{"$f":"IFERROR(VLOOKUP(H30,Ville_sup3K_Dept[],2,FALSE),\"\")","v":""},{"$f":"IFERROR(VLOOKUP(I30,Param!$H$2:$J$103,3,FALSE),\"\")","v":""},null,null,{"$f":"IF(OR(L30=\"\",L30=\"NA\"),\"\", IF(C$10=\"\",\"Renseigner cellule C10\", ROUND(L30/C$10,1)))","v":""},{"$f":"IF(COUNTBLANK(B30:L30)=9,\"\",IF(COUNTBLANK(B30:H30)>0,\"la ligne doit être entièrement complétée (SVP : ne pas supprimer de lignes et indiquer uniquement des centres inclueurs).\",\"\"))&IF(AND(OR(E30=F30,F30=\"\"),SUMPRODUCT(ISNUMBER(SEARCH({\"@aphp\";\"@chu-lyon\";\"@ap-hm\"},D30))*1)<>0),\" Merci d'indiquer votre site d'exercice dans la colone F\",\"\")","v":"la ligne doit être entièrement complétée (SVP : ne pas supprimer de lignes et indiquer uniquement des centres inclueurs)."},{"$f":"IF(E30=\"\",\"\",UPPER(E30)& \" (\" & LOWER(J30) & \")\"&\" |\")","v":""},"",""]
[6,null,null,null,null,null,null,null,{"$f":"IFERROR(VLOOKUP(H31,Ville_sup3K_Dept[],2,FALSE),\"\")","v":""},{"$f":"IFERROR(VLOOKUP(I31,Param!$H$2:$J$103,3,FALSE),\"\")","v":""},null,null,{"$f":"IF(OR(L31=\"\",L31=\"NA\"),\"\", IF(C$10=\"\",\"Renseigner cellule C10\", ROUND(L31/C$10,1)))","v":""},{"$f":"IF(COUNTBLANK(B31:L31)=9,\"\",IF(COUNTBLANK(B31:H31)>0,\"la ligne doit être entièrement complétée (SVP : ne pas supprimer de lignes et indiquer uniquement des centres inclueurs).\",\"\"))&IF(AND(OR(E31=F31,F31=\"\"),SUMPRODUCT(ISNUMBER(SEARCH({\"@aphp\";\"@chu-lyon\";\"@ap-hm\"},D31))*1)<>0),\" Merci d'indiquer votre site d'exercice dans la colone F\",\"\")","v":"la ligne doit être entièrement complétée (SVP : ne pas supprimer de lignes et indiquer uniquement des centres inclueurs)."},{"$f":"IF(E31=\"\",\"\",UPPER(E31)& \" (\" & LOWER(J31) & \")\"&\" |\")","v":""},"",""]
[7,null,null,null,null,null,null,"",{"$f":"IFERROR(VLOOKUP(H32,Ville_sup3K_Dept[],2,FALSE),\"\")","v":""},{"$f":"IFERROR(VLOOKUP(I32,Param!$H$2:$J$103,3,FALSE),\"\")","v":""},null,null,{"$f":"IF(OR(L32=\"\",L32=\"NA\"),\"\", IF(C$10=\"\",\"Renseigner cellule C10\", ROUND(L32/C$10,1)))","v":""},{"$f":"IF(COUNTBLANK(B32:L32)=9,\"\",IF(COUNTBLANK(B32:H32)>0,\"la ligne doit être entièrement complétée (SVP : ne pas supprimer de lignes et indiquer uniquement des centres inclueurs).\",\"\"))&IF(AND(OR(E32=F32,F32=\"\"),SUMPRODUCT(ISNUMBER(SEARCH({\"@aphp\";\"@chu-lyon\";\"@ap-hm\"},D32))*1)<>0),\" Merci d'indiquer votre site d'exercice dans la colone F\",\"\")","v":"la ligne doit être entièrement complétée (SVP : ne pas supprimer de lignes et indiquer uniquement des centres inclueurs)."},{"$f":"IF(E32=\"\",\"\",UPPER(E32)& \" (\" & LOWER(J32) & \")\"&\" |\")","v":""},"",""]
[8,null,null,null,null,null,null,null,{"$f":"IFERROR(VLOOKUP(H33,Ville_sup3K_Dept[],2,FALSE),\"\")","v":""},{"$f":"IFERROR(VLOOKUP(I33,Param!$H$2:$J$103,3,FALSE),\"\")","v":""},null,null,{"$f":"IF(OR(L33=\"\",L33=\"NA\"),\"\", IF(C$10=\"\",\"Renseigner cellule C10\", ROUND(L33/C$10,1)))","v":""},{"$f":"IF(COUNTBLANK(B33:L33)=9,\"\",IF(COUNTBLANK(B33:H33)>0,\"la ligne doit être entièrement complétée (SVP : ne pas supprimer de lignes et indiquer uniquement des centres inclueurs).\",\"\"))&IF(AND(OR(E33=F33,F33=\"\"),SUMPRODUCT(ISNUMBER(SEARCH({\"@aphp\";\"@chu-lyon\";\"@ap-hm\"},D33))*1)<>0),\" Merci d'indiquer votre site d'exercice dans la colone F\",\"\")","v":"la ligne doit être entièrement complétée (SVP : ne pas supprimer de lignes et indiquer uniquement des centres inclueurs)."},{"$f":"IF(E33=\"\",\"\",UPPER(E33)& \" (\" & LOWER(J33) & \")\"&\" |\")","v":""},"",""]
[9,null,null,null,null,null,null,null,{"$f":"IFERROR(VLOOKUP(H34,Ville_sup3K_Dept[],2,FALSE),\"\")","v":""},{"$f":"IFERROR(VLOOKUP(I34,Param!$H$2:$J$103,3,FALSE),\"\")","v":""},null,null,{"$f":"IF(OR(L34=\"\",L34=\"NA\"),\"\", IF(C$10=\"\",\"Renseigner cellule C10\", ROUND(L34/C$10,1)))","v":""},{"$f":"IF(COUNTBLANK(B34:L34)=9,\"\",IF(COUNTBLANK(B34:H34)>0,\"la ligne doit être entièrement complétée (SVP : ne pas supprimer de lignes et indiquer uniquement des centres inclueurs).\",\"\"))&IF(AND(OR(E34=F34,F34=\"\"),SUMPRODUCT(ISNUMBER(SEARCH({\"@aphp\";\"@chu-lyon\";\"@ap-hm\"},D34))*1)<>0),\" Merci d'indiquer votre site d'exercice dans la colone F\",\"\")","v":"la ligne doit être entièrement complétée (SVP : ne pas supprimer de lignes et indiquer uniquement des centres inclueurs)."},{"$f":"IF(E34=\"\",\"\",UPPER(E34)& \" (\" & LOWER(J34) & \")\"&\" |\")","v":""},"",""]
[10,null,null,null,null,null,null,null,{"$f":"IFERROR(VLOOKUP(H35,Ville_sup3K_Dept[],2,FALSE),\"\")","v":""},{"$f":"IFERROR(VLOOKUP(I35,Param!$H$2:$J$103,3,FALSE),\"\")","v":""},null,null,{"$f":"IF(OR(L35=\"\",L35=\"NA\"),\"\", IF(C$10=\"\",\"Renseigner cellule C10\", ROUND(L35/C$10,1)))","v":""},{"$f":"IF(COUNTBLANK(B35:L35)=9,\"\",IF(COUNTBLANK(B35:H35)>0,\"la ligne doit être entièrement complétée (SVP : ne pas supprimer de lignes et indiquer uniquement des centres inclueurs).\",\"\"))&IF(AND(OR(E35=F35,F35=\"\"),SUMPRODUCT(ISNUMBER(SEARCH({\"@aphp\";\"@chu-lyon\";\"@ap-hm\"},D35))*1)<>0),\" Merci d'indiquer votre site d'exercice dans la colone F\",\"\")","v":"la ligne doit être entièrement complétée (SVP : ne pas supprimer de lignes et indiquer uniquement des centres inclueurs)."},{"$f":"IF(E35=\"\",\"\",UPPER(E35)& \" (\" & LOWER(J35) & \")\"&\" |\")","v":""},"",""]
[11,null,null,null,null,null,null,null,{"$f":"IFERROR(VLOOKUP(H36,Ville_sup3K_Dept[],2,FALSE),\"\")","v":""},{"$f":"IFERROR(VLOOKUP(I36,Param!$H$2:$J$103,3,FALSE),\"\")","v":""},null,null,{"$f":"IF(OR(L36=\"\",L36=\"NA\"),\"\", IF(C$10=\"\",\"Renseigner cellule C10\", ROUND(L36/C$10,1)))","v":""},{"$f":"IF(COUNTBLANK(B36:L36)=9,\"\",IF(COUNTBLANK(B36:H36)>0,\"la ligne doit être entièrement complétée (SVP : ne pas supprimer de lignes et indiquer uniquement des centres inclueurs).\",\"\"))&IF(AND(OR(E36=F36,F36=\"\"),SUMPRODUCT(ISNUMBER(SEARCH({\"@aphp\";\"@chu-lyon\";\"@ap-hm\"},D36))*1)<>0),\" Merci d'indiquer votre site d'exercice dans la colone F\",\"\")","v":"la ligne doit être entièrement complétée (SVP : ne pas supprimer de lignes et indiquer uniquement des centres inclueurs)."},{"$f":"IF(E36=\"\",\"\",UPPER(E36)& \" (\" & LOWER(J36) & \")\"&\" |\")","v":""},"",""]
[12,null,null,null,null,null,null,null,{"$f":"IFERROR(VLOOKUP(H37,Ville_sup3K_Dept[],2,FALSE),\"\")","v":""},{"$f":"IFERROR(VLOOKUP(I37,Param!$H$2:$J$103,3,FALSE),\"\")","v":""},null,null,{"$f":"IF(OR(L37=\"\",L37=\"NA\"),\"\", IF(C$10=\"\",\"Renseigner cellule C10\", ROUND(L37/C$10,1)))","v":""},{"$f":"IF(COUNTBLANK(B37:L37)=9,\"\",IF(COUNTBLANK(B37:H37)>0,\"la ligne doit être entièrement complétée (SVP : ne pas supprimer de lignes et indiquer uniquement des centres inclueurs).\",\"\"))&IF(AND(OR(E37=F37,F37=\"\"),SUMPRODUCT(ISNUMBER(SEARCH({\"@aphp\";\"@chu-lyon\";\"@ap-hm\"},D37))*1)<>0),\" Merci d'indiquer votre site d'exercice dans la colone F\",\"\")","v":"la ligne doit être entièrement complétée (SVP : ne pas supprimer de lignes et indiquer uniquement des centres inclueurs)."},{"$f":"IF(E37=\"\",\"\",UPPER(E37)& \" (\" & LOWER(J37) & \")\"&\" |\")","v":""},"",""]
[13,null,null,null,null,null,null,null,{"$f":"IFERROR(VLOOKUP(H38,Ville_sup3K_Dept[],2,FALSE),\"\")","v":""},{"$f":"IFERROR(VLOOKUP(I38,Param!$H$2:$J$103,3,FALSE),\"\")","v":""},null,null,{"$f":"IF(OR(L38=\"\",L38=\"NA\"),\"\", IF(C$10=\"\",\"Renseigner cellule C10\", ROUND(L38/C$10,1)))","v":""},{"$f":"IF(COUNTBLANK(B38:L38)=9,\"\",IF(COUNTBLANK(B38:H38)>0,\"la ligne doit être entièrement complétée (SVP : ne pas supprimer de lignes et indiquer uniquement des centres inclueurs).\",\"\"))&IF(AND(OR(E38=F38,F38=\"\"),SUMPRODUCT(ISNUMBER(SEARCH({\"@aphp\";\"@chu-lyon\";\"@ap-hm\"},D38))*1)<>0),\" Merci d'indiquer votre site d'exercice dans la colone F\",\"\")","v":"la ligne doit être entièrement complétée (SVP : ne pas supprimer de lignes et indiquer uniquement des centres inclueurs)."},{"$f":"IF(E38=\"\",\"\",UPPER(E38)& \" (\" & LOWER(J38) & \")\"&\" |\")","v":""},"",""]
[14,null,null,null,null,null,null,null,{"$f":"IFERROR(VLOOKUP(H39,Ville_sup3K_Dept[],2,FALSE),\"\")","v":""},{"$f":"IFERROR(VLOOKUP(I39,Param!$H$2:$J$103,3,FALSE),\"\")","v":""},null,null,{"$f":"IF(OR(L39=\"\",L39=\"NA\"),\"\", IF(C$10=\"\",\"Renseigner cellule C10\", ROUND(L39/C$10,1)))","v":""},{"$f":"IF(COUNTBLANK(B39:L39)=9,\"\",IF(COUNTBLANK(B39:H39)>0,\"la ligne doit être entièrement complétée (SVP : ne pas supprimer de lignes et indiquer uniquement des centres inclueurs).\",\"\"))&IF(AND(OR(E39=F39,F39=\"\"),SUMPRODUCT(ISNUMBER(SEARCH({\"@aphp\";\"@chu-lyon\";\"@ap-hm\"},D39))*1)<>0),\" Merci d'indiquer votre site d'exercice dans la colone F\",\"\")","v":"la ligne doit être entièrement complétée (SVP : ne pas supprimer de lignes et indiquer uniquement des centres inclueurs)."},{"$f":"IF(E39=\"\",\"\",UPPER(E39)& \" (\" & LOWER(J39) & \")\"&\" |\")","v":""},"",""]
[15,null,null,null,null,null,null,null,{"$f":"IFERROR(VLOOKUP(H40,Ville_sup3K_Dept[],2,FALSE),\"\")","v":""},{"$f":"IFERROR(VLOOKUP(I40,Param!$H$2:$J$103,3,FALSE),\"\")","v":""},null,null,{"$f":"IF(OR(L40=\"\",L40=\"NA\"),\"\", IF(C$10=\"\",\"Renseigner cellule C10\", ROUND(L40/C$10,1)))","v":""},{"$f":"IF(COUNTBLANK(B40:L40)=9,\"\",IF(COUNTBLANK(B40:H40)>0,\"la ligne doit être entièrement complétée (SVP : ne pas supprimer de lignes et indiquer uniquement des centres inclueurs).\",\"\"))&IF(AND(OR(E40=F40,F40=\"\"),SUMPRODUCT(ISNUMBER(SEARCH({\"@aphp\";\"@chu-lyon\";\"@ap-hm\"},D40))*1)<>0),\" Merci d'indiquer votre site d'exercice dans la colone F\",\"\")","v":"la ligne doit être entièrement complétée (SVP : ne pas supprimer de lignes et indiquer uniquement des centres inclueurs)."},{"$f":"IF(E40=\"\",\"\",UPPER(E40)& \" (\" & LOWER(J40) & \")\"&\" |\")","v":""},"",""]
[16,null,null,null,null,null,null,"",{"$f":"IFERROR(VLOOKUP(H41,Ville_sup3K_Dept[],2,FALSE),\"\")","v":""},{"$f":"IFERROR(VLOOKUP(I41,Param!$H$2:$J$103,3,FALSE),\"\")","v":""},null,null,{"$f":"IF(OR(L41=\"\",L41=\"NA\"),\"\", IF(C$10=\"\",\"Renseigner cellule C10\", ROUND(L41/C$10,1)))","v":""},{"$f":"IF(COUNTBLANK(B41:L41)=9,\"\",IF(COUNTBLANK(B41:H41)>0,\"la ligne doit être entièrement complétée (SVP : ne pas supprimer de lignes et indiquer uniquement des centres inclueurs).\",\"\"))&IF(AND(OR(E41=F41,F41=\"\"),SUMPRODUCT(ISNUMBER(SEARCH({\"@aphp\";\"@chu-lyon\";\"@ap-hm\"},D41))*1)<>0),\" Merci d'indiquer votre site d'exercice dans la colone F\",\"\")","v":"la ligne doit être entièrement complétée (SVP : ne pas supprimer de lignes et indiquer uniquement des centres inclueurs)."},{"$f":"IF(E41=\"\",\"\",UPPER(E41)& \" (\" & LOWER(J41) & \")\"&\" |\")","v":""},"",""]
[17,null,null,null,null,null,null,null,{"$f":"IFERROR(VLOOKUP(H42,Ville_sup3K_Dept[],2,FALSE),\"\")","v":""},{"$f":"IFERROR(VLOOKUP(I42,Param!$H$2:$J$103,3,FALSE),\"\")","v":""},null,null,{"$f":"IF(OR(L42=\"\",L42=\"NA\"),\"\", IF(C$10=\"\",\"Renseigner cellule C10\", ROUND(L42/C$10,1)))","v":""},{"$f":"IF(COUNTBLANK(B42:L42)=9,\"\",IF(COUNTBLANK(B42:H42)>0,\"la ligne doit être entièrement complétée (SVP : ne pas supprimer de lignes et indiquer uniquement des centres inclueurs).\",\"\"))&IF(AND(OR(E42=F42,F42=\"\"),SUMPRODUCT(ISNUMBER(SEARCH({\"@aphp\";\"@chu-lyon\";\"@ap-hm\"},D42))*1)<>0),\" Merci d'indiquer votre site d'exercice dans la colone F\",\"\")","v":"la ligne doit être entièrement complétée (SVP : ne pas supprimer de lignes et indiquer uniquement des centres inclueurs)."},{"$f":"IF(E42=\"\",\"\",UPPER(E42)& \" (\" & LOWER(J42) & \")\"&\" |\")","v":""},"",""]
[18,null,null,null,null,null,null,null,{"$f":"IFERROR(VLOOKUP(H43,Ville_sup3K_Dept[],2,FALSE),\"\")","v":""},{"$f":"IFERROR(VLOOKUP(I43,Param!$H$2:$J$103,3,FALSE),\"\")","v":""},null,null,{"$f":"IF(OR(L43=\"\",L43=\"NA\"),\"\", IF(C$10=\"\",\"Renseigner cellule C10\", ROUND(L43/C$10,1)))","v":""},{"$f":"IF(COUNTBLANK(B43:L43)=9,\"\",IF(COUNTBLANK(B43:H43)>0,\"la ligne doit être entièrement complétée (SVP : ne pas supprimer de lignes et indiquer uniquement des centres inclueurs).\",\"\"))&IF(AND(OR(E43=F43,F43=\"\"),SUMPRODUCT(ISNUMBER(SEARCH({\"@aphp\";\"@chu-lyon\";\"@ap-hm\"},D43))*1)<>0),\" Merci d'indiquer votre site d'exercice dans la colone F\",\"\")","v":"la ligne doit être entièrement complétée (SVP : ne pas supprimer de lignes et indiquer uniquement des centres inclueurs)."},{"$f":"IF(E43=\"\",\"\",UPPER(E43)& \" (\" & LOWER(J43) & \")\"&\" |\")","v":""},"",""]
[19,null,null,null,null,null,"",null,{"$f":"IFERROR(VLOOKUP(H44,Ville_sup3K_Dept[],2,FALSE),\"\")","v":""},{"$f":"IFERROR(VLOOKUP(I44,Param!$H$2:$J$103,3,FALSE),\"\")","v":""},null,null,{"$f":"IF(OR(L44=\"\",L44=\"NA\"),\"\", IF(C$10=\"\",\"Renseigner cellule C10\", ROUND(L44/C$10,1)))","v":""},{"$f":"IF(COUNTBLANK(B44:L44)=9,\"\",IF(COUNTBLANK(B44:H44)>0,\"la ligne doit être entièrement complétée (SVP : ne pas supprimer de lignes et indiquer uniquement des centres inclueurs).\",\"\"))&IF(AND(OR(E44=F44,F44=\"\"),SUMPRODUCT(ISNUMBER(SEARCH({\"@aphp\";\"@chu-lyon\";\"@ap-hm\"},D44))*1)<>0),\" Merci d'indiquer votre site d'exercice dans la colone F\",\"\")","v":"la ligne doit être entièrement complétée (SVP : ne pas supprimer de lignes et indiquer uniquement des centres inclueurs)."},{"$f":"IF(E44=\"\",\"\",UPPER(E44)& \" (\" & LOWER(J44) & \")\"&\" |\")","v":""},"",""]
[20,null,null,null,null,null,null,null,{"$f":"IFERROR(VLOOKUP(H45,Ville_sup3K_Dept[],2,FALSE),\"\")","v":""},{"$f":"IFERROR(VLOOKUP(I45,Param!$H$2:$J$103,3,FALSE),\"\")","v":""},null,null,{"$f":"IF(OR(L45=\"\",L45=\"NA\"),\"\", IF(C$10=\"\",\"Renseigner cellule C10\", ROUND(L45/C$10,1)))","v":""},{"$f":"IF(COUNTBLANK(B45:L45)=9,\"\",IF(COUNTBLANK(B45:H45)>0,\"la ligne doit être entièrement complétée (SVP : ne pas supprimer de lignes et indiquer uniquement des centres inclueurs).\",\"\"))&IF(AND(OR(E45=F45,F45=\"\"),SUMPRODUCT(ISNUMBER(SEARCH({\"@aphp\";\"@chu-lyon\";\"@ap-hm\"},D45))*1)<>0),\" Merci d'indiquer votre site d'exercice dans la colone F\",\"\")","v":"la ligne doit être entièrement complétée (SVP : ne pas supprimer de lignes et indiquer uniquement des centres inclueurs)."},{"$f":"IF(E45=\"\",\"\",UPPER(E45)& \" (\" & LOWER(J45) & \")\"&\" |\")","v":""},"",""]
[21,null,null,null,null,null,null,null,{"$f":"IFERROR(VLOOKUP(H46,Ville_sup3K_Dept[],2,FALSE),\"\")","v":""},{"$f":"IFERROR(VLOOKUP(I46,Param!$H$2:$J$103,3,FALSE),\"\")","v":""},null,null,{"$f":"IF(OR(L46=\"\",L46=\"NA\"),\"\", IF(C$10=\"\",\"Renseigner cellule C10\", ROUND(L46/C$10,1)))","v":""},{"$f":"IF(COUNTBLANK(B46:L46)=9,\"\",IF(COUNTBLANK(B46:H46)>0,\"la ligne doit être entièrement complétée (SVP : ne pas supprimer de lignes et indiquer uniquement des centres inclueurs).\",\"\"))&IF(AND(OR(E46=F46,F46=\"\"),SUMPRODUCT(ISNUMBER(SEARCH({\"@aphp\";\"@chu-lyon\";\"@ap-hm\"},D46))*1)<>0),\" Merci d'indiquer votre site d'exercice dans la colone F\",\"\")","v":"la ligne doit être entièrement complétée (SVP : ne pas supprimer de lignes et indiquer uniquement des centres inclueurs)."},{"$f":"IF(E46=\"\",\"\",UPPER(E46)& \" (\" & LOWER(J46) & \")\"&\" |\")","v":""},"",""]
[22,null,null,null,null,null,null,null,{"$f":"IFERROR(VLOOKUP(H47,Ville_sup3K_Dept[],2,FALSE),\"\")","v":""},{"$f":"IFERROR(VLOOKUP(I47,Param!$H$2:$J$103,3,FALSE),\"\")","v":""},null,null,{"$f":"IF(OR(L47=\"\",L47=\"NA\"),\"\", IF(C$10=\"\",\"Renseigner cellule C10\", ROUND(L47/C$10,1)))","v":""},{"$f":"IF(COUNTBLANK(B47:L47)=9,\"\",IF(COUNTBLANK(B47:H47)>0,\"la ligne doit être entièrement complétée (SVP : ne pas supprimer de lignes et indiquer uniquement des centres inclueurs).\",\"\"))&IF(AND(OR(E47=F47,F47=\"\"),SUMPRODUCT(ISNUMBER(SEARCH({\"@aphp\";\"@chu-lyon\";\"@ap-hm\"},D47))*1)<>0),\" Merci d'indiquer votre site d'exercice dans la colone F\",\"\")","v":"la ligne doit être entièrement complétée (SVP : ne pas supprimer de lignes et indiquer uniquement des centres inclueurs)."},{"$f":"IF(E47=\"\",\"\",UPPER(E47)& \" (\" & LOWER(J47) & \")\"&\" |\")","v":""},"",""]
[23,null,null,null,null,null,null,null,{"$f":"IFERROR(VLOOKUP(H48,Ville_sup3K_Dept[],2,FALSE),\"\")","v":""},{"$f":"IFERROR(VLOOKUP(I48,Param!$H$2:$J$103,3,FALSE),\"\")","v":""},null,null,{"$f":"IF(OR(L48=\"\",L48=\"NA\"),\"\", IF(C$10=\"\",\"Renseigner cellule C10\", ROUND(L48/C$10,1)))","v":""},{"$f":"IF(COUNTBLANK(B48:L48)=9,\"\",IF(COUNTBLANK(B48:H48)>0,\"la ligne doit être entièrement complétée (SVP : ne pas supprimer de lignes et indiquer uniquement des centres inclueurs).\",\"\"))&IF(AND(OR(E48=F48,F48=\"\"),SUMPRODUCT(ISNUMBER(SEARCH({\"@aphp\";\"@chu-lyon\";\"@ap-hm\"},D48))*1)<>0),\" Merci d'indiquer votre site d'exercice dans la colone F\",\"\")","v":"la ligne doit être entièrement complétée (SVP : ne pas supprimer de lignes et indiquer uniquement des centres inclueurs)."},{"$f":"IF(E48=\"\",\"\",UPPER(E48)& \" (\" & LOWER(J48) & \")\"&\" |\")","v":""},"",""]
[24,null,null,null,null,null,null,null,{"$f":"IFERROR(VLOOKUP(H49,Ville_sup3K_Dept[],2,FALSE),\"\")","v":""},{"$f":"IFERROR(VLOOKUP(I49,Param!$H$2:$J$103,3,FALSE),\"\")","v":""},null,null,{"$f":"IF(OR(L49=\"\",L49=\"NA\"),\"\", IF(C$10=\"\",\"Renseigner cellule C10\", ROUND(L49/C$10,1)))","v":""},{"$f":"IF(COUNTBLANK(B49:L49)=9,\"\",IF(COUNTBLANK(B49:H49)>0,\"la ligne doit être entièrement complétée (SVP : ne pas supprimer de lignes et indiquer uniquement des centres inclueurs).\",\"\"))&IF(AND(OR(E49=F49,F49=\"\"),SUMPRODUCT(ISNUMBER(SEARCH({\"@aphp\";\"@chu-lyon\";\"@ap-hm\"},D49))*1)<>0),\" Merci d'indiquer votre site d'exercice dans la colone F\",\"\")","v":"la ligne doit être entièrement complétée (SVP : ne pas supprimer de lignes et indiquer uniquement des centres inclueurs)."},{"$f":"IF(E49=\"\",\"\",UPPER(E49)& \" (\" & LOWER(J49) & \")\"&\" |\")","v":""},"",""]
[25,null,null,null,null,null,null,null,{"$f":"IFERROR(VLOOKUP(H50,Ville_sup3K_Dept[],2,FALSE),\"\")","v":""},{"$f":"IFERROR(VLOOKUP(I50,Param!$H$2:$J$103,3,FALSE),\"\")","v":""},null,null,{"$f":"IF(OR(L50=\"\",L50=\"NA\"),\"\", IF(C$10=\"\",\"Renseigner cellule C10\", ROUND(L50/C$10,1)))","v":""},{"$f":"IF(COUNTBLANK(B50:L50)=9,\"\",IF(COUNTBLANK(B50:H50)>0,\"la ligne doit être entièrement complétée (SVP : ne pas supprimer de lignes et indiquer uniquement des centres inclueurs).\",\"\"))&IF(AND(OR(E50=F50,F50=\"\"),SUMPRODUCT(ISNUMBER(SEARCH({\"@aphp\";\"@chu-lyon\";\"@ap-hm\"},D50))*1)<>0),\" Merci d'indiquer votre site d'exercice dans la colone F\",\"\")","v":"la ligne doit être entièrement complétée (SVP : ne pas supprimer de lignes et indiquer uniquement des centres inclueurs)."},{"$f":"IF(E50=\"\",\"\",UPPER(E50)& \" (\" & LOWER(J50) & \")\"&\" |\")","v":""},"",""]
[26,null,null,null,null,null,null,null,{"$f":"IFERROR(VLOOKUP(H51,Ville_sup3K_Dept[],2,FALSE),\"\")","v":""},{"$f":"IFERROR(VLOOKUP(I51,Param!$H$2:$J$103,3,FALSE),\"\")","v":""},null,null,{"$f":"IF(OR(L51=\"\",L51=\"NA\"),\"\", IF(C$10=\"\",\"Renseigner cellule C10\", ROUND(L51/C$10,1)))","v":""},{"$f":"IF(COUNTBLANK(B51:L51)=9,\"\",IF(COUNTBLANK(B51:H51)>0,\"la ligne doit être entièrement complétée (SVP : ne pas supprimer de lignes et indiquer uniquement des centres inclueurs).\",\"\"))&IF(AND(OR(E51=F51,F51=\"\"),SUMPRODUCT(ISNUMBER(SEARCH({\"@aphp\";\"@chu-lyon\";\"@ap-hm\"},D51))*1)<>0),\" Merci d'indiquer votre site d'exercice dans la colone F\",\"\")","v":"la ligne doit être entièrement complétée (SVP : ne pas supprimer de lignes et indiquer uniquement des centres inclueurs)."},{"$f":"IF(E51=\"\",\"\",UPPER(E51)& \" (\" & LOWER(J51) & \")\"&\" |\")","v":""},"",""]
[27,null,null,null,null,null,null,null,{"$f":"IFERROR(VLOOKUP(H52,Ville_sup3K_Dept[],2,FALSE),\"\")","v":""},{"$f":"IFERROR(VLOOKUP(I52,Param!$H$2:$J$103,3,FALSE),\"\")","v":""},null,null,{"$f":"IF(OR(L52=\"\",L52=\"NA\"),\"\", IF(C$10=\"\",\"Renseigner cellule C10\", ROUND(L52/C$10,1)))","v":""},{"$f":"IF(COUNTBLANK(B52:L52)=9,\"\",IF(COUNTBLANK(B52:H52)>0,\"la ligne doit être entièrement complétée (SVP : ne pas supprimer de lignes et indiquer uniquement des centres inclueurs).\",\"\"))&IF(AND(OR(E52=F52,F52=\"\"),SUMPRODUCT(ISNUMBER(SEARCH({\"@aphp\";\"@chu-lyon\";\"@ap-hm\"},D52))*1)<>0),\" Merci d'indiquer votre site d'exercice dans la colone F\",\"\")","v":"la ligne doit être entièrement complétée (SVP : ne pas supprimer de lignes et indiquer uniquement des centres inclueurs)."},{"$f":"IF(E52=\"\",\"\",UPPER(E52)& \" (\" & LOWER(J52) & \")\"&\" |\")","v":""},"",""]
[28,null,null,null,null,null,null,null,{"$f":"IFERROR(VLOOKUP(H53,Ville_sup3K_Dept[],2,FALSE),\"\")","v":""},{"$f":"IFERROR(VLOOKUP(I53,Param!$H$2:$J$103,3,FALSE),\"\")","v":""},null,null,{"$f":"IF(OR(L53=\"\",L53=\"NA\"),\"\", IF(C$10=\"\",\"Renseigner cellule C10\", ROUND(L53/C$10,1)))","v":""},{"$f":"IF(COUNTBLANK(B53:L53)=9,\"\",IF(COUNTBLANK(B53:H53)>0,\"la ligne doit être entièrement complétée (SVP : ne pas supprimer de lignes et indiquer uniquement des centres inclueurs).\",\"\"))&IF(AND(OR(E53=F53,F53=\"\"),SUMPRODUCT(ISNUMBER(SEARCH({\"@aphp\";\"@chu-lyon\";\"@ap-hm\"},D53))*1)<>0),\" Merci d'indiquer votre site d'exercice dans la colone F\",\"\")","v":"la ligne doit être entièrement complétée (SVP : ne pas supprimer de lignes et indiquer uniquement des centres inclueurs)."},{"$f":"IF(E53=\"\",\"\",UPPER(E53)& \" (\" & LOWER(J53) & \")\"&\" |\")","v":""},"",""]
[29,null,null,null,null,null,null,null,{"$f":"IFERROR(VLOOKUP(H54,Ville_sup3K_Dept[],2,FALSE),\"\")","v":""},{"$f":"IFERROR(VLOOKUP(I54,Param!$H$2:$J$103,3,FALSE),\"\")","v":""},null,null,{"$f":"IF(OR(L54=\"\",L54=\"NA\"),\"\", IF(C$10=\"\",\"Renseigner cellule C10\", ROUND(L54/C$10,1)))","v":""},{"$f":"IF(COUNTBLANK(B54:L54)=9,\"\",IF(COUNTBLANK(B54:H54)>0,\"la ligne doit être entièrement complétée (SVP : ne pas supprimer de lignes et indiquer uniquement des centres inclueurs).\",\"\"))&IF(AND(OR(E54=F54,F54=\"\"),SUMPRODUCT(ISNUMBER(SEARCH({\"@aphp\";\"@chu-lyon\";\"@ap-hm\"},D54))*1)<>0),\" Merci d'indiquer votre site d'exercice dans la colone F\",\"\")","v":"la ligne doit être entièrement complétée (SVP : ne pas supprimer de lignes et indiquer uniquement des centres inclueurs)."},{"$f":"IF(E54=\"\",\"\",UPPER(E54)& \" (\" & LOWER(J54) & \")\"&\" |\")","v":""},"",""]
[30,null,null,null,null,null,null,null,{"$f":"IFERROR(VLOOKUP(H55,Ville_sup3K_Dept[],2,FALSE),\"\")","v":""},{"$f":"IFERROR(VLOOKUP(I55,Param!$H$2:$J$103,3,FALSE),\"\")","v":""},null,null,{"$f":"IF(OR(L55=\"\",L55=\"NA\"),\"\", IF(C$10=\"\",\"Renseigner cellule C10\", ROUND(L55/C$10,1)))","v":""},{"$f":"IF(COUNTBLANK(B55:L55)=9,\"\",IF(COUNTBLANK(B55:H55)>0,\"la ligne doit être entièrement complétée (SVP : ne pas supprimer de lignes et indiquer uniquement des centres inclueurs).\",\"\"))&IF(AND(OR(E55=F55,F55=\"\"),SUMPRODUCT(ISNUMBER(SEARCH({\"@aphp\";\"@chu-lyon\";\"@ap-hm\"},D55))*1)<>0),\" Merci d'indiquer votre site d'exercice dans la colone F\",\"\")","v":"la ligne doit être entièrement complétée (SVP : ne pas supprimer de lignes et indiquer uniquement des centres inclueurs)."},{"$f":"IF(E55=\"\",\"\",UPPER(E55)& \" (\" & LOWER(J55) & \")\"&\" |\")","v":""},"",""]
[31,null,null,null,null,null,null,null,{"$f":"IFERROR(VLOOKUP(H56,Ville_sup3K_Dept[],2,FALSE),\"\")","v":""},{"$f":"IFERROR(VLOOKUP(I56,Param!$H$2:$J$103,3,FALSE),\"\")","v":""},null,null,{"$f":"IF(OR(L56=\"\",L56=\"NA\"),\"\", IF(C$10=\"\",\"Renseigner cellule C10\", ROUND(L56/C$10,1)))","v":""},{"$f":"IF(COUNTBLANK(B56:L56)=9,\"\",IF(COUNTBLANK(B56:H56)>0,\"la ligne doit être entièrement complétée (SVP : ne pas supprimer de lignes et indiquer uniquement des centres inclueurs).\",\"\"))&IF(AND(OR(E56=F56,F56=\"\"),SUMPRODUCT(ISNUMBER(SEARCH({\"@aphp\";\"@chu-lyon\";\"@ap-hm\"},D56))*1)<>0),\" Merci d'indiquer votre site d'exercice dans la colone F\",\"\")","v":"la ligne doit être entièrement complétée (SVP : ne pas supprimer de lignes et indiquer uniquement des centres inclueurs)."},{"$f":"IF(E56=\"\",\"\",UPPER(E56)& \" (\" & LOWER(J56) & \")\"&\" |\")","v":""},"",""]
[32,null,null,null,null,null,null,null,{"$f":"IFERROR(VLOOKUP(H57,Ville_sup3K_Dept[],2,FALSE),\"\")","v":""},{"$f":"IFERROR(VLOOKUP(I57,Param!$H$2:$J$103,3,FALSE),\"\")","v":""},null,null,{"$f":"IF(OR(L57=\"\",L57=\"NA\"),\"\", IF(C$10=\"\",\"Renseigner cellule C10\", ROUND(L57/C$10,1)))","v":""},{"$f":"IF(COUNTBLANK(B57:L57)=9,\"\",IF(COUNTBLANK(B57:H57)>0,\"la ligne doit être entièrement complétée (SVP : ne pas supprimer de lignes et indiquer uniquement des centres inclueurs).\",\"\"))&IF(AND(OR(E57=F57,F57=\"\"),SUMPRODUCT(ISNUMBER(SEARCH({\"@aphp\";\"@chu-lyon\";\"@ap-hm\"},D57))*1)<>0),\" Merci d'indiquer votre site d'exercice dans la colone F\",\"\")","v":"la ligne doit être entièrement complétée (SVP : ne pas supprimer de lignes et indiquer uniquement des centres inclueurs)."},{"$f":"IF(E57=\"\",\"\",UPPER(E57)& \" (\" & LOWER(J57) & \")\"&\" |\")","v":""},"",""]
[33,null,null,null,null,null,null,null,{"$f":"IFERROR(VLOOKUP(H58,Ville_sup3K_Dept[],2,FALSE),\"\")","v":""},{"$f":"IFERROR(VLOOKUP(I58,Param!$H$2:$J$103,3,FALSE),\"\")","v":""},null,null,{"$f":"IF(OR(L58=\"\",L58=\"NA\"),\"\", IF(C$10=\"\",\"Renseigner cellule C10\", ROUND(L58/C$10,1)))","v":""},{"$f":"IF(COUNTBLANK(B58:L58)=9,\"\",IF(COUNTBLANK(B58:H58)>0,\"la ligne doit être entièrement complétée (SVP : ne pas supprimer de lignes et indiquer uniquement des centres inclueurs).\",\"\"))&IF(AND(OR(E58=F58,F58=\"\"),SUMPRODUCT(ISNUMBER(SEARCH({\"@aphp\";\"@chu-lyon\";\"@ap-hm\"},D58))*1)<>0),\" Merci d'indiquer votre site d'exercice dans la colone F\",\"\")","v":"la ligne doit être entièrement complétée (SVP : ne pas supprimer de lignes et indiquer uniquement des centres inclueurs)."},{"$f":"IF(E58=\"\",\"\",UPPER(E58)& \" (\" & LOWER(J58) & \")\"&\" |\")","v":""},"",""]
[34,null,null,null,null,null,null,null,{"$f":"IFERROR(VLOOKUP(H59,Ville_sup3K_Dept[],2,FALSE),\"\")","v":""},{"$f":"IFERROR(VLOOKUP(I59,Param!$H$2:$J$103,3,FALSE),\"\")","v":""},null,null,{"$f":"IF(OR(L59=\"\",L59=\"NA\"),\"\", IF(C$10=\"\",\"Renseigner cellule C10\", ROUND(L59/C$10,1)))","v":""},{"$f":"IF(COUNTBLANK(B59:L59)=9,\"\",IF(COUNTBLANK(B59:H59)>0,\"la ligne doit être entièrement complétée (SVP : ne pas supprimer de lignes et indiquer uniquement des centres inclueurs).\",\"\"))&IF(AND(OR(E59=F59,F59=\"\"),SUMPRODUCT(ISNUMBER(SEARCH({\"@aphp\";\"@chu-lyon\";\"@ap-hm\"},D59))*1)<>0),\" Merci d'indiquer votre site d'exercice dans la colone F\",\"\")","v":"la ligne doit être entièrement complétée (SVP : ne pas supprimer de lignes et indiquer uniquement des centres inclueurs)."},{"$f":"IF(E59=\"\",\"\",UPPER(E59)& \" (\" & LOWER(J59) & \")\"&\" |\")","v":""},"",""]
[35,null,null,null,null,null,null,null,{"$f":"IFERROR(VLOOKUP(H60,Ville_sup3K_Dept[],2,FALSE),\"\")","v":""},{"$f":"IFERROR(VLOOKUP(I60,Param!$H$2:$J$103,3,FALSE),\"\")","v":""},null,null,{"$f":"IF(OR(L60=\"\",L60=\"NA\"),\"\", IF(C$10=\"\",\"Renseigner cellule C10\", ROUND(L60/C$10,1)))","v":""},{"$f":"IF(COUNTBLANK(B60:L60)=9,\"\",IF(COUNTBLANK(B60:H60)>0,\"la ligne doit être entièrement complétée (SVP : ne pas supprimer de lignes et indiquer uniquement des centres inclueurs).\",\"\"))&IF(AND(OR(E60=F60,F60=\"\"),SUMPRODUCT(ISNUMBER(SEARCH({\"@aphp\";\"@chu-lyon\";\"@ap-hm\"},D60))*1)<>0),\" Merci d'indiquer votre site d'exercice dans la colone F\",\"\")","v":"la ligne doit être entièrement complétée (SVP : ne pas supprimer de lignes et indiquer uniquement des centres inclueurs)."},{"$f":"IF(E60=\"\",\"\",UPPER(E60)& \" (\" & LOWER(J60) & \")\"&\" |\")","v":""},"",""]
[36,null,null,null,null,null,null,null,{"$f":"IFERROR(VLOOKUP(H61,Ville_sup3K_Dept[],2,FALSE),\"\")","v":""},{"$f":"IFERROR(VLOOKUP(I61,Param!$H$2:$J$103,3,FALSE),\"\")","v":""},null,null,{"$f":"IF(OR(L61=\"\",L61=\"NA\"),\"\", IF(C$10=\"\",\"Renseigner cellule C10\", ROUND(L61/C$10,1)))","v":""},{"$f":"IF(COUNTBLANK(B61:L61)=9,\"\",IF(COUNTBLANK(B61:H61)>0,\"la ligne doit être entièrement complétée (SVP : ne pas supprimer de lignes et indiquer uniquement des centres inclueurs).\",\"\"))&IF(AND(OR(E61=F61,F61=\"\"),SUMPRODUCT(ISNUMBER(SEARCH({\"@aphp\";\"@chu-lyon\";\"@ap-hm\"},D61))*1)<>0),\" Merci d'indiquer votre site d'exercice dans la colone F\",\"\")","v":"la ligne doit être entièrement complétée (SVP : ne pas supprimer de lignes et indiquer uniquement des centres inclueurs)."},{"$f":"IF(E61=\"\",\"\",UPPER(E61)& \" (\" & LOWER(J61) & \")\"&\" |\")","v":""},"",""]
[37,null,null,null,null,null,null,null,{"$f":"IFERROR(VLOOKUP(H62,Ville_sup3K_Dept[],2,FALSE),\"\")","v":""},{"$f":"IFERROR(VLOOKUP(I62,Param!$H$2:$J$103,3,FALSE),\"\")","v":""},null,null,{"$f":"IF(OR(L62=\"\",L62=\"NA\"),\"\", IF(C$10=\"\",\"Renseigner cellule C10\", ROUND(L62/C$10,1)))","v":""},{"$f":"IF(COUNTBLANK(B62:L62)=9,\"\",IF(COUNTBLANK(B62:H62)>0,\"la ligne doit être entièrement complétée (SVP : ne pas supprimer de lignes et indiquer uniquement des centres inclueurs).\",\"\"))&IF(AND(OR(E62=F62,F62=\"\"),SUMPRODUCT(ISNUMBER(SEARCH({\"@aphp\";\"@chu-lyon\";\"@ap-hm\"},D62))*1)<>0),\" Merci d'indiquer votre site d'exercice dans la colone F\",\"\")","v":"la ligne doit être entièrement complétée (SVP : ne pas supprimer de lignes et indiquer uniquement des centres inclueurs)."},{"$f":"IF(E62=\"\",\"\",UPPER(E62)& \" (\" & LOWER(J62) & \")\"&\" |\")","v":""},"",""]
[38,null,null,null,null,null,null,null,{"$f":"IFERROR(VLOOKUP(H63,Ville_sup3K_Dept[],2,FALSE),\"\")","v":""},{"$f":"IFERROR(VLOOKUP(I63,Param!$H$2:$J$103,3,FALSE),\"\")","v":""},null,null,{"$f":"IF(OR(L63=\"\",L63=\"NA\"),\"\", IF(C$10=\"\",\"Renseigner cellule C10\", ROUND(L63/C$10,1)))","v":""},{"$f":"IF(COUNTBLANK(B63:L63)=9,\"\",IF(COUNTBLANK(B63:H63)>0,\"la ligne doit être entièrement complétée (SVP : ne pas supprimer de lignes et indiquer uniquement des centres inclueurs).\",\"\"))&IF(AND(OR(E63=F63,F63=\"\"),SUMPRODUCT(ISNUMBER(SEARCH({\"@aphp\";\"@chu-lyon\";\"@ap-hm\"},D63))*1)<>0),\" Merci d'indiquer votre site d'exercice dans la colone F\",\"\")","v":"la ligne doit être entièrement complétée (SVP : ne pas supprimer de lignes et indiquer uniquement des centres inclueurs)."},{"$f":"IF(E63=\"\",\"\",UPPER(E63)& \" (\" & LOWER(J63) & \")\"&\" |\")","v":""},"",""]
[39,null,null,null,null,null,null,null,{"$f":"IFERROR(VLOOKUP(H64,Ville_sup3K_Dept[],2,FALSE),\"\")","v":""},{"$f":"IFERROR(VLOOKUP(I64,Param!$H$2:$J$103,3,FALSE),\"\")","v":""},null,null,{"$f":"IF(OR(L64=\"\",L64=\"NA\"),\"\", IF(C$10=\"\",\"Renseigner cellule C10\", ROUND(L64/C$10,1)))","v":""},{"$f":"IF(COUNTBLANK(B64:L64)=9,\"\",IF(COUNTBLANK(B64:H64)>0,\"la ligne doit être entièrement complétée (SVP : ne pas supprimer de lignes et indiquer uniquement des centres inclueurs).\",\"\"))&IF(AND(OR(E64=F64,F64=\"\"),SUMPRODUCT(ISNUMBER(SEARCH({\"@aphp\";\"@chu-lyon\";\"@ap-hm\"},D64))*1)<>0),\" Merci d'indiquer votre site d'exercice dans la colone F\",\"\")","v":"la ligne doit être entièrement complétée (SVP : ne pas supprimer de lignes et indiquer uniquement des centres inclueurs)."},{"$f":"IF(E64=\"\",\"\",UPPER(E64)& \" (\" & LOWER(J64) & \")\"&\" |\")","v":""},"",""]
[40,null,null,null,null,null,null,null,{"$f":"IFERROR(VLOOKUP(H65,Ville_sup3K_Dept[],2,FALSE),\"\")","v":""},{"$f":"IFERROR(VLOOKUP(I65,Param!$H$2:$J$103,3,FALSE),\"\")","v":""},null,null,{"$f":"IF(OR(L65=\"\",L65=\"NA\"),\"\", IF(C$10=\"\",\"Renseigner cellule C10\", ROUND(L65/C$10,1)))","v":""},{"$f":"IF(COUNTBLANK(B65:L65)=9,\"\",IF(COUNTBLANK(B65:H65)>0,\"la ligne doit être entièrement complétée (SVP : ne pas supprimer de lignes et indiquer uniquement des centres inclueurs).\",\"\"))&IF(AND(OR(E65=F65,F65=\"\"),SUMPRODUCT(ISNUMBER(SEARCH({\"@aphp\";\"@chu-lyon\";\"@ap-hm\"},D65))*1)<>0),\" Merci d'indiquer votre site d'exercice dans la colone F\",\"\")","v":"la ligne doit être entièrement complétée (SVP : ne pas supprimer de lignes et indiquer uniquement des centres inclueurs)."},{"$f":"IF(E65=\"\",\"\",UPPER(E65)& \" (\" & LOWER(J65) & \")\"&\" |\")","v":""},"",""]
[41,null,null,null,null,null,null,null,{"$f":"IFERROR(VLOOKUP(H66,Ville_sup3K_Dept[],2,FALSE),\"\")","v":""},{"$f":"IFERROR(VLOOKUP(I66,Param!$H$2:$J$103,3,FALSE),\"\")","v":""},null,null,{"$f":"IF(OR(L66=\"\",L66=\"NA\"),\"\", IF(C$10=\"\",\"Renseigner cellule C10\", ROUND(L66/C$10,1)))","v":""},{"$f":"IF(COUNTBLANK(B66:L66)=9,\"\",IF(COUNTBLANK(B66:H66)>0,\"la ligne doit être entièrement complétée (SVP : ne pas supprimer de lignes et indiquer uniquement des centres inclueurs).\",\"\"))&IF(AND(OR(E66=F66,F66=\"\"),SUMPRODUCT(ISNUMBER(SEARCH({\"@aphp\";\"@chu-lyon\";\"@ap-hm\"},D66))*1)<>0),\" Merci d'indiquer votre site d'exercice dans la colone F\",\"\")","v":"la ligne doit être entièrement complétée (SVP : ne pas supprimer de lignes et indiquer uniquement des centres inclueurs)."},{"$f":"IF(E66=\"\",\"\",UPPER(E66)& \" (\" & LOWER(J66) & \")\"&\" |\")","v":""},"",""]
[42,null,null,null,null,null,null,null,{"$f":"IFERROR(VLOOKUP(H67,Ville_sup3K_Dept[],2,FALSE),\"\")","v":""},{"$f":"IFERROR(VLOOKUP(I67,Param!$H$2:$J$103,3,FALSE),\"\")","v":""},null,null,{"$f":"IF(OR(L67=\"\",L67=\"NA\"),\"\", IF(C$10=\"\",\"Renseigner cellule C10\", ROUND(L67/C$10,1)))","v":""},{"$f":"IF(COUNTBLANK(B67:L67)=9,\"\",IF(COUNTBLANK(B67:H67)>0,\"la ligne doit être entièrement complétée (SVP : ne pas supprimer de lignes et indiquer uniquement des centres inclueurs).\",\"\"))&IF(AND(OR(E67=F67,F67=\"\"),SUMPRODUCT(ISNUMBER(SEARCH({\"@aphp\";\"@chu-lyon\";\"@ap-hm\"},D67))*1)<>0),\" Merci d'indiquer votre site d'exercice dans la colone F\",\"\")","v":"la ligne doit être entièrement complétée (SVP : ne pas supprimer de lignes et indiquer uniquement des centres inclueurs)."},{"$f":"IF(E67=\"\",\"\",UPPER(E67)& \" (\" & LOWER(J67) & \")\"&\" |\")","v":""},"",""]
[43,null,null,null,null,null,null,null,{"$f":"IFERROR(VLOOKUP(H68,Ville_sup3K_Dept[],2,FALSE),\"\")","v":""},{"$f":"IFERROR(VLOOKUP(I68,Param!$H$2:$J$103,3,FALSE),\"\")","v":""},null,null,{"$f":"IF(OR(L68=\"\",L68=\"NA\"),\"\", IF(C$10=\"\",\"Renseigner cellule C10\", ROUND(L68/C$10,1)))","v":""},{"$f":"IF(COUNTBLANK(B68:L68)=9,\"\",IF(COUNTBLANK(B68:H68)>0,\"la ligne doit être entièrement complétée (SVP : ne pas supprimer de lignes et indiquer uniquement des centres inclueurs).\",\"\"))&IF(AND(OR(E68=F68,F68=\"\"),SUMPRODUCT(ISNUMBER(SEARCH({\"@aphp\";\"@chu-lyon\";\"@ap-hm\"},D68))*1)<>0),\" Merci d'indiquer votre site d'exercice dans la colone F\",\"\")","v":"la ligne doit être entièrement complétée (SVP : ne pas supprimer de lignes et indiquer uniquement des centres inclueurs)."},{"$f":"IF(E68=\"\",\"\",UPPER(E68)& \" (\" & LOWER(J68) & \")\"&\" |\")","v":""},"",""]
[44,null,null,null,null,null,null,null,{"$f":"IFERROR(VLOOKUP(H69,Ville_sup3K_Dept[],2,FALSE),\"\")","v":""},{"$f":"IFERROR(VLOOKUP(I69,Param!$H$2:$J$103,3,FALSE),\"\")","v":""},null,null,{"$f":"IF(OR(L69=\"\",L69=\"NA\"),\"\", IF(C$10=\"\",\"Renseigner cellule C10\", ROUND(L69/C$10,1)))","v":""},{"$f":"IF(COUNTBLANK(B69:L69)=9,\"\",IF(COUNTBLANK(B69:H69)>0,\"la ligne doit être entièrement complétée (SVP : ne pas supprimer de lignes et indiquer uniquement des centres inclueurs).\",\"\"))&IF(AND(OR(E69=F69,F69=\"\"),SUMPRODUCT(ISNUMBER(SEARCH({\"@aphp\";\"@chu-lyon\";\"@ap-hm\"},D69))*1)<>0),\" Merci d'indiquer votre site d'exercice dans la colone F\",\"\")","v":"la ligne doit être entièrement complétée (SVP : ne pas supprimer de lignes et indiquer uniquement des centres inclueurs)."},{"$f":"IF(E69=\"\",\"\",UPPER(E69)& \" (\" & LOWER(J69) & \")\"&\" |\")","v":""},"",""]
[45,null,null,null,null,null,null,null,{"$f":"IFERROR(VLOOKUP(H70,Ville_sup3K_Dept[],2,FALSE),\"\")","v":""},{"$f":"IFERROR(VLOOKUP(I70,Param!$H$2:$J$103,3,FALSE),\"\")","v":""},null,null,{"$f":"IF(OR(L70=\"\",L70=\"NA\"),\"\", IF(C$10=\"\",\"Renseigner cellule C10\", ROUND(L70/C$10,1)))","v":""},{"$f":"IF(COUNTBLANK(B70:L70)=9,\"\",IF(COUNTBLANK(B70:H70)>0,\"la ligne doit être entièrement complétée (SVP : ne pas supprimer de lignes et indiquer uniquement des centres inclueurs).\",\"\"))&IF(AND(OR(E70=F70,F70=\"\"),SUMPRODUCT(ISNUMBER(SEARCH({\"@aphp\";\"@chu-lyon\";\"@ap-hm\"},D70))*1)<>0),\" Merci d'indiquer votre site d'exercice dans la colone F\",\"\")","v":"la ligne doit être entièrement complétée (SVP : ne pas supprimer de lignes et indiquer uniquement des centres inclueurs)."},{"$f":"IF(E70=\"\",\"\",UPPER(E70)& \" (\" & LOWER(J70) & \")\"&\" |\")","v":""},"",""]
[46,null,null,null,null,null,null,null,{"$f":"IFERROR(VLOOKUP(H71,Ville_sup3K_Dept[],2,FALSE),\"\")","v":""},{"$f":"IFERROR(VLOOKUP(I71,Param!$H$2:$J$103,3,FALSE),\"\")","v":""},null,null,{"$f":"IF(OR(L71=\"\",L71=\"NA\"),\"\", IF(C$10=\"\",\"Renseigner cellule C10\", ROUND(L71/C$10,1)))","v":""},{"$f":"IF(COUNTBLANK(B71:L71)=9,\"\",IF(COUNTBLANK(B71:H71)>0,\"la ligne doit être entièrement complétée (SVP : ne pas supprimer de lignes et indiquer uniquement des centres inclueurs).\",\"\"))&IF(AND(OR(E71=F71,F71=\"\"),SUMPRODUCT(ISNUMBER(SEARCH({\"@aphp\";\"@chu-lyon\";\"@ap-hm\"},D71))*1)<>0),\" Merci d'indiquer votre site d'exercice dans la colone F\",\"\")","v":"la ligne doit être entièrement complétée (SVP : ne pas supprimer de lignes et indiquer uniquement des centres inclueurs)."},{"$f":"IF(E71=\"\",\"\",UPPER(E71)& \" (\" & LOWER(J71) & \")\"&\" |\")","v":""},"",""]
[47,null,null,null,null,null,null,null,{"$f":"IFERROR(VLOOKUP(H72,Ville_sup3K_Dept[],2,FALSE),\"\")","v":""},{"$f":"IFERROR(VLOOKUP(I72,Param!$H$2:$J$103,3,FALSE),\"\")","v":""},null,null,{"$f":"IF(OR(L72=\"\",L72=\"NA\"),\"\", IF(C$10=\"\",\"Renseigner cellule C10\", ROUND(L72/C$10,1)))","v":""},{"$f":"IF(COUNTBLANK(B72:L72)=9,\"\",IF(COUNTBLANK(B72:H72)>0,\"la ligne doit être entièrement complétée (SVP : ne pas supprimer de lignes et indiquer uniquement des centres inclueurs).\",\"\"))&IF(AND(OR(E72=F72,F72=\"\"),SUMPRODUCT(ISNUMBER(SEARCH({\"@aphp\";\"@chu-lyon\";\"@ap-hm\"},D72))*1)<>0),\" Merci d'indiquer votre site d'exercice dans la colone F\",\"\")","v":"la ligne doit être entièrement complétée (SVP : ne pas supprimer de lignes et indiquer uniquement des centres inclueurs)."},{"$f":"IF(E72=\"\",\"\",UPPER(E72)& \" (\" & LOWER(J72) & \")\"&\" |\")","v":""},"",""]
[48,null,null,null,null,null,null,null,{"$f":"IFERROR(VLOOKUP(H73,Ville_sup3K_Dept[],2,FALSE),\"\")","v":""},{"$f":"IFERROR(VLOOKUP(I73,Param!$H$2:$J$103,3,FALSE),\"\")","v":""},null,null,{"$f":"IF(OR(L73=\"\",L73=\"NA\"),\"\", IF(C$10=\"\",\"Renseigner cellule C10\", ROUND(L73/C$10,1)))","v":""},{"$f":"IF(COUNTBLANK(B73:L73)=9,\"\",IF(COUNTBLANK(B73:H73)>0,\"la ligne doit être entièrement complétée (SVP : ne pas supprimer de lignes et indiquer uniquement des centres inclueurs).\",\"\"))&IF(AND(OR(E73=F73,F73=\"\"),SUMPRODUCT(ISNUMBER(SEARCH({\"@aphp\";\"@chu-lyon\";\"@ap-hm\"},D73))*1)<>0),\" Merci d'indiquer votre site d'exercice dans la colone F\",\"\")","v":"la ligne doit être entièrement complétée (SVP : ne pas supprimer de lignes et indiquer uniquement des centres inclueurs)."},{"$f":"IF(E73=\"\",\"\",UPPER(E73)& \" (\" & LOWER(J73) & \")\"&\" |\")","v":""},"",""]
[49,null,null,null,null,null,null,null,{"$f":"IFERROR(VLOOKUP(H74,Ville_sup3K_Dept[],2,FALSE),\"\")","v":""},{"$f":"IFERROR(VLOOKUP(I74,Param!$H$2:$J$103,3,FALSE),\"\")","v":""},null,null,{"$f":"IF(OR(L74=\"\",L74=\"NA\"),\"\", IF(C$10=\"\",\"Renseigner cellule C10\", ROUND(L74/C$10,1)))","v":""},{"$f":"IF(COUNTBLANK(B74:L74)=9,\"\",IF(COUNTBLANK(B74:H74)>0,\"la ligne doit être entièrement complétée (SVP : ne pas supprimer de lignes et indiquer uniquement des centres inclueurs).\",\"\"))&IF(AND(OR(E74=F74,F74=\"\"),SUMPRODUCT(ISNUMBER(SEARCH({\"@aphp\";\"@chu-lyon\";\"@ap-hm\"},D74))*1)<>0),\" Merci d'indiquer votre site d'exercice dans la colone F\",\"\")","v":"la ligne doit être entièrement complétée (SVP : ne pas supprimer de lignes et indiquer uniquement des centres inclueurs)."},{"$f":"IF(E74=\"\",\"\",UPPER(E74)& \" (\" & LOWER(J74) & \")\"&\" |\")","v":""},"",""]
[50,null,null,null,null,null,null,null,{"$f":"IFERROR(VLOOKUP(H75,Ville_sup3K_Dept[],2,FALSE),\"\")","v":""},{"$f":"IFERROR(VLOOKUP(I75,Param!$H$2:$J$103,3,FALSE),\"\")","v":""},null,null,{"$f":"IF(OR(L75=\"\",L75=\"NA\"),\"\", IF(C$10=\"\",\"Renseigner cellule C10\", ROUND(L75/C$10,1)))","v":""},{"$f":"IF(COUNTBLANK(B75:L75)=9,\"\",IF(COUNTBLANK(B75:H75)>0,\"la ligne doit être entièrement complétée (SVP : ne pas supprimer de lignes et indiquer uniquement des centres inclueurs).\",\"\"))&IF(AND(OR(E75=F75,F75=\"\"),SUMPRODUCT(ISNUMBER(SEARCH({\"@aphp\";\"@chu-lyon\";\"@ap-hm\"},D75))*1)<>0),\" Merci d'indiquer votre site d'exercice dans la colone F\",\"\")","v":"la ligne doit être entièrement complétée (SVP : ne pas supprimer de lignes et indiquer uniquement des centres inclueurs)."},{"$f":"IF(E75=\"\",\"\",UPPER(E75)& \" (\" & LOWER(J75) & \")\"&\" |\")","v":""},"",""]
[51,null,null,null,null,null,null,null,{"$f":"IFERROR(VLOOKUP(H76,Ville_sup3K_Dept[],2,FALSE),\"\")","v":""},{"$f":"IFERROR(VLOOKUP(I76,Param!$H$2:$J$103,3,FALSE),\"\")","v":""},null,null,{"$f":"IF(OR(L76=\"\",L76=\"NA\"),\"\", IF(C$10=\"\",\"Renseigner cellule C10\", ROUND(L76/C$10,1)))","v":""},{"$f":"IF(COUNTBLANK(B76:L76)=9,\"\",IF(COUNTBLANK(B76:H76)>0,\"la ligne doit être entièrement complétée (SVP : ne pas supprimer de lignes et indiquer uniquement des centres inclueurs).\",\"\"))&IF(AND(OR(E76=F76,F76=\"\"),SUMPRODUCT(ISNUMBER(SEARCH({\"@aphp\";\"@chu-lyon\";\"@ap-hm\"},D76))*1)<>0),\" Merci d'indiquer votre site d'exercice dans la colone F\",\"\")","v":"la ligne doit être entièrement complétée (SVP : ne pas supprimer de lignes et indiquer uniquement des centres inclueurs)."},{"$f":"IF(E76=\"\",\"\",UPPER(E76)& \" (\" & LOWER(J76) & \")\"&\" |\")","v":""},"",""]
[52,null,null,null,null,null,null,null,{"$f":"IFERROR(VLOOKUP(H77,Ville_sup3K_Dept[],2,FALSE),\"\")","v":""},{"$f":"IFERROR(VLOOKUP(I77,Param!$H$2:$J$103,3,FALSE),\"\")","v":""},null,null,{"$f":"IF(OR(L77=\"\",L77=\"NA\"),\"\", IF(C$10=\"\",\"Renseigner cellule C10\", ROUND(L77/C$10,1)))","v":""},{"$f":"IF(COUNTBLANK(B77:L77)=9,\"\",IF(COUNTBLANK(B77:H77)>0,\"la ligne doit être entièrement complétée (SVP : ne pas supprimer de lignes et indiquer uniquement des centres inclueurs).\",\"\"))&IF(AND(OR(E77=F77,F77=\"\"),SUMPRODUCT(ISNUMBER(SEARCH({\"@aphp\";\"@chu-lyon\";\"@ap-hm\"},D77))*1)<>0),\" Merci d'indiquer votre site d'exercice dans la colone F\",\"\")","v":"la ligne doit être entièrement complétée (SVP : ne pas supprimer de lignes et indiquer uniquement des centres inclueurs)."},{"$f":"IF(E77=\"\",\"\",UPPER(E77)& \" (\" & LOWER(J77) & \")\"&\" |\")","v":""},"",""]
[53,null,null,null,null,null,null,null,{"$f":"IFERROR(VLOOKUP(H78,Ville_sup3K_Dept[],2,FALSE),\"\")","v":""},{"$f":"IFERROR(VLOOKUP(I78,Param!$H$2:$J$103,3,FALSE),\"\")","v":""},null,null,{"$f":"IF(OR(L78=\"\",L78=\"NA\"),\"\", IF(C$10=\"\",\"Renseigner cellule C10\", ROUND(L78/C$10,1)))","v":""},{"$f":"IF(COUNTBLANK(B78:L78)=9,\"\",IF(COUNTBLANK(B78:H78)>0,\"la ligne doit être entièrement complétée (SVP : ne pas supprimer de lignes et indiquer uniquement des centres inclueurs).\",\"\"))&IF(AND(OR(E78=F78,F78=\"\"),SUMPRODUCT(ISNUMBER(SEARCH({\"@aphp\";\"@chu-lyon\";\"@ap-hm\"},D78))*1)<>0),\" Merci d'indiquer votre site d'exercice dans la colone F\",\"\")","v":"la ligne doit être entièrement complétée (SVP : ne pas supprimer de lignes et indiquer uniquement des centres inclueurs)."},{"$f":"IF(E78=\"\",\"\",UPPER(E78)& \" (\" & LOWER(J78) & \")\"&\" |\")","v":""},"",""]
[54,null,null,null,null,null,null,null,{"$f":"IFERROR(VLOOKUP(H79,Ville_sup3K_Dept[],2,FALSE),\"\")","v":""},{"$f":"IFERROR(VLOOKUP(I79,Param!$H$2:$J$103,3,FALSE),\"\")","v":""},null,null,{"$f":"IF(OR(L79=\"\",L79=\"NA\"),\"\", IF(C$10=\"\",\"Renseigner cellule C10\", ROUND(L79/C$10,1)))","v":""},{"$f":"IF(COUNTBLANK(B79:L79)=9,\"\",IF(COUNTBLANK(B79:H79)>0,\"la ligne doit être entièrement complétée (SVP : ne pas supprimer de lignes et indiquer uniquement des centres inclueurs).\",\"\"))&IF(AND(OR(E79=F79,F79=\"\"),SUMPRODUCT(ISNUMBER(SEARCH({\"@aphp\";\"@chu-lyon\";\"@ap-hm\"},D79))*1)<>0),\" Merci d'indiquer votre site d'exercice dans la colone F\",\"\")","v":"la ligne doit être entièrement complétée (SVP : ne pas supprimer de lignes et indiquer uniquement des centres inclueurs)."},{"$f":"IF(E79=\"\",\"\",UPPER(E79)& \" (\" & LOWER(J79) & \")\"&\" |\")","v":""},"",""]
[55,null,null,null,null,null,null,null,{"$f":"IFERROR(VLOOKUP(H80,Ville_sup3K_Dept[],2,FALSE),\"\")","v":""},{"$f":"IFERROR(VLOOKUP(I80,Param!$H$2:$J$103,3,FALSE),\"\")","v":""},null,null,{"$f":"IF(OR(L80=\"\",L80=\"NA\"),\"\", IF(C$10=\"\",\"Renseigner cellule C10\", ROUND(L80/C$10,1)))","v":""},{"$f":"IF(COUNTBLANK(B80:L80)=9,\"\",IF(COUNTBLANK(B80:H80)>0,\"la ligne doit être entièrement complétée (SVP : ne pas supprimer de lignes et indiquer uniquement des centres inclueurs).\",\"\"))&IF(AND(OR(E80=F80,F80=\"\"),SUMPRODUCT(ISNUMBER(SEARCH({\"@aphp\";\"@chu-lyon\";\"@ap-hm\"},D80))*1)<>0),\" Merci d'indiquer votre site d'exercice dans la colone F\",\"\")","v":"la ligne doit être entièrement complétée (SVP : ne pas supprimer de lignes et indiquer uniquement des centres inclueurs)."},{"$f":"IF(E80=\"\",\"\",UPPER(E80)& \" (\" & LOWER(J80) & \")\"&\" |\")","v":""},"",""]
[56,null,null,null,null,null,null,null,{"$f":"IFERROR(VLOOKUP(H81,Ville_sup3K_Dept[],2,FALSE),\"\")","v":""},{"$f":"IFERROR(VLOOKUP(I81,Param!$H$2:$J$103,3,FALSE),\"\")","v":""},null,null,{"$f":"IF(OR(L81=\"\",L81=\"NA\"),\"\", IF(C$10=\"\",\"Renseigner cellule C10\", ROUND(L81/C$10,1)))","v":""},{"$f":"IF(COUNTBLANK(B81:L81)=9,\"\",IF(COUNTBLANK(B81:H81)>0,\"la ligne doit être entièrement complétée (SVP : ne pas supprimer de lignes et indiquer uniquement des centres inclueurs).\",\"\"))&IF(AND(OR(E81=F81,F81=\"\"),SUMPRODUCT(ISNUMBER(SEARCH({\"@aphp\";\"@chu-lyon\";\"@ap-hm\"},D81))*1)<>0),\" Merci d'indiquer votre site d'exercice dans la colone F\",\"\")","v":"la ligne doit être entièrement complétée (SVP : ne pas supprimer de lignes et indiquer uniquement des centres inclueurs)."},{"$f":"IF(E81=\"\",\"\",UPPER(E81)& \" (\" & LOWER(J81) & \")\"&\" |\")","v":""},"",""]
[57,null,null,null,null,null,null,null,{"$f":"IFERROR(VLOOKUP(H82,Ville_sup3K_Dept[],2,FALSE),\"\")","v":""},{"$f":"IFERROR(VLOOKUP(I82,Param!$H$2:$J$103,3,FALSE),\"\")","v":""},null,null,{"$f":"IF(OR(L82=\"\",L82=\"NA\"),\"\", IF(C$10=\"\",\"Renseigner cellule C10\", ROUND(L82/C$10,1)))","v":""},{"$f":"IF(COUNTBLANK(B82:L82)=9,\"\",IF(COUNTBLANK(B82:H82)>0,\"la ligne doit être entièrement complétée (SVP : ne pas supprimer de lignes et indiquer uniquement des centres inclueurs).\",\"\"))&IF(AND(OR(E82=F82,F82=\"\"),SUMPRODUCT(ISNUMBER(SEARCH({\"@aphp\";\"@chu-lyon\";\"@ap-hm\"},D82))*1)<>0),\" Merci d'indiquer votre site d'exercice dans la colone F\",\"\")","v":"la ligne doit être entièrement complétée (SVP : ne pas supprimer de lignes et indiquer uniquement des centres inclueurs)."},{"$f":"IF(E82=\"\",\"\",UPPER(E82)& \" (\" & LOWER(J82) & \")\"&\" |\")","v":""},"",""]
[58,null,null,null,null,null,null,null,{"$f":"IFERROR(VLOOKUP(H83,Ville_sup3K_Dept[],2,FALSE),\"\")","v":""},{"$f":"IFERROR(VLOOKUP(I83,Param!$H$2:$J$103,3,FALSE),\"\")","v":""},null,null,{"$f":"IF(OR(L83=\"\",L83=\"NA\"),\"\", IF(C$10=\"\",\"Renseigner cellule C10\", ROUND(L83/C$10,1)))","v":""},{"$f":"IF(COUNTBLANK(B83:L83)=9,\"\",IF(COUNTBLANK(B83:H83)>0,\"la ligne doit être entièrement complétée (SVP : ne pas supprimer de lignes et indiquer uniquement des centres inclueurs).\",\"\"))&IF(AND(OR(E83=F83,F83=\"\"),SUMPRODUCT(ISNUMBER(SEARCH({\"@aphp\";\"@chu-lyon\";\"@ap-hm\"},D83))*1)<>0),\" Merci d'indiquer votre site d'exercice dans la colone F\",\"\")","v":"la ligne doit être entièrement complétée (SVP : ne pas supprimer de lignes et indiquer uniquement des centres inclueurs)."},{"$f":"IF(E83=\"\",\"\",UPPER(E83)& \" (\" & LOWER(J83) & \")\"&\" |\")","v":""},"",""]
[59,null,null,null,null,null,null,null,{"$f":"IFERROR(VLOOKUP(H84,Ville_sup3K_Dept[],2,FALSE),\"\")","v":""},{"$f":"IFERROR(VLOOKUP(I84,Param!$H$2:$J$103,3,FALSE),\"\")","v":""},null,null,{"$f":"IF(OR(L84=\"\",L84=\"NA\"),\"\", IF(C$10=\"\",\"Renseigner cellule C10\", ROUND(L84/C$10,1)))","v":""},{"$f":"IF(COUNTBLANK(B84:L84)=9,\"\",IF(COUNTBLANK(B84:H84)>0,\"la ligne doit être entièrement complétée (SVP : ne pas supprimer de lignes et indiquer uniquement des centres inclueurs).\",\"\"))&IF(AND(OR(E84=F84,F84=\"\"),SUMPRODUCT(ISNUMBER(SEARCH({\"@aphp\";\"@chu-lyon\";\"@ap-hm\"},D84))*1)<>0),\" Merci d'indiquer votre site d'exercice dans la colone F\",\"\")","v":"la ligne doit être entièrement complétée (SVP : ne pas supprimer de lignes et indiquer uniquement des centres inclueurs)."},{"$f":"IF(E84=\"\",\"\",UPPER(E84)& \" (\" & LOWER(J84) & \")\"&\" |\")","v":""},"",""]
[60,null,null,null,null,null,null,null,{"$f":"IFERROR(VLOOKUP(H85,Ville_sup3K_Dept[],2,FALSE),\"\")","v":""},{"$f":"IFERROR(VLOOKUP(I85,Param!$H$2:$J$103,3,FALSE),\"\")","v":""},null,null,{"$f":"IF(OR(L85=\"\",L85=\"NA\"),\"\", IF(C$10=\"\",\"Renseigner cellule C10\", ROUND(L85/C$10,1)))","v":""},{"$f":"IF(COUNTBLANK(B85:L85)=9,\"\",IF(COUNTBLANK(B85:H85)>0,\"la ligne doit être entièrement complétée (SVP : ne pas supprimer de lignes et indiquer uniquement des centres inclueurs).\",\"\"))&IF(AND(OR(E85=F85,F85=\"\"),SUMPRODUCT(ISNUMBER(SEARCH({\"@aphp\";\"@chu-lyon\";\"@ap-hm\"},D85))*1)<>0),\" Merci d'indiquer votre site d'exercice dans la colone F\",\"\")","v":"la ligne doit être entièrement complétée (SVP : ne pas supprimer de lignes et indiquer uniquement des centres inclueurs)."},{"$f":"IF(E85=\"\",\"\",UPPER(E85)& \" (\" & LOWER(J85) & \")\"&\" |\")","v":""},"",""]
[61,null,null,null,null,null,null,null,{"$f":"IFERROR(VLOOKUP(H86,Ville_sup3K_Dept[],2,FALSE),\"\")","v":""},{"$f":"IFERROR(VLOOKUP(I86,Param!$H$2:$J$103,3,FALSE),\"\")","v":""},null,null,{"$f":"IF(OR(L86=\"\",L86=\"NA\"),\"\", IF(C$10=\"\",\"Renseigner cellule C10\", ROUND(L86/C$10,1)))","v":""},{"$f":"IF(COUNTBLANK(B86:L86)=9,\"\",IF(COUNTBLANK(B86:H86)>0,\"la ligne doit être entièrement complétée (SVP : ne pas supprimer de lignes et indiquer uniquement des centres inclueurs).\",\"\"))&IF(AND(OR(E86=F86,F86=\"\"),SUMPRODUCT(ISNUMBER(SEARCH({\"@aphp\";\"@chu-lyon\";\"@ap-hm\"},D86))*1)<>0),\" Merci d'indiquer votre site d'exercice dans la colone F\",\"\")","v":"la ligne doit être entièrement complétée (SVP : ne pas supprimer de lignes et indiquer uniquement des centres inclueurs)."},{"$f":"IF(E86=\"\",\"\",UPPER(E86)& \" (\" & LOWER(J86) & \")\"&\" |\")","v":""},"",""]
[62,null,null,null,null,null,null,null,{"$f":"IFERROR(VLOOKUP(H87,Ville_sup3K_Dept[],2,FALSE),\"\")","v":""},{"$f":"IFERROR(VLOOKUP(I87,Param!$H$2:$J$103,3,FALSE),\"\")","v":""},null,null,{"$f":"IF(OR(L87=\"\",L87=\"NA\"),\"\", IF(C$10=\"\",\"Renseigner cellule C10\", ROUND(L87/C$10,1)))","v":""},{"$f":"IF(COUNTBLANK(B87:L87)=9,\"\",IF(COUNTBLANK(B87:H87)>0,\"la ligne doit être entièrement complétée (SVP : ne pas supprimer de lignes et indiquer uniquement des centres inclueurs).\",\"\"))&IF(AND(OR(E87=F87,F87=\"\"),SUMPRODUCT(ISNUMBER(SEARCH({\"@aphp\";\"@chu-lyon\";\"@ap-hm\"},D87))*1)<>0),\" Merci d'indiquer votre site d'exercice dans la colone F\",\"\")","v":"la ligne doit être entièrement complétée (SVP : ne pas supprimer de lignes et indiquer uniquement des centres inclueurs)."},{"$f":"IF(E87=\"\",\"\",UPPER(E87)& \" (\" & LOWER(J87) & \")\"&\" |\")","v":""},"",""]
[63,null,null,null,null,null,null,null,{"$f":"IFERROR(VLOOKUP(H88,Ville_sup3K_Dept[],2,FALSE),\"\")","v":""},{"$f":"IFERROR(VLOOKUP(I88,Param!$H$2:$J$103,3,FALSE),\"\")","v":""},null,null,{"$f":"IF(OR(L88=\"\",L88=\"NA\"),\"\", IF(C$10=\"\",\"Renseigner cellule C10\", ROUND(L88/C$10,1)))","v":""},{"$f":"IF(COUNTBLANK(B88:L88)=9,\"\",IF(COUNTBLANK(B88:H88)>0,\"la ligne doit être entièrement complétée (SVP : ne pas supprimer de lignes et indiquer uniquement des centres inclueurs).\",\"\"))&IF(AND(OR(E88=F88,F88=\"\"),SUMPRODUCT(ISNUMBER(SEARCH({\"@aphp\";\"@chu-lyon\";\"@ap-hm\"},D88))*1)<>0),\" Merci d'indiquer votre site d'exercice dans la colone F\",\"\")","v":"la ligne doit être entièrement complétée (SVP : ne pas supprimer de lignes et indiquer uniquement des centres inclueurs)."},{"$f":"IF(E88=\"\",\"\",UPPER(E88)& \" (\" & LOWER(J88) & \")\"&\" |\")","v":""},"",""]
[63,null,null,null,null,null,null,null,{"$f":"IFERROR(VLOOKUP(H89,Ville_sup3K_Dept[],2,FALSE),\"\")","v":""},{"$f":"IFERROR(VLOOKUP(I89,Param!$H$2:$J$103,3,FALSE),\"\")","v":""},null,null,{"$f":"IF(OR(L89=\"\",L89=\"NA\"),\"\", IF(C$10=\"\",\"Renseigner cellule C10\", ROUND(L89/C$10,1)))","v":""},{"$f":"IF(COUNTBLANK(B89:L89)=9,\"\",IF(COUNTBLANK(B89:H89)>0,\"la ligne doit être entièrement complétée (SVP : ne pas supprimer de lignes et indiquer uniquement des centres inclueurs).\",\"\"))&IF(AND(OR(E89=F89,F89=\"\"),SUMPRODUCT(ISNUMBER(SEARCH({\"@aphp\";\"@chu-lyon\";\"@ap-hm\"},D89))*1)<>0),\" Merci d'indiquer votre site d'exercice dans la colone F\",\"\")","v":"la ligne doit être entièrement complétée (SVP : ne pas supprimer de lignes et indiquer uniquement des centres inclueurs)."},{"$f":"IF(E89=\"\",\"\",UPPER(E89)& \" (\" & LOWER(J89) & \")\"&\" |\")","v":""},"",""]
[64,null,null,null,null,null,null,null,{"$f":"IFERROR(VLOOKUP(H90,Ville_sup3K_Dept[],2,FALSE),\"\")","v":""},{"$f":"IFERROR(VLOOKUP(I90,Param!$H$2:$J$103,3,FALSE),\"\")","v":""},null,null,{"$f":"IF(OR(L90=\"\",L90=\"NA\"),\"\", IF(C$10=\"\",\"Renseigner cellule C10\", ROUND(L90/C$10,1)))","v":""},{"$f":"IF(COUNTBLANK(B90:L90)=9,\"\",IF(COUNTBLANK(B90:H90)>0,\"la ligne doit être entièrement complétée (SVP : ne pas supprimer de lignes et indiquer uniquement des centres inclueurs).\",\"\"))&IF(AND(OR(E90=F90,F90=\"\"),SUMPRODUCT(ISNUMBER(SEARCH({\"@aphp\";\"@chu-lyon\";\"@ap-hm\"},D90))*1)<>0),\" Merci d'indiquer votre site d'exercice dans la colone F\",\"\")","v":"la ligne doit être entièrement complétée (SVP : ne pas supprimer de lignes et indiquer uniquement des centres inclueurs)."},{"$f":"IF(E90=\"\",\"\",UPPER(E90)& \" (\" & LOWER(J90) & \")\"&\" |\")","v":""},"",""]
[65,null,null,null,null,null,null,null,{"$f":"IFERROR(VLOOKUP(H91,Ville_sup3K_Dept[],2,FALSE),\"\")","v":""},{"$f":"IFERROR(VLOOKUP(I91,Param!$H$2:$J$103,3,FALSE),\"\")","v":""},null,null,{"$f":"IF(OR(L91=\"\",L91=\"NA\"),\"\", IF(C$10=\"\",\"Renseigner cellule C10\", ROUND(L91/C$10,1)))","v":""},{"$f":"IF(COUNTBLANK(B91:L91)=9,\"\",IF(COUNTBLANK(B91:H91)>0,\"la ligne doit être entièrement complétée (SVP : ne pas supprimer de lignes et indiquer uniquement des centres inclueurs).\",\"\"))&IF(AND(OR(E91=F91,F91=\"\"),SUMPRODUCT(ISNUMBER(SEARCH({\"@aphp\";\"@chu-lyon\";\"@ap-hm\"},D91))*1)<>0),\" Merci d'indiquer votre site d'exercice dans la colone F\",\"\")","v":"la ligne doit être entièrement complétée (SVP : ne pas supprimer de lignes et indiquer uniquement des centres inclueurs)."},{"$f":"IF(E91=\"\",\"\",UPPER(E91)& \" (\" & LOWER(J91) & \")\"&\" |\")","v":""},"",""]
[66,null,null,null,null,null,null,null,{"$f":"IFERROR(VLOOKUP(H92,Ville_sup3K_Dept[],2,FALSE),\"\")","v":""},{"$f":"IFERROR(VLOOKUP(I92,Param!$H$2:$J$103,3,FALSE),\"\")","v":""},null,null,{"$f":"IF(OR(L92=\"\",L92=\"NA\"),\"\", IF(C$10=\"\",\"Renseigner cellule C10\", ROUND(L92/C$10,1)))","v":""},{"$f":"IF(COUNTBLANK(B92:L92)=9,\"\",IF(COUNTBLANK(B92:H92)>0,\"la ligne doit être entièrement complétée (SVP : ne pas supprimer de lignes et indiquer uniquement des centres inclueurs).\",\"\"))&IF(AND(OR(E92=F92,F92=\"\"),SUMPRODUCT(ISNUMBER(SEARCH({\"@aphp\";\"@chu-lyon\";\"@ap-hm\"},D92))*1)<>0),\" Merci d'indiquer votre site d'exercice dans la colone F\",\"\")","v":"la ligne doit être entièrement complétée (SVP : ne pas supprimer de lignes et indiquer uniquement des centres inclueurs)."},{"$f":"IF(E92=\"\",\"\",UPPER(E92)& \" (\" & LOWER(J92) & \")\"&\" |\")","v":""},{"$f":"IF(E92=\"\",\"\",UPPER(E92) & \" (\" & J92 & \"-\" & I92 &\")\" &\" ; \")","v":""},{"$f":"IF(J92=\"\",\"\",\"|\"&J92 &\" : \")","v":""}]
[67,null,null,null,null,null,null,null,{"$f":"IFERROR(VLOOKUP(H93,Ville_sup3K_Dept[],2,FALSE),\"\")","v":""},{"$f":"IFERROR(VLOOKUP(I93,Param!$H$2:$J$103,3,FALSE),\"\")","v":""},null,null,{"$f":"IF(OR(L93=\"\",L93=\"NA\"),\"\", IF(C$10=\"\",\"Renseigner cellule C10\", ROUND(L93/C$10,1)))","v":""},{"$f":"IF(COUNTBLANK(B93:L93)=9,\"\",IF(COUNTBLANK(B93:H93)>0,\"la ligne doit être entièrement complétée (SVP : ne pas supprimer de lignes et indiquer uniquement des centres inclueurs).\",\"\"))&IF(AND(OR(E93=F93,F93=\"\"),SUMPRODUCT(ISNUMBER(SEARCH({\"@aphp\";\"@chu-lyon\";\"@ap-hm\"},D93))*1)<>0),\" Merci d'indiquer votre site d'exercice dans la colone F\",\"\")","v":"la ligne doit être entièrement complétée (SVP : ne pas supprimer de lignes et indiquer uniquement des centres inclueurs)."},{"$f":"IF(E93=\"\",\"\",UPPER(E93)& \" (\" & LOWER(J93) & \")\"&\" |\")","v":""},"",""]
[68,null,null,null,null,null,null,null,{"$f":"IFERROR(VLOOKUP(H94,Ville_sup3K_Dept[],2,FALSE),\"\")","v":""},{"$f":"IFERROR(VLOOKUP(I94,Param!$H$2:$J$103,3,FALSE),\"\")","v":""},null,null,{"$f":"IF(OR(L94=\"\",L94=\"NA\"),\"\", IF(C$10=\"\",\"Renseigner cellule C10\", ROUND(L94/C$10,1)))","v":""},{"$f":"IF(COUNTBLANK(B94:L94)=9,\"\",IF(COUNTBLANK(B94:H94)>0,\"la ligne doit être entièrement complétée (SVP : ne pas supprimer de lignes et indiquer uniquement des centres inclueurs).\",\"\"))&IF(AND(OR(E94=F94,F94=\"\"),SUMPRODUCT(ISNUMBER(SEARCH({\"@aphp\";\"@chu-lyon\";\"@ap-hm\"},D94))*1)<>0),\" Merci d'indiquer votre site d'exercice dans la colone F\",\"\")","v":"la ligne doit être entièrement complétée (SVP : ne pas supprimer de lignes et indiquer uniquement des centres inclueurs)."},{"$f":"IF(E94=\"\",\"\",UPPER(E94)& \" (\" & LOWER(J94) & \")\"&\" |\")","v":""},"",""]
[69,null,null,null,null,null,null,null,{"$f":"IFERROR(VLOOKUP(H95,Ville_sup3K_Dept[],2,FALSE),\"\")","v":""},{"$f":"IFERROR(VLOOKUP(I95,Param!$H$2:$J$103,3,FALSE),\"\")","v":""},null,null,{"$f":"IF(OR(L95=\"\",L95=\"NA\"),\"\", IF(C$10=\"\",\"Renseigner cellule C10\", ROUND(L95/C$10,1)))","v":""},{"$f":"IF(COUNTBLANK(B95:L95)=9,\"\",IF(COUNTBLANK(B95:H95)>0,\"la ligne doit être entièrement complétée (SVP : ne pas supprimer de lignes et indiquer uniquement des centres inclueurs).\",\"\"))&IF(AND(OR(E95=F95,F95=\"\"),SUMPRODUCT(ISNUMBER(SEARCH({\"@aphp\";\"@chu-lyon\";\"@ap-hm\"},D95))*1)<>0),\" Merci d'indiquer votre site d'exercice dans la colone F\",\"\")","v":"la ligne doit être entièrement complétée (SVP : ne pas supprimer de lignes et indiquer uniquement des centres inclueurs)."},{"$f":"IF(E95=\"\",\"\",UPPER(E95)& \" (\" & LOWER(J95) & \")\"&\" |\")","v":""},"",""]
[70,null,null,null,null,null,null,null,{"$f":"IFERROR(VLOOKUP(H96,Ville_sup3K_Dept[],2,FALSE),\"\")","v":""},{"$f":"IFERROR(VLOOKUP(I96,Param!$H$2:$J$103,3,FALSE),\"\")","v":""},null,null,{"$f":"IF(OR(L96=\"\",L96=\"NA\"),\"\", IF(C$10=\"\",\"Renseigner cellule C10\", ROUND(L96/C$10,1)))","v":""},{"$f":"IF(COUNTBLANK(B96:L96)=9,\"\",IF(COUNTBLANK(B96:H96)>0,\"la ligne doit être entièrement complétée (SVP : ne pas supprimer de lignes et indiquer uniquement des centres inclueurs).\",\"\"))&IF(AND(OR(E96=F96,F96=\"\"),SUMPRODUCT(ISNUMBER(SEARCH({\"@aphp\";\"@chu-lyon\";\"@ap-hm\"},D96))*1)<>0),\" Merci d'indiquer votre site d'exercice dans la colone F\",\"\")","v":"la ligne doit être entièrement complétée (SVP : ne pas supprimer de lignes et indiquer uniquement des centres inclueurs)."},{"$f":"IF(E96=\"\",\"\",UPPER(E96)& \" (\" & LOWER(J96) & \")\"&\" |\")","v":""},"",""]
[71,null,null,null,null,null,null,null,{"$f":"IFERROR(VLOOKUP(H97,Ville_sup3K_Dept[],2,FALSE),\"\")","v":""},{"$f":"IFERROR(VLOOKUP(I97,Param!$H$2:$J$103,3,FALSE),\"\")","v":""},null,null,{"$f":"IF(OR(L97=\"\",L97=\"NA\"),\"\", IF(C$10=\"\",\"Renseigner cellule C10\", ROUND(L97/C$10,1)))","v":""},{"$f":"IF(COUNTBLANK(B97:L97)=9,\"\",IF(COUNTBLANK(B97:H97)>0,\"la ligne doit être entièrement complétée (SVP : ne pas supprimer de lignes et indiquer uniquement des centres inclueurs).\",\"\"))&IF(AND(OR(E97=F97,F97=\"\"),SUMPRODUCT(ISNUMBER(SEARCH({\"@aphp\";\"@chu-lyon\";\"@ap-hm\"},D97))*1)<>0),\" Merci d'indiquer votre site d'exercice dans la colone F\",\"\")","v":"la ligne doit être entièrement complétée (SVP : ne pas supprimer de lignes et indiquer uniquement des centres inclueurs)."},{"$f":"IF(E97=\"\",\"\",UPPER(E97)& \" (\" & LOWER(J97) & \")\"&\" |\")","v":""},"",""]
[72,null,null,null,null,null,null,null,{"$f":"IFERROR(VLOOKUP(H98,Ville_sup3K_Dept[],2,FALSE),\"\")","v":""},{"$f":"IFERROR(VLOOKUP(I98,Param!$H$2:$J$103,3,FALSE),\"\")","v":""},null,null,{"$f":"IF(OR(L98=\"\",L98=\"NA\"),\"\", IF(C$10=\"\",\"Renseigner cellule C10\", ROUND(L98/C$10,1)))","v":""},{"$f":"IF(COUNTBLANK(B98:L98)=9,\"\",IF(COUNTBLANK(B98:H98)>0,\"la ligne doit être entièrement complétée (SVP : ne pas supprimer de lignes et indiquer uniquement des centres inclueurs).\",\"\"))&IF(AND(OR(E98=F98,F98=\"\"),SUMPRODUCT(ISNUMBER(SEARCH({\"@aphp\";\"@chu-lyon\";\"@ap-hm\"},D98))*1)<>0),\" Merci d'indiquer votre site d'exercice dans la colone F\",\"\")","v":"la ligne doit être entièrement complétée (SVP : ne pas supprimer de lignes et indiquer uniquement des centres inclueurs)."},{"$f":"IF(E98=\"\",\"\",UPPER(E98)& \" (\" & LOWER(J98) & \")\"&\" |\")","v":""},"",""]
[73,null,null,null,null,null,null,null,{"$f":"IFERROR(VLOOKUP(H99,Ville_sup3K_Dept[],2,FALSE),\"\")","v":""},{"$f":"IFERROR(VLOOKUP(I99,Param!$H$2:$J$103,3,FALSE),\"\")","v":""},null,null,{"$f":"IF(OR(L99=\"\",L99=\"NA\"),\"\", IF(C$10=\"\",\"Renseigner cellule C10\", ROUND(L99/C$10,1)))","v":""},{"$f":"IF(COUNTBLANK(B99:L99)=9,\"\",IF(COUNTBLANK(B99:H99)>0,\"la ligne doit être entièrement complétée (SVP : ne pas supprimer de lignes et indiquer uniquement des centres inclueurs).\",\"\"))&IF(AND(OR(E99=F99,F99=\"\"),SUMPRODUCT(ISNUMBER(SEARCH({\"@aphp\";\"@chu-lyon\";\"@ap-hm\"},D99))*1)<>0),\" Merci d'indiquer votre site d'exercice dans la colone F\",\"\")","v":"la ligne doit être entièrement complétée (SVP : ne pas supprimer de lignes et indiquer uniquement des centres inclueurs)."},{"$f":"IF(E99=\"\",\"\",UPPER(E99)& \" (\" & LOWER(J99) & \")\"&\" |\")","v":""},"",""]
[74,null,null,null,null,null,null,null,{"$f":"IFERROR(VLOOKUP(H100,Ville_sup3K_Dept[],2,FALSE),\"\")","v":""},{"$f":"IFERROR(VLOOKUP(I100,Param!$H$2:$J$103,3,FALSE),\"\")","v":""},null,null,{"$f":"IF(OR(L100=\"\",L100=\"NA\"),\"\", IF(C$10=\"\",\"Renseigner cellule C10\", ROUND(L100/C$10,1)))","v":""},{"$f":"IF(COUNTBLANK(B100:L100)=9,\"\",IF(COUNTBLANK(B100:H100)>0,\"la ligne doit être entièrement complétée (SVP : ne pas supprimer de lignes et indiquer uniquement des centres inclueurs).\",\"\"))&IF(AND(OR(E100=F100,F100=\"\"),SUMPRODUCT(ISNUMBER(SEARCH({\"@aphp\";\"@chu-lyon\";\"@ap-hm\"},D100))*1)<>0),\" Merci d'indiquer votre site d'exercice dans la colone F\",\"\")","v":"la ligne doit être entièrement complétée (SVP : ne pas supprimer de lignes et indiquer uniquement des centres inclueurs)."},{"$f":"IF(E100=\"\",\"\",UPPER(E100)& \" (\" & LOWER(J100) & \")\"&\" |\")","v":""},"",""]
[75,null,null,null,null,null,null,null,{"$f":"IFERROR(VLOOKUP(H101,Ville_sup3K_Dept[],2,FALSE),\"\")","v":""},{"$f":"IFERROR(VLOOKUP(I101,Param!$H$2:$J$103,3,FALSE),\"\")","v":""},null,null,{"$f":"IF(OR(L101=\"\",L101=\"NA\"),\"\", IF(C$10=\"\",\"Renseigner cellule C10\", ROUND(L101/C$10,1)))","v":""},{"$f":"IF(COUNTBLANK(B101:L101)=9,\"\",IF(COUNTBLANK(B101:H101)>0,\"la ligne doit être entièrement complétée (SVP : ne pas supprimer de lignes et indiquer uniquement des centres inclueurs).\",\"\"))&IF(AND(OR(E101=F101,F101=\"\"),SUMPRODUCT(ISNUMBER(SEARCH({\"@aphp\";\"@chu-lyon\";\"@ap-hm\"},D101))*1)<>0),\" Merci d'indiquer votre site d'exercice dans la colone F\",\"\")","v":"la ligne doit être entièrement complétée (SVP : ne pas supprimer de lignes et indiquer uniquement des centres inclueurs)."},{"$f":"IF(E101=\"\",\"\",UPPER(E101)& \" (\" & LOWER(J101) & \")\"&\" |\")","v":""},"",""]
[76,null,null,null,null,null,null,null,{"$f":"IFERROR(VLOOKUP(H102,Ville_sup3K_Dept[],2,FALSE),\"\")","v":""},{"$f":"IFERROR(VLOOKUP(I102,Param!$H$2:$J$103,3,FALSE),\"\")","v":""},null,null,{"$f":"IF(OR(L102=\"\",L102=\"NA\"),\"\", IF(C$10=\"\",\"Renseigner cellule C10\", ROUND(L102/C$10,1)))","v":""},{"$f":"IF(COUNTBLANK(B102:L102)=9,\"\",IF(COUNTBLANK(B102:H102)>0,\"la ligne doit être entièrement complétée (SVP : ne pas supprimer de lignes et indiquer uniquement des centres inclueurs).\",\"\"))&IF(AND(OR(E102=F102,F102=\"\"),SUMPRODUCT(ISNUMBER(SEARCH({\"@aphp\";\"@chu-lyon\";\"@ap-hm\"},D102))*1)<>0),\" Merci d'indiquer votre site d'exercice dans la colone F\",\"\")","v":"la ligne doit être entièrement complétée (SVP : ne pas supprimer de lignes et indiquer uniquement des centres inclueurs)."},{"$f":"IF(E102=\"\",\"\",UPPER(E102)& \" (\" & LOWER(J102) & \")\"&\" |\")","v":""},"",""]
[77,null,null,null,null,null,null,null,{"$f":"IFERROR(VLOOKUP(H103,Ville_sup3K_Dept[],2,FALSE),\"\")","v":""},{"$f":"IFERROR(VLOOKUP(I103,Param!$H$2:$J$103,3,FALSE),\"\")","v":""},null,null,{"$f":"IF(OR(L103=\"\",L103=\"NA\"),\"\", IF(C$10=\"\",\"Renseigner cellule C10\", ROUND(L103/C$10,1)))","v":""},{"$f":"IF(COUNTBLANK(B103:L103)=9,\"\",IF(COUNTBLANK(B103:H103)>0,\"la ligne doit être entièrement complétée (SVP : ne pas supprimer de lignes et indiquer uniquement des centres inclueurs).\",\"\"))&IF(AND(OR(E103=F103,F103=\"\"),SUMPRODUCT(ISNUMBER(SEARCH({\"@aphp\";\"@chu-lyon\";\"@ap-hm\"},D103))*1)<>0),\" Merci d'indiquer votre site d'exercice dans la colone F\",\"\")","v":"la ligne doit être entièrement complétée (SVP : ne pas supprimer de lignes et indiquer uniquement des centres inclueurs)."},{"$f":"IF(E103=\"\",\"\",UPPER(E103)& \" (\" & LOWER(J103) & \")\"&\" |\")","v":""},"",""]
[78,null,null,null,null,null,null,null,{"$f":"IFERROR(VLOOKUP(H104,Ville_sup3K_Dept[],2,FALSE),\"\")","v":""},{"$f":"IFERROR(VLOOKUP(I104,Param!$H$2:$J$103,3,FALSE),\"\")","v":""},null,null,{"$f":"IF(OR(L104=\"\",L104=\"NA\"),\"\", IF(C$10=\"\",\"Renseigner cellule C10\", ROUND(L104/C$10,1)))","v":""},{"$f":"IF(COUNTBLANK(B104:L104)=9,\"\",IF(COUNTBLANK(B104:H104)>0,\"la ligne doit être entièrement complétée (SVP : ne pas supprimer de lignes et indiquer uniquement des centres inclueurs).\",\"\"))&IF(AND(OR(E104=F104,F104=\"\"),SUMPRODUCT(ISNUMBER(SEARCH({\"@aphp\";\"@chu-lyon\";\"@ap-hm\"},D104))*1)<>0),\" Merci d'indiquer votre site d'exercice dans la colone F\",\"\")","v":"la ligne doit être entièrement complétée (SVP : ne pas supprimer de lignes et indiquer uniquement des centres inclueurs)."},{"$f":"IF(E104=\"\",\"\",UPPER(E104)& \" (\" & LOWER(J104) & \")\"&\" |\")","v":""},"",""]
[79,null,null,null,null,null,null,null,{"$f":"IFERROR(VLOOKUP(H105,Ville_sup3K_Dept[],2,FALSE),\"\")","v":""},{"$f":"IFERROR(VLOOKUP(I105,Param!$H$2:$J$103,3,FALSE),\"\")","v":""},null,null,{"$f":"IF(OR(L105=\"\",L105=\"NA\"),\"\", IF(C$10=\"\",\"Renseigner cellule C10\", ROUND(L105/C$10,1)))","v":""},{"$f":"IF(COUNTBLANK(B105:L105)=9,\"\",IF(COUNTBLANK(B105:H105)>0,\"la ligne doit être entièrement complétée (SVP : ne pas supprimer de lignes et indiquer uniquement des centres inclueurs).\",\"\"))&IF(AND(OR(E105=F105,F105=\"\"),SUMPRODUCT(ISNUMBER(SEARCH({\"@aphp\";\"@chu-lyon\";\"@ap-hm\"},D105))*1)<>0),\" Merci d'indiquer votre site d'exercice dans la colone F\",\"\")","v":"la ligne doit être entièrement complétée (SVP : ne pas supprimer de lignes et indiquer uniquement des centres inclueurs)."},{"$f":"IF(E105=\"\",\"\",UPPER(E105)& \" (\" & LOWER(J105) & \")\"&\" |\")","v":""},"",""]
[80,null,null,null,null,null,null,null,{"$f":"IFERROR(VLOOKUP(H106,Ville_sup3K_Dept[],2,FALSE),\"\")","v":""},{"$f":"IFERROR(VLOOKUP(I106,Param!$H$2:$J$103,3,FALSE),\"\")","v":""},null,null,{"$f":"IF(OR(L106=\"\",L106=\"NA\"),\"\", IF(C$10=\"\",\"Renseigner cellule C10\", ROUND(L106/C$10,1)))","v":""},{"$f":"IF(COUNTBLANK(B106:L106)=9,\"\",IF(COUNTBLANK(B106:H106)>0,\"la ligne doit être entièrement complétée (SVP : ne pas supprimer de lignes et indiquer uniquement des centres inclueurs).\",\"\"))&IF(AND(OR(E106=F106,F106=\"\"),SUMPRODUCT(ISNUMBER(SEARCH({\"@aphp\";\"@chu-lyon\";\"@ap-hm\"},D106))*1)<>0),\" Merci d'indiquer votre site d'exercice dans la colone F\",\"\")","v":"la ligne doit être entièrement complétée (SVP : ne pas supprimer de lignes et indiquer uniquement des centres inclueurs)."},{"$f":"IF(E106=\"\",\"\",UPPER(E106)& \" (\" & LOWER(J106) & \")\"&\" |\")","v":""},"",""]
[81,null,null,null,null,null,null,null,{"$f":"IFERROR(VLOOKUP(H107,Ville_sup3K_Dept[],2,FALSE),\"\")","v":""},{"$f":"IFERROR(VLOOKUP(I107,Param!$H$2:$J$103,3,FALSE),\"\")","v":""},null,null,{"$f":"IF(OR(L107=\"\",L107=\"NA\"),\"\", IF(C$10=\"\",\"Renseigner cellule C10\", ROUND(L107/C$10,1)))","v":""},{"$f":"IF(COUNTBLANK(B107:L107)=9,\"\",IF(COUNTBLANK(B107:H107)>0,\"la ligne doit être entièrement complétée (SVP : ne pas supprimer de lignes et indiquer uniquement des centres inclueurs).\",\"\"))&IF(AND(OR(E107=F107,F107=\"\"),SUMPRODUCT(ISNUMBER(SEARCH({\"@aphp\";\"@chu-lyon\";\"@ap-hm\"},D107))*1)<>0),\" Merci d'indiquer votre site d'exercice dans la colone F\",\"\")","v":"la ligne doit être entièrement complétée (SVP : ne pas supprimer de lignes et indiquer uniquement des centres inclueurs)."},{"$f":"IF(E107=\"\",\"\",UPPER(E107)& \" (\" & LOWER(J107) & \")\"&\" |\")","v":""},"",""]
[82,null,null,null,null,null,null,null,{"$f":"IFERROR(VLOOKUP(H108,Ville_sup3K_Dept[],2,FALSE),\"\")","v":""},{"$f":"IFERROR(VLOOKUP(I108,Param!$H$2:$J$103,3,FALSE),\"\")","v":""},null,null,{"$f":"IF(OR(L108=\"\",L108=\"NA\"),\"\", IF(C$10=\"\",\"Renseigner cellule C10\", ROUND(L108/C$10,1)))","v":""},{"$f":"IF(COUNTBLANK(B108:L108)=9,\"\",IF(COUNTBLANK(B108:H108)>0,\"la ligne doit être entièrement complétée (SVP : ne pas supprimer de lignes et indiquer uniquement des centres inclueurs).\",\"\"))&IF(AND(OR(E108=F108,F108=\"\"),SUMPRODUCT(ISNUMBER(SEARCH({\"@aphp\";\"@chu-lyon\";\"@ap-hm\"},D108))*1)<>0),\" Merci d'indiquer votre site d'exercice dans la colone F\",\"\")","v":"la ligne doit être entièrement complétée (SVP : ne pas supprimer de lignes et indiquer uniquement des centres inclueurs)."},{"$f":"IF(E108=\"\",\"\",UPPER(E108)& \" (\" & LOWER(J108) & \")\"&\" |\")","v":""},"",""]
[83,null,null,null,null,null,null,null,{"$f":"IFERROR(VLOOKUP(H109,Ville_sup3K_Dept[],2,FALSE),\"\")","v":""},{"$f":"IFERROR(VLOOKUP(I109,Param!$H$2:$J$103,3,FALSE),\"\")","v":""},null,null,{"$f":"IF(OR(L109=\"\",L109=\"NA\"),\"\", IF(C$10=\"\",\"Renseigner cellule C10\", ROUND(L109/C$10,1)))","v":""},{"$f":"IF(COUNTBLANK(B109:L109)=9,\"\",IF(COUNTBLANK(B109:H109)>0,\"la ligne doit être entièrement complétée (SVP : ne pas supprimer de lignes et indiquer uniquement des centres inclueurs).\",\"\"))&IF(AND(OR(E109=F109,F109=\"\"),SUMPRODUCT(ISNUMBER(SEARCH({\"@aphp\";\"@chu-lyon\";\"@ap-hm\"},D109))*1)<>0),\" Merci d'indiquer votre site d'exercice dans la colone F\",\"\")","v":"la ligne doit être entièrement complétée (SVP : ne pas supprimer de lignes et indiquer uniquement des centres inclueurs)."},{"$f":"IF(E109=\"\",\"\",UPPER(E109)& \" (\" & LOWER(J109) & \")\"&\" |\")","v":""},"",""]
[84,null,null,null,null,null,null,null,{"$f":"IFERROR(VLOOKUP(H110,Ville_sup3K_Dept[],2,FALSE),\"\")","v":""},{"$f":"IFERROR(VLOOKUP(I110,Param!$H$2:$J$103,3,FALSE),\"\")","v":""},null,null,{"$f":"IF(OR(L110=\"\",L110=\"NA\"),\"\", IF(C$10=\"\",\"Renseigner cellule C10\", ROUND(L110/C$10,1)))","v":""},{"$f":"IF(COUNTBLANK(B110:L110)=9,\"\",IF(COUNTBLANK(B110:H110)>0,\"la ligne doit être entièrement complétée (SVP : ne pas supprimer de lignes et indiquer uniquement des centres inclueurs).\",\"\"))&IF(AND(OR(E110=F110,F110=\"\"),SUMPRODUCT(ISNUMBER(SEARCH({\"@aphp\";\"@chu-lyon\";\"@ap-hm\"},D110))*1)<>0),\" Merci d'indiquer votre site d'exercice dans la colone F\",\"\")","v":"la ligne doit être entièrement complétée (SVP : ne pas supprimer de lignes et indiquer uniquement des centres inclueurs)."},{"$f":"IF(E110=\"\",\"\",UPPER(E110)& \" (\" & LOWER(J110) & \")\"&\" |\")","v":""},"",""]
[85,null,null,null,null,null,null,null,{"$f":"IFERROR(VLOOKUP(H111,Ville_sup3K_Dept[],2,FALSE),\"\")","v":""},{"$f":"IFERROR(VLOOKUP(I111,Param!$H$2:$J$103,3,FALSE),\"\")","v":""},null,null,{"$f":"IF(OR(L111=\"\",L111=\"NA\"),\"\", IF(C$10=\"\",\"Renseigner cellule C10\", ROUND(L111/C$10,1)))","v":""},{"$f":"IF(COUNTBLANK(B111:L111)=9,\"\",IF(COUNTBLANK(B111:H111)>0,\"la ligne doit être entièrement complétée (SVP : ne pas supprimer de lignes et indiquer uniquement des centres inclueurs).\",\"\"))&IF(AND(OR(E111=F111,F111=\"\"),SUMPRODUCT(ISNUMBER(SEARCH({\"@aphp\";\"@chu-lyon\";\"@ap-hm\"},D111))*1)<>0),\" Merci d'indiquer votre site d'exercice dans la colone F\",\"\")","v":"la ligne doit être entièrement complétée (SVP : ne pas supprimer de lignes et indiquer uniquement des centres inclueurs)."},{"$f":"IF(E111=\"\",\"\",UPPER(E111)& \" (\" & LOWER(J111) & \")\"&\" |\")","v":""},"",""]
[86,null,null,null,null,null,null,null,{"$f":"IFERROR(VLOOKUP(H112,Ville_sup3K_Dept[],2,FALSE),\"\")","v":""},{"$f":"IFERROR(VLOOKUP(I112,Param!$H$2:$J$103,3,FALSE),\"\")","v":""},null,null,{"$f":"IF(OR(L112=\"\",L112=\"NA\"),\"\", IF(C$10=\"\",\"Renseigner cellule C10\", ROUND(L112/C$10,1)))","v":""},{"$f":"IF(COUNTBLANK(B112:L112)=9,\"\",IF(COUNTBLANK(B112:H112)>0,\"la ligne doit être entièrement complétée (SVP : ne pas supprimer de lignes et indiquer uniquement des centres inclueurs).\",\"\"))&IF(AND(OR(E112=F112,F112=\"\"),SUMPRODUCT(ISNUMBER(SEARCH({\"@aphp\";\"@chu-lyon\";\"@ap-hm\"},D112))*1)<>0),\" Merci d'indiquer votre site d'exercice dans la colone F\",\"\")","v":"la ligne doit être entièrement complétée (SVP : ne pas supprimer de lignes et indiquer uniquement des centres inclueurs)."},{"$f":"IF(E112=\"\",\"\",UPPER(E112)& \" (\" & LOWER(J112) & \")\"&\" |\")","v":""},"",""]
[87,null,null,null,null,null,null,null,{"$f":"IFERROR(VLOOKUP(H113,Ville_sup3K_Dept[],2,FALSE),\"\")","v":""},{"$f":"IFERROR(VLOOKUP(I113,Param!$H$2:$J$103,3,FALSE),\"\")","v":""},null,null,{"$f":"IF(OR(L113=\"\",L113=\"NA\"),\"\", IF(C$10=\"\",\"Renseigner cellule C10\", ROUND(L113/C$10,1)))","v":""},{"$f":"IF(COUNTBLANK(B113:L113)=9,\"\",IF(COUNTBLANK(B113:H113)>0,\"la ligne doit être entièrement complétée (SVP : ne pas supprimer de lignes et indiquer uniquement des centres inclueurs).\",\"\"))&IF(AND(OR(E113=F113,F113=\"\"),SUMPRODUCT(ISNUMBER(SEARCH({\"@aphp\";\"@chu-lyon\";\"@ap-hm\"},D113))*1)<>0),\" Merci d'indiquer votre site d'exercice dans la colone F\",\"\")","v":"la ligne doit être entièrement complétée (SVP : ne pas supprimer de lignes et indiquer uniquement des centres inclueurs)."},{"$f":"IF(E113=\"\",\"\",UPPER(E113)& \" (\" & LOWER(J113) & \")\"&\" |\")","v":""},"",""]
[88,null,null,null,null,null,null,null,{"$f":"IFERROR(VLOOKUP(H114,Ville_sup3K_Dept[],2,FALSE),\"\")","v":""},{"$f":"IFERROR(VLOOKUP(I114,Param!$H$2:$J$103,3,FALSE),\"\")","v":""},null,null,{"$f":"IF(OR(L114=\"\",L114=\"NA\"),\"\", IF(C$10=\"\",\"Renseigner cellule C10\", ROUND(L114/C$10,1)))","v":""},{"$f":"IF(COUNTBLANK(B114:L114)=9,\"\",IF(COUNTBLANK(B114:H114)>0,\"la ligne doit être entièrement complétée (SVP : ne pas supprimer de lignes et indiquer uniquement des centres inclueurs).\",\"\"))&IF(AND(OR(E114=F114,F114=\"\"),SUMPRODUCT(ISNUMBER(SEARCH({\"@aphp\";\"@chu-lyon\";\"@ap-hm\"},D114))*1)<>0),\" Merci d'indiquer votre site d'exercice dans la colone F\",\"\")","v":"la ligne doit être entièrement complétée (SVP : ne pas supprimer de lignes et indiquer uniquement des centres inclueurs)."},{"$f":"IF(E114=\"\",\"\",UPPER(E114)& \" (\" & LOWER(J114) & \")\"&\" |\")","v":""},"",""]
[89,null,null,null,null,null,null,null,{"$f":"IFERROR(VLOOKUP(H115,Ville_sup3K_Dept[],2,FALSE),\"\")","v":""},{"$f":"IFERROR(VLOOKUP(I115,Param!$H$2:$J$103,3,FALSE),\"\")","v":""},null,null,{"$f":"IF(OR(L115=\"\",L115=\"NA\"),\"\", IF(C$10=\"\",\"Renseigner cellule C10\", ROUND(L115/C$10,1)))","v":""},{"$f":"IF(COUNTBLANK(B115:L115)=9,\"\",IF(COUNTBLANK(B115:H115)>0,\"la ligne doit être entièrement complétée (SVP : ne pas supprimer de lignes et indiquer uniquement des centres inclueurs).\",\"\"))&IF(AND(OR(E115=F115,F115=\"\"),SUMPRODUCT(ISNUMBER(SEARCH({\"@aphp\";\"@chu-lyon\";\"@ap-hm\"},D115))*1)<>0),\" Merci d'indiquer votre site d'exercice dans la colone F\",\"\")","v":"la ligne doit être entièrement complétée (SVP : ne pas supprimer de lignes et indiquer uniquement des centres inclueurs)."},{"$f":"IF(E115=\"\",\"\",UPPER(E115)& \" (\" & LOWER(J115) & \")\"&\" |\")","v":""},"",""]
[90,null,null,null,null,null,null,null,{"$f":"IFERROR(VLOOKUP(H116,Ville_sup3K_Dept[],2,FALSE),\"\")","v":""},{"$f":"IFERROR(VLOOKUP(I116,Param!$H$2:$J$103,3,FALSE),\"\")","v":""},null,null,{"$f":"IF(OR(L116=\"\",L116=\"NA\"),\"\", IF(C$10=\"\",\"Renseigner cellule C10\", ROUND(L116/C$10,1)))","v":""},{"$f":"IF(COUNTBLANK(B116:L116)=9,\"\",IF(COUNTBLANK(B116:H116)>0,\"la ligne doit être entièrement complétée (SVP : ne pas supprimer de lignes et indiquer uniquement des centres inclueurs).\",\"\"))&IF(AND(OR(E116=F116,F116=\"\"),SUMPRODUCT(ISNUMBER(SEARCH({\"@aphp\";\"@chu-lyon\";\"@ap-hm\"},D116))*1)<>0),\" Merci d'indiquer votre site d'exercice dans la colone F\",\"\")","v":"la ligne doit être entièrement complétée (SVP : ne pas supprimer de lignes et indiquer uniquement des centres inclueurs)."},{"$f":"IF(E116=\"\",\"\",UPPER(E116)& \" (\" & LOWER(J116) & \")\"&\" |\")","v":""},"",""]
[91,null,null,null,null,null,null,null,{"$f":"IFERROR(VLOOKUP(H117,Ville_sup3K_Dept[],2,FALSE),\"\")","v":""},{"$f":"IFERROR(VLOOKUP(I117,Param!$H$2:$J$103,3,FALSE),\"\")","v":""},null,null,{"$f":"IF(OR(L117=\"\",L117=\"NA\"),\"\", IF(C$10=\"\",\"Renseigner cellule C10\", ROUND(L117/C$10,1)))","v":""},{"$f":"IF(COUNTBLANK(B117:L117)=9,\"\",IF(COUNTBLANK(B117:H117)>0,\"la ligne doit être entièrement complétée (SVP : ne pas supprimer de lignes et indiquer uniquement des centres inclueurs).\",\"\"))&IF(AND(OR(E117=F117,F117=\"\"),SUMPRODUCT(ISNUMBER(SEARCH({\"@aphp\";\"@chu-lyon\";\"@ap-hm\"},D117))*1)<>0),\" Merci d'indiquer votre site d'exercice dans la colone F\",\"\")","v":"la ligne doit être entièrement complétée (SVP : ne pas supprimer de lignes et indiquer uniquement des centres inclueurs)."},{"$f":"IF(E117=\"\",\"\",UPPER(E117)& \" (\" & LOWER(J117) & \")\"&\" |\")","v":""},"",""]
[92,null,null,null,null,null,null,null,{"$f":"IFERROR(VLOOKUP(H118,Ville_sup3K_Dept[],2,FALSE),\"\")","v":""},{"$f":"IFERROR(VLOOKUP(I118,Param!$H$2:$J$103,3,FALSE),\"\")","v":""},null,null,{"$f":"IF(OR(L118=\"\",L118=\"NA\"),\"\", IF(C$10=\"\",\"Renseigner cellule C10\", ROUND(L118/C$10,1)))","v":""},{"$f":"IF(COUNTBLANK(B118:L118)=9,\"\",IF(COUNTBLANK(B118:H118)>0,\"la ligne doit être entièrement complétée (SVP : ne pas supprimer de lignes et indiquer uniquement des centres inclueurs).\",\"\"))&IF(AND(OR(E118=F118,F118=\"\"),SUMPRODUCT(ISNUMBER(SEARCH({\"@aphp\";\"@chu-lyon\";\"@ap-hm\"},D118))*1)<>0),\" Merci d'indiquer votre site d'exercice dans la colone F\",\"\")","v":"la ligne doit être entièrement complétée (SVP : ne pas supprimer de lignes et indiquer uniquement des centres inclueurs)."},{"$f":"IF(E118=\"\",\"\",UPPER(E118)& \" (\" & LOWER(J118) & \")\"&\" |\")","v":""},"",""]
[93,null,null,null,null,null,null,null,{"$f":"IFERROR(VLOOKUP(H119,Ville_sup3K_Dept[],2,FALSE),\"\")","v":""},{"$f":"IFERROR(VLOOKUP(I119,Param!$H$2:$J$103,3,FALSE),\"\")","v":""},null,null,{"$f":"IF(OR(L119=\"\",L119=\"NA\"),\"\", IF(C$10=\"\",\"Renseigner cellule C10\", ROUND(L119/C$10,1)))","v":""},{"$f":"IF(COUNTBLANK(B119:L119)=9,\"\",IF(COUNTBLANK(B119:H119)>0,\"la ligne doit être entièrement complétée (SVP : ne pas supprimer de lignes et indiquer uniquement des centres inclueurs).\",\"\"))&IF(AND(OR(E119=F119,F119=\"\"),SUMPRODUCT(ISNUMBER(SEARCH({\"@aphp\";\"@chu-lyon\";\"@ap-hm\"},D119))*1)<>0),\" Merci d'indiquer votre site d'exercice dans la colone F\",\"\")","v":"la ligne doit être entièrement complétée (SVP : ne pas supprimer de lignes et indiquer uniquement des centres inclueurs)."},{"$f":"IF(E119=\"\",\"\",UPPER(E119)& \" (\" & LOWER(J119) & \")\"&\" |\")","v":""},"",""]
[94,null,null,null,null,null,null,null,{"$f":"IFERROR(VLOOKUP(H120,Ville_sup3K_Dept[],2,FALSE),\"\")","v":""},{"$f":"IFERROR(VLOOKUP(I120,Param!$H$2:$J$103,3,FALSE),\"\")","v":""},null,null,{"$f":"IF(OR(L120=\"\",L120=\"NA\"),\"\", IF(C$10=\"\",\"Renseigner cellule C10\", ROUND(L120/C$10,1)))","v":""},{"$f":"IF(COUNTBLANK(B120:L120)=9,\"\",IF(COUNTBLANK(B120:H120)>0,\"la ligne doit être entièrement complétée (SVP : ne pas supprimer de lignes et indiquer uniquement des centres inclueurs).\",\"\"))&IF(AND(OR(E120=F120,F120=\"\"),SUMPRODUCT(ISNUMBER(SEARCH({\"@aphp\";\"@chu-lyon\";\"@ap-hm\"},D120))*1)<>0),\" Merci d'indiquer votre site d'exercice dans la colone F\",\"\")","v":"la ligne doit être entièrement complétée (SVP : ne pas supprimer de lignes et indiquer uniquement des centres inclueurs)."},{"$f":"IF(E120=\"\",\"\",UPPER(E120)& \" (\" & LOWER(J120) & \")\"&\" |\")","v":""},"",""]
[95,null,null,null,null,null,null,null,{"$f":"IFERROR(VLOOKUP(H121,Ville_sup3K_Dept[],2,FALSE),\"\")","v":""},{"$f":"IFERROR(VLOOKUP(I121,Param!$H$2:$J$103,3,FALSE),\"\")","v":""},null,null,{"$f":"IF(OR(L121=\"\",L121=\"NA\"),\"\", IF(C$10=\"\",\"Renseigner cellule C10\", ROUND(L121/C$10,1)))","v":""},{"$f":"IF(COUNTBLANK(B121:L121)=9,\"\",IF(COUNTBLANK(B121:H121)>0,\"la ligne doit être entièrement complétée (SVP : ne pas supprimer de lignes et indiquer uniquement des centres inclueurs).\",\"\"))&IF(AND(OR(E121=F121,F121=\"\"),SUMPRODUCT(ISNUMBER(SEARCH({\"@aphp\";\"@chu-lyon\";\"@ap-hm\"},D121))*1)<>0),\" Merci d'indiquer votre site d'exercice dans la colone F\",\"\")","v":"la ligne doit être entièrement complétée (SVP : ne pas supprimer de lignes et indiquer uniquement des centres inclueurs)."},{"$f":"IF(E121=\"\",\"\",UPPER(E121)& \" (\" & LOWER(J121) & \")\"&\" |\")","v":""},"",""]
[96,null,null,null,null,null,null,null,{"$f":"IFERROR(VLOOKUP(H122,Ville_sup3K_Dept[],2,FALSE),\"\")","v":""},{"$f":"IFERROR(VLOOKUP(I122,Param!$H$2:$J$103,3,FALSE),\"\")","v":""},null,null,{"$f":"IF(OR(L122=\"\",L122=\"NA\"),\"\", IF(C$10=\"\",\"Renseigner cellule C10\", ROUND(L122/C$10,1)))","v":""},{"$f":"IF(COUNTBLANK(B122:L122)=9,\"\",IF(COUNTBLANK(B122:H122)>0,\"la ligne doit être entièrement complétée (SVP : ne pas supprimer de lignes et indiquer uniquement des centres inclueurs).\",\"\"))&IF(AND(OR(E122=F122,F122=\"\"),SUMPRODUCT(ISNUMBER(SEARCH({\"@aphp\";\"@chu-lyon\";\"@ap-hm\"},D122))*1)<>0),\" Merci d'indiquer votre site d'exercice dans la colone F\",\"\")","v":"la ligne doit être entièrement complétée (SVP : ne pas supprimer de lignes et indiquer uniquement des centres inclueurs)."},{"$f":"IF(E122=\"\",\"\",UPPER(E122)& \" (\" & LOWER(J122) & \")\"&\" |\")","v":""},"",""]
[97,null,null,null,null,null,null,null,{"$f":"IFERROR(VLOOKUP(H123,Ville_sup3K_Dept[],2,FALSE),\"\")","v":""},{"$f":"IFERROR(VLOOKUP(I123,Param!$H$2:$J$103,3,FALSE),\"\")","v":""},null,null,{"$f":"IF(OR(L123=\"\",L123=\"NA\"),\"\", IF(C$10=\"\",\"Renseigner cellule C10\", ROUND(L123/C$10,1)))","v":""},{"$f":"IF(COUNTBLANK(B123:L123)=9,\"\",IF(COUNTBLANK(B123:H123)>0,\"la ligne doit être entièrement complétée (SVP : ne pas supprimer de lignes et indiquer uniquement des centres inclueurs).\",\"\"))&IF(AND(OR(E123=F123,F123=\"\"),SUMPRODUCT(ISNUMBER(SEARCH({\"@aphp\";\"@chu-lyon\";\"@ap-hm\"},D123))*1)<>0),\" Merci d'indiquer votre site d'exercice dans la colone F\",\"\")","v":"la ligne doit être entièrement complétée (SVP : ne pas supprimer de lignes et indiquer uniquement des centres inclueurs)."},{"$f":"IF(E123=\"\",\"\",UPPER(E123)& \" (\" & LOWER(J123) & \")\"&\" |\")","v":""},"",""]
[98,null,null,null,null,null,null,null,{"$f":"IFERROR(VLOOKUP(H124,Ville_sup3K_Dept[],2,FALSE),\"\")","v":""},{"$f":"IFERROR(VLOOKUP(I124,Param!$H$2:$J$103,3,FALSE),\"\")","v":""},null,null,{"$f":"IF(OR(L124=\"\",L124=\"NA\"),\"\", IF(C$10=\"\",\"Renseigner cellule C10\", ROUND(L124/C$10,1)))","v":""},{"$f":"IF(COUNTBLANK(B124:L124)=9,\"\",IF(COUNTBLANK(B124:H124)>0,\"la ligne doit être entièrement complétée (SVP : ne pas supprimer de lignes et indiquer uniquement des centres inclueurs).\",\"\"))&IF(AND(OR(E124=F124,F124=\"\"),SUMPRODUCT(ISNUMBER(SEARCH({\"@aphp\";\"@chu-lyon\";\"@ap-hm\"},D124))*1)<>0),\" Merci d'indiquer votre site d'exercice dans la colone F\",\"\")","v":"la ligne doit être entièrement complétée (SVP : ne pas supprimer de lignes et indiquer uniquement des centres inclueurs)."},{"$f":"IF(E124=\"\",\"\",UPPER(E124)& \" (\" & LOWER(J124) & \")\"&\" |\")","v":""},"",""]
[99,null,null,null,null,null,null,null,{"$f":"IFERROR(VLOOKUP(H125,Ville_sup3K_Dept[],2,FALSE),\"\")","v":""},{"$f":"IFERROR(VLOOKUP(I125,Param!$H$2:$J$103,3,FALSE),\"\")","v":""},null,null,{"$f":"IF(OR(L125=\"\",L125=\"NA\"),\"\", IF(C$10=\"\",\"Renseigner cellule C10\", ROUND(L125/C$10,1)))","v":""},{"$f":"IF(COUNTBLANK(B125:L125)=9,\"\",IF(COUNTBLANK(B125:H125)>0,\"la ligne doit être entièrement complétée (SVP : ne pas supprimer de lignes et indiquer uniquement des centres inclueurs).\",\"\"))&IF(AND(OR(E125=F125,F125=\"\"),SUMPRODUCT(ISNUMBER(SEARCH({\"@aphp\";\"@chu-lyon\";\"@ap-hm\"},D125))*1)<>0),\" Merci d'indiquer votre site d'exercice dans la colone F\",\"\")","v":"la ligne doit être entièrement complétée (SVP : ne pas supprimer de lignes et indiquer uniquement des centres inclueurs)."},{"$f":"IF(E125=\"\",\"\",UPPER(E125)& \" (\" & LOWER(J125) & \")\"&\" |\")","v":""},"",""]
[100,null,null,null,null,null,null,null,{"$f":"IFERROR(VLOOKUP(H126,Ville_sup3K_Dept[],2,FALSE),\"\")","v":""},{"$f":"IFERROR(VLOOKUP(I126,Param!$H$2:$J$103,3,FALSE),\"\")","v":""},null,null,{"$f":"IF(OR(L126=\"\",L126=\"NA\"),\"\", IF(C$10=\"\",\"Renseigner cellule C10\", ROUND(L126/C$10,1)))","v":""},{"$f":"IF(COUNTBLANK(B126:L126)=9,\"\",IF(COUNTBLANK(B126:H126)>0,\"la ligne doit être entièrement complétée (SVP : ne pas supprimer de lignes et indiquer uniquement des centres inclueurs).\",\"\"))&IF(AND(OR(E126=F126,F126=\"\"),SUMPRODUCT(ISNUMBER(SEARCH({\"@aphp\";\"@chu-lyon\";\"@ap-hm\"},D126))*1)<>0),\" Merci d'indiquer votre site d'exercice dans la colone F\",\"\")","v":"la ligne doit être entièrement complétée (SVP : ne pas supprimer de lignes et indiquer uniquement des centres inclueurs)."},{"$f":"IF(E126=\"\",\"\",UPPER(E126)& \" (\" & LOWER(J126) & \")\"&\" |\")","v":""},"",""]
[null,null,null,null,null,null,null,null,{"$f":"IFERROR(VLOOKUP(H127,Ville_sup3K_Dept[],2,FALSE),\"\")","v":""},{"$f":"IFERROR(VLOOKUP(I127,Param!$H$2:$J$103,3,FALSE),\"\")","v":""},null,null,{"$f":"IF(OR(L127=\"\",L127=\"NA\"),\"\", IF(C$10=\"\",\"Renseigner cellule C10\", ROUND(L127/C$10,1)))","v":""},{"$f":"IF(COUNTBLANK(B127:L127)=9,\"\",IF(COUNTBLANK(B127:H127)>0,\"la ligne doit être entièrement complétée (SVP : ne pas supprimer de lignes et indiquer uniquement des centres inclueurs).\",\"\"))&IF(AND(OR(E127=F127,F127=\"\"),SUMPRODUCT(ISNUMBER(SEARCH({\"@aphp\";\"@chu-lyon\";\"@ap-hm\"},D127))*1)<>0),\" Merci d'indiquer votre site d'exercice dans la colone F\",\"\")","v":"la ligne doit être entièrement complétée (SVP : ne pas supprimer de lignes et indiquer uniquement des centres inclueurs)."},{"$f":"IF(E127=\"\",\"\",UPPER(E127)& \" (\" & LOWER(J127) & \")\"&\" |\")","v":""},"",""]
["Il est possible d'ajouter des lignes si nécessaire. ",null,"Dupliquer au dessus de cette ligne autant de fois que nécessaire et poursuivre la numérotation en incrémentant >100.",null,null,"En cas d'ajout de ligne, il est nécessaire de s'assurer du respect des formules de calcul automatique [cellules colorées en gris] ",null,null,{"$f":"IFERROR(VLOOKUP(H128,Ville_sup3K_Dept[],2,FALSE),\"\")","v":""},{"$f":"IFERROR(VLOOKUP(I128,Param!$H$2:$J$103,3,FALSE),\"\")","v":""},null,null,null,null,{"$f":"IF(E128=\"\",\"\",UPPER(E128)& \" (\" & LOWER(J128) & \")\"&\" |\")","v":""},"",""]

{"sheet":"Param","index":1,"n_rows":24510,"n_cols":18,"rows_kept":4500,"cut":true,"hidden":true,"merged":[],"bounds":{"rows_first":2000,"rows_last":500,"rows_between":2000,"halvings":0}}
["Civilité","Titre","Profession","Statut","Spécialités",null,{"$f":"I1","v":"NomDept"},"NumDept_txt","NomDept","Girci",null,"ville_nom","ville_departement",null,"NomEtablissement","Finess","NomDept","NumDept_txt"]
["Mme","Dr","Médecin Généraliste","Interne","-",null,{"$f":"I2","v":"AIN"},"01","AIN","AURA",null,"ABAINVILLE","55",null,"CH SAINT LOUIS","090180019","ARIEGE","09"]
["M.","Pr","Médecin autres spécialités","CCA","Autre",null,"AISNE","02","AISNE","NO",null,"ABANCOURT","60",null,"CHIVA","090781774","ARIEGE","09"]
["Mlle","-","Chirurgien-Dentiste","PH","Acupuncture",null,"ALLIER","03","ALLIER","AURA",null,"ABANCOURT","59",null,"CH ARIEGE COUSERANS","090781816","ARIEGE","09"]
["-",null,"Biologiste","MCU-PH","Acupuncture et Médecine Générale",null,"ALPES DE HAUTE PROVENCE","04","ALPES DE HAUTE PROVENCE","MED",null,"ABAUCOURT","54",null,"CH TARASCON SUR ARIEGE","090782251","ARIEGE","09"]
[null,null,"Pharmacien","PU-PH","Allergologie",null,"HAUTES ALPES","05","HAUTES ALPES","MED",null,"ABBANS-DESSUS","25",null,"CH CARCASSONNE","110780061","AUDE","11"]
[null,"Type DRCI","Paramédical","PH-U","Allergologie et Médecine Générale",null,"ALPES MARITIMES","06","ALPES MARITIMES","MED",null,"ABBARETZ","44",null,"CH CASTELNAUDARY","110780087","AUDE","11"]
["Bool","Etablissement avec DRCI","Infirmière","Assistant des hôpitaux","Anatomo-cyto-pathologie",null,"ARDECHE","07","ARDECHE","AURA",null,"ABBECOURT","60",null,"CH NARBONNE","110780137","AUDE","11"]
["Oui","Etablissement sans DRCI","Sage-femme","Praticien attaché","Anesthésie-réanimation",null,"ARDENNES","08","ARDENNES","EST",null,"ABBECOURT","02",null,"CH LIMOUX QUILLAN","110780707","AUDE","11"]
["Non","-","Autre","Clinicien hospitalier","Anesthésie-réanimation chirurgicale",null,"ARIEGE","09","ARIEGE","SOHO",null,"ABBENANS","25",null,"CH LEZIGNAN","110780772","AUDE","11"]
["-",null,"-","Autre","Angiologie",null,"AUBE","10","AUBE","EST",null,"ABBEVILLE","80",null,"CH FRANCIS VALS","110781010","AUDE","11"]
[null,null,null,"-","Angiologie et Médecine Générale",null,"AUDE","11","AUDE","SOHO",null,"ABBEVILLE-LA-RIVIERE","91",null,"CH MILLAU","120004528","AVEYRON","12"]
[{"$f":"CELL(\"adresse\")","v":"'[Liste_Centres_APIRES2024_v1.0.xlsm]2.2_Centres'!$G$29"},null,null,null,"Audiométrie",null,"AVEYRON","12","AVEYRON","SOHO",null,"ABBEVILLERS","25",null,"CH ST AFFRIQUE","120004619","AVEYRON","12"]
[{"$f":"MID(CELL(\"nomfichier\"),SEARCH(\"[\",CELL(\"nomfichier\"))+1, SEARCH(\"]\",CELL(\"nomfichier\"))-SEARCH(\"[\",CELL(\"nomfichier\"))-1)","v":"Liste_Centres_APIRES2024_v1.0.xlsm"},null,"Médecin Généraliste",null,"Biologie",null,"BOUCHES DU RHONE","13","BOUCHES DU RHONE","MED",null,"ABBEVILLE-SAINT-LUCIEN","60",null,"CH DE RODEZ HOPITAL JACQUES PUEL","120780044","AVEYRON","12"]
[{"$f":"LEFT(#REF!, FIND(\"[\",#REF!)-1) &#REF! & \"_\" & \"LI_\" &#REF! & \"-\" &#REF! & \".pdf\"","v":{"$error":"#REF!"}},null,"Médecin autres spécialités",null,"Carcinologie",null,"CALVADOS","14","CALVADOS","NO",null,"ABEILHAN","34",null,"CH VILLEFRANCHE ROUERGUE CHARTREUSE","120780069","AVEYRON","12"]
[{"$f":"CELL(\"nomfichier\")","v":"I:\\APIRES 2024\\[Liste_Centres_APIRES2024_v1.0.xlsm]2.2_Centres"},null,"Chirurgien-Dentiste",null,"Cardiologie",null,"CANTAL","15","CANTAL","AURA",null,"ABELCOURT","70",null,"CH PIERRE DELPECH DECAZEVILLE","120780085","AVEYRON","12"]
[null,null,"Biologiste",null,"Chirurgie dentaire",null,"CHARENTE","16","CHARENTE","SOHO",null,"ABERGEMENT-LA-RONCE","39",null,"CH ST GENIEZ D'OLT ET AUBRAC","120780093","AVEYRON","12"]
[null,null,"Pharmacien",null,"Chirurgie esthétique",null,"CHARENTE MARITIME","17","CHARENTE MARITIME","SOHO",null,"ABILLY","37",null,"CHI ESPALION ST LAURENT D'OLT","120780101","AVEYRON","12"]
["Etablissement de rattachement","num DRCI","Sage-femme","TRL","Chirurgie générale",null,"CHER","18","CHER","GO",null,"ABJAT-SUR-BANDIAT","24",null,"CH MAURICE FENAILLE","120780291","AVEYRON","12"]
["CHU de Bordeaux","01","Infirmier",1,"Chirurgie infantile",null,"CORREZE","19","CORREZE","SOHO",null,"ABLAINCOURT-PRESSOIR","80",null,"CHI VALLON SALLES LA SOURCE","120780481","AVEYRON","12"]
["CHU de Toulouse","02","Masseur-Kinésithérapeute",2,"Chirurgie maxillo-faciale",null,"COTE D OR","21","COTE D OR","EST",null,"ABLAIN-SAINT-NAZAIRE","62",null,"CH DE LA ROCHEFOUCAULD","160000121","CHARENTE","16"]
["CHU de Montpellier","03","Pédicure-Podologue","3A","Chirurgie maxillo-faciale et stomatologie",null,"COTES D ARMOR","22","COTES D ARMOR","GO",null,"ABLEIGES","95",null,"CENTRE HOSPITALIER D'ANGOULEME","160000451","CHARENTE","16"]
["CHU de Limoges","04","Ergothérapeute","3B","Chirurgie orale",null,"CREUSE","23","CREUSE","SOHO",null,"ABLIS","78",null,"CENTRE HOSPITALIER DE CONFOLENS","160000485","CHARENTE","16"]
["CHU de Nîmes","05","Psychomotricien","3C","Chirurgie orthopédique et traumatologie",null,"DORDOGNE","24","DORDOGNE","SOHO",null,"ABLON","14",null,"CENTRE HOSPITALIER DE RUFFEC","160000493","CHARENTE","16"]
["CHU de Poitiers","06","Orthophoniste","4A","Chirurgie plastique reconstructrice et esthétique",null,"DOUBS","25","DOUBS","EST",null,"ABLON-SUR-SEINE","94",null,"CH CAMILLE CLAUDEL","160000501","CHARENTE","16"]
["CHU de Martinique","07","Orthoptiste","4B","Chirurgie thoracique et cardio-vasculaire",null,"DROME","26","DROME","AURA",null,"ABOEN","42",null,"CENTRE HOSPITALIER DE CHATEAUNEUF","160000519","CHARENTE","16"]
["CHU de Guadeloupe","08","Manipulateur d’électroradiologie médicale","4C","Chirurgie urologique",null,"EURE","27","EURE","NO",null,"ABONCOURT","57",null,"CH HOPITAUX DU SUD CHARENTE","160006037","CHARENTE","16"]
["CHU de la Réunion","09","Technicien de laboratoire médical","5A","Chirurgie vasculaire",null,"EURE ET LOIR","28","EURE ET LOIR","GO",null,"ABONCOURT-GESINCOURT","70",null,"HOPITAUX DE GRAND COGNAC","160014411","CHARENTE","16"]
["Institut Bergonié","10","Audioprothésiste","5B","Chirurgie viscérale et digestive",null,"FINISTERE","29","FINISTERE","GO",null,"ABONDANCE","74",null,"GPE HOSPITALIER LA ROCHELLE-RE-AUNIS","170024194","CHARENTE MARITIME","17"]
["Institut Claudius Régaud","11","Opticien-Lunetier","6A","Chirurgiens-dentistes",null,"CORSE DU SUD","2A","CORSE DU SUD","MED",null,"ABONDANT","28",null,"CENTRE HOSPITALIER DE JONZAC","170780050","CHARENTE MARITIME","17"]
["ICM","12","Prothésiste et Orthésiste","6B","Chirurgiens-dentistes, spécialistes en orthopédie dento-faciale",null,"HAUTE CORSE","2B","HAUTE CORSE","MED",null,"ABOS","64",null,"CH ST PIERRE OLERON","170780142","CHARENTE MARITIME","17"]
["CH de Cayenne","13","Diététicien","6C","Dermatologie et maladies vénériennes",null,"GARD","30","GARD","SOHO",null,"ABRESCHVILLER","57",null,"CH DE SAINT-JEAN D'ANGELY","170780167","CHARENTE MARITIME","17"]
[null,null,"Autre","7B","Dermato-vénéréologie",null,"HAUTE GARONNE","31","HAUTE GARONNE","SOHO",null,"ABREST","03",null,"CTRE HOSP. DE SAINTONGE - SAINTES","170780175","CHARENTE MARITIME","17"]
[null,null,"-","7A","Echotomographie",null,"GERS","32","GERS","SOHO",null,"ABRIES","05",null,"CENTRE HOSPITALIER ROYAN-ATLANTIQUE","170780191","CHARENTE MARITIME","17"]
["AAP SOHO",null,null,"8A","Echotomographie et Médecine Générale",null,"GIRONDE","33","GIRONDE","SOHO",null,"ABSCON","59",null,"CH DUBOIS MEYNARDIE MARENNES","170780209","CHARENTE MARITIME","17"]
["APIDOM",84000,"Structures","8B","Electroencéphalographie et électromyographie",null,"HERAULT","34","HERAULT","SOHO",null,"ABYMES","971",null,"CENTRE HOSPITALIER ROCHEFORT","170780225","CHARENTE MARITIME","17"]
["APIK",40000,"Unité de gestion technico-réglementaire","8C","Electroradiologie",null,"ILLE ET VILAINE","35","ILLE ET VILAINE","GO",null,"ABZAC","33",null,"CENTRE HOSPITALIER DE BOSCAMNANT","170780266","CHARENTE MARITIME","17"]
["APIRES",43000,"Unité de Vigilance","9A","Endocrinologie et métabolisme",null,"INDRE","36","INDRE","GO",null,"ABZAC","16",null,"CENTRE HOSPITALIER DUBOIS BRIVE","190000042","CORREZE","19"]
["APITHEM",75000,"Unité de monitoring","9B","Gastro-entérologie",null,"INDRE ET LOIRE","37","INDRE ET LOIRE","GO",null,"ACCOLAY","89",null,"CENTRE HOSPITALIER COEUR DE CORREZE","190000059","CORREZE","19"]
["PHRCI",300000,"Unité de gestion et exploitation des données","-","Gastro-entérologie et hépatologie",null,"ISERE","38","ISERE","AURA",null,"ACCONS","07",null,"HOPITAL LOCAL BORT-LES-ORGUES","190000067","CORREZE","19"]
["RESPIR",280000,null,null,"Gériatrie",null,"JURA","39","JURA","EST",null,"ACCOUS","64",null,"CENTRE HOSPITALIER D'USSEL","190000075","CORREZE","19"]
["-",null,null,null,"Gynécologie",null,"LANDES","40","LANDES","SOHO",null,"ACHEN","57",null,"CENTRE HOSPITALIER GERIATRIQUE UZERCHE","190002485","CORREZE","19"]
[null,null,"Durée (unité)",null,"Gynécologie médicale",null,"LOIR ET CHER","41","LOIR ET CHER","GO",null,"ACHENHEIM","67",null,"CH JEAN-MARIE DAUZIER - CORNIL","190002519","CORREZE","19"]
[null,null,"jours",null,"Gynécologie obstétrique",null,"LOIRE","42","LOIRE","AURA",null,"ACHERES","78",null,"CENTRE HOSPITALIER DE GUERET","230780041","CREUSE","23"]
[null,null,"mois",null,"Gynécologie obstétrique et gynécologie médicale",null,"HAUTE LOIRE","43","HAUTE LOIRE","AURA",null,"ACHERES","18",null,"CENTRE HOSPITALIER D'AUBUSSON","230780058","CREUSE","23"]
[null,null,"année(s)",null,"Hématologie",null,"LOIRE ATLANTIQUE","44","LOIRE ATLANTIQUE","GO",null,"ACHERES-LA-FORET","77",null,"C H BERNARD DESPLAS BOURGANEUF","230780066","CREUSE","23"]
[null,null,"-",null,"Homéopathie",null,"LOIRET","45","LOIRET","GO",null,"ACHERY","02",null,"CENTRE HOSPITALIER  SAINT VAURY","230780074","CREUSE","23"]
[null,null,null,null,"Homéopathie et Médecine Générale",null,"LOT","46","LOT","SOHO",null,"ACHEUX-EN-AMIENOIS","80",null,"CENTRE HOSPITALIER M L S EVAUX","230780512","CREUSE","23"]
[null,null,null,null,"Immunologie",null,"LOT ET GARONNE","47","LOT ET GARONNE","SOHO",null,"ACHEUX-EN-VIMEU","80",null,"CENTRE HOSPITALIER LA SOUTERRAINE","230780520","CREUSE","23"]
[null,null,null,null,"Infirmiers",null,"LOZERE","48","LOZERE","SOHO",null,"ACHEVILLE","62",null,"CENTRE HOSPITALIER LANMARY","240000034","DORDOGNE","24"]
[null,null,null,null,"Laboratoires",null,"MAINE ET LOIRE","49","MAINE ET LOIRE","GO",null,"ACHICOURT","62",null,"CENTRE HOSPITALIER DE BELVES","240000042","DORDOGNE","24"]
[null,null,null,null,"Laboratoires d'anatomo-cyto-pathologie",null,"MANCHE","50","MANCHE","NO",null,"ACHIET-LE-GRAND","62",null,"CENTRE HOSPITALIER DE BERGERAC","240000059","DORDOGNE","24"]
[null,null,null,null,"Laboratoires polyvalents",null,"MARNE","51","MARNE","EST",null,"ACHIET-LE-PETIT","62",null,"CENTRE HOSPITALIER DE DOMME","240000067","DORDOGNE","24"]
[null,null,null,null,"Maladie du diabète et de la nutrition, diététique",null,"HAUTE MARNE","52","HAUTE MARNE","EST",null,"ACHY","60",null,"CENTRE HOSPITALIER D'EXCIDEUIL","240000075","DORDOGNE","24"]
[null,null,null,null,"Maladies infectieuses et tropicales",null,"MAYENNE","53","MAYENNE","GO",null,"ACIGNE","35",null,"CH DE VAUCLAIRE","240000083","DORDOGNE","24"]
[null,null,null,null,"Masseurs-kinésithérapeutes-rééducateurs",null,"MEURTHE ET MOSELLE","54","MEURTHE ET MOSELLE","EST",null,"ACLOU","27",null,"CENTRE HOSPITALIER DE NONTRON","240000109","DORDOGNE","24"]
[null,null,null,null,"Médecine bucco-dentaire",null,"MEUSE","55","MEUSE","EST",null,"ACON","27",null,"CENTRE HOSPITALIER DE PERIGUEUX","240000117","DORDOGNE","24"]
[null,null,"Typologie du lieu d'inclusion",null,"Médecine d'urgence",null,"MORBIHAN","56","MORBIHAN","GO",null,"ACOUA","976",null,"CH DE ST ASTIER","240000141","DORDOGNE","24"]
[null,null,"CHU",null,"Médecine d'urgence et Médecine Générale",null,"MOSELLE","57","MOSELLE","EST",null,"ACQ","62",null,"CENTRE HOSPITALIER JEAN LECLAIRE","240000448","DORDOGNE","24"]
[null,null,"CH",null,"Médecine exotique",null,"NIEVRE","58","NIEVRE","EST",null,"ACQUEVILLE","50",null,"CH INTERCOMMUNAL RIBERAC DRONNE DOUBLE","240016055","DORDOGNE","24"]
[null,null,"ESPIC",null,"Médecine générale",null,"NORD","59","NORD","NO",null,"ACQUIGNY","27",null,"CHU NIMES","300780038","GARD","30"]
[null,null,"UFR/Université/DMG",null,"Médecine génétique",null,"OISE","60","OISE","NO",null,"ACQUIN-WESTBECOURT","62",null,"CH ALES CEVENNES","300780046","GARD","30"]
[null,null,"MSP",null,"Médecine interne",null,"ORNE","61","ORNE","NO",null,"ACY","02",null,"CH LOUIS PASTEUR","300780053","GARD","30"]
[null,null,"Cabinet Libéral ou officine ou activité libérale",null,"Médecine Légale",null,"PAS DE CALAIS","62","PAS DE CALAIS","NO",null,"ACY-EN-MULTIEN","60",null,"CH PONT ST ESPRIT","300780079","GARD","30"]
[null,null,"Structure fédérative",null,"Médecine légale et expertises médicales",null,"PUY DE DOME","63","PUY DE DOME","AURA",null,"ACY-ROMANCE","08",null,"CH UZES","300780087","GARD","30"]
[null,null,"Autre",null,"Médecine nucléaire",null,{"$f":"I66","v":"PYRENEES ATLANTIQUES"},"64","PYRENEES ATLANTIQUES","SOHO",null,"ADAINVILLE","78",null,"CH LE VIGAN","300780095","GARD","30"]
[null,null,"-",null,"Médecine physique",null,"HAUTES PYRENEES","65","HAUTES PYRENEES","SOHO",null,"ADAMSWILLER","67",null,"CHS MAS CAREIRON","300780103","GARD","30"]
[null,null,null,null,"Médecine Physique et de Réadaptation",null,"PYRENEES ORIENTALES","66","PYRENEES ORIENTALES","SOHO",null,"ADAST","65",null,"CH PONTEILS","300781010","GARD","30"]
[null,null,"Thématiques de recherche",null,"Médecine physique et Médecine Générale",null,"BAS RHIN","67","BAS RHIN","EST",null,"ADE","65",null,"LES HOPITAUX DE LUCHON","310180013","HAUTE GARONNE","31"]
[null,null,"Ville",null,"Médecine psychosomatique",null,"HAUT RHIN","68","HAUT RHIN","EST",null,"ADELANS-ET-LE-VAL-DE-BITHAINE","70",null,"CH COMMINGES PYRENEES","310780671","HAUTE GARONNE","31"]
[null,null,"Hôpital",null,"Médecine vasculaire",null,"RHONE","69","RHONE","AURA",null,"ADILLY","79",null,"CH REVEL","310780713","HAUTE GARONNE","31"]
[null,null,"Parcours Ville-Hôpital",null,"Néphrologie",null,"HAUTE SAONE","70","HAUTE SAONE","EST",null,"ADISSAN","34",null,"CH GERARD MARCHANT","310780754","HAUTE GARONNE","31"]
[null,null,null,null,"Neurochirurgie",null,"SAONE ET LOIRE","71","SAONE ET LOIRE","EST",null,"ADRIERS","86",null,"CHU TOULOUSE","310781406","HAUTE GARONNE","31"]
[null,null,null,null,"Neurologie",null,"SARTHE","72","SARTHE","GO",null,"AFA","2A",null,"CH MURET","310786256","HAUTE GARONNE","31"]
[null,null,null,null,"Obstétrique",null,"SAVOIE","73","SAVOIE","AURA",null,"AFFIEUX","19",null,"ETS PUBLIC DE SANTE (EX HL)DE LOMAGNE","320004310","GERS","32"]
[null,null,null,null,"Oncologie médicale",null,"HAUTE SAVOIE","74","HAUTE SAVOIE","AURA",null,"AFFOUX","69",null,"CH AUCH EN GASCOGNE","320780117","GERS","32"]
[null,null,null,null,"Oncologie radiothérapique",null,"PARIS","75","PARIS","IDF",null,"AGDE","34",null,"CH GERS","320780125","GERS","32"]
[null,null,null,null,"Ophtalmologie",null,"SEINE MARITIME","76","SEINE MARITIME","NO",null,"AGEN","47",null,"CH CONDOM","320780133","GERS","32"]
[null,null,null,null,"Orthodontie",null,"SEINE ET MARNE","77","SEINE ET MARNE","IDF",null,"AGENCOURT","21",null,"CH GIMONT","320780158","GERS","32"]
[null,null,null,null,"Orthopédie",null,"YVELINES","78","YVELINES","IDF",null,"AGEN-D'AVEYRON","12",null,"CHI LOMBEZ SAMATAN","320780174","GERS","32"]
[null,null,null,null,"Orthopédie dento-faciale exclusive",null,"DEUX SEVRES","79","DEUX SEVRES","SOHO",null,"AGEVILLE","52",null,"CH DE MAUVEZIN","320780182","GERS","32"]
[null,null,null,null,"Orthophonistes",null,"SOMME","80","SOMME","NO",null,"AGEY","21",null,"CH MIRANDE","320780190","GERS","32"]
[null,null,null,null,"Orthoptistes",null,"TARN","81","TARN","SOHO",null,"AGINCOURT","54",null,"CH NOGARO","320780208","GERS","32"]
[null,null,null,null,"Oto-rhino-laryngologie",null,"TARN ET GARONNE","82","TARN ET GARONNE","SOHO",null,"AGNAC","47",null,"CH DE VIC FEZENSAC","320780216","GERS","32"]
[null,null,null,null,"Pathologie cardio-vasculaire",null,"VAR","83","VAR","MED",null,"AGNEAUX","50",null,"CH SUD GIRONDE LANGON-LA REOLE","330027509","GIRONDE","33"]
[null,null,null,null,"Pédiatrie",null,"VAUCLUSE","84","VAUCLUSE","MED",null,"AGNETZ","60",null,"CHU DE BORDEAUX","330781196","GIRONDE","33"]
[null,null,null,null,"Pédicures",null,"VENDEE","85","VENDEE","GO",null,"AGNEZ-LES-DUISANS","62",null,"CENTRE HOSPITALIER D'ARCACHON","330781204","GIRONDE","33"]
[null,null,null,null,"Phlébologie",null,"VIENNE","86","VIENNE","SOHO",null,"AGNIERES-EN-DEVOLUY","05",null,"CENTRE HOSPITALIER DE BAZAS","330781212","GIRONDE","33"]
[null,null,null,null,"Phoniatrie",null,"HAUTE VIENNE","87","HAUTE VIENNE","SOHO",null,"AGNIN","38",null,"CH DE LA HAUTE GIRONDE","330781220","GIRONDE","33"]
[null,null,null,null,"Phoniatrie et Médecine Générale",null,"VOSGES","88","VOSGES","EST",null,"AGNOS","64",null,"CENTRE HOSPITALIER DE LIBOURNE","330781253","GIRONDE","33"]
[null,null,null,null,"Pneumologie",null,"YONNE","89","YONNE","EST",null,"AGNY","62",null,"CH DE SAINTE  FOY LA GRANDE","330781261","GIRONDE","33"]
[null,null,null,null,"Pneumo-phtisiologie",null,"TERRITOIRE DE BELFORT","90","TERRITOIRE DE BELFORT","EST",null,"AGONAC","24",null,"CH CHARLES PERRENS","330781287","GIRONDE","33"]
[null,null,null,null,"Podologie",null,"ESSONNE","91","ESSONNE","IDF",null,"AGON-COUTAINVILLE","50",null,"C.H. DE  CADILLAC","330781295","GIRONDE","33"]
[null,null,null,null,"Proctologie",null,"HAUTS DE SEINE","92","HAUTS DE SEINE","IDF",null,"AGONGES","03",null,"CENTRE DE SOINS DE  PODENSAC","330792862","GIRONDE","33"]
[null,null,null,null,"Psychanalyse",null,"SEINE SAINT DENIS","93","SEINE SAINT DENIS","IDF",null,"AGOS-VIDALOS","65",null,"CH BEDARIEUX","340009893","HERAULT","34"]
[null,null,null,null,"Psychiatrie",null,"VAL DE MARNE","94","VAL DE MARNE","IDF",null,"AGRIS","16",null,"LES HOPITAUX DU BASSIN DE THAU","340011295","HERAULT","34"]
[null,null,null,null,"Psychothérapie",null,"VAL D OISE","95","VAL D OISE","IDF",null,"AGUESSAC","12",null,"CH BEZIERS","340780055","HERAULT","34"]
[null,null,null,null,"Radiodiagnostic et imagerie médicale",null,"GUADELOUPE","971","GUADELOUPE","SOHO",null,"AGUILCOURT","02",null,"CH PEZENAS","340780451","HERAULT","34"]
[null,null,null,null,"Radiothérapie",null,"MARTINIQUE","972","MARTINIQUE","SOHO",null,"AHAXE-ALCIETTE-BASCASSAN","64",null,"CH ST PONS DE THOMIERES","340780469","HERAULT","34"]
[null,null,null,null,"Réanimation médicale",null,"GUYANE","973","GUYANE","SOHO",null,"AHETZE","64",null,"CHU MONTPELLIER","340780477","HERAULT","34"]
[null,null,null,null,"Rhumatologie",null,"LA REUNION","974","LA REUNION","SOHO",null,"AHUILLE","53",null,"CH LODEVE","340780519","HERAULT","34"]
[null,null,null,null,"Sages-femmes",null,"SAINT PIERRE ET MIQUELON","975","SAINT PIERRE ET MIQUELON","SOHO",null,"AHUN","23",null,"CH LUNEL","340780535","HERAULT","34"]
[null,null,null,null,"Sexologie",null,"MAYOTTE","976","MAYOTTE","SOHO",null,"AHUY","21",null,"CH CLERMONT L'HERAULT","340780543","HERAULT","34"]
[null,null,null,null,"SOS Médecins",null,null,null,null,null,null,"AIBES","59",null,"CH PAUL COSTE FLORET LAMALOU","340796358","HERAULT","34"]
[null,null,null,null,"Stérilité",null,null,null,null,null,null,"AIBRE","25",null,"CHI MONT DE MARSAN ET PAYS DES SOURCES","400011177","LANDES","40"]
[null,null,null,null,"Stomatologie",null,null,null,null,null,null,"AICIRITS-CAMOU-SUHAST","64",null,"CENTRE HOSPITALIER DE DAX","400780193","LANDES","40"]
[null,null,null,null,"Thermalisme (hydrologie, cures climatiques)",null,null,null,null,null,null,"AIFFRES","79",null,"CENTRE HOSPITALIER DE SAINT SEVER","400780268","LANDES","40"]
[null,null,null,null,"Thermalisme et Médecine Générale",null,null,null,null,null,null,"AIGALIERS","30",null,"CH FIGEAC","460780083","LOT","46"]
[null,null,null,null,"Vertébrothérapie, chiropraxie",null,null,null,null,null,null,"AIGLEMONT","08",null,"CH ST JACQUES ST CERE","460780091","LOT","46"]
[null,null,null,null,null,null,null,null,null,null,null,"AIGLEPIERRE","39",null,"CH JEAN COULON GOURDON","460780208","LOT","46"]
[null,null,null,null,null,null,null,null,null,null,null,"AIGLEVILLE","27",null,"CH JEAN ROUGIER CAHORS","460780216","LOT","46"]
[null,null,null,null,null,null,null,null,null,null,null,"AIGLUN","04",null,"C.H.(EX H.L.)HOPITAL LOCAL LOUIS CONTE","460780430","LOT","46"]
[null,null,null,null,null,null,null,null,null,null,null,"AIGNAN","32",null,"CENTRE HOSPITALIER","470000324","LOT ET GARONNE","47"]
[null,null,null,null,null,null,null,null,null,null,null,"AIGNAY-LE-DUC","21",null,"HOPITAL LOCAL DE CASTELJALOUX","470000357","LOT ET GARONNE","47"]
[null,null,null,null,null,null,null,null,null,null,null,"AIGNE","72",null,"HOPITAL LOCAL PENNE D' AGENAIS","470000365","LOT ET GARONNE","47"]
[null,null,null,null,null,null,null,null,null,null,null,"AIGNE","34",null,"CH DEPARTEMENTAL DE LA CANDELIE","470000381","LOT ET GARONNE","47"]
[null,null,null,null,null,null,null,null,null,null,null,"AIGNES-ET-PUYPEROUX","16",null,"CENTRE HOSPITALIER DE FUMEL","470000407","LOT ET GARONNE","47"]
[null,null,null,null,null,null,null,null,null,null,null,"AIGNEVILLE","80",null,"CH INTERCOMMUNAL MARMANDE - TONNEINS","470001660","LOT ET GARONNE","47"]
[null,null,null,null,null,null,null,null,null,null,null,"AIGONNAY","79",null,"CENTRE HOSPITALIER AGEN-NERAC","470016171","LOT ET GARONNE","47"]
[null,null,null,null,null,null,null,null,null,null,null,"AIGRE","16",null,"HOPITAL LOZERE","480780097","LOZERE","48"]
[null,null,null,null,null,null,null,null,null,null,null,"AIGREFEUILLE","31",null,"CH FANNY RAMADIER","480780121","LOZERE","48"]
[null,null,null,null,null,null,null,null,null,null,null,"AIGREFEUILLE-D'AUNIS","17",null,"CH FLORAC TROIS RIVIERES","480780139","LOZERE","48"]
[null,null,null,null,null,null,null,null,null,null,null,"AIGREFEUILLE-SUR-MAINE","44",null,"CHS FRANCOIS TOSQUELLES","480780147","LOZERE","48"]
[null,null,null,null,null,null,null,null,null,null,null,"AIGREMONT","78",null,"CH MARVEJOLS","480780154","LOZERE","48"]
[null,null,null,null,null,null,null,null,null,null,null,"AIGREMONT","30",null,"CH LANGOGNE","480780162","LOZERE","48"]
[null,null,null,null,null,null,null,null,null,null,null,"AIGUEBELLE","73",null,"CENTRE HOSPITALIER DE SAINT-PALAIS","640017638","PYRENEES ATLANTIQUES","64"]
[null,null,null,null,null,null,null,null,null,null,null,"AIGUEBLANCHE","73",null,"ETABLISSEMENT PUBLIC DE SANTE GARAZI","640020707","PYRENEES ATLANTIQUES","64"]
[null,null,null,null,null,null,null,null,null,null,null,"AIGUEFONDE","81",null,"CENTRE HOSPITALIER DE LA COTE BASQUE","640780417","PYRENEES ATLANTIQUES","64"]
[null,null,null,null,null,null,null,null,null,null,null,"AIGUEPERSE","63",null,"CENTRE HOSPITALIER D'ORTHEZ","640780813","PYRENEES ATLANTIQUES","64"]
[null,null,null,null,null,null,null,null,null,null,null,"AIGUES-MORTES","30",null,"CENTRE HOSPITALIER D'OLORON STE MARIE","640780821","PYRENEES ATLANTIQUES","64"]
[null,null,null,null,null,null,null,null,null,null,null,"AIGUES-VIVES","30",null,"CENTRE HOSPITALIER DE MAULEON","640780839","PYRENEES ATLANTIQUES","64"]
[null,null,null,null,null,null,null,null,null,null,null,"AIGUES-VIVES","09",null,"CENTRE HOSP PYRENEES PSYCHIATRIE","640780862","PYRENEES ATLANTIQUES","64"]
[null,null,null,null,null,null,null,null,null,null,null,"AIGUES-VIVES","11",null,"CENTRE HOSPITALIER DE PAU","640781290","PYRENEES ATLANTIQUES","64"]
[null,null,null,null,null,null,null,null,null,null,null,"AIGUES-VIVES","34",null,"CENTRE GERONTOLOGIQUE","640791976","PYRENEES ATLANTIQUES","64"]
[null,null,null,null,null,null,null,null,null,null,null,"AIGUILHE","43",null,"CH LOURDES","650780158","HAUTES PYRENEES","65"]
[null,null,null,null,null,null,null,null,null,null,null,"AIGUILLES","05",null,"CH BAGNERES DE BIGORRE","650780166","HAUTES PYRENEES","65"]
[null,null,null,null,null,null,null,null,null,null,null,"AIGUILLON","47",null,"HOPITAUX DE LANNEMEZAN","650780174","HAUTES PYRENEES","65"]
[null,null,null,null,null,null,null,null,null,null,null,"AIGUINES","83",null,"HOPITAL LE MONTAIGU","650780190","HAUTES PYRENEES","65"]
[null,null,null,null,null,null,null,null,null,null,null,"AIGURANDE","36",null,"CH BIGORRE","650783160","HAUTES PYRENEES","65"]
[null,null,null,null,null,null,null,null,null,null,null,"AILHON","07",null,"CH PERPIGNAN","660780180","PYRENEES ORIENTALES","66"]
[null,null,null,null,null,null,null,null,null,null,null,"AILLANT-SUR-MILLERON","45",null,"CHS LEON JEAN GREGORY","660780198","PYRENEES ORIENTALES","66"]
[null,null,null,null,null,null,null,null,null,null,null,"AILLANT-SUR-THOLON","89",null,"CH PRADES","660780271","PYRENEES ORIENTALES","66"]
[null,null,null,null,null,null,null,null,null,null,null,"AILLAS","33",null,"CENTRE HOSPITALIER DE NIORT","790000012","DEUX SEVRES","79"]
[null,null,null,null,null,null,null,null,null,null,null,"AILLEVILLE","10",null,"CENTRE HOSPITALIER DE MAULEON","790000079","DEUX SEVRES","79"]
[null,null,null,null,null,null,null,null,null,null,null,"AILLEVILLERS-ET-LYAUMONT","70",null,"CHNDS","790006654","DEUX SEVRES","79"]
[null,null,null,null,null,null,null,null,null,null,null,"AILLONCOURT","70",null,"CH GH&MS HAUT VAL DE SEVRE ET MELLOIS","790019491","DEUX SEVRES","79"]
[null,null,null,null,null,null,null,null,null,null,null,"AILLON-LE-JEUNE","73",null,"CH ALBI","810000331","TARN","81"]
[null,null,null,null,null,null,null,null,null,null,null,"AILLY","27",null,"CH GAILLAC","810000349","TARN","81"]
[null,null,null,null,null,null,null,null,null,null,null,"AILLY-LE-HAUT-CLOCHER","80",null,"CHIC CASTRES MAZAMET","810000380","TARN","81"]
[null,null,null,null,null,null,null,null,null,null,null,"AILLY-SUR-NOYE","80",null,"CH GRAULHET","810000398","TARN","81"]
[null,null,null,null,null,null,null,null,null,null,null,"AILLY-SUR-SOMME","80",null,"CH LAVAUR","810000455","TARN","81"]
[null,null,null,null,null,null,null,null,null,null,null,"AIMARGUES","30",null,"CH MONTAUBAN","820000016","TARN ET GARONNE","82"]
[null,null,null,null,null,null,null,null,null,null,null,"AIME","73",null,"CH DE NEGREPELISSE","820000206","TARN ET GARONNE","82"]
[null,null,null,null,null,null,null,null,null,null,null,"AINAY-LE-CHATEAU","03",null,"CH DE CAUSSADE","820000214","TARN ET GARONNE","82"]
[null,null,null,null,null,null,null,null,null,null,null,"AINCOURT","95",null,"CH DES DEUX RIVES","820000248","TARN ET GARONNE","82"]
[null,null,null,null,null,null,null,null,null,null,null,"AINGERAY","54",null,"CHI CASTELSARRASIN MOISSAC","820004950","TARN ET GARONNE","82"]
[null,null,null,null,null,null,null,null,null,null,null,"AINHOA","64",null,"CTRE HOSP. UNIVERSITAIRE DE POITIERS","860013077","VIENNE","86"]
[null,null,null,null,null,null,null,null,null,null,null,"AIRAINES","80",null,"GROUPE HOSPITALIER NORD-VIENNE","860013382","VIENNE","86"]
[null,null,null,null,null,null,null,null,null,null,null,"AIRAN","14",null,"CENTRE HOSP. UNIVERSITAIRE DE POITIERS","860014208","VIENNE","86"]
[null,null,null,null,null,null,null,null,null,null,null,"AIREL","50",null,"CTRE HOSPITALIER HENRI LABORIT","860780048","VIENNE","86"]
[null,null,null,null,null,null,null,null,null,null,null,"AIRE-SUR-L'ADOUR","40",null,"C H U  DE  LIMOGES","870000015","HAUTE VIENNE","87"]
[null,null,null,null,null,null,null,null,null,null,null,"AIRE-SUR-LA-LYS","62",null,"CENTRE HOSPITALIER DE ST-JUNIEN","870000023","HAUTE VIENNE","87"]
[null,null,null,null,null,null,null,null,null,null,null,"AIRION","60",null,"CTRE HOSPITALIER J BOUTARD ST YRIEIX","870000031","HAUTE VIENNE","87"]
[null,null,null,null,null,null,null,null,null,null,null,"AIRVAULT","79",null,"CTRE HOSPITAL ROCHECHOUART","870000353","HAUTE VIENNE","87"]
[null,null,null,null,null,null,null,null,null,null,null,"AISEREY","21",null,"CENTRE HOSPITALIER ESQUIROL","870002466","HAUTE VIENNE","87"]
[null,null,null,null,null,null,null,null,null,null,null,"AISONVILLE-ET-BERNOVILLE","02",null,"CH INTERCOMMUNAL MONTS ET BARRAGES","870014248","HAUTE VIENNE","87"]
[null,null,null,null,null,null,null,null,null,null,null,"AISY-SUR-ARMANCON","89",null,"HOPITAL INTERCOMMUNAL DU HAUT LIMOUSIN","870014503","HAUTE VIENNE","87"]
[null,null,null,null,null,null,null,null,null,null,null,"AITON","73",null,"C.H. IRENEE DE BRUYN, EX H.L.","970100160","GUADELOUPE","971"]
[null,null,null,null,null,null,null,null,null,null,null,"AIX","59",null,"CENTRE HOSPITALIER DE LA BASSE-TERRE","970100178","GUADELOUPE","971"]
[null,null,null,null,null,null,null,null,null,null,null,"AIX","19",null,"CH LOUIS CONSTANT FLEMING","970100186","GUADELOUPE","971"]
[null,null,null,null,null,null,null,null,null,null,null,"AIX-EN-DIOIS","26",null,"CENTRE HOSPITALIER L. D. BEAUPERTHUY","970100194","GUADELOUPE","971"]
[null,null,null,null,null,null,null,null,null,null,null,"AIX-EN-ISSART","62",null,"CENTRE HOSPITALIER SAINTE-MARIE","970100202","GUADELOUPE","971"]
[null,null,null,null,null,null,null,null,null,null,null,"AIX-EN-OTHE","10",null,"C.H.G. JACQUES SALIN","970100210","GUADELOUPE","971"]
[null,null,null,null,null,null,null,null,null,null,null,"AIX-EN-PROVENCE","13",null,"C.H.U. DE LA GUADELOUPE","970100228","GUADELOUPE","971"]
[null,null,null,null,null,null,null,null,null,null,null,"AIXE-SUR-VIENNE","87",null,"C.H.  DE CAPESTERRE-BELLE-EAU, EX H.L.","970100244","GUADELOUPE","971"]
[null,null,null,null,null,null,null,null,null,null,null,"AIX-LES-BAINS","73",null,"EPSM DE LA GUADELOUPE","970100277","GUADELOUPE","971"]
[null,null,null,null,null,null,null,null,null,null,null,"AIX-NOULETTE","62",null,"C.H. M. SELBONNE","970100285","GUADELOUPE","971"]
[null,null,null,null,null,null,null,null,null,null,null,"AIZENAY","85",null,"HOPITAL DU MARIN","970202156","MARTINIQUE","972"]
[null,null,null,null,null,null,null,null,null,null,null,"AIZY-JOUY","02",null,"HOPITAL ST ESPRIT","970202164","MARTINIQUE","972"]
[null,null,null,null,null,null,null,null,null,null,null,"AJACCIO","2A",null,"HOPITAL DES TROIS ILETS","970202172","MARTINIQUE","972"]
[null,null,null,null,null,null,null,null,null,null,null,"AJAIN","23",null,"CENTRE HOSPITALIER MAURICE DESPINOY","970202180","MARTINIQUE","972"]
[null,null,null,null,null,null,null,null,null,null,null,"AJAT","24",null,"HOPITAL ROMAIN BLONDET","970202198","MARTINIQUE","972"]
[null,null,null,null,null,null,null,null,null,null,null,"AJOUPA-BOUILLON","972",null,"CENTRE HOSPITALIER ERNEST WAN-AJOUHU","970202222","MARTINIQUE","972"]
[null,null,null,null,null,null,null,null,null,null,null,"ALAIGNE","11",null,"CHI LORRAIN BASSE POINTE","970208906","MARTINIQUE","972"]
[null,null,null,null,null,null,null,null,null,null,null,"ALAINCOURT","02",null,"CENTRE HOSPITALIER NORD CARAIBE","970211157","MARTINIQUE","972"]
[null,null,null,null,null,null,null,null,null,null,null,"ALAIRAC","11",null,"CHU DE MARTINIQUE","970211207","MARTINIQUE","972"]
[null,null,null,null,null,null,null,null,null,null,null,"ALAN","31",null,"CENTRE HOSPITALIER DE CAYENNE","970302022","GUYANE","973"]
[null,null,null,null,null,null,null,null,null,null,null,"ALATA","2A",null,"CENTRE HOSPITALIER DE L'OUEST GUYANAIS","970302121","GUYANE","973"]
[null,null,null,null,null,null,null,null,null,null,null,"ALBA-LA-ROMAINE","07",null,"CENTRE HOSPITALIER DE KOUROU","970305629","GUYANE","973"]
[null,null,null,null,null,null,null,null,null,null,null,"ALBAN","81",null,"GH EST REUNION","970403606","LA REUNION","974"]
[null,null,null,null,null,null,null,null,null,null,null,"ALBARET-SAINTE-MARIE","48",null,"CHU DE LA REUNION","970408589","LA REUNION","974"]
[null,null,null,null,null,null,null,null,null,null,null,"ALBAS","46",null,"EPSMR","970411005","LA REUNION","974"]
[null,null,null,null,null,null,null,null,null,null,null,"ALBE","67",null,"CH OUEST REUNION","970421038","LA REUNION","974"]
[null,null,null,null,null,null,null,null,null,null,null,"ALBEFEUILLE-LAGARDE","82",null,"CENTRE HOSPITALIER FRANCOIS DUNAN","970500005","SAINT PIERRE ET MIQUELON","975"]
[null,null,null,null,null,null,null,null,null,null,null,"ALBENS","73",null,"CENTRE HOSPITALIER DE MAYOTTE","980500003","MAYOTTE","976"]
[null,null,null,null,null,null,null,null,null,null,null,"ALBERT","80"]
[null,null,null,null,null,null,null,null,null,null,null,"ALBERTVILLE","73"]
[null,null,null,null,null,null,null,null,null,null,null,"ALBESTROFF","57"]
[null,null,null,null,null,null,null,null,null,null,null,"ALBI","81"]
[null,null,null,null,null,null,null,null,null,null,null,"ALBIAS","82"]
[null,null,null,null,null,null,null,null,null,null,null,"ALBIEZ-MONTROND","73"]
[null,null,null,null,null,null,null,null,null,null,null,"ALBIGNAC","19"]
[null,null,null,null,null,null,null,null,null,null,null,"ALBIGNY-SUR-SAONE","69"]
[null,null,null,null,null,null,null,null,null,null,null,"ALBINE","81"]
[null,null,null,null,null,null,null,null,null,null,null,"ALBITRECCIA","2A"]
[null,null,null,null,null,null,null,null,null,null,null,"ALBON","26"]
[null,null,null,null,null,null,null,null,null,null,null,"ALBOUSSIERE","07"]
[null,null,null,null,null,null,null,null,null,null,null,"ALBUSSAC","19"]
[null,null,null,null,null,null,null,null,null,null,null,"ALBY-SUR-CHERAN","74"]
[null,null,null,null,null,null,null,null,null,null,null,"ALDUDES","64"]
[null,null,null,null,null,null,null,null,null,null,null,"ALEMBON","62"]
[null,null,null,null,null,null,null,null,null,null,null,"ALENCON","61"]
[null,null,null,null,null,null,null,null,null,null,null,"ALENYA","66"]
[null,null,null,null,null,null,null,null,null,null,null,"ALERIA","2B"]
[null,null,null,null,null,null,null,null,null,null,null,"ALES","30"]
[null,null,null,null,null,null,null,null,null,null,null,"ALET-LES-BAINS","11"]
[null,null,null,null,null,null,null,null,null,null,null,"ALETTE","62"]
[null,null,null,null,null,null,null,null,null,null,null,"ALEX","74"]
[null,null,null,null,null,null,null,null,null,null,null,"ALEXAIN","53"]
[null,null,null,null,null,null,null,null,null,null,null,"ALFORTVILLE","94"]
[null,null,null,null,null,null,null,null,null,null,null,"ALGAJOLA","2B"]
[null,null,null,null,null,null,null,null,null,null,null,"ALGOLSHEIM","68"]
[null,null,null,null,null,null,null,null,null,null,null,"ALGRANGE","57"]
[null,null,null,null,null,null,null,null,null,null,null,"ALIGNAN-DU-VENT","34"]
[null,null,null,null,null,null,null,null,null,null,null,"ALINCTHUN","62"]
[null,null,null,null,null,null,null,null,null,null,null,"ALISE-SAINTE-REINE","21"]
[null,null,null,null,null,null,null,null,null,null,null,"ALISSAS","07"]
[null,null,null,null,null,null,null,null,null,null,null,"ALIX","69"]
[null,null,null,null,null,null,null,null,null,null,null,"ALIXAN","26"]
[null,null,null,null,null,null,null,null,null,null,null,"ALIZAY","27"]
[null,null,null,null,null,null,null,null,null,null,null,"ALLAIN","54"]
[null,null,null,null,null,null,null,null,null,null,null,"ALLAINES","80"]
[null,null,null,null,null,null,null,null,null,null,null,"ALLAINES-MERVILLIERS","28"]
[null,null,null,null,null,null,null,null,null,null,null,"ALLAINVILLE","78"]
[null,null,null,null,null,null,null,null,null,null,null,"ALLAIRE","56"]
[null,null,null,null,null,null,null,null,null,null,null,"ALLAMPS","54"]
[null,null,null,null,null,null,null,null,null,null,null,"ALLAN","26"]
[null,null,null,null,null,null,null,null,null,null,null,"ALLANCHE","15"]
[null,null,null,null,null,null,null,null,null,null,null,"ALLASSAC","19"]
[null,null,null,null,null,null,null,null,null,null,null,"ALLAUCH","13"]
[null,null,null,null,null,null,null,null,null,null,null,"ALLEGRE","43"]
[null,null,null,null,null,null,null,null,null,null,null,"ALLEGRE-LES-FUMADES","30"]
[null,null,null,null,null,null,null,null,null,null,null,"ALLEINS","13"]
[null,null,null,null,null,null,null,null,null,null,null,"ALLEMAGNE-EN-PROVENCE","04"]
[null,null,null,null,null,null,null,null,null,null,null,"ALLEMANS","24"]
[null,null,null,null,null,null,null,null,null,null,null,"ALLEMANS-DU-DROPT","47"]
[null,null,null,null,null,null,null,null,null,null,null,"ALLEMOND","38"]
[null,null,null,null,null,null,null,null,null,null,null,"ALLENJOIE","25"]
[null,null,null,null,null,null,null,null,null,null,null,"ALLENNES-LES-MARAIS","59"]
[null,null,null,null,null,null,null,null,null,null,null,"ALLENWILLER","67"]
[null,null,null,null,null,null,null,null,null,null,null,"ALLEREY-SUR-SAONE","71"]
[null,null,null,null,null,null,null,null,null,null,null,"ALLERIOT","71"]
[null,null,null,null,null,null,null,null,null,null,null,"ALLERY","80"]
[null,null,null,null,null,null,null,null,null,null,null,"ALLES-SUR-DORDOGNE","24"]
[null,null,null,null,null,null,null,null,null,null,null,"ALLEVARD","38"]
[null,null,null,null,null,null,null,null,null,null,null,"ALLEVES","74"]
[null,null,null,null,null,null,null,null,null,null,null,"ALLEX","26"]
[null,null,null,null,null,null,null,null,null,null,null,"ALLEZ-ET-CAZENEUVE","47"]
[null,null,null,null,null,null,null,null,null,null,null,"ALLIBAUDIERES","10"]
[null,null,null,null,null,null,null,null,null,null,null,"ALLICHAMPS","52"]
[null,null,null,null,null,null,null,null,null,null,null,"ALLIER","65"]
[null,null,null,null,null,null,null,null,null,null,null,"ALLIGNY-COSNE","58"]
[null,null,null,null,null,null,null,null,null,null,null,"ALLIGNY-EN-MORVAN","58"]
[null,null,null,null,null,null,null,null,null,null,null,"ALLINEUC","22"]
[null,null,null,null,null,null,null,null,null,null,null,"ALLINGES","74"]
[null,null,null,null,null,null,null,null,null,null,null,"ALLOGNY","18"]
[null,null,null,null,null,null,null,null,null,null,null,"ALLONDRELLE-LA-MALMAISON","54"]
[null,null,null,null,null,null,null,null,null,null,null,"ALLONNE","60"]
[null,null,null,null,null,null,null,null,null,null,null,"ALLONNE","79"]
[null,null,null,null,null,null,null,null,null,null,null,"ALLONNES","72"]
[null,null,null,null,null,null,null,null,null,null,null,"ALLONNES","49"]
[null,null,null,null,null,null,null,null,null,null,null,"ALLONNES","28"]
[null,null,null,null,null,null,null,null,null,null,null,"ALLONVILLE","80"]
[null,null,null,null,null,null,null,null,null,null,null,"ALLONZIER-LA-CAILLE","74"]
[null,null,null,null,null,null,null,null,null,null,null,"ALLOS","04"]
[null,null,null,null,null,null,null,null,null,null,null,"ALLOUAGNE","62"]
[null,null,null,null,null,null,null,null,null,null,null,"ALLOUE","16"]
[null,null,null,null,null,null,null,null,null,null,null,"ALLOUIS","18"]
[null,null,null,null,null,null,null,null,null,null,null,"ALLOUVILLE-BELLEFOSSE","76"]
[null,null,null,null,null,null,null,null,null,null,null,"ALLUY","58"]
[null,null,null,null,null,null,null,null,null,null,null,"ALLUYES","28"]
[null,null,null,null,null,null,null,null,null,null,null,"ALLY","15"]
[null,null,null,null,null,null,null,null,null,null,null,"ALMAYRAC","81"]
[null,null,null,null,null,null,null,null,null,null,null,"ALMENECHES","61"]
[null,null,null,null,null,null,null,null,null,null,null,"ALMONT-LES-JUNIES","12"]
[null,null,null,null,null,null,null,null,null,null,null,"ALOS-SIBAS-ABENSE","64"]
[null,null,null,null,null,null,null,null,null,null,null,"ALQUINES","62"]
[null,null,null,null,null,null,null,null,null,null,null,"ALRANCE","12"]
[null,null,null,null,null,null,null,null,null,null,null,"ALSTING","57"]
[null,null,null,null,null,null,null,null,null,null,null,"ALTECKENDORF","67"]
[null,null,null,null,null,null,null,null,null,null,null,"ALTENACH","68"]
[null,null,null,null,null,null,null,null,null,null,null,"ALTHEN-DES-PALUDS","84"]
[null,null,null,null,null,null,null,null,null,null,null,"ALTILLAC","19"]
[null,null,null,null,null,null,null,null,null,null,null,"ALTKIRCH","68"]
[null,null,null,null,null,null,null,null,null,null,null,"ALTORF","67"]
[null,null,null,null,null,null,null,null,null,null,null,"ALTRIPPE","57"]
[null,null,null,null,null,null,null,null,null,null,null,"ALTVILLER","57"]
[null,null,null,null,null,null,null,null,null,null,null,"ALTWILLER","67"]
[null,null,null,null,null,null,null,null,null,null,null,"ALVIGNAC","46"]
[null,null,null,null,null,null,null,null,null,null,null,"ALVIMARE","76"]
[null,null,null,null,null,null,null,null,null,null,null,"ALZING","57"]
[null,null,null,null,null,null,null,null,null,null,null,"ALZONNE","11"]
[null,null,null,null,null,null,null,null,null,null,null,"AMAGE","70"]
[null,null,null,null,null,null,null,null,null,null,null,"AMAGNE","08"]
[null,null,null,null,null,null,null,null,null,null,null,"AMAGNEY","25"]
[null,null,null,null,null,null,null,null,null,null,null,"AMAILLOUX","79"]
[null,null,null,null,null,null,null,null,null,null,null,"AMANCE","70"]
[null,null,null,null,null,null,null,null,null,null,null,"AMANCE","54"]
[null,null,null,null,null,null,null,null,null,null,null,"AMANCE","10"]
[null,null,null,null,null,null,null,null,null,null,null,"AMANCEY","25"]
[null,null,null,null,null,null,null,null,null,null,null,"AMANCY","74"]
[null,null,null,null,null,null,null,null,null,null,null,"AMANGE","39"]
[null,null,null,null,null,null,null,null,null,null,null,"AMANLIS","35"]
[null,null,null,null,null,null,null,null,null,null,null,"AMANVILLERS","57"]
[null,null,null,null,null,null,null,null,null,null,null,"AMAYE-SUR-ORNE","14"]
[null,null,null,null,null,null,null,null,null,null,null,"AMBACOURT","88"]
[null,null,null,null,null,null,null,null,null,null,null,"AMBARES-ET-LAGRAVE","33"]
[null,null,null,null,null,null,null,null,null,null,null,"AMBAZAC","87"]
[null,null,null,null,null,null,null,null,null,null,null,"AMBENAY","27"]
[null,null,null,null,null,null,null,null,null,null,null,"AMBERAC","16"]
[null,null,null,null,null,null,null,null,null,null,null,"AMBERIEU-EN-BUGEY","01"]
[null,null,null,null,null,null,null,null,null,null,null,"AMBERIEUX","69"]
[null,null,null,null,null,null,null,null,null,null,null,"AMBERIEUX-EN-DOMBES","01"]
[null,null,null,null,null,null,null,null,null,null,null,"AMBERNAC","16"]
[null,null,null,null,null,null,null,null,null,null,null,"AMBERRE","86"]
[null,null,null,null,null,null,null,null,null,null,null,"AMBERT","63"]
[null,null,null,null,null,null,null,null,null,null,null,"AMBES","33"]
[null,null,null,null,null,null,null,null,null,null,null,"AMBIALET","81"]
[null,null,null,null,null,null,null,null,null,null,null,"AMBIERLE","42"]
[null,null,null,null,null,null,null,null,null,null,null,"AMBILLOU","37"]
[null,null,null,null,null,null,null,null,null,null,null,"AMBILLOU-CHATEAU","49"]
[null,null,null,null,null,null,null,null,null,null,null,"AMBILLY","74"]
[null,null,null,null,null,null,null,null,null,null,null,"AMBLAINVILLE","60"]
[null,null,null,null,null,null,null,null,null,null,null,"AMBLANS-ET-VELOTTE","70"]
[null,null,null,null,null,null,null,null,null,null,null,"AMBLENY","02"]
[null,null,null,null,null,null,null,null,null,null,null,"AMBLETEUSE","62"]
[null,null,null,null,null,null,null,null,null,null,null,"AMBLEVILLE","95"]
[null,null,null,null,null,null,null,null,null,null,null,"AMBLIE","14"]
[null,null,null,null,null,null,null,null,null,null,null,"AMBLY-SUR-MEUSE","55"]
[null,null,null,null,null,null,null,null,null,null,null,"AMBOISE","37"]
[null,null,null,null,null,null,null,null,null,null,null,"AMBON","56"]
[null,null,null,null,null,null,null,null,null,null,null,"AMBONNAY","51"]
[null,null,null,null,null,null,null,null,null,null,null,"AMBRAULT","36"]
[null,null,null,null,null,null,null,null,null,null,null,"AMBRES","81"]
[null,null,null,null,null,null,null,null,null,null,null,"AMBRIERES-LES-VALLEES","53"]
[null,null,null,null,null,null,null,null,null,null,null,"AMBRONAY","01"]
[null,null,null,null,null,null,null,null,null,null,null,"AMBRUMESNIL","76"]
[null,null,null,null,null,null,null,null,null,null,null,"AMBUTRIX","01"]
[null,null,null,null,null,null,null,null,null,null,null,"AMELIE-LES-BAINS-PALALDA","66"]
[null,null,null,null,null,null,null,null,null,null,null,"AMENDEUIX-ONEIX","64"]
[null,null,null,null,null,null,null,null,null,null,null,"AMES","62"]
[null,null,null,null,null,null,null,null,null,null,null,"AMETTES","62"]
[null,null,null,null,null,null,null,null,null,null,null,"AMFREVILLE","14"]
[null,null,null,null,null,null,null,null,null,null,null,"AMFREVILLE","50"]
[null,null,null,null,null,null,null,null,null,null,null,"AMFREVILLE-LA-CAMPAGNE","27"]
[null,null,null,null,null,null,null,null,null,null,null,"AMFREVILLE-LA-MI-VOIE","76"]
[null,null,null,null,null,null,null,null,null,null,null,"AMFREVILLE-LES-CHAMPS","27"]
[null,null,null,null,null,null,null,null,null,null,null,"AMFREVILLE-SOUS-LES-MONTS","27"]
[null,null,null,null,null,null,null,null,null,null,null,"AMFREVILLE-SUR-ITON","27"]
[null,null,null,null,null,null,null,null,null,null,null,"AMIENS","80"]
[null,null,null,null,null,null,null,null,null,null,null,"AMIFONTAINE","02"]
[null,null,null,null,null,null,null,null,null,null,null,"AMIGNY-ROUY","02"]
[null,null,null,null,null,null,null,null,null,null,null,"AMILLIS","77"]
[null,null,null,null,null,null,null,null,null,null,null,"AMILLY","45"]
[null,null,null,null,null,null,null,null,null,null,null,"AMILLY","28"]
[null,null,null,null,null,null,null,null,null,null,null,"AMIONS","42"]
[null,null,null,null,null,null,null,null,null,null,null,"AMMERSCHWIHR","68"]
[null,null,null,null,null,null,null,null,null,null,null,"AMMERZWILLER","68"]
[null,null,null,null,null,null,null,null,null,null,null,"AMNE","72"]
[null,null,null,null,null,null,null,null,null,null,null,"AMNEVILLE","57"]
[null,null,null,null,null,null,null,null,null,null,null,"AMONCOURT","70"]
[null,null,null,null,null,null,null,null,null,null,null,"AMOU","40"]
[null,null,null,null,null,null,null,null,null,null,null,"AMPILLY-LE-SEC","21"]
[null,null,null,null,null,null,null,null,null,null,null,"AMPLEPUIS","69"]
[null,null,null,null,null,null,null,null,null,null,null,"AMPLIER","62"]
[null,null,null,null,null,null,null,null,null,null,null,"AMPOIGNE","53"]
[null,null,null,null,null,null,null,null,null,null,null,"AMPONVILLE","77"]
[null,null,null,null,null,null,null,null,null,null,null,"AMPUIS","69"]
[null,null,null,null,null,null,null,null,null,null,null,"AMPUS","83"]
[null,null,null,null,null,null,null,null,null,null,null,"AMURE","79"]
[null,null,null,null,null,null,null,null,null,null,null,"AMY","60"]
[null,null,null,null,null,null,null,null,null,null,null,"ANAIS","16"]
[null,null,null,null,null,null,null,null,null,null,null,"ANAIS","17"]
[null,null,null,null,null,null,null,null,null,null,null,"ANCEAUMEVILLE","76"]
[null,null,null,null,null,null,null,null,null,null,null,"ANCELLE","05"]
[null,null,null,null,null,null,null,null,null,null,null,"ANCEMONT","55"]
[null,null,null,null,null,null,null,null,null,null,null,"ANCENIS","44"]
[null,null,null,null,null,null,null,null,null,null,null,"ANCERVILLE","55"]
[null,null,null,null,null,null,null,null,null,null,null,"ANCERVILLE","57"]
[null,null,null,null,null,null,null,null,null,null,null,"ANCERVILLER","54"]
[null,null,null,null,null,null,null,null,null,null,null,"ANCEY","21"]
[null,null,null,null,null,null,null,null,null,null,null,"ANCHE","37"]
[null,null,null,null,null,null,null,null,null,null,null,"ANCHE","86"]
[null,null,null,null,null,null,null,null,null,null,null,"ANCIER","70"]
[null,null,null,null,null,null,null,null,null,null,null,"ANCINNES","72"]
[null,null,null,null,null,null,null,null,null,null,null,"ANCIZAN","65"]
[null,null,null,null,null,null,null,null,null,null,null,"ANCONE","26"]
[null,null,null,null,null,null,null,null,null,null,null,"ANCOURT","76"]
[null,null,null,null,null,null,null,null,null,null,null,"ANCRETIEVILLE-SAINT-VICTOR","76"]
[null,null,null,null,null,null,null,null,null,null,null,"ANCTOVILLE","14"]
[null,null,null,null,null,null,null,null,null,null,null,"ANCTOVILLE-SUR-BOSCQ","50"]
[null,null,null,null,null,null,null,null,null,null,null,"ANCY","69"]
[null,null,null,null,null,null,null,null,null,null,null,"ANCY-LE-FRANC","89"]
[null,null,null,null,null,null,null,null,null,null,null,"ANCY-SUR-MOSELLE","57"]
[null,null,null,null,null,null,null,null,null,null,null,"ANDANCE","07"]
[null,null,null,null,null,null,null,null,null,null,null,"ANDANCETTE","26"]
[null,null,null,null,null,null,null,null,null,null,null,"ANDARD","49"]
[null,null,null,null,null,null,null,null,null,null,null,"ANDE","27"]
[null,null,null,null,null,null,null,null,null,null,null,"ANDECHY","80"]
[null,null,null,null,null,null,null,null,null,null,null,"ANDEL","22"]
[null,null,null,null,null,null,null,null,null,null,null,"ANDELAROCHE","03"]
[null,null,null,null,null,null,null,null,null,null,null,"ANDELAT","15"]
[null,null,null,null,null,null,null,null,null,null,null,"ANDELNANS","90"]
[null,null,null,null,null,null,null,null,null,null,null,"ANDELOT-BLANCHEVILLE","52"]
[null,null,null,null,null,null,null,null,null,null,null,"ANDELOT-EN-MONTAGNE","39"]
[null,null,null,null,null,null,null,null,null,null,null,"ANDELU","78"]
[null,null,null,null,null,null,null,null,null,null,null,"ANDERNOS-LES-BAINS","33"]
[null,null,null,null,null,null,null,null,null,null,null,"ANDERNY","54"]
[null,null,null,null,null,null,null,null,null,null,null,"ANDERT-ET-CONDON","01"]
[null,null,null,null,null,null,null,null,null,null,null,"ANDEVILLE","60"]
[null,null,null,null,null,null,null,null,null,null,null,"ANDIGNE","49"]
[null,null,null,null,null,null,null,null,null,null,null,"ANDILLY","95"]
[null,null,null,null,null,null,null,null,null,null,null,"ANDILLY","17"]
[null,null,null,null,null,null,null,null,null,null,null,"ANDILLY","74"]
[null,null,null,null,null,null,null,null,null,null,null,"ANDILLY","54"]
[null,null,null,null,null,null,null,null,null,null,null,"ANDLAU","67"]
[null,null,null,null,null,null,null,null,null,null,null,"ANDOINS","64"]
[null,null,null,null,null,null,null,null,null,null,null,"ANDOLSHEIM","68"]
[null,null,null,null,null,null,null,null,null,null,null,"ANDON","06"]
[null,null,null,null,null,null,null,null,null,null,null,"ANDOUILLE","53"]
[null,null,null,null,null,null,null,null,null,null,null,"ANDOUILLE-NEUVILLE","35"]
[null,null,null,null,null,null,null,null,null,null,null,"ANDOUQUE","81"]
[null,null,null,null,null,null,null,null,null,null,null,"ANDRES","62"]
[null,null,null,null,null,null,null,null,null,null,null,"ANDREST","65"]
[null,null,null,null,null,null,null,null,null,null,null,"ANDRESY","78"]
[null,null,null,null,null,null,null,null,null,null,null,"ANDREZE","49"]
[null,null,null,null,null,null,null,null,null,null,null,"ANDREZEL","77"]
[null,null,null,null,null,null,null,null,null,null,null,"ANDREZIEUX-BOUTHEON","42"]
[null,null,null,null,null,null,null,null,null,null,null,"ANDRYES","89"]
[null,null,null,null,null,null,null,null,null,null,null,"ANDUZE","30"]
[null,null,null,null,null,null,null,null,null,null,null,"ANET","28"]
[null,null,null,null,null,null,null,null,null,null,null,"ANETZ","44"]
[null,null,null,null,null,null,null,null,null,null,null,"ANGAIS","64"]
[null,null,null,null,null,null,null,null,null,null,null,"ANGE","41"]
[null,null,null,null,null,null,null,null,null,null,null,"ANGEAC-CHAMPAGNE","16"]
[null,null,null,null,null,null,null,null,null,null,null,"ANGEAC-CHARENTE","16"]
[null,null,null,null,null,null,null,null,null,null,null,"ANGECOURT","08"]
[null,null,null,null,null,null,null,null,null,null,null,"ANGEOT","90"]
[null,null,null,null,null,null,null,null,null,null,null,"ANGERS","49"]
[null,null,null,null,null,null,null,null,null,null,null,"ANGERVILLE","91"]
[null,null,null,null,null,null,null,null,null,null,null,"ANGERVILLE-LA-CAMPAGNE","27"]
[null,null,null,null,null,null,null,null,null,null,null,"ANGERVILLE-LA-MARTEL","76"]
[null,null,null,null,null,null,null,null,null,null,null,"ANGERVILLE-L'ORCHER","76"]
[null,null,null,null,null,null,null,null,null,null,null,"ANGERVILLIERS","91"]
[null,null,null,null,null,null,null,null,null,null,null,"ANGEVILLERS","57"]
[null,null,null,null,null,null,null,null,null,null,null,"ANGICOURT","60"]
[null,null,null,null,null,null,null,null,null,null,null,"ANGIENS","76"]
[null,null,null,null,null,null,null,null,null,null,null,"ANGLADE","33"]
[null,null,null,null,null,null,null,null,null,null,null,"ANGLARDS-DE-SAINT-FLOUR","15"]
[null,null,null,null,null,null,null,null,null,null,null,"ANGLARDS-DE-SALERS","15"]
[null,null,null,null,null,null,null,null,null,null,null,"ANGLARS-JUILLAC","46"]
[null,null,null,null,null,null,null,null,null,null,null,"ANGLARS-NOZAC","46"]
[null,null,null,null,null,null,null,null,null,null,null,"ANGLARS-SAINT-FELIX","12"]
[null,null,null,null,null,null,null,null,null,null,null,"ANGLEFORT","01"]
[null,null,null,null,null,null,null,null,null,null,null,"ANGLES","85"]
[null,null,null,null,null,null,null,null,null,null,null,"ANGLES","81"]
[null,null,null,null,null,null,null,null,null,null,null,"ANGLESQUEVILLE-L'ESNEVAL","76"]
[null,null,null,null,null,null,null,null,null,null,null,"ANGLES-SUR-L'ANGLIN","86"]
[null,null,null,null,null,null,null,null,null,null,null,"ANGLET","64"]
[null,null,null,null,null,null,null,null,null,null,null,"ANGLIERS","17"]
[null,null,null,null,null,null,null,null,null,null,null,"ANGLIERS","86"]
[null,null,null,null,null,null,null,null,null,null,null,"ANGLURE","51"]
[null,null,null,null,null,null,null,null,null,null,null,"ANGOISSE","24"]
[null,null,null,null,null,null,null,null,null,null,null,"ANGOULEME","16"]
[null,null,null,null,null,null,null,null,null,null,null,"ANGOULINS","17"]
[null,null,null,null,null,null,null,null,null,null,null,"ANGOUME","40"]
[null,null,null,null,null,null,null,null,null,null,null,"ANGOUSTRINE-VILLENEUVE-DES-ESCALDES","66"]
[null,null,null,null,null,null,null,null,null,null,null,"ANGOVILLE-SUR-AY","50"]
[null,null,null,null,null,null,null,null,null,null,null,"ANGRES","62"]
[null,null,null,null,null,null,null,null,null,null,null,"ANGRESSE","40"]
[null,null,null,null,null,null,null,null,null,null,null,"ANGRIE","49"]
[null,null,null,null,null,null,null,null,null,null,null,"ANGUERNY","14"]
[null,null,null,null,null,null,null,null,null,null,null,"ANGUILCOURT-LE-SART","02"]
[null,null,null,null,null,null,null,null,null,null,null,"ANGY","60"]
[null,null,null,null,null,null,null,null,null,null,null,"ANHAUX","64"]
[null,null,null,null,null,null,null,null,null,null,null,"ANHIERS","59"]
[null,null,null,null,null,null,null,null,null,null,null,"ANIANE","34"]
[null,null,null,null,null,null,null,null,null,null,null,"ANICHE","59"]
[null,null,null,null,null,null,null,null,null,null,null,"ANISY","14"]
[null,null,null,null,null,null,null,null,null,null,null,"ANIZY-LE-CHATEAU","02"]
[null,null,null,null,null,null,null,null,null,null,null,"ANJOU","38"]
[null,null,null,null,null,null,null,null,null,null,null,"ANJOUIN","36"]
[null,null,null,null,null,null,null,null,null,null,null,"ANJOUTEY","90"]
[null,null,null,null,null,null,null,null,null,null,null,"ANLEZY","58"]
[null,null,null,null,null,null,null,null,null,null,null,"ANLHIAC","24"]
[null,null,null,null,null,null,null,null,null,null,null,"ANNAY","62"]
[null,null,null,null,null,null,null,null,null,null,null,"ANNAY","58"]
[null,null,null,null,null,null,null,null,null,null,null,"ANNAY-LA-COTE","89"]
[null,null,null,null,null,null,null,null,null,null,null,"ANNEBAULT","14"]
[null,null,null,null,null,null,null,null,null,null,null,"ANNECY","74"]
[null,null,null,null,null,null,null,null,null,null,null,"ANNECY-LE-VIEUX","74"]
[null,null,null,null,null,null,null,null,null,null,null,"ANNEMASSE","74"]
[null,null,null,null,null,null,null,null,null,null,null,"ANNEPONT","17"]
[null,null,null,null,null,null,null,null,null,null,null,"ANNEQUIN","62"]
[null,null,null,null,null,null,null,null,null,null,null,"ANNESSE-ET-BEAULIEU","24"]
[null,null,null,null,null,null,null,null,null,null,null,"ANNET-SUR-MARNE","77"]
[null,null,null,null,null,null,null,null,null,null,null,"ANNEVILLE-AMBOURVILLE","76"]
[null,null,null,null,null,null,null,null,null,null,null,"ANNEVILLE-EN-SAIRE","50"]
[null,null,null,null,null,null,null,null,null,null,null,"ANNEVILLE-SUR-SCIE","76"]
[null,null,null,null,null,null,null,null,null,null,null,"ANNEYRON","26"]
[null,null,null,null,null,null,null,null,null,null,null,"ANNEZIN","62"]
[null,null,null,null,null,null,null,null,null,null,null,"ANNOEULLIN","59"]
[null,null,null,null,null,null,null,null,null,null,null,"ANNOIRE","39"]
[null,null,null,null,null,null,null,null,null,null,null,"ANNOIS","02"]
[null,null,null,null,null,null,null,null,null,null,null,"ANNOISIN-CHATELANS","38"]
[null,null,null,null,null,null,null,null,null,null,null,"ANNONAY","07"]
[null,null,null,null,null,null,null,null,null,null,null,"ANNOT","04"]
[null,null,null,null,null,null,null,null,null,null,null,"ANNOUVILLE-VILMESNIL","76"]
[null,null,null,null,null,null,null,null,null,null,null,"ANNOVILLE","50"]
[null,null,null,null,null,null,null,null,null,null,null,"ANOR","59"]
[null,null,null,null,null,null,null,null,null,null,null,"ANOST","71"]
[null,null,null,null,null,null,null,null,null,null,null,"ANOULD","88"]
[null,null,null,null,null,null,null,null,null,null,null,"ANOUX","54"]
[null,null,null,null,null,null,null,null,null,null,null,"ANQUETIERVILLE","76"]
[null,null,null,null,null,null,null,null,null,null,null,"ANSACQ","60"]
[null,null,null,null,null,null,null,null,null,null,null,"ANSAC-SUR-VIENNE","16"]
[null,null,null,null,null,null,null,null,null,null,null,"ANSAUVILLERS","60"]
[null,null,null,null,null,null,null,null,null,null,null,"ANSE","69"]
[null,null,null,null,null,null,null,null,null,null,null,"ANSE-BERTRAND","971"]
[null,null,null,null,null,null,null,null,null,null,null,"ANSERVILLE","60"]
[null,null,null,null,null,null,null,null,null,null,null,"ANSOUIS","84"]
[null,null,null,null,null,null,null,null,null,null,null,"ANSTAING","59"]
[null,null,null,null,null,null,null,null,null,null,null,"ANTEUIL","25"]
[null,null,null,null,null,null,null,null,null,null,null,"ANTEZANT-LA-CHAPELLE","17"]
[null,null,null,null,null,null,null,null,null,null,null,"ANTHELUPT","54"]
[null,null,null,null,null,null,null,null,null,null,null,"ANTHEUIL-PORTES","60"]
[null,null,null,null,null,null,null,null,null,null,null,"ANTHON","38"]
[null,null,null,null,null,null,null,null,null,null,null,"ANTHY-SUR-LEMAN","74"]
[null,null,null,null,null,null,null,null,null,null,null,"ANTIBES","06"]
[null,null,null,null,null,null,null,null,null,null,null,"ANTIGNAC","15"]
[null,null,null,null,null,null,null,null,null,null,null,"ANTIGNY","85"]
[null,null,null,null,null,null,null,null,null,null,null,"ANTIGNY","86"]
[null,null,null,null,null,null,null,null,null,null,null,"ANTILLY","60"]
[null,null,null,null,null,null,null,null,null,null,null,"ANTISANTI","2B"]
[null,null,null,null,null,null,null,null,null,null,null,"ANTOGNY-LE-TILLAC","37"]
[null,null,null,null,null,null,null,null,null,null,null,"ANTOIGNE","49"]
[null,null,null,null,null,null,null,null,null,null,null,"ANTOINGT","63"]
[null,null,null,null,null,null,null,null,null,null,null,"ANTONNE-ET-TRIGONANT","24"]
[null,null,null,null,null,null,null,null,null,null,null,"ANTONY","92"]
[null,null,null,null,null,null,null,null,null,null,null,"ANTRAIGUES-SUR-VOLANE","07"]
[null,null,null,null,null,null,null,null,null,null,null,"ANTRAIN","35"]
[null,null,null,null,null,null,null,null,null,null,null,"ANTRAN","86"]
[null,null,null,null,null,null,null,null,null,null,null,"ANTRENAS","48"]
[null,null,null,null,null,null,null,null,null,null,null,"ANTUGNAC","11"]
[null,null,null,null,null,null,null,null,null,null,null,"ANTULLY","71"]
[null,null,null,null,null,null,null,null,null,null,null,"ANVIN","62"]
[null,null,null,null,null,null,null,null,null,null,null,"ANY-MARTIN-RIEUX","02"]
[null,null,null,null,null,null,null,null,null,null,null,"ANZELING","57"]
[null,null,null,null,null,null,null,null,null,null,null,"ANZEME","23"]
[null,null,null,null,null,null,null,null,null,null,null,"ANZEX","47"]
[null,null,null,null,null,null,null,null,null,null,null,"ANZIN","59"]
[null,null,null,null,null,null,null,null,null,null,null,"ANZIN-SAINT-AUBIN","62"]
[null,null,null,null,null,null,null,null,null,null,null,"ANZY-LE-DUC","71"]
[null,null,null,null,null,null,null,null,null,null,null,"AOSTE","38"]
[null,null,null,null,null,null,null,null,null,null,null,"AOUSTE-SUR-SYE","26"]
[null,null,null,null,null,null,null,null,null,null,null,"APACH","57"]
[null,null,null,null,null,null,null,null,null,null,null,"APATOU","973"]
[null,null,null,null,null,null,null,null,null,null,null,"APINAC","42"]
[null,null,null,null,null,null,null,null,null,null,null,"APPENANS","25"]
[null,null,null,null,null,null,null,null,null,null,null,"APPENWIHR","68"]
[null,null,null,null,null,null,null,null,null,null,null,"APPEVILLE-ANNEBAULT","27"]
[null,null,null,null,null,null,null,null,null,null,null,"APPIETTO","2A"]
[null,null,null,null,null,null,null,null,null,null,null,"APPILLY","60"]
[null,null,null,null,null,null,null,null,null,null,null,"APPOIGNY","89"]
[null,null,null,null,null,null,null,null,null,null,null,"APPRIEU","38"]
[null,null,null,null,null,null,null,null,null,null,null,"APREMONT","85"]
[null,null,null,null,null,null,null,null,null,null,null,"APREMONT","73"]
[null,null,null,null,null,null,null,null,null,null,null,"APREMONT","60"]
[null,null,null,null,null,null,null,null,null,null,null,"APREMONT","70"]
[null,null,null,null,null,null,null,null,null,null,null,"APREMONT","01"]
[null,null,null,null,null,null,null,null,null,null,null,"APREMONT-LA-FORET","55"]
[null,null,null,null,null,null,null,null,null,null,null,"APT","84"]
[null,null,null,null,null,null,null,null,null,null,null,"ARACHES-LA-FRASSE","74"]
[null,null,null,null,null,null,null,null,null,null,null,"ARAGON","11"]
[null,null,null,null,null,null,null,null,null,null,null,"ARAMITS","64"]
[null,null,null,null,null,null,null,null,null,null,null,"ARAMON","30"]
[null,null,null,null,null,null,null,null,null,null,null,"ARANC","01"]
[null,null,null,null,null,null,null,null,null,null,null,"ARANDON","38"]
[null,null,null,null,null,null,null,null,null,null,null,"ARAULES","43"]
[null,null,null,null,null,null,null,null,null,null,null,"ARBANATS","33"]
[null,null,null,null,null,null,null,null,null,null,null,"ARBAS","31"]
[null,null,null,null,null,null,null,null,null,null,null,"ARBENT","01"]
[null,null,null,null,null,null,null,null,null,null,null,"ARBERATS-SILLEGUE","64"]
[null,null,null,null,null,null,null,null,null,null,null,"ARBIGNIEU","01"]
[null,null,null,null,null,null,null,null,null,null,null,"ARBIGNY","01"]
[null,null,null,null,null,null,null,null,null,null,null,"ARBIN","73"]
[null,null,null,null,null,null,null,null,null,null,null,"ARBIS","33"]
[null,null,null,null,null,null,null,null,null,null,null,"ARBLADE-LE-HAUT","32"]
[null,null,null,null,null,null,null,null,null,null,null,"ARBOIS","39"]
[null,null,null,null,null,null,null,null,null,null,null,"ARBONNE","64"]
[null,null,null,null,null,null,null,null,null,null,null,"ARBONNE-LA-FORET","77"]
[null,null,null,null,null,null,null,null,null,null,null,"ARBOUANS","25"]
[null,null,null,null,null,null,null,null,null,null,null,"ARBOUET-SUSSAUTE","64"]
[null,null,null,null,null,null,null,null,null,null,null,"ARBRISSEL","35"]
[null,null,null,null,null,null,null,null,null,null,null,"ARBUS","64"]
[null,null,null,null,null,null,null,null,null,null,null,"ARBUSIGNY","74"]
[null,null,null,null,null,null,null,null,null,null,null,"ARCACHON","33"]
[null,null,null,null,null,null,null,null,null,null,null,"ARCAIS","79"]
[null,null,null,null,null,null,null,null,null,null,null,"ARCAMBAL","46"]
[null,null,null,null,null,null,null,null,null,null,null,"ARCANGUES","64"]
[null,null,null,null,null,null,null,null,null,null,null,"ARCAY","18"]
[null,null,null,null,null,null,null,null,null,null,null,"ARCAY","86"]
[null,null,null,null,null,null,null,null,null,null,null,"ARCEAU","21"]
[null,null,null,null,null,null,null,null,null,null,null,"ARCENANT","21"]
[null,null,null,null,null,null,null,null,null,null,null,"ARC-EN-BARROIS","52"]
[null,null,null,null,null,null,null,null,null,null,null,"ARCENS","07"]
[null,null,null,null,null,null,null,null,null,null,null,"ARCES","17"]
[null,null,null,null,null,null,null,null,null,null,null,"ARCES-DILO","89"]
[null,null,null,null,null,null,null,null,null,null,null,"ARC-ET-SENANS","25"]
[null,null,null,null,null,null,null,null,null,null,null,"ARCEY","25"]
[null,null,null,null,null,null,null,null,null,null,null,"ARCHAMPS","74"]
[null,null,null,null,null,null,null,null,null,null,null,"ARCHES","88"]
[null,null,null,null,null,null,null,null,null,null,null,"ARCHETTES","88"]
[null,null,null,null,null,null,null,null,null,null,null,"ARCHIAC","17"]
[null,null,null,null,null,null,null,null,null,null,null,"ARCHIGNAC","24"]
[null,null,null,null,null,null,null,null,null,null,null,"ARCHIGNAT","03"]
[null,null,null,null,null,null,null,null,null,null,null,"ARCHIGNY","86"]
[null,null,null,null,null,null,null,null,null,null,null,"ARCHINGEAY","17"]
[null,null,null,null,null,null,null,null,null,null,null,"ARCINS","33"]
[null,null,null,null,null,null,null,null,null,null,null,"ARCIS-LE-PONSART","51"]
[null,null,null,null,null,null,null,null,null,null,null,"ARCIS-SUR-AUBE","10"]
[null,null,null,null,null,null,null,null,null,null,null,"ARCIZAC-ADOUR","65"]
[null,null,null,null,null,null,null,null,null,null,null,"ARCIZAC-EZ-ANGLES","65"]
[null,null,null,null,null,null,null,null,null,null,null,"ARCIZANS-AVANT","65"]
[null,null,null,null,null,null,null,null,null,null,null,"ARC-LES-GRAY","70"]
[null,null,null,null,null,null,null,null,null,null,null,"ARCOMPS","18"]
[null,null,null,null,null,null,null,null,null,null,null,"ARCON","25"]
[null,null,null,null,null,null,null,null,null,null,null,"ARCONNAY","72"]
[null,null,null,null,null,null,null,null,null,null,null,"ARCONSAT","63"]
[null,null,null,null,null,null,null,null,null,null,null,"ARC-SOUS-CICON","25"]
[null,null,null,null,null,null,null,null,null,null,null,"ARC-SUR-TILLE","21"]
[null,null,null,null,null,null,null,null,null,null,null,"ARCUEIL","94"]
[null,null,null,null,null,null,null,null,null,null,null,"ARCY-SAINTE-RESTITUE","02"]
[null,null,null,null,null,null,null,null,null,null,null,"ARCY-SUR-CURE","89"]
[null,null,null,null,null,null,null,null,null,null,null,"ARDENAY-SUR-MERIZE","72"]
[null,null,null,null,null,null,null,null,null,null,null,"ARDENTES","36"]
[null,null,null,null,null,null,null,null,null,null,null,"ARDES","63"]
[null,null,null,null,null,null,null,null,null,null,null,"ARDIEGE","31"]
[null,null,null,null,null,null,null,null,null,null,null,"ARDILLIERES","17"]
[null,null,null,null,null,null,null,null,null,null,null,"ARDIN","79"]
[null,null,null,null,null,null,null,null,null,null,null,"ARDOIX","07"]
[null,null,null,null,null,null,null,null,null,null,null,"ARDON","45"]
[null,null,null,null,null,null,null,null,null,null,null,"ARDRES","62"]
[null,null,null,null,null,null,null,null,null,null,null,"AREGNO","2B"]
[null,null,null,null,null,null,null,null,null,null,null,"AREINES","41"]
[null,null,null,null,null,null,null,null,null,null,null,"ARENGOSSE","40"]
[null,null,null,null,null,null,null,null,null,null,null,"ARENTHON","74"]
[null,null,null,null,null,null,null,null,null,null,null,"ARES","33"]
[null,null,null,null,null,null,null,null,null,null,null,"ARESSY","64"]
[null,null,null,null,null,null,null,null,null,null,null,"ARETTE","64"]
[null,null,null,null,null,null,null,null,null,null,null,"ARFEUILLES","03"]
[null,null,null,null,null,null,null,null,null,null,null,"ARGAGNON","64"]
[null,null,null,null,null,null,null,null,null,null,null,"ARGANCY","57"]
[null,null,null,null,null,null,null,null,null,null,null,"ARGELES-GAZOST","65"]
[null,null,null,null,null,null,null,null,null,null,null,"ARGELES-SUR-MER","66"]
[null,null,null,null,null,null,null,null,null,null,null,"ARGELIERS","11"]
[null,null,null,null,null,null,null,null,null,null,null,"ARGELLIERS","34"]
[null,null,null,null,null,null,null,null,null,null,null,"ARGELOS","64"]
[null,null,null,null,null,null,null,null,null,null,null,"ARGENCES","14"]
[null,null,null,null,null,null,null,null,null,null,null,"ARGENS-MINERVOIS","11"]
[null,null,null,null,null,null,null,null,null,null,null,"ARGENTAN","61"]
[null,null,null,null,null,null,null,null,null,null,null,"ARGENTAT","19"]
[null,null,null,null,null,null,null,null,null,null,null,"ARGENTEUIL","95"]
[null,null,null,null,null,null,null,null,null,null,null,"ARGENTIERES","77"]
[null,null,null,null,null,null,null,null,null,null,null,"ARGENTINE","73"]
[null,null,null,null,null,null,null,null,null,null,null,"ARGENTON","47"]
[null,null,null,null,null,null,null,null,null,null,null,"ARGENTON-L'EGLISE","79"]
[null,null,null,null,null,null,null,null,null,null,null,"ARGENTON-LES-VALLEES","79"]
[null,null,null,null,null,null,null,null,null,null,null,"ARGENTON-SUR-CREUSE","36"]
[null,null,null,null,null,null,null,null,null,null,null,"ARGENTRE","53"]
[null,null,null,null,null,null,null,null,null,null,null,"ARGENTRE-DU-PLESSIS","35"]
[null,null,null,null,null,null,null,null,null,null,null,"ARGENT-SUR-SAULDRE","18"]
[null,null,null,null,null,null,null,null,null,null,null,"ARGENVIERES","18"]
[null,null,null,null,null,null,null,null,null,null,null,"ARGENVILLIERS","28"]
[null,null,null,null,null,null,null,null,null,null,null,"ARGIESANS","90"]
[null,null,null,null,null,null,null,null,null,null,null,"ARGILLIERS","30"]
[null,null,null,null,null,null,null,null,null,null,null,"ARGILLY","21"]
[null,null,null,null,null,null,null,null,null,null,null,"ARGIS","01"]
[null,null,null,null,null,null,null,null,null,null,null,"ARGOEUVES","80"]
[null,null,null,null,null,null,null,null,null,null,null,"ARGOL","29"]
[null,null,null,null,null,null,null,null,null,null,null,"ARGONAY","74"]
[null,null,null,null,null,null,null,null,null,null,null,"ARGOUGES","50"]
[null,null,null,null,null,null,null,null,null,null,null,"ARGOULES","80"]
[null,null,null,null,null,null,null,null,null,null,null,"ARGUEIL","76"]
[null,null,null,null,null,null,null,null,null,null,null,"ARGY","36"]
[null,null,null,null,null,null,null,null,null,null,null,"ARIGNAC","09"]
[null,null,null,null,null,null,null,null,null,null,null,"ARINTHOD","39"]
[null,null,null,null,null,null,null,null,null,null,null,"ARITH","73"]
[null,null,null,null,null,null,null,null,null,null,null,"ARLANC","63"]
[null,null,null,null,null,null,null,null,null,null,null,"ARLAY","39"]
[null,null,null,null,null,null,null,null,null,null,null,"ARLEBOSC","07"]
[null,null,null,null,null,null,null,null,null,null,null,"ARLES","13"]
[null,null,null,null,null,null,null,null,null,null,null,"ARLES-SUR-TECH","66"]
[null,null,null,null,null,null,null,null,null,null,null,"ARLEUF","58"]
[null,null,null,null,null,null,null,null,null,null,null,"ARLEUX","59"]
[null,null,null,null,null,null,null,null,null,null,null,"ARLEUX-EN-GOHELLE","62"]
[null,null,null,null,null,null,null,null,null,null,null,"ARMAILLE","49"]
[null,null,null,null,null,null,null,null,null,null,null,"ARMANCOURT","60"]
[null,null,null,null,null,null,null,null,null,null,null,"ARMBOUTS-CAPPEL","59"]
[null,null,null,null,null,null,null,null,null,null,null,"ARMEAU","89"]
[null,null,null,null,null,null,null,null,null,null,null,"ARMENDARITS","64"]
[null,null,null,null,null,null,null,null,null,null,null,"ARMENTIERES","59"]
[null,null,null,null,null,null,null,null,null,null,null,"ARMENTIERES-EN-BRIE","77"]
[null,null,null,null,null,null,null,null,null,null,null,"ARMES","58"]
[null,null,null,null,null,null,null,null,null,null,null,"ARMISSAN","11"]
[null,null,null,null,null,null,null,null,null,null,null,"ARMOY","74"]
[null,null,null,null,null,null,null,null,null,null,null,"ARNAC-LA-POSTE","87"]
[null,null,null,null,null,null,null,null,null,null,null,"ARNAC-POMPADOUR","19"]
[null,null,null,null,null,null,null,null,null,null,null,"ARNAGE","72"]
[null,null,null,null,null,null,null,null,null,null,null,"ARNAS","69"]
[null,null,null,null,null,null,null,null,null,null,null,"ARNAVILLE","54"]
[null,null,null,null,null,null,null,null,null,null,null,"ARNAY-LE-DUC","21"]
[null,null,null,null,null,null,null,null,null,null,null,"ARNEGUY","64"]
[null,null,null,null,null,null,null,null,null,null,null,"ARNEKE","59"]
[null,null,null,null,null,null,null,null,null,null,null,"ARNIERES-SUR-ITON","27"]
[null,null,null,null,null,null,null,null,null,null,null,"ARNOUVILLE","95"]
[null,null,null,null,null,null,null,null,null,null,null,"ARNOUVILLE-LES-MANTES","78"]
[null,null,null,null,null,null,null,null,null,null,null,"AROMAS","39"]
[null,null,null,null,null,null,null,null,null,null,null,"ARON","53"]
[null,null,null,null,null,null,null,null,null,null,null,"AROUE-ITHOROTS-OLHAIBY","64"]
[null,null,null,null,null,null,null,null,null,null,null,"ARPAILLARGUES-ET-AUREILLAC","30"]
[null,null,null,null,null,null,null,null,null,null,null,"ARPAJON","91"]
[null,null,null,null,null,null,null,null,null,null,null,"ARPAJON-SUR-CERE","15"]
[null,null,null,null,null,null,null,null,null,null,null,"ARPHEUILLES","36"]
[null,null,null,null,null,null,null,null,null,null,null,"ARPHEUILLES","18"]
[null,null,null,null,null,null,null,null,null,null,null,"ARPHEUILLES-SAINT-PRIEST","03"]
[null,null,null,null,null,null,null,null,null,null,null,"ARQUENAY","53"]
[null,null,null,null,null,null,null,null,null,null,null,"ARQUES","62"]
[null,null,null,null,null,null,null,null,null,null,null,"ARQUES","11"]
[null,null,null,null,null,null,null,null,null,null,null,"ARQUES-LA-BATAILLE","76"]
[null,null,null,null,null,null,null,null,null,null,null,"ARQUIAN","58"]
[null,null,null,null,null,null,null,null,null,null,null,"ARRADON","56"]
[null,null,null,null,null,null,null,null,null,null,null,"ARRANCY-SUR-CRUSNE","55"]
[null,null,null,null,null,null,null,null,null,null,null,"ARRAS","62"]
[null,null,null,null,null,null,null,null,null,null,null,"ARRAS-EN-LAVEDAN","65"]
[null,null,null,null,null,null,null,null,null,null,null,"ARRAS-SUR-RHONE","07"]
[null,null,null,null,null,null,null,null,null,null,null,"ARRAUTE-CHARRITTE","64"]
[null,null,null,null,null,null,null,null,null,null,null,"ARRAYE-ET-HAN","54"]
[null,null,null,null,null,null,null,null,null,null,null,"ARRE","30"]
[null,null,null,null,null,null,null,null,null,null,null,"ARREAU","65"]
[null,null,null,null,null,null,null,null,null,null,null,"ARRENS-MARSOUS","65"]
[null,null,null,null,null,null,null,null,null,null,null,"ARREST","80"]
[null,null,null,null,null,null,null,null,null,null,null,"ARREUX","08"]
[null,null,null,null,null,null,null,null,null,null,null,"ARRIGNY","51"]
[null,null,null,null,null,null,null,null,null,null,null,"ARROMANCHES-LES-BAINS","14"]
[null,null,null,null,null,null,null,null,null,null,null,"ARRONNES","03"]
[null,null,null,null,null,null,null,null,null,null,null,"ARRONVILLE","95"]
[null,null,null,null,null,null,null,null,null,null,null,"ARROS-DE-NAY","64"]
[null,null,null,null,null,null,null,null,null,null,null,"ARROU","28"]
[null,null,null,null,null,null,null,null,null,null,null,"ARRY","57"]
[null,null,null,null,null,null,null,null,null,null,null,"ARS","16"]
[null,null,null,null,null,null,null,null,null,null,null,"ARS","23"]
[null,null,null,null,null,null,null,null,null,null,null,"ARSAC","33"]
[null,null,null,null,null,null,null,null,null,null,null,"ARSAC-EN-VELAY","43"]
[null,null,null,null,null,null,null,null,null,null,null,"ARSAGUE","40"]
[null,null,null,null,null,null,null,null,null,null,null,"ARS-EN-RE","17"]
[null,null,null,null,null,null,null,null,null,null,null,"ARS-LAQUENEXY","57"]
[null,null,null,null,null,null,null,null,null,null,null,"ARSONVAL","10"]
[null,null,null,null,null,null,null,null,null,null,null,"ARS-SUR-FORMANS","01"]
[null,null,null,null,null,null,null,null,null,null,null,"ARS-SUR-MOSELLE","57"]
[null,null,null,null,null,null,null,null,null,null,null,"ARSY","60"]
[null,null,null,null,null,null,null,null,null,null,null,"ARTAGNAN","65"]
[null,null,null,null,null,null,null,null,null,null,null,"ARTAIX","71"]
[null,null,null,null,null,null,null,null,null,null,null,"ARTANNES-SUR-INDRE","37"]
[null,null,null,null,null,null,null,null,null,null,null,"ARTANNES-SUR-THOUET","49"]
[null,null,null,null,null,null,null,null,null,null,null,"ARTAS","38"]
[null,null,null,null,null,null,null,null,null,null,null,"ARTEMARE","01"]
[null,null,null,null,null,null,null,null,null,null,null,"ARTEMPS","02"]
[null,null,null,null,null,null,null,null,null,null,null,"ARTENAY","45"]
[null,null,null,null,null,null,null,null,null,null,null,"ARTHAZ-PONT-NOTRE-DAME","74"]
[null,null,null,null,null,null,null,null,null,null,null,"ARTHEMONAY","26"]
[null,null,null,null,null,null,null,null,null,null,null,"ARTHENAC","17"]
[null,null,null,null,null,null,null,null,null,null,null,"ARTHES","81"]
[null,null,null,null,null,null,null,null,null,null,null,"ARTHEZ-D'ASSON","64"]
[null,null,null,null,null,null,null,null,null,null,null,"ARTHEZ-DE-BEARN","64"]
[null,null,null,null,null,null,null,null,null,null,null,"ARTHEZE","72"]
[null,null,null,null,null,null,null,null,null,null,null,"ARTHIES","95"]
[null,null,null,null,null,null,null,null,null,null,null,"ARTHON","36"]
[null,null,null,null,null,null,null,null,null,null,null,"ARTHON-EN-RETZ","44"]
[null,null,null,null,null,null,null,null,null,null,null,"ARTHUN","42"]
[null,null,null,null,null,null,null,null,null,null,null,"ARTIGAT","09"]
[null,null,null,null,null,null,null,null,null,null,null,"ARTIGNOSC-SUR-VERDON","83"]
[null,null,null,null,null,null,null,null,null,null,null,"ARTIGUELOUTAN","64"]
[null,null,null,null,null,null,null,null,null,null,null,"ARTIGUELOUVE","64"]
[null,null,null,null,null,null,null,null,null,null,null,"ARTIGUES-PRES-BORDEAUX","33"]
[null,null,null,null,null,null,null,null,null,null,null,"ARTINS","41"]
[null,null,null,null,null,null,null,null,null,null,null,"ARTIX","64"]
[null,null,null,null,null,null,null,null,null,null,null,"ARTOLSHEIM","67"]
[null,null,null,null,null,null,null,null,null,null,null,"ARTONNE","63"]
[null,null,null,null,null,null,null,null,null,null,null,"ARTRES","59"]
[null,null,null,null,null,null,null,null,null,null,null,"ART-SUR-MEURTHE","54"]
[null,null,null,null,null,null,null,null,null,null,null,"ARTZENHEIM","68"]
[null,null,null,null,null,null,null,null,null,null,null,"ARUDY","64"]
[null,null,null,null,null,null,null,null,null,null,null,"ARUE","40"]
[null,null,null,null,null,null,null,null,null,null,null,"ARVERT","17"]
[null,null,null,null,null,null,null,null,null,null,null,"ARVEYRES","33"]
[null,null,null,null,null,null,null,null,null,null,null,"ARVIEU","12"]
[null,null,null,null,null,null,null,null,null,null,null,"ARVIEUX","05"]
[null,null,null,null,null,null,null,null,null,null,null,"ARVILLARD","73"]
[null,null,null,null,null,null,null,null,null,null,null,"ARVILLERS","80"]
[null,null,null,null,null,null,null,null,null,null,null,"ARZACQ-ARRAZIGUET","64"]
[null,null,null,null,null,null,null,null,null,null,null,"ARZAL","56"]
[null,null,null,null,null,null,null,null,null,null,null,"ARZANO","29"]
[null,null,null,null,null,null,null,null,null,null,null,"ARZENS","11"]
[null,null,null,null,null,null,null,null,null,null,null,"ARZILLIERES-NEUVILLE","51"]
[null,null,null,null,null,null,null,null,null,null,null,"ARZON","56"]
[null,null,null,null,null,null,null,null,null,null,null,"ARZVILLER","57"]
[null,null,null,null,null,null,null,null,null,null,null,"ASASP-ARROS","64"]
[null,null,null,null,null,null,null,null,null,null,null,"ASCAIN","64"]
[null,null,null,null,null,null,null,null,null,null,null,"ASCARAT","64"]
[null,null,null,null,null,null,null,null,null,null,null,"ASCHBACH","67"]
[null,null,null,null,null,null,null,null,null,null,null,"ASCHERES-LE-MARCHE","45"]
[null,null,null,null,null,null,null,null,null,null,null,"ASCOUX","45"]
[null,null,null,null,null,null,null,null,null,null,null,"ASFELD","08"]
[null,null,null,null,null,null,null,null,null,null,null,"ASLONNES","86"]
[null,null,null,null,null,null,null,null,null,null,null,"ASNANS-BEAUVOISIN","39"]
[null,null,null,null,null,null,null,null,null,null,null,"ASNELLES","14"]
[null,null,null,null,null,null,null,null,null,null,null,"ASNIERES","27"]
[null,null,null,null,null,null,null,null,null,null,null,"ASNIERES-LA-GIRAUD","17"]
[null,null,null,null,null,null,null,null,null,null,null,"ASNIERES-LES-DIJON","21"]
[null,null,null,null,null,null,null,null,null,null,null,"ASNIERES-SUR-NOUERE","16"]
[null,null,null,null,null,null,null,null,null,null,null,"ASNIERES-SUR-OISE","95"]
[null,null,null,null,null,null,null,null,null,null,null,"ASNIERES-SUR-SEINE","92"]
[null,null,null,null,null,null,null,null,null,null,null,"ASNIERES-SUR-VEGRE","72"]
[null,null,null,null,null,null,null,null,null,null,null,"ASPACH","68"]
[null,null,null,null,null,null,null,null,null,null,null,"ASPACH-LE-BAS","68"]
[null,null,null,null,null,null,null,null,null,null,null,"ASPACH-LE-HAUT","68"]
[null,null,null,null,null,null,null,null,null,null,null,"ASPERES","30"]
[null,null,null,null,null,null,null,null,null,null,null,"ASPERJOC","07"]
[null,null,null,null,null,null,null,null,null,null,null,"ASPET","31"]
[null,null,null,null,null,null,null,null,null,null,null,"ASPIRAN","34"]
[null,null,null,null,null,null,null,null,null,null,null,"ASPREMONT","06"]
[null,null,null,null,null,null,null,null,null,null,null,"ASPREMONT","05"]
[null,null,null,null,null,null,null,null,null,null,null,"ASPRES-SUR-BUECH","05"]
[null,null,null,null,null,null,null,null,null,null,null,"ASPRIERES","12"]
[null,null,null,null,null,null,null,null,null,null,null,"ASQUES","33"]
[null,null,null,null,null,null,null,null,null,null,null,"ASQUINS","89"]
[null,null,null,null,null,null,null,null,null,null,null,"ASSAIS-LES-JUMEAUX","79"]
[null,null,null,null,null,null,null,null,null,null,null,"ASSAS","34"]
[null,null,null,null,null,null,null,null,null,null,null,"ASSAT","64"]
[null,null,null,null,null,null,null,null,null,null,null,"ASSE-LE-BERENGER","53"]
[null,null,null,null,null,null,null,null,null,null,null,"ASSE-LE-BOISNE","72"]
[null,null,null,null,null,null,null,null,null,null,null,"ASSE-LE-RIBOUL","72"]
[null,null,null,null,null,null,null,null,null,null,null,"ASSERAC","44"]
[null,null,null,null,null,null,null,null,null,null,null,"ASSEVENT","59"]
[null,null,null,null,null,null,null,null,null,null,null,"ASSEVILLERS","80"]
[null,null,null,null,null,null,null,null,null,null,null,"ASSIER","46"]
[null,null,null,null,null,null,null,null,null,null,null,"ASSIEU","38"]
[null,null,null,null,null,null,null,null,null,null,null,"ASSIGNY","76"]
[null,null,null,null,null,null,null,null,null,null,null,"ASSIS-SUR-SERRE","02"]
[null,null,null,null,null,null,null,null,null,null,null,"ASSON","64"]
[null,null,null,null,null,null,null,null,null,null,null,"ASSWILLER","67"]
[null,null,null,null,null,null,null,null,null,null,null,"ASTAFFORT","47"]
[null,null,null,null,null,null,null,null,null,null,null,"ASTE","65"]
[null,null,null,null,null,null,null,null,null,null,null,"ASTE-BEON","64"]
[null,null,null,null,null,null,null,null,null,null,null,"ASTILLE","53"]
[null,null,null,null,null,null,null,null,null,null,null,"ASTIS","64"]
[null,null,null,null,null,null,null,null,null,null,null,"ASTUGUE","65"]
[null,null,null,null,null,null,null,null,null,null,null,"ATHEE","21"]
[null,null,null,null,null,null,null,null,null,null,null,"ATHEE","53"]
[null,null,null,null,null,null,null,null,null,null,null,"ATHEE-SUR-CHER","37"]
[null,null,null,null,null,null,null,null,null,null,null,"ATHESANS-ETROITEFONTAINE","70"]
[null,null,null,null,null,null,null,null,null,null,null,"ATHIES","62"]
[null,null,null,null,null,null,null,null,null,null,null,"ATHIES","80"]
[null,null,null,null,null,null,null,null,null,null,null,"ATHIES-SOUS-LAON","02"]
[null,null,null,null,null,null,null,null,null,null,null,"ATHIS","51"]
[null,null,null,null,null,null,null,null,null,null,null,"ATHIS-DE-L'ORNE","61"]
[null,null,null,null,null,null,null,null,null,null,null,"ATHIS-MONS","91"]
[null,null,null,null,null,null,null,null,null,null,null,"ATTAINVILLE","95"]
[null,null,null,null,null,null,null,null,null,null,null,"ATTENSCHWILLER","68"]
[null,null,null,null,null,null,null,null,null,null,null,"ATTICHES","59"]
[null,null,null,null,null,null,null,null,null,null,null,"ATTICHY","60"]
[null,null,null,null,null,null,null,null,null,null,null,"ATTIGNAT","01"]
[null,null,null,null,null,null,null,null,null,null,null,"ATTIGNAT-ONCIN","73"]
[null,null,null,null,null,null,null,null,null,null,null,"ATTIGNY","08"]
[null,null,null,null,null,null,null,null,null,null,null,"ATTIGNY","88"]
[null,null,null,null,null,null,null,null,null,null,null,"ATTILLY","02"]
[null,null,null,null,null,null,null,null,null,null,null,"ATTIN","62"]
[null,null,null,null,null,null,null,null,null,null,null,"ATTON","54"]
[null,null,null,null,null,null,null,null,null,null,null,"ATUR","24"]
[null,null,null,null,null,null,null,null,null,null,null,"AUBAGNE","13"]
[null,null,null,null,null,null,null,null,null,null,null,"AUBAIS","30"]
[null,null,null,null,null,null,null,null,null,null,null,"AUBAS","24"]
[null,null,null,null,null,null,null,null,null,null,null,"AUBAZINES","19"]
[null,null,null,null,null,null,null,null,null,null,null,"AUBE","61"]
[null,null,null,null,null,null,null,null,null,null,null,"AUBE","57"]
[null,null,null,null,null,null,null,null,null,null,null,"AUBENAS","07"]
[null,null,null,null,null,null,null,null,null,null,null,"AUBENCHEUL-AU-BAC","59"]
[null,null,null,null,null,null,null,null,null,null,null,"AUBENCHEUL-AUX-BOIS","02"]
[null,null,null,null,null,null,null,null,null,null,null,"AUBENTON","02"]
[null,null,null,null,null,null,null,null,null,null,null,"AUBEPIERRE-OZOUER-LE-REPOS","77"]
[null,null,null,null,null,null,null,null,null,null,null,"AUBERCHICOURT","59"]
[null,null,null,null,null,null,null,null,null,null,null,"AUBERGENVILLE","78"]
[null,null,null,null,null,null,null,null,null,null,null,"AUBERIVES-EN-ROYANS","38"]
[null,null,null,null,null,null,null,null,null,null,null,"AUBERIVES-SUR-VAREZE","38"]
[null,null,null,null,null,null,null,null,null,null,null,"AUBERMESNIL-BEAUMAIS","76"]
[null,null,null,null,null,null,null,null,null,null,null,"AUBERS","59"]
[null,null,null,null,null,null,null,null,null,null,null,"AUBERTIN","64"]
[null,null,null,null,null,null,null,null,null,null,null,"AUBERVILLE","14"]
[null,null,null,null,null,null,null,null,null,null,null,"AUBERVILLE-LA-CAMPAGNE","76"]
[null,null,null,null,null,null,null,null,null,null,null,"AUBERVILLE-LA-RENAULT","76"]
[null,null,null,null,null,null,null,null,null,null,null,"AUBERVILLIERS","93"]
[null,null,null,null,null,null,null,null,null,null,null,"AUBETERRE-SUR-DRONNE","16"]
[null,null,null,null,null,null,null,null,null,null,null,"AUBEVOYE","27"]
[null,null,null,null,null,null,null,null,null,null,null,"AUBIAC","47"]
[null,null,null,null,null,null,null,null,null,null,null,"AUBIAT","63"]
[null,null,null,null,null,null,null,null,null,null,null,"AUBIE-ET-ESPESSAS","33"]
[null,null,null,null,null,null,null,null,null,null,null,"AUBIERE","63"]
[null,null,null,null,null,null,null,null,null,null,null,"AUBIET","32"]
[null,null,null,null,null,null,null,null,null,null,null,"AUBIGNAN","84"]
[null,null,null,null,null,null,null,null,null,null,null,"AUBIGNAS","07"]
[null,null,null,null,null,null,null,null,null,null,null,"AUBIGNE","35"]
[null,null,null,null,null,null,null,null,null,null,null,"AUBIGNE-RACAN","72"]
[null,null,null,null,null,null,null,null,null,null,null,"AUBIGNE-SUR-LAYON","49"]
[null,null,null,null,null,null,null,null,null,null,null,"AUBIGNOSC","04"]
[null,null,null,null,null,null,null,null,null,null,null,"AUBIGNY","85"]
[null,null,null,null,null,null,null,null,null,null,null,"AUBIGNY","80"]
[null,null,null,null,null,null,null,null,null,null,null,"AUBIGNY","14"]
[null,null,null,null,null,null,null,null,null,null,null,"AUBIGNY-AU-BAC","59"]
[null,null,null,null,null,null,null,null,null,null,null,"AUBIGNY-EN-ARTOIS","62"]
[null,null,null,null,null,null,null,null,null,null,null,"AUBIGNY-EN-PLAINE","21"]
[null,null,null,null,null,null,null,null,null,null,null,"AUBIGNY-LES-POTHEES","08"]
[null,null,null,null,null,null,null,null,null,null,null,"AUBIGNY-SUR-NERE","18"]
[null,null,null,null,null,null,null,null,null,null,null,"AUBIN","12"]
[null,null,null,null,null,null,null,null,null,null,null,"AUBINGES","18"]
[null,null,null,null,null,null,null,null,null,null,null,"AUBIN-SAINT-VAAST","62"]
[null,null,null,null,null,null,null,null,null,null,null,"AUBORD","30"]
[null,null,null,null,null,null,null,null,null,null,null,"AUBOUE","54"]
[null,null,null,null,null,null,null,null,null,null,null,"AUBRES","26"]
[null,null,null,null,null,null,null,null,null,null,null,"AUBREVILLE","55"]
[null,null,null,null,null,null,null,null,null,null,null,"AUBRIVES","08"]
[null,null,null,null,null,null,null,null,null,null,null,"AUBRY-DU-HAINAUT","59"]
[null,null,null,null,null,null,null,null,null,null,null,"AUBRY-EN-EXMES","61"]
[null,null,null,null,null,null,null,null,null,null,null,"AUBURE","68"]
[null,null,null,null,null,null,null,null,null,null,null,"AUBUSSARGUES","30"]
[null,null,null,null,null,null,null,null,null,null,null,"AUBUSSON","23"]
[null,null,null,null,null,null,null,null,null,null,null,"AUBUSSON","61"]
[null,null,null,null,null,null,null,null,null,null,null,"AUBY","59"]
[null,null,null,null,null,null,null,null,null,null,null,"AUCALEUC","22"]
[null,null,null,null,null,null,null,null,null,null,null,"AUCAMVILLE","31"]
[null,null,null,null,null,null,null,null,null,null,null,"AUCAMVILLE","82"]
[null,null,null,null,null,null,null,null,null,null,null,"AUCEY-LA-PLAINE","50"]
[null,null,null,null,null,null,null,null,null,null,null,"AUCH","32"]
[null,null,null,null,null,null,null,null,null,null,null,"AUCHEL","62"]
[null,null,null,null,null,null,null,null,null,null,null,"AUCHY-AU-BOIS","62"]
[null,null,null,null,null,null,null,null,null,null,null,"AUCHY-LA-MONTAGNE","60"]
[null,null,null,null,null,null,null,null,null,null,null,"AUCHY-LES-HESDIN","62"]
[null,null,null,null,null,null,null,null,null,null,null,"AUCHY-LES-MINES","62"]
[null,null,null,null,null,null,null,null,null,null,null,"AUCHY-LEZ-ORCHIES","59"]
[null,null,null,null,null,null,null,null,null,null,null,"AUCUN","65"]
[null,null,null,null,null,null,null,null,null,null,null,"AUDEMBERT","62"]
[null,null,null,null,null,null,null,null,null,null,null,"AUDENGE","33"]
[null,null,null,null,null,null,null,null,null,null,null,"AUDERVILLE","50"]
[null,null,null,null,null,null,null,null,null,null,null,"AUDES","03"]
[null,null,null,null,null,null,null,null,null,null,null,"AUDEUX","25"]
[null,null,null,null,null,null,null,null,null,null,null,"AUDIERNE","29"]
[null,null,null,null,null,null,null,null,null,null,null,"AUDIGNIES","59"]
[null,null,null,null,null,null,null,null,null,null,null,"AUDIGNON","40"]
[null,null,null,null,null,null,null,null,null,null,null,"AUDIGNY","02"]
[null,null,null,null,null,null,null,null,null,null,null,"AUDINCOURT","25"]
[null,null,null,null,null,null,null,null,null,null,null,"AUDINCTHUN","62"]
[null,null,null,null,null,null,null,null,null,null,null,"AUDINGHEN","62"]
[null,null,null,null,null,null,null,null,null,null,null,"AUDON","40"]
[null,null,null,null,null,null,null,null,null,null,null,"AUDREHEM","62"]
[null,null,null,null,null,null,null,null,null,null,null,"AUDRESSELLES","62"]
[null,null,null,null,null,null,null,null,null,null,null,"AUDRIEU","14"]
[null,null,null,null,null,null,null,null,null,null,null,"AUDRIX","24"]
[null,null,null,null,null,null,null,null,null,null,null,"AUDRUICQ","62"]
[null,null,null,null,null,null,null,null,null,null,null,"AUDUN-LE-ROMAN","54"]
[null,null,null,null,null,null,null,null,null,null,null,"AUDUN-LE-TICHE","57"]
[null,null,null,null,null,null,null,null,null,null,null,"AUENHEIM","67"]
[null,null,null,null,null,null,null,null,null,null,null,"AUFFARGIS","78"]
[null,null,null,null,null,null,null,null,null,null,null,"AUFFAY","76"]
[null,null,null,null,null,null,null,null,null,null,null,"AUFFERVILLE","77"]
[null,null,null,null,null,null,null,null,null,null,null,"AUFFREVILLE-BRASSEUIL","78"]
[null,null,null,null,null,null,null,null,null,null,null,"AUGAN","56"]
[null,null,null,null,null,null,null,null,null,null,null,"AUGE","79"]
[null,null,null,null,null,null,null,null,null,null,null,"AUGEA","39"]
[null,null,null,null,null,null,null,null,null,null,null,"AUGEROLLES","63"]
[null,null,null,null,null,null,null,null,null,null,null,"AUGER-SAINT-VINCENT","60"]
[null,null,null,null,null,null,null,null,null,null,null,"AUGERS-EN-BRIE","77"]
[null,null,null,null,null,null,null,null,null,null,null,"AUGE-SAINT-MEDARD","16"]
[null,null,null,null,null,null,null,null,null,null,null,"AUGIGNAC","24"]
[null,null,null,null,null,null,null,null,null,null,null,"AUGNY","57"]
[null,null,null,null,null,null,null,null,null,null,null,"AUGY","89"]
[null,null,null,null,null,null,null,null,null,null,null,"AUGY-SUR-AUBOIS","18"]
[null,null,null,null,null,null,null,null,null,null,null,"AUJAC","17"]
[null,null,null,null,null,null,null,null,null,null,null,"AUJARGUES","30"]
[null,null,null,null,null,null,null,null,null,null,null,"AUJOLS","46"]
[null,null,null,null,null,null,null,null,null,null,null,"AULAS","30"]
[null,null,null,null,null,null,null,null,null,null,null,"AULHAT-SAINT-PRIVAT","63"]
[null,null,null,null,null,null,null,null,null,null,null,"AULNAT","63"]
[null,null,null,null,null,null,null,null,null,null,null,"AULNAY","17"]
[null,null,null,null,null,null,null,null,null,null,null,"AULNAY-LA-RIVIERE","45"]
[null,null,null,null,null,null,null,null,null,null,null,"AULNAY-SOUS-BOIS","93"]
[null,null,null,null,null,null,null,null,null,null,null,"AULNAY-SUR-ITON","27"]
[null,null,null,null,null,null,null,null,null,null,null,"AULNAY-SUR-MAULDRE","78"]
[null,null,null,null,null,null,null,null,null,null,null,"AULNOIS-EN-PERTHOIS","55"]
[null,null,null,null,null,null,null,null,null,null,null,"AULNOIS-SOUS-LAON","02"]
[null,null,null,null,null,null,null,null,null,null,null,"AULNOY","77"]
[null,null,null,null,null,null,null,null,null,null,null,"AULNOYE-AYMERIES","59"]
[null,null,null,null,null,null,null,null,null,null,null,"AULNOY-LEZ-VALENCIENNES","59"]
[null,null,null,null,null,null,null,null,null,null,null,"AULON","31"]
[null,null,null,null,null,null,null,null,null,null,null,"AULT","80"]
[null,null,null,null,null,null,null,null,null,null,null,"AUMAGNE","17"]
[null,null,null,null,null,null,null,null,null,null,null,"AUMALE","76"]
[null,null,null,null,null,null,null,null,null,null,null,"AUMELAS","34"]
[null,null,null,null,null,null,null,null,null,null,null,"AUMENANCOURT","51"]
[null,null,null,null,null,null,null,null,null,null,null,"AUMES","34"]
[null,null,null,null,null,null,null,null,null,null,null,"AUMETZ","57"]
[null,null,null,null,null,null,null,null,null,null,null,"AUMONT","39"]
[null,null,null,null,null,null,null,null,null,null,null,"AUMONT-AUBRAC","48"]
[null,null,null,null,null,null,null,null,null,null,null,"AUMONT-EN-HALATTE","60"]
[null,null,null,null,null,null,null,null,null,null,null,"AUMONTZEY","88"]
[null,null,null,null,null,null,null,null,null,null,null,"AUMUR","39"]
[null,null,null,null,null,null,null,null,null,null,null,"AUNAC","16"]
[null,null,null,null,null,null,null,null,null,null,null,"AUNAY-EN-BAZOIS","58"]
[null,null,null,null,null,null,null,null,null,null,null,"AUNAY-SOUS-AUNEAU","28"]
[null,null,null,null,null,null,null,null,null,null,null,"AUNAY-SOUS-CRECY","28"]
[null,null,null,null,null,null,null,null,null,null,null,"AUNAY-SUR-ODON","14"]
[null,null,null,null,null,null,null,null,null,null,null,"AUNEAU","28"]
[null,null,null,null,null,null,null,null,null,null,null,"AUNEUIL","60"]
[null,null,null,null,null,null,null,null,null,null,null,"AUNOU-LE-FAUCON","61"]
[null,null,null,null,null,null,null,null,null,null,null,"AUNOU-SUR-ORNE","61"]
[null,null,null,null,null,null,null,null,null,null,null,"AUPPEGARD","76"]
[null,null,null,null,null,null,null,null,null,null,null,"AUPS","83"]
[null,null,null,null,null,null,null,null,null,null,null,"AUQUAINVILLE","14"]
[null,null,null,null,null,null,null,null,null,null,null,"AUQUEMESNIL","76"]
[null,null,null,null,null,null,null,null,null,null,null,"AURADE","32"]
[null,null,null,null,null,null,null,null,null,null,null,"AURADOU","47"]
[null,null,null,null,null,null,null,null,null,null,null,"AURAGNE","31"]
[null,null,null,null,null,null,null,null,null,null,null,"AURAY","56"]
[null,null,null,null,null,null,null,null,null,null,null,"AUREC-SUR-LOIRE","43"]
[null,null,null,null,null,null,null,null,null,null,null,"AUREIL","87"]
[null,null,null,null,null,null,null,null,null,null,null,"AUREILHAN","65"]
[null,null,null,null,null,null,null,null,null,null,null,"AUREILHAN","40"]
[null,null,null,null,null,null,null,null,null,null,null,"AUREILLE","13"]
[null,null,null,null,null,null,null,null,null,null,null,"AURENSAN","65"]
[null,null,null,null,null,null,null,null,null,null,null,"AUREVILLE","31"]
[null,null,null,null,null,null,null,null,null,null,null,"AURIAC","64"]
[null,null,null,null,null,null,null,null,null,null,null,"AURIAC-DU-PERIGORD","24"]
[null,null,null,null,null,null,null,null,null,null,null,"AURIAC-LAGAST","12"]
[null,null,null,null,null,null,null,null,null,null,null,"AURIAC-SUR-VENDINELLE","31"]
[null,null,null,null,null,null,null,null,null,null,null,"AURIBEAU-SUR-SIAGNE","06"]
[null,null,null,null,null,null,null,null,null,null,null,"AURICE","40"]
[null,null,null,null,null,null,null,null,null,null,null,"AURIEBAT","65"]
[null,null,null,null,null,null,null,null,null,null,null,"AURIERES","63"]
[null,null,null,null,null,null,null,null,null,null,null,"AURIGNAC","31"]
[null,null,null,null,null,null,null,null,null,null,null,"AURILLAC","15"]
[null,null,null,null,null,null,null,null,null,null,null,"AURIN","31"]
[null,null,null,null,null,null,null,null,null,null,null,"AURIOL","13"]
[null,null,null,null,null,null,null,null,null,null,null,"AURONS","13"]
[null,null,null,null,null,null,null,null,null,null,null,"AUROS","33"]
[null,null,null,null,null,null,null,null,null,null,null,"AUROUER","03"]
[null,null,null,null,null,null,null,null,null,null,null,"AUROUX","48"]
[null,null,null,null,null,null,null,null,null,null,null,"AUSSAC","81"]
[null,null,null,null,null,null,null,null,null,null,null,"AUSSAC-VADALLE","16"]
[null,null,null,null,null,null,null,null,null,null,null,"AUSSEVIELLE","64"]
[null,null,null,null,null,null,null,null,null,null,null,"AUSSILLON","81"]
[null,null,null,null,null,null,null,null,null,null,null,"AUSSOIS","73"]
[null,null,null,null,null,null,null,null,null,null,null,"AUSSON","31"]
[null,null,null,null,null,null,null,null,null,null,null,"AUSSONNE","31"]
[null,null,null,null,null,null,null,null,null,null,null,"AUSSURUCQ","64"]
[null,null,null,null,null,null,null,null,null,null,null,"AUTAINVILLE","41"]
[null,null,null,null,null,null,null,null,null,null,null,"AUTECHAUX","25"]
[null,null,null,null,null,null,null,null,null,null,null,"AUTECHAUX-ROIDE","25"]
[null,null,null,null,null,null,null,null,null,null,null,"AUTERIVE","31"]
[null,null,null,null,null,null,null,null,null,null,null,"AUTERIVE","32"]
[null,null,null,null,null,null,null,null,null,null,null,"AUTET","70"]
[null,null,null,null,null,null,null,null,null,null,null,"AUTEUIL","78"]
[null,null,null,null,null,null,null,null,null,null,null,"AUTEUIL","60"]
[null,null,null,null,null,null,null,null,null,null,null,"AUTHEUIL-AUTHOUILLET","27"]
[null,null,null,null,null,null,null,null,null,null,null,"AUTHEUIL-EN-VALOIS","60"]
[null,null,null,null,null,null,null,null,null,null,null,"AUTHEVERNES","27"]
[null,null,null,null,null,null,null,null,null,null,null,"AUTHEZAT","63"]
[null,null,null,null,null,null,null,null,null,null,null,"AUTHIE","14"]
[null,null,null,null,null,null,null,null,null,null,null,"AUTHIE","80"]
[null,null,null,null,null,null,null,null,null,null,null,"AUTHIEULE","80"]
[null,null,null,null,null,null,null,null,null,null,null,"AUTHIEUX-RATIEVILLE","76"]
[null,null,null,null,null,null,null,null,null,null,null,"AUTHOISON","70"]
[null,null,null,null,null,null,null,null,null,null,null,"AUTHON","41"]
[null,null,null,null,null,null,null,null,null,null,null,"AUTHON-DU-PERCHE","28"]
[null,null,null,null,null,null,null,null,null,null,null,"AUTHON-EBEON","17"]
[null,null,null,null,null,null,null,null,null,null,null,"AUTHON-LA-PLAINE","91"]
[null,null,null,null,null,null,null,null,null,null,null,"AUTHOU","27"]
[null,null,null,null,null,null,null,null,null,null,null,"AUTHUME","39"]
[null,null,null,null,null,null,null,null,null,null,null,"AUTIGNAC","34"]
[null,null,null,null,null,null,null,null,null,null,null,"AUTIGNY","76"]
[null,null,null,null,null,null,null,null,null,null,null,"AUTINGUES","62"]
[null,null,null,null,null,null,null,null,null,null,null,"AUTOIRE","46"]
[null,null,null,null,null,null,null,null,null,null,null,"AUTOREILLE","70"]
[null,null,null,null,null,null,null,null,null,null,null,"AUTOUILLET","78"]
[null,null,null,null,null,null,null,null,null,null,null,"AUTRANS","38"]
[null,null,null,null,null,null,null,null,null,null,null,"AUTRECHE","37"]
[null,null,null,null,null,null,null,null,null,null,null,"AUTRECHENE","90"]
[null,null,null,null,null,null,null,null,null,null,null,"AUTRECHES","60"]
[null,null,null,null,null,null,null,null,null,null,null,"AUTRECOURT-ET-POURRON","08"]
[null,null,null,null,null,null,null,null,null,null,null,"AUTRETOT","76"]
[null,null,null,null,null,null,null,null,null,null,null,"AUTREVILLE","02"]
[null,null,null,null,null,null,null,null,null,null,null,"AUTREVILLE-SUR-LA-RENNE","52"]
[null,null,null,null,null,null,null,null,null,null,null,"AUTREVILLE-SUR-MOSELLE","54"]
[null,null,null,null,null,null,null,null,null,null,null,"AUTREY","88"]
[null,null,null,null,null,null,null,null,null,null,null,"AUTREY-LES-GRAY","70"]
[null,null,null,null,null,null,null,null,null,null,null,"AUTRUY-SUR-JUINE","45"]
[null,null,null,null,null,null,null,null,null,null,null,"AUTRY-ISSARDS","03"]
[null,null,null,null,null,null,null,null,null,null,null,"AUTRY-LE-CHATEL","45"]
[null,null,null,null,null,null,null,null,null,null,null,"AUTUN","71"]
[null,null,null,null,null,null,null,null,null,null,null,"AUVERNAUX","91"]
[null,null,null,null,null,null,null,null,null,null,null,"AUVERS","50"]
[null,null,null,null,null,null,null,null,null,null,null,"AUVERSE","49"]
[null,null,null,null,null,null,null,null,null,null,null,"AUVERS-LE-HAMON","72"]
[null,null,null,null,null,null,null,null,null,null,null,"AUVERS-SAINT-GEORGES","91"]
[null,null,null,null,null,null,null,null,null,null,null,"AUVERS-SUR-OISE","95"]
[null,null,null,null,null,null,null,null,null,null,null,"AUVET-ET-LA-CHAPELOTTE","70"]
[null,null,null,null,null,null,null,null,null,null,null,"AUVILLAR","82"]
[null,null,null,null,null,null,null,null,null,null,null,"AUVILLARS-SUR-SAONE","21"]
[null,null,null,null,null,null,null,null,null,null,null,"AUVILLERS-LES-FORGES","08"]
[null,null,null,null,null,null,null,null,null,null,null,"AUVILLIERS-EN-GATINAIS","45"]
[null,null,null,null,null,null,null,null,null,null,null,"AUX MARAIS","60"]
[null,null,null,null,null,null,null,null,null,null,null,"AUX-AUSSAT","32"]
[null,null,null,null,null,null,null,null,null,null,null,"AUXELLES-BAS","90"]
[null,null,null,null,null,null,null,null,null,null,null,"AUXELLES-HAUT","90"]
[null,null,null,null,null,null,null,null,null,null,null,"AUXERRE","89"]
[null,null,null,null,null,null,null,null,null,null,null,"AUXEY-DURESSES","21"]
[null,null,null,null,null,null,null,null,null,null,null,"AUXI-LE-CHATEAU","62"]
[null,null,null,null,null,null,null,null,null,null,null,"AUXON","10"]
[null,null,null,null,null,null,null,null,null,null,null,"AUXON","70"]
[null,null,null,null,null,null,null,null,null,null,null,"AUXON-DESSOUS","25"]
[null,null,null,null,null,null,null,null,null,null,null,"AUXON-DESSUS","25"]
[null,null,null,null,null,null,null,null,null,null,null,"AUXONNE","21"]
[null,null,null,null,null,null,null,null,null,null,null,"AUXY","45"]
[null,null,null,null,null,null,null,null,null,null,null,"AUXY","71"]
[null,null,null,null,null,null,null,null,null,null,null,"AUZANCES","23"]
[null,null,null,null,null,null,null,null,null,null,null,"AUZAT","09"]
[null,null,null,null,null,null,null,null,null,null,null,"AUZAT-LA-COMBELLE","63"]
[null,null,null,null,null,null,null,null,null,null,null,"AUZAY","85"]
[null,null,null,null,null,null,null,null,null,null,null,"AUZEBOSC","76"]
[null,null,null,null,null,null,null,null,null,null,null,"AUZELLES","63"]
[null,null,null,null,null,null,null,null,null,null,null,"AUZEVILLE-TOLOSANE","31"]
[null,null,null,null,null,null,null,null,null,null,null,"AUZIELLE","31"]
[null,null,null,null,null,null,null,null,null,null,null,"AUZITS","12"]
[null,null,null,null,null,null,null,null,null,null,null,"AUZON","43"]
[null,null,null,null,null,null,null,null,null,null,null,"AUZOUER-EN-TOURAINE","37"]
[null,null,null,null,null,null,null,null,null,null,null,"AUZOUVILLE-AUBERBOSC","76"]
[null,null,null,null,null,null,null,null,null,null,null,"AUZOUVILLE-L'ESNEVAL","76"]
[null,null,null,null,null,null,null,null,null,null,null,"AUZOUVILLE-SUR-RY","76"]
[null,null,null,null,null,null,null,null,null,null,null,"AVAILLES-EN-CHATELLERAULT","86"]
[null,null,null,null,null,null,null,null,null,null,null,"AVAILLES-LIMOUZINE","86"]
[null,null,null,null,null,null,null,null,null,null,null,"AVAILLES-SUR-SEICHE","35"]
[null,null,null,null,null,null,null,null,null,null,null,"AVALLON","89"]
[null,null,null,null,null,null,null,null,null,null,null,"AVANCON","05"]
[null,null,null,null,null,null,null,null,null,null,null,"AVANCON","08"]
[null,null,null,null,null,null,null,null,null,null,null,"AVANNE-AVENEY","25"]
[null,null,null,null,null,null,null,null,null,null,null,"AVANT-LES-MARCILLY","10"]
[null,null,null,null,null,null,null,null,null,null,null,"AVANTON","86"]
[null,null,null,null,null,null,null,null,null,null,null,"AVARAY","41"]
[null,null,null,null,null,null,null,null,null,null,null,"AVAUX","08"]
[null,null,null,null,null,null,null,null,null,null,null,"AVEIZE","69"]
[null,null,null,null,null,null,null,null,null,null,null,"AVEIZIEUX","42"]
[null,null,null,null,null,null,null,null,null,null,null,"AVELIN","59"]
[null,null,null,null,null,null,null,null,null,null,null,"AVELUY","80"]
[null,null,null,null,null,null,null,null,null,null,null,"AVENAY","14"]
[null,null,null,null,null,null,null,null,null,null,null,"AVENAY-VAL-D'OR","51"]
[null,null,null,null,null,null,null,null,null,null,null,"AVENE","34"]
[null,null,null,null,null,null,null,null,null,null,null,"AVENSAN","33"]
[null,null,null,null,null,null,null,null,null,null,null,"AVERDOINGT","62"]
[null,null,null,null,null,null,null,null,null,null,null,"AVERDON","41"]
[null,null,null,null,null,null,null,null,null,null,null,"AVERMES","03"]
[null,null,null,null,null,null,null,null,null,null,null,"AVERNES","95"]
[null,null,null,null,null,null,null,null,null,null,null,"AVERTON","53"]
[null,null,null,null,null,null,null,null,null,null,null,"AVESNELLES","59"]
[null,null,null,null,null,null,null,null,null,null,null,"AVESNES-EN-BRAY","76"]
[null,null,null,null,null,null,null,null,null,null,null,"AVESNES-EN-VAL","76"]
[null,null,null,null,null,null,null,null,null,null,null,"AVESNES-LE-COMTE","62"]
[null,null,null,null,null,null,null,null,null,null,null,"AVESNES-LES-AUBERT","59"]
[null,null,null,null,null,null,null,null,null,null,null,"AVESNES-LE-SEC","59"]
[null,null,null,null,null,null,null,null,null,null,null,"AVESNES-SUR-HELPE","59"]
[null,null,null,null,null,null,null,null,null,null,null,"AVESSAC","44"]
[null,null,null,null,null,null,null,null,null,null,null,"AVESSE","72"]
[null,null,null,null,null,null,null,null,null,null,null,"AVEZAC-PRAT-LAHITTE","65"]
[null,null,null,null,null,null,null,null,null,null,null,"AVEZE","30"]
[null,null,null,null,null,null,null,null,null,null,null,"AVEZE","72"]
[null,null,null,null,null,null,null,null,null,null,null,"AVIERNOZ","74"]
[null,null,null,null,null,null,null,null,null,null,null,"AVIGNON","84"]
[null,null,null,null,null,null,null,null,null,null,null,"AVIGNONET-LAURAGAIS","31"]
[null,null,null,null,null,null,null,null,null,null,null,"AVIGNON-LES-SAINT-CLAUDE","39"]
[null,null,null,null,null,null,null,null,null,null,null,"AVILLY-SAINT-LEONARD","60"]
[null,null,null,null,null,null,null,null,null,null,null,"AVION","62"]
[null,null,null,null,null,null,null,null,null,null,null,"AVIRE","49"]
[null,null,null,null,null,null,null,null,null,null,null,"AVIRON","27"]
[null,null,null,null,null,null,null,null,null,null,null,"AVIRONS","974"]
[null,null,null,null,null,null,null,null,null,null,null,"AVIZE","51"]
[null,null,null,null,null,null,null,null,null,null,null,"AVOINE","37"]
[null,null,null,null,null,null,null,null,null,null,null,"AVOINE","61"]
[null,null,null,null,null,null,null,null,null,null,null,"AVOISE","72"]
[null,null,null,null,null,null,null,null,null,null,null,"AVOLSHEIM","67"]
[null,null,null,null,null,null,null,null,null,null,null,"AVON","77"]
[null,null,null,null,null,null,null,null,null,null,null,"AVON-LES-ROCHES","37"]
[null,null,null,null,null,null,null,null,null,null,null,"AVORD","18"]
[null,null,null,null,null,null,null,null,null,null,null,"AVOUDREY","25"]
[null,null,null,null,null,null,null,null,null,null,null,"AVRAINVILLE","91"]
[null,null,null,null,null,null,null,null,null,null,null,"AVRANCHES","50"]
[null,null,null,null,null,null,null,null,null,null,null,"AVRECHY","60"]
[null,null,null,null,null,null,null,null,null,null,null,"AVREMESNIL","76"]
[null,null,null,null,null,null,null,null,null,null,null,"AVRESSIEUX","73"]
[null,null,null,null,null,null,null,null,null,null,null,"AVRICOURT","57"]
[null,null,null,null,null,null,null,null,null,null,null,"AVRICOURT","54"]
[null,null,null,null,null,null,null,null,null,null,null,"AVRICOURT","60"]
[null,null,null,null,null,null,null,null,null,null,null,"AVRIEUX","73"]
[null,null,null,null,null,null,null,null,null,null,null,"AVRIGNEY-VIREY","70"]
[null,null,null,null,null,null,null,null,null,null,null,"AVRIGNY","60"]
[null,null,null,null,null,null,null,null,null,null,null,"AVRIL","54"]
[null,null,null,null,null,null,null,null,null,null,null,"AVRILLE","49"]
[null,null,null,null,null,null,null,null,null,null,null,"AVRILLE","85"]
[null,null,null,null,null,null,null,null,null,null,null,"AVRILLE-LES-PONCEAUX","37"]
[null,null,null,null,null,null,null,null,null,null,null,"AVRILLY","27"]
[null,null,null,null,null,null,null,null,null,null,null,"AVROULT","62"]
[null,null,null,null,null,null,null,null,null,null,null,"AVY","17"]
[null,null,null,null,null,null,null,null,null,null,null,"AWALA-YALIMAPO","973"]
[null,null,null,null,null,null,null,null,null,null,null,"AWOINGT","59"]
[null,null,null,null,null,null,null,null,null,null,null,"AXAT","11"]
[null,null,null,null,null,null,null,null,null,null,null,"AX-LES-THERMES","09"]
[null,null,null,null,null,null,null,null,null,null,null,"AY","51"]
[null,null,null,null,null,null,null,null,null,null,null,"AYDAT","63"]
[null,null,null,null,null,null,null,null,null,null,null,"AYDOILLES","88"]
[null,null,null,null,null,null,null,null,null,null,null,"AYEN","19"]
[null,null,null,null,null,null,null,null,null,null,null,"AYETTE","62"]
[null,null,null,null,null,null,null,null,null,null,null,"AYGUEMORTE-LES-GRAVES","33"]
[null,null,null,null,null,null,null,null,null,null,null,"AYGUESVIVES","31"]
[null,null,null,null,null,null,null,null,null,null,null,"AYHERRE","64"]
[null,null,null,null,null,null,null,null,null,null,null,"AYN","73"]
[null,null,null,null,null,null,null,null,null,null,null,"AYNAC","46"]
[null,null,null,null,null,null,null,null,null,null,null,"AYRENS","15"]
[null,null,null,null,null,null,null,null,null,null,null,"AYRON","86"]
[null,null,null,null,null,null,null,null,null,null,null,"AYROS-ARBOUIX","65"]
[null,null,null,null,null,null,null,null,null,null,null,"AYSE","74"]
[null,null,null,null,null,null,null,null,null,null,null,"AY-SUR-MOSELLE","57"]
[null,null,null,null,null,null,null,null,null,null,null,"AYTRE","17"]
[null,null,null,null,null,null,null,null,null,null,null,"AYZAC-OST","65"]
[null,null,null,null,null,null,null,null,null,null,null,"AZAS","31"]
[null,null,null,null,null,null,null,null,null,null,null,"AZAT-LE-RIS","87"]
[null,null,null,null,null,null,null,null,null,null,null,"AZAY-LE-BRULE","79"]
[null,null,null,null,null,null,null,null,null,null,null,"AZAY-LE-FERRON","36"]
[null,null,null,null,null,null,null,null,null,null,null,"AZAY-LE-RIDEAU","37"]
[null,null,null,null,null,null,null,null,null,null,null,"AZAY-SUR-CHER","37"]
[null,null,null,null,null,null,null,null,null,null,null,"AZAY-SUR-INDRE","37"]
[null,null,null,null,null,null,null,null,null,null,null,"AZAY-SUR-THOUET","79"]
[null,null,null,null,null,null,null,null,null,null,null,"AZE","53"]
[null,null,null,null,null,null,null,null,null,null,null,"AZE","41"]
[null,null,null,null,null,null,null,null,null,null,null,"AZE","71"]
[null,null,null,null,null,null,null,null,null,null,null,"AZELOT","54"]
[null,null,null,null,null,null,null,null,null,null,null,"AZERABLES","23"]
[null,null,null,null,null,null,null,null,null,null,null,"AZERAILLES","54"]
[null,null,null,null,null,null,null,null,null,null,null,"AZERAT","24"]
[null,null,null,null,null,null,null,null,null,null,null,"AZERAT","43"]
[null,null,null,null,null,null,null,null,null,null,null,"AZEREIX","65"]
[null,null,null,null,null,null,null,null,null,null,null,"AZILLANET","34"]
[null,null,null,null,null,null,null,null,null,null,null,"AZILLE","11"]
[null,null,null,null,null,null,null,null,null,null,null,"AZINCOURT","62"]
[null,null,null,null,null,null,null,null,null,null,null,"AZUR","40"]
[null,null,null,null,null,null,null,null,null,null,null,"AZY","18"]
[null,null,null,null,null,null,null,null,null,null,null,"AZY-SUR-MARNE","02"]
[null,null,null,null,null,null,null,null,null,null,null,"BAALON","55"]
[null,null,null,null,null,null,null,null,null,null,null,"BABEAU-BOULDOUX","34"]
[null,null,null,null,null,null,null,null,null,null,null,"BABOEUF","60"]
[null,null,null,null,null,null,null,null,null,null,null,"BACCARAT","54"]
[null,null,null,null,null,null,null,null,null,null,null,"BACCON","45"]
[null,null,null,null,null,null,null,null,null,null,null,"BACHANT","59"]
[null,null,null,null,null,null,null,null,null,null,null,"BACHIVILLERS","60"]
[null,null,null,null,null,null,null,null,null,null,null,"BACHY","59"]
[null,null,null,null,null,null,null,null,null,null,null,"BACILLY","50"]
[null,null,null,null,null,null,null,null,null,null,null,"BACONNES","51"]
[null,null,null,null,null,null,null,null,null,null,null,"BACOUEL","60"]
[null,null,null,null,null,null,null,null,null,null,null,"BACOUEL-SUR-SELLE","80"]
[null,null,null,null,null,null,null,null,null,null,null,"BACQUEPUIS","27"]
[null,null,null,null,null,null,null,null,null,null,null,"BACQUEVILLE","27"]
[null,null,null,null,null,null,null,null,null,null,null,"BACQUEVILLE-EN-CAUX","76"]
[null,null,null,null,null,null,null,null,null,null,null,"BADAROUX","48"]
[null,null,null,null,null,null,null,null,null,null,null,"BADECON-LE-PIN","36"]
[null,null,null,null,null,null,null,null,null,null,null,"BADEFOLS-D'ANS","24"]
[null,null,null,null,null,null,null,null,null,null,null,"BADEN","56"]
[null,null,null,null,null,null,null,null,null,null,null,"BADENS","11"]
[null,null,null,null,null,null,null,null,null,null,null,"BADEVEL","25"]
[null,null,null,null,null,null,null,null,null,null,null,"BADINIERES","38"]
[null,null,null,null,null,null,null,null,null,null,null,"BADONVILLER","54"]
[null,null,null,null,null,null,null,null,null,null,null,"BAERENDORF","67"]
[null,null,null,null,null,null,null,null,null,null,null,"BAERENTHAL","57"]
[null,null,null,null,null,null,null,null,null,null,null,"BAGARD","30"]
[null,null,null,null,null,null,null,null,null,null,null,"BAGE-LA-VILLE","01"]
[null,null,null,null,null,null,null,null,null,null,null,"BAGE-LE-CHATEL","01"]
[null,null,null,null,null,null,null,null,null,null,null,"BAGES","66"]
[null,null,null,null,null,null,null,null,null,null,null,"BAGES","11"]
[null,null,null,null,null,null,null,null,null,null,null,"BAGNAC-SUR-CELE","46"]
[null,null,null,null,null,null,null,null,null,null,null,"BAGNEAUX-SUR-LOING","77"]
[null,null,null,null,null,null,null,null,null,null,null,"BAGNERES-DE-BIGORRE","65"]
[null,null,null,null,null,null,null,null,null,null,null,"BAGNERES-DE-LUCHON","31"]
[null,null,null,null,null,null,null,null,null,null,null,"BAGNEUX","92"]
[null,null,null,null,null,null,null,null,null,null,null,"BAGNEUX","51"]
[null,null,null,null,null,null,null,null,null,null,null,"BAGNEUX","03"]
[null,null,null,null,null,null,null,null,null,null,null,"BAGNOLES-DE-L'ORNE","61"]
[null,null,null,null,null,null,null,null,null,null,null,"BAGNOLET","93"]
[null,null,null,null,null,null,null,null,null,null,null,"BAGNOLS","69"]
[null,null,null,null,null,null,null,null,null,null,null,"BAGNOLS","63"]
[null,null,null,null,null,null,null,null,null,null,null,"BAGNOLS-EN-FORET","83"]
[null,null,null,null,null,null,null,null,null,null,null,"BAGNOLS-SUR-CEZE","30"]
[null,null,null,null,null,null,null,null,null,null,null,"BAGUER-MORVAN","35"]
[null,null,null,null,null,null,null,null,null,null,null,"BAGUER-PICAN","35"]
[null,null,null,null,null,null,null,null,null,null,null,"BAHO","66"]
[null,null,null,null,null,null,null,null,null,null,null,"BAHUS-SOUBIRAN","40"]
[null,null,null,null,null,null,null,null,null,null,null,"BAIE-MAHAULT","971"]
[null,null,null,null,null,null,null,null,null,null,null,"BAIGNEAUX","33"]
[null,null,null,null,null,null,null,null,null,null,null,"BAIGNES-SAINTE-RADEGONDE","16"]
[null,null,null,null,null,null,null,null,null,null,null,"BAIGTS","40"]
[null,null,null,null,null,null,null,null,null,null,null,"BAIGTS-DE-BEARN","64"]
[null,null,null,null,null,null,null,null,null,null,null,"BAILLARGUES","34"]
[null,null,null,null,null,null,null,null,null,null,null,"BAILLE","35"]
[null,null,null,null,null,null,null,null,null,null,null,"BAILLEAU-ARMENONVILLE","28"]
[null,null,null,null,null,null,null,null,null,null,null,"BAILLEAU-LE-PIN","28"]
[null,null,null,null,null,null,null,null,null,null,null,"BAILLEAU-L'EVEQUE","28"]
[null,null,null,null,null,null,null,null,null,null,null,"BAILLET-EN-FRANCE","95"]
[null,null,null,null,null,null,null,null,null,null,null,"BAILLEUL","59"]
[null,null,null,null,null,null,null,null,null,null,null,"BAILLEUL","61"]
[null,null,null,null,null,null,null,null,null,null,null,"BAILLEUL","80"]
[null,null,null,null,null,null,null,null,null,null,null,"BAILLEUL-AUX-CORNAILLES","62"]
[null,null,null,null,null,null,null,null,null,null,null,"BAILLEUL-LE-SOC","60"]
[null,null,null,null,null,null,null,null,null,null,null,"BAILLEUL-LES-PERNES","62"]
[null,null,null,null,null,null,null,null,null,null,null,"BAILLEUL-SIR-BERTHOULT","62"]
[null,null,null,null,null,null,null,null,null,null,null,"BAILLEUL-SUR-THERAIN","60"]
[null,null,null,null,null,null,null,null,null,null,null,"BAILLEULVAL","62"]
[null,null,null,null,null,null,null,null,null,null,null,"BAILLEVAL","60"]
[null,null,null,null,null,null,null,null,null,null,null,"BAILLIF","971"]
[null,null,null,null,null,null,null,null,null,null,null,"BAILLY","78"]
[null,null,null,null,null,null,null,null,null,null,null,"BAILLY","60"]
[null,null,null,null,null,null,null,null,null,null,null,"BAILLY-EN-RIVIERE","76"]
[null,null,null,null,null,null,null,null,null,null,null,"BAILLY-ROMAINVILLIERS","77"]
[null,null,null,null,null,null,null,null,null,null,null,"BAINCTHUN","62"]
[null,null,null,null,null,null,null,null,null,null,null,"BAIN-DE-BRETAGNE","35"]
[null,null,null,null,null,null,null,null,null,null,null,"BAINS","43"]
[null,null,null,null,null,null,null,null,null,null,null,"BAINS-LES-BAINS","88"]
[null,null,null,null,null,null,null,null,null,null,null,"BAINS-SUR-OUST","35"]
[null,null,null,null,null,null,null,null,null,null,null,"BAINVILLE-AUX-MIROIRS","54"]
[null,null,null,null,null,null,null,null,null,null,null,"BAINVILLE-SUR-MADON","54"]
[null,null,null,null,null,null,null,null,null,null,null,"BAIS","35"]
[null,null,null,null,null,null,null,null,null,null,null,"BAIS","53"]
[null,null,null,null,null,null,null,null,null,null,null,"BAISIEUX","59"]
[null,null,null,null,null,null,null,null,null,null,null,"BAIX","07"]
[null,null,null,null,null,null,null,null,null,null,null,"BAIXAS","66"]
[null,null,null,null,null,null,null,null,null,null,null,"BAJAMONT","47"]
[null,null,null,null,null,null,null,null,null,null,null,"BAJUS","62"]
[null,null,null,null,null,null,null,null,null,null,null,"BALADOU","46"]
[null,null,null,null,null,null,null,null,null,null,null,"BALAGNY-SUR-THERAIN","60"]
[null,null,null,null,null,null,null,null,null,null,null,"BALAISEAUX","39"]
[null,null,null,null,null,null,null,null,null,null,null,"BALAN","01"]
[null,null,null,null,null,null,null,null,null,null,null,"BALAN","08"]
[null,null,null,null,null,null,null,null,null,null,null,"BALANOD","39"]
[null,null,null,null,null,null,null,null,null,null,null,"BALANZAC","17"]
[null,null,null,null,null,null,null,null,null,null,null,"BALARUC-LES-BAINS","34"]
[null,null,null,null,null,null,null,null,null,null,null,"BALARUC-LE-VIEUX","34"]
[null,null,null,null,null,null,null,null,null,null,null,"BALAZE","35"]
[null,null,null,null,null,null,null,null,null,null,null,"BALAZUC","07"]
[null,null,null,null,null,null,null,null,null,null,null,"BALBIGNY","42"]
[null,null,null,null,null,null,null,null,null,null,null,"BALBINS","38"]
[null,null,null,null,null,null,null,null,null,null,null,"BALBRONN","67"]
[null,null,null,null,null,null,null,null,null,null,null,"BALDENHEIM","67"]
[null,null,null,null,null,null,null,null,null,null,null,"BALDERSHEIM","68"]
[null,null,null,null,null,null,null,null,null,null,null,"BALESMES-SUR-MARNE","52"]
[null,null,null,null,null,null,null,null,null,null,null,"BALGAU","68"]
[null,null,null,null,null,null,null,null,null,null,null,"BALINES","27"]
[null,null,null,null,null,null,null,null,null,null,null,"BALINGHEM","62"]
[null,null,null,null,null,null,null,null,null,null,null,"BALIROS","64"]
[null,null,null,null,null,null,null,null,null,null,null,"BALIZAC","33"]
[null,null,null,null,null,null,null,null,null,null,null,"BALLAINVILLIERS","91"]
[null,null,null,null,null,null,null,null,null,null,null,"BALLAISON","74"]
[null,null,null,null,null,null,null,null,null,null,null,"BALLANCOURT-SUR-ESSONNE","91"]
[null,null,null,null,null,null,null,null,null,null,null,"BALLAN-MIRE","37"]
[null,null,null,null,null,null,null,null,null,null,null,"BALLEE","53"]
[null,null,null,null,null,null,null,null,null,null,null,"BALLEROY","14"]
[null,null,null,null,null,null,null,null,null,null,null,"BALLERSDORF","68"]
[null,null,null,null,null,null,null,null,null,null,null,"BALLON","72"]
[null,null,null,null,null,null,null,null,null,null,null,"BALLON","17"]
[null,null,null,null,null,null,null,null,null,null,null,"BALLOTS","53"]
[null,null,null,null,null,null,null,null,null,null,null,"BALLOY","77"]
[null,null,null,null,null,null,null,null,null,null,null,"BALMA","31"]
[null,null,null,null,null,null,null,null,null,null,null,"BALSAC","12"]
[null,null,null,null,null,null,null,null,null,null,null,"BALSCHWILLER","68"]
[null,null,null,null,null,null,null,null,null,null,null,"BALSIEGES","48"]
[null,null,null,null,null,null,null,null,null,null,null,"BALTZENHEIM","68"]
[null,null,null,null,null,null,null,null,null,null,null,"BALZAC","16"]
[null,null,null,null,null,null,null,null,null,null,null,"BAMBECQUE","59"]
[null,null,null,null,null,null,null,null,null,null,null,"BAMBIDERSTROFF","57"]
[null,null,null,null,null,null,null,null,null,null,null,"BANASSAC","48"]
[null,null,null,null,null,null,null,null,null,null,null,"BANCA","64"]
[null,null,null,null,null,null,null,null,null,null,null,"BAN-DE-LAVELINE","88"]
[null,null,null,null,null,null,null,null,null,null,null,"BAN-DE-SAPT","88"]
[null,null,null,null,null,null,null,null,null,null,null,"BANDOL","83"]
[null,null,null,null,null,null,null,null,null,null,null,"BANDRABOUA","976"]
[null,null,null,null,null,null,null,null,null,null,null,"BANDRELE","976"]
[null,null,null,null,null,null,null,null,null,null,null,"BANEINS","01"]
[null,null,null,null,null,null,null,null,null,null,null,"BANEUIL","24"]
[null,null,null,null,null,null,null,null,null,null,null,"BANGOR","56"]
[null,null,null,null,null,null,null,null,null,null,null,"BANNALEC","29"]
[null,null,null,null,null,null,null,null,null,null,null,"BANNANS","25"]
[null,null,null,null,null,null,null,null,null,null,null,"BANNAY","18"]
[null,null,null,null,null,null,null,null,null,null,null,"BANNE","07"]
[null,null,null,null,null,null,null,null,null,null,null,"BANNEGON","18"]
[null,null,null,null,null,null,null,null,null,null,null,"BANNES","52"]
[null,null,null,null,null,null,null,null,null,null,null,"BANNES","51"]
[null,null,null,null,null,null,null,null,null,null,null,"BANNEVILLE-SUR-AJON","14"]
[null,null,null,null,null,null,null,null,null,null,null,"BANNOST-VILLEGAGNON","77"]
[null,null,null,null,null,null,null,null,null,null,null,"BANON","04"]
[null,null,null,null,null,null,null,null,null,null,null,"BAN-SUR-MEURTHE-CLEFCY","88"]
[null,null,null,null,null,null,null,null,null,null,null,"BANTANGES","71"]
[null,null,null,null,null,null,null,null,null,null,null,"BANTEUX","59"]
[null,null,null,null,null,null,null,null,null,null,null,"BANTIGNY","59"]
[null,null,null,null,null,null,null,null,null,null,null,"BANTOUZELLE","59"]
[null,null,null,null,null,null,null,null,null,null,null,"BANTZENHEIM","68"]
[null,null,null,null,null,null,null,null,null,null,null,"BANVILLARS","90"]
[null,null,null,null,null,null,null,null,null,null,null,"BANVILLE","14"]
[null,null,null,null,null,null,null,null,null,null,null,"BANVOU","61"]
[null,null,null,null,null,null,null,null,null,null,null,"BANYULS-DELS-ASPRES","66"]
[null,null,null,null,null,null,null,null,null,null,null,"BANYULS-SUR-MER","66"]
[null,null,null,null,null,null,null,null,null,null,null,"BAONS-LE-COMTE","76"]
[null,null,null,null,null,null,null,null,null,null,null,"BAPAUME","62"]
[null,null,null,null,null,null,null,null,null,null,null,"BAR","19"]
[null,null,null,null,null,null,null,null,null,null,null,"BARACE","49"]
[null,null,null,null,null,null,null,null,null,null,null,"BARAIZE","36"]
[null,null,null,null,null,null,null,null,null,null,null,"BARALLE","62"]
[null,null,null,null,null,null,null,null,null,null,null,"BARAQUEVILLE","12"]
[null,null,null,null,null,null,null,null,null,null,null,"BARATIER","05"]
[null,null,null,null,null,null,null,null,null,null,null,"BARBAIRA","11"]
[null,null,null,null,null,null,null,null,null,null,null,"BARBASTE","47"]
[null,null,null,null,null,null,null,null,null,null,null,"BARBATRE","85"]
[null,null,null,null,null,null,null,null,null,null,null,"BARBAZAN","31"]
[null,null,null,null,null,null,null,null,null,null,null,"BARBAZAN-DEBAT","65"]
[null,null,null,null,null,null,null,null,null,null,null,"BARBECHAT","44"]
[null,null,null,null,null,null,null,null,null,null,null,"BARBENTANE","13"]
[null,null,null,null,null,null,null,null,null,null,null,"BARBERAZ","73"]
[null,null,null,null,null,null,null,null,null,null,null,"BARBEREY-SAINT-SULPICE","10"]
[null,null,null,null,null,null,null,null,null,null,null,"BARBERY","14"]
[null,null,null,null,null,null,null,null,null,null,null,"BARBERY","60"]
[null,null,null,null,null,null,null,null,null,null,null,"BARBEZIEUX-SAINT-HILAIRE","16"]
[null,null,null,null,null,null,null,null,null,null,null,"BARBIERES","26"]
[null,null,null,null,null,null,null,null,null,null,null,"BARBIREY-SUR-OUCHE","21"]
[null,null,null,null,null,null,null,null,null,null,null,"BARBIZON","77"]
[null,null,null,null,null,null,null,null,null,null,null,"BARBONNE-FAYEL","51"]
[null,null,null,null,null,null,null,null,null,null,null,"BARBONVILLE","54"]
[null,null,null,null,null,null,null,null,null,null,null,"BARBUISE","10"]
[null,null,null,null,null,null,null,null,null,null,null,"BARBY","73"]
[null,null,null,null,null,null,null,null,null,null,null,"BARBY","08"]
[null,null,null,null,null,null,null,null,null,null,null,"BARC","27"]
[null,null,null,null,null,null,null,null,null,null,null,"BARCELONNE","26"]
[null,null,null,null,null,null,null,null,null,null,null,"BARCELONNE-DU-GERS","32"]
[null,null,null,null,null,null,null,null,null,null,null,"BARCELONNETTE","04"]
[null,null,null,null,null,null,null,null,null,null,null,"BARCUS","64"]
[null,null,null,null,null,null,null,null,null,null,null,"BARD","42"]
[null,null,null,null,null,null,null,null,null,null,null,"BARDIGUES","82"]
[null,null,null,null,null,null,null,null,null,null,null,"BARDOS","64"]
[null,null,null,null,null,null,null,null,null,null,null,"BARDOUVILLE","76"]
[null,null,null,null,null,null,null,null,null,null,null,"BAREMBACH","67"]
[null,null,null,null,null,null,null,null,null,null,null,"BARENTIN","76"]
[null,null,null,null,null,null,null,null,null,null,null,"BARENTON","50"]
[null,null,null,null,null,null,null,null,null,null,null,"BARENTON-BUGNY","02"]
[null,null,null,null,null,null,null,null,null,null,null,"BARFLEUR","50"]
[null,null,null,null,null,null,null,null,null,null,null,"BARGEMON","83"]
[null,null,null,null,null,null,null,null,null,null,null,"BARGES","21"]
[null,null,null,null,null,null,null,null,null,null,null,"BARGNY","60"]
[null,null,null,null,null,null,null,null,null,null,null,"BARIE","33"]
[null,null,null,null,null,null,null,null,null,null,null,"BARINQUE","64"]
[null,null,null,null,null,null,null,null,null,null,null,"BARISEY-AU-PLAIN","54"]
[null,null,null,null,null,null,null,null,null,null,null,"BARISIS","02"]
[null,null,null,null,null,null,null,null,null,null,null,"BARJAC","30"]
[null,null,null,null,null,null,null,null,null,null,null,"BARJAC","48"]
[null,null,null,null,null,null,null,null,null,null,null,"BARJOLS","83"]
[null,null,null,null,null,null,null,null,null,null,null,"BARJOUVILLE","28"]
[null,null,null,null,null,null,null,null,null,null,null,"BAR-LE-DUC","55"]
[null,null,null,null,null,null,null,null,null,null,null,"BARLEUX","80"]
[null,null,null,null,null,null,null,null,null,null,null,"BARLIEU","18"]
[null,null,null,null,null,null,null,null,null,null,null,"BARLIN","62"]
[null,null,null,null,null,null,null,null,null,null,null,"BARNEVILLE-CARTERET","50"]
[null,null,null,null,null,null,null,null,null,null,null,"BARNEVILLE-SUR-SEINE","27"]
[null,null,null,null,null,null,null,null,null,null,null,"BARON","33"]
[null,null,null,null,null,null,null,null,null,null,null,"BARON","60"]
[null,null,null,null,null,null,null,null,null,null,null,"BARON","30"]
[null,null,null,null,null,null,null,null,null,null,null,"BARON","71"]
[null,null,null,null,null,null,null,null,null,null,null,"BARON-SUR-ODON","14"]
[null,null,null,null,null,null,null,null,null,null,null,"BARONVILLE","57"]
[null,null,null,null,null,null,null,null,null,null,null,"BAROVILLE","10"]
[null,null,null,null,null,null,null,null,null,null,null,"BARQUET","27"]
[null,null,null,null,null,null,null,null,null,null,null,"BARR","67"]
[null,null,null,null,null,null,null,null,null,null,null,"BARRAN","32"]
[null,null,null,null,null,null,null,null,null,null,null,"BARRAUX","38"]
[null,null,null,null,null,null,null,null,null,null,null,"BARREME","04"]
[null,null,null,null,null,null,null,null,null,null,null,"BARRET","16"]
[null,null,null,null,null,null,null,null,null,null,null,"BARRO","16"]
[null,null,null,null,null,null,null,null,null,null,null,"BARROU","37"]
[null,null,null,null,null,null,null,null,null,null,null,"BARRY-D'ISLEMADE","82"]
[null,null,null,null,null,null,null,null,null,null,null,"BARSAC","33"]
[null,null,null,null,null,null,null,null,null,null,null,"BARST","57"]
[null,null,null,null,null,null,null,null,null,null,null,"BAR-SUR-AUBE","10"]
[null,null,null,null,null,null,null,null,null,null,null,"BAR-SUR-SEINE","10"]
[null,null,null,null,null,null,null,null,null,null,null,"BART","25"]
[null,null,null,null,null,null,null,null,null,null,null,"BARTENHEIM","68"]
[null,null,null,null,null,null,null,null,null,null,null,"BARTRES","65"]
[null,null,null,null,null,null,null,null,null,null,null,"BARVILLE-EN-GATINAIS","45"]
[null,null,null,null,null,null,null,null,null,null,null,"BARZAN","17"]
[null,null,null,null,null,null,null,null,null,null,null,"BARZUN","64"]
[null,null,null,null,null,null,null,null,null,null,null,"BARZY-EN-THIERACHE","02"]
[null,null,null,null,null,null,null,null,null,null,null,"BARZY-SUR-MARNE","02"]
[null,null,null,null,null,null,null,null,null,null,null,"BASCONS","40"]
[null,null,null,null,null,null,null,null,null,null,null,"BAS-EN-BASSET","43"]
[null,null,null,null,null,null,null,null,null,null,null,"BAS-LIEU","59"]
[null,null,null,null,null,null,null,null,null,null,null,"BASLIEUX","54"]
[null,null,null,null,null,null,null,null,null,null,null,"BASLIEUX-LES-FISMES","51"]
[null,null,null,null,null,null,null,null,null,null,null,"BASLY","14"]
[null,null,null,null,null,null,null,null,null,null,null,"BAS-MAUCO","40"]
[null,null,null,null,null,null,null,null,null,null,null,"BASSAC","16"]
[null,null,null,null,null,null,null,null,null,null,null,"BASSAN","34"]
[null,null,null,null,null,null,null,null,null,null,null,"BASSE-GOULAINE","44"]
[null,null,null,null,null,null,null,null,null,null,null,"BASSE-HAM","57"]
[null,null,null,null,null,null,null,null,null,null,null,"BASSEMBERG","67"]
[null,null,null,null,null,null,null,null,null,null,null,"BASSENEVILLE","14"]
[null,null,null,null,null,null,null,null,null,null,null,"BASSENS","33"]
[null,null,null,null,null,null,null,null,null,null,null,"BASSENS","73"]
[null,null,null,null,null,null,null,null,null,null,null,"BASSE-POINTE","972"]
[null,null,null,null,null,null,null,null,null,null,null,"BASSE-RENTGEN","57"]
[null,null,null,null,null,null,null,null,null,null,null,"BASSES","86"]
[null,null,null,null,null,null,null,null,null,null,null,"BASSE-SUR-LE-RUPT","88"]
[null,null,null,null,null,null,null,null,null,null,null,"BASSE-TERRE","971"]
[null,null,null,null,null,null,null,null,null,null,null,"BASSEVELLE","77"]
[null,null,null,null,null,null,null,null,null,null,null,"BASSILLAC","24"]
[null,null,null,null,null,null,null,null,null,null,null,"BASSOU","89"]
[null,null,null,null,null,null,null,null,null,null,null,"BASSOUES","32"]
[null,null,null,null,null,null,null,null,null,null,null,"BASSUET","51"]
[null,null,null,null,null,null,null,null,null,null,null,"BASSUSSARRY","64"]
[null,null,null,null,null,null,null,null,null,null,null,"BASSY","74"]
[null,null,null,null,null,null,null,null,null,null,null,"BASTELICA","2A"]
[null,null,null,null,null,null,null,null,null,null,null,"BASTELICACCIA","2A"]
[null,null,null,null,null,null,null,null,null,null,null,"BASTENNES","40"]
[null,null,null,null,null,null,null,null,null,null,null,"BASTIA","2B"]
[null,null,null,null,null,null,null,null,null,null,null,"BATILLY","54"]
[null,null,null,null,null,null,null,null,null,null,null,"BATILLY-EN-GATINAIS","45"]
[null,null,null,null,null,null,null,null,null,null,null,"BATS","40"]
[null,null,null,null,null,null,null,null,null,null,null,"BATTENHEIM","68"]
[null,null,null,null,null,null,null,null,null,null,null,"BATZENDORF","67"]
[null,null,null,null,null,null,null,null,null,null,null,"BATZ-SUR-MER","44"]
[null,null,null,null,null,null,null,null,null,null,null,"BAUBIGNY","21"]
[null,null,null,null,null,null,null,null,null,null,null,"BAUD","56"]
[null,null,null,null,null,null,null,null,null,null,null,"BAUDEMONT","71"]
[null,null,null,null,null,null,null,null,null,null,null,"BAUDONCOURT","70"]
[null,null,null,null,null,null,null,null,null,null,null,"BAUDONVILLIERS","55"]
[null,null,null,null,null,null,null,null,null,null,null,"BAUDRE","50"]
[null,null,null,null,null,null,null,null,null,null,null,"BAUDREIX","64"]
[null,null,null,null,null,null,null,null,null,null,null,"BAUDRES","36"]
[null,null,null,null,null,null,null,null,null,null,null,"BAUDREVILLE","28"]
[null,null,null,null,null,null,null,null,null,null,null,"BAUDRICOURT","88"]
[null,null,null,null,null,null,null,null,null,null,null,"BAUDRIERES","71"]
[null,null,null,null,null,null,null,null,null,null,null,"BAUDUEN","83"]
[null,null,null,null,null,null,null,null,null,null,null,"BAUGE","49"]
[null,null,null,null,null,null,null,null,null,null,null,"BAUGY","18"]
[null,null,null,null,null,null,null,null,null,null,null,"BAUGY","71"]
[null,null,null,null,null,null,null,null,null,null,null,"BAUGY","60"]
[null,null,null,null,null,null,null,null,null,null,null,"BAULAY","70"]
[null,null,null,null,null,null,null,null,null,null,null,"BAULE","45"]
[null,null,null,null,null,null,null,null,null,null,null,"BAULNE","91"]
[null,null,null,null,null,null,null,null,null,null,null,"BAULNE-EN-BRIE","02"]
[null,null,null,null,null,null,null,null,null,null,null,"BAULON","35"]
[null,null,null,null,null,null,null,null,null,null,null,"BAUME-LES-DAMES","25"]
[null,null,null,null,null,null,null,null,null,null,null,"BAUNE","49"]
[null,null,null,null,null,null,null,null,null,null,null,"BAUPTE","50"]
[null,null,null,null,null,null,null,null,null,null,null,"BAURECH","33"]
[null,null,null,null,null,null,null,null,null,null,null,"BAUVIN","59"]
[null,null,null,null,null,null,null,null,null,null,null,"BAUZY","41"]
[null,null,null,null,null,null,null,null,null,null,null,"BAVANS","25"]
[null,null,null,null,null,null,null,null,null,null,null,"BAVAY","59"]
[null,null,null,null,null,null,null,null,null,null,null,"BAVENT","14"]
[null,null,null,null,null,null,null,null,null,null,null,"BAVERANS","39"]
[null,null,null,null,null,null,null,null,null,null,null,"BAVILLIERS","90"]
[null,null,null,null,null,null,null,null,null,null,null,"BAVINCHOVE","59"]
[null,null,null,null,null,null,null,null,null,null,null,"BAVINCOURT","62"]
[null,null,null,null,null,null,null,null,null,null,null,"BAYAC","24"]
[null,null,null,null,null,null,null,null,null,null,null,"BAYARD-SUR-MARNE","52"]
[null,null,null,null,null,null,null,null,null,null,null,"BAYAS","33"]
[null,null,null,null,null,null,null,null,null,null,null,"BAYE","29"]
[null,null,null,null,null,null,null,null,null,null,null,"BAYE","51"]
[null,null,null,null,null,null,null,null,null,null,null,"BAYECOURT","88"]
[null,null,null,null,null,null,null,null,null,null,null,"BAYEL","10"]
[null,null,null,null,null,null,null,null,null,null,null,"BAYENGHEM-LES-EPERLECQUES","62"]
[null,null,null,null,null,null,null,null,null,null,null,"BAYENGHEM-LES-SENINGHEM","62"]
[null,null,null,null,null,null,null,null,null,null,null,"BAYET","03"]
[null,null,null,null,null,null,null,null,null,null,null,"BAYEUX","14"]
[null,null,null,null,null,null,null,null,null,null,null,"BAYON","54"]
[null,null,null,null,null,null,null,null,null,null,null,"BAYONNE","64"]
[null,null,null,null,null,null,null,null,null,null,null,"BAYONS","04"]
[null,null,null,null,null,null,null,null,null,null,null,"BAYON-SUR-GIRONDE","33"]
[null,null,null,null,null,null,null,null,null,null,null,"BAYONVILLERS","80"]
[null,null,null,null,null,null,null,null,null,null,null,"BAYONVILLE-SUR-MAD","54"]
[null,null,null,null,null,null,null,null,null,null,null,"BAZAINVILLE","78"]
[null,null,null,null,null,null,null,null,null,null,null,"BAZANCOURT","51"]
[null,null,null,null,null,null,null,null,null,null,null,"BAZARNES","89"]
[null,null,null,null,null,null,null,null,null,null,null,"BAZAS","33"]
[null,null,null,null,null,null,null,null,null,null,null,"BAZEILLES","08"]
[null,null,null,null,null,null,null,null,null,null,null,"BAZELAT","23"]
[null,null,null,null,null,null,null,null,null,null,null,"BAZEMONT","78"]
[null,null,null,null,null,null,null,null,null,null,null,"BAZENS","47"]
[null,null,null,null,null,null,null,null,null,null,null,"BAZET","65"]
[null,null,null,null,null,null,null,null,null,null,null,"BAZICOURT","60"]
[null,null,null,null,null,null,null,null,null,null,null,"BAZIEGE","31"]
[null,null,null,null,null,null,null,null,null,null,null,"BAZILLAC","65"]
[null,null,null,null,null,null,null,null,null,null,null,"BAZINCOURT-SUR-EPTE","27"]
[null,null,null,null,null,null,null,null,null,null,null,"BAZINGHEN","62"]
[null,null,null,null,null,null,null,null,null,null,null,"BAZINVAL","76"]
[null,null,null,null,null,null,null,null,null,null,null,"BAZOCHES-AU-HOULME","61"]
[null,null,null,null,null,null,null,null,null,null,null,"BAZOCHES-EN-DUNOIS","28"]
[null,null,null,null,null,null,null,null,null,null,null,"BAZOCHES-LES-BRAY","77"]
[null,null,null,null,null,null,null,null,null,null,null,"BAZOCHES-LES-GALLERANDES","45"]
[null,null,null,null,null,null,null,null,null,null,null,"BAZOCHES-LES-HAUTES","28"]
[null,null,null,null,null,null,null,null,null,null,null,"BAZOCHES-SUR-GUYONNE","78"]
[null,null,null,null,null,null,null,null,null,null,null,"BAZOCHES-SUR-HOENE","61"]
[null,null,null,null,null,null,null,null,null,null,null,"BAZOCHES-SUR-LE-BETZ","45"]
[null,null,null,null,null,null,null,null,null,null,null,"BAZOCHES-SUR-VESLES","02"]
[null,null,null,null,null,null,null,null,null,null,null,"BAZOGES-EN-PAILLERS","85"]
[null,null,null,null,null,null,null,null,null,null,null,"BAZOGES-EN-PAREDS","85"]
[null,null,null,null,null,null,null,null,null,null,null,"BAZOILLES-SUR-MEUSE","88"]
[null,null,null,null,null,null,null,null,null,null,null,"BAZOLLES","58"]
[null,null,null,null,null,null,null,null,null,null,null,"BAZONCOURT","57"]
[null,null,null,null,null,null,null,null,null,null,null,"BAZOUGERS","53"]
[null,null,null,null,null,null,null,null,null,null,null,"BAZOUGES-LA-PEROUSE","35"]
[null,null,null,null,null,null,null,null,null,null,null,"BAZOUGES-SUR-LE-LOIR","72"]
[null,null,null,null,null,null,null,null,null,null,null,"BAZUEL","59"]
[null,null,null,null,null,null,null,null,null,null,null,"BAZUS","31"]
[null,null,null,null,null,null,null,null,null,null,null,"BEARD-GEOVREISSIAT","01"]
[null,null,null,null,null,null,null,null,null,null,null,"BEAUBEC-LA-ROSIERE","76"]
[null,null,null,null,null,null,null,null,null,null,null,"BEAUBERY","71"]
[null,null,null,null,null,null,null,null,null,null,null,"BEAUBRAY","27"]
[null,null,null,null,null,null,null,null,null,null,null,"BEAUCAIRE","30"]
[null,null,null,null,null,null,null,null,null,null,null,"BEAUCAIRE","32"]
[null,null,null,null,null,null,null,null,null,null,null,"BEAUCAMPS-LE-VIEUX","80"]
[null,null,null,null,null,null,null,null,null,null,null,"BEAUCAMPS-LIGNY","59"]
[null,null,null,null,null,null,null,null,null,null,null,"BEAUCE","35"]
[null,null,null,null,null,null,null,null,null,null,null,"BEAUCENS","65"]
[null,null,null,null,null,null,null,null,null,null,null,"BEAUCHALOT","31"]
[null,null,null,null,null,null,null,null,null,null,null,"BEAUCHAMP","95"]
[null,null,null,null,null,null,null,null,null,null,null,"BEAUCHAMPS","80"]
[null,null,null,null,null,null,null,null,null,null,null,"BEAUCHAMPS","50"]
[null,null,null,null,null,null,null,null,null,null,null,"BEAUCHAMPS-SUR-HUILLARD","45"]
[null,null,null,null,null,null,null,null,null,null,null,"BEAUCHASTEL","07"]
[null,null,null,null,null,null,null,null,null,null,null,"BEAUCHE","28"]
[null,null,null,null,null,null,null,null,null,null,null,"BEAUCHERY-SAINT-MARTIN","77"]
[null,null,null,null,null,null,null,null,null,null,null,"BEAUCOURT","90"]
[null,null,null,null,null,null,null,null,null,null,null,"BEAUCOUZE","49"]
[null,null,null,null,null,null,null,null,null,null,null,"BEAUCROISSANT","38"]
[null,null,null,null,null,null,null,null,null,null,null,"BEAUDEAN","65"]
[null,null,null,null,null,null,null,null,null,null,null,"BEAUDIGNIES","59"]
[null,null,null,null,null,null,null,null,null,null,null,"BEAUFAI","61"]
[null,null,null,null,null,null,null,null,null,null,null,"BEAUFAY","72"]
[null,null,null,null,null,null,null,null,null,null,null,"BEAUFORT","73"]
[null,null,null,null,null,null,null,null,null,null,null,"BEAUFORT","39"]
[null,null,null,null,null,null,null,null,null,null,null,"BEAUFORT","59"]
[null,null,null,null,null,null,null,null,null,null,null,"BEAUFORT","38"]
[null,null,null,null,null,null,null,null,null,null,null,"BEAUFORT","31"]
[null,null,null,null,null,null,null,null,null,null,null,"BEAUFORT-BLAVINCOURT","62"]
[null,null,null,null,null,null,null,null,null,null,null,"BEAUFORT-EN-VALLEE","49"]
[null,null,null,null,null,null,null,null,null,null,null,"BEAUFORT-SUR-GERVANNE","26"]
[null,null,null,null,null,null,null,null,null,null,null,"BEAUFOU","85"]
[null,null,null,null,null,null,null,null,null,null,null,"BEAUFOUR-DRUVAL","14"]
[null,null,null,null,null,null,null,null,null,null,null,"BEAUGAS","47"]
[null,null,null,null,null,null,null,null,null,null,null,"BEAUGEAY","17"]
[null,null,null,null,null,null,null,null,null,null,null,"BEAUGENCY","45"]
[null,null,null,null,null,null,null,null,null,null,null,"BEAUJEU","69"]
[null,null,null,null,null,null,null,null,null,null,null,"BEAUJEU-SAINT-VALLIER-PIERREJUX-ET-QUITTEUR","70"]
[null,null,null,null,null,null,null,null,null,null,null,"BEAULIEU","34"]
[null,null,null,null,null,null,null,null,null,null,null,"BEAULIEU","43"]
[null,null,null,null,null,null,null,null,null,null,null,"BEAULIEU","38"]
[null,null,null,null,null,null,null,null,null,null,null,"BEAULIEU","63"]
[null,null,null,null,null,null,null,null,null,null,null,"BEAULIEU","07"]
[null,null,null,null,null,null,null,null,null,null,null,"BEAULIEU-LES-FONTAINES","60"]
[null,null,null,null,null,null,null,null,null,null,null,"BEAULIEU-LES-LOCHES","37"]
[null,null,null,null,null,null,null,null,null,null,null,"BEAULIEU-SOUS-LA-ROCHE","85"]
[null,null,null,null,null,null,null,null,null,null,null,"BEAULIEU-SOUS-PARTHENAY","79"]
[null,null,null,null,null,null,null,null,null,null,null,"BEAULIEU-SUR-DORDOGNE","19"]
[null,null,null,null,null,null,null,null,null,null,null,"BEAULIEU-SUR-LAYON","49"]
[null,null,null,null,null,null,null,null,null,null,null,"BEAULIEU-SUR-LOIRE","45"]
[null,null,null,null,null,null,null,null,null,null,null,"BEAULIEU-SUR-MER","06"]
[null,null,null,null,null,null,null,null,null,null,null,"BEAULIEU-SUR-OUDON","53"]
[null,null,null,null,null,null,null,null,null,null,null,"BEAULIEU-SUR-SONNETTE","16"]
[null,null,null,null,null,null,null,null,null,null,null,"BEAULON","03"]
[null,null,null,null,null,null,null,null,null,null,null,"BEAUMARCHES","32"]
[null,null,null,null,null,null,null,null,null,null,null,"BEAUMERIE-SAINT-MARTIN","62"]
[null,null,null,null,null,null,null,null,null,null,null,"BEAUMES-DE-VENISE","84"]
[null,null,null,null,null,null,null,null,null,null,null,"BEAUMESNIL","27"]
[null,null,null,null,null,null,null,null,null,null,null,"BEAUMETZ-LES-CAMBRAI","62"]
[null,null,null,null,null,null,null,null,null,null,null,"BEAUMETZ-LES-LOGES","62"]
[null,null,null,null,null,null,null,null,null,null,null,"BEAUMONT","63"]
[null,null,null,null,null,null,null,null,null,null,null,"BEAUMONT","74"]
[null,null,null,null,null,null,null,null,null,null,null,"BEAUMONT","86"]
[null,null,null,null,null,null,null,null,null,null,null,"BEAUMONT","89"]
[null,null,null,null,null,null,null,null,null,null,null,"BEAUMONT","43"]
[null,null,null,null,null,null,null,null,null,null,null,"BEAUMONT-DE-LOMAGNE","82"]
[null,null,null,null,null,null,null,null,null,null,null,"BEAUMONT-DE-PERTUIS","84"]
[null,null,null,null,null,null,null,null,null,null,null,"BEAUMONT-DU-GATINAIS","77"]
[null,null,null,null,null,null,null,null,null,null,null,"BEAUMONT-DU-PERIGORD","24"]
[null,null,null,null,null,null,null,null,null,null,null,"BEAUMONT-DU-VENTOUX","84"]
[null,null,null,null,null,null,null,null,null,null,null,"BEAUMONTEL","27"]
[null,null,null,null,null,null,null,null,null,null,null,"BEAUMONT-EN-ARGONNE","08"]
[null,null,null,null,null,null,null,null,null,null,null,"BEAUMONT-EN-AUGE","14"]
[null,null,null,null,null,null,null,null,null,null,null,"BEAUMONT-EN-CAMBRESIS","59"]
[null,null,null,null,null,null,null,null,null,null,null,"BEAUMONT-EN-VERON","37"]
[null,null,null,null,null,null,null,null,null,null,null,"BEAUMONT-HAGUE","50"]
[null,null,null,null,null,null,null,null,null,null,null,"BEAUMONT-LA-RONCE","37"]
[null,null,null,null,null,null,null,null,null,null,null,"BEAUMONT-LE-ROGER","27"]
[null,null,null,null,null,null,null,null,null,null,null,"BEAUMONT-LES-AUTELS","28"]
[null,null,null,null,null,null,null,null,null,null,null,"BEAUMONT-LES-NONAINS","60"]
[null,null,null,null,null,null,null,null,null,null,null,"BEAUMONT-LES-VALENCE","26"]
[null,null,null,null,null,null,null,null,null,null,null,"BEAUMONT-MONTEUX","26"]
[null,null,null,null,null,null,null,null,null,null,null,"BEAUMONT-PIED-DE-BOEUF","72"]
[null,null,null,null,null,null,null,null,null,null,null,"BEAUMONT-SUR-DEME","72"]
[null,null,null,null,null,null,null,null,null,null,null,"BEAUMONT-SUR-GROSNE","71"]
[null,null,null,null,null,null,null,null,null,null,null,"BEAUMONT-SUR-LEZE","31"]
[null,null,null,null,null,null,null,null,null,null,null,"BEAUMONT-SUR-OISE","95"]
[null,null,null,null,null,null,null,null,null,null,null,"BEAUMONT-SUR-SARTHE","72"]
[null,null,null,null,null,null,null,null,null,null,null,"BEAUMONT-SUR-VESLE","51"]
[null,null,null,null,null,null,null,null,null,null,null,"BEAUMONT-VILLAGE","37"]
[null,null,null,null,null,null,null,null,null,null,null,"BEAUMOTTE-AUBERTANS","70"]
[null,null,null,null,null,null,null,null,null,null,null,"BEAUMOTTE-LES-PIN","70"]
[null,null,null,null,null,null,null,null,null,null,null,"BEAUNE","21"]
[null,null,null,null,null,null,null,null,null,null,null,"BEAUNE-D'ALLIER","03"]
[null,null,null,null,null,null,null,null,null,null,null,"BEAUNE-LA-ROLANDE","45"]
[null,null,null,null,null,null,null,null,null,null,null,"BEAUPONT","01"]
[null,null,null,null,null,null,null,null,null,null,null,"BEAUPOUYET","24"]
[null,null,null,null,null,null,null,null,null,null,null,"BEAUPREAU","49"]
[null,null,null,null,null,null,null,null,null,null,null,"BEAUPUY","47"]
[null,null,null,null,null,null,null,null,null,null,null,"BEAUPUY","31"]
[null,null,null,null,null,null,null,null,null,null,null,"BEAUPUY","82"]
[null,null,null,null,null,null,null,null,null,null,null,"BEAUQUESNE","80"]
[null,null,null,null,null,null,null,null,null,null,null,"BEAURAINS","62"]
[null,null,null,null,null,null,null,null,null,null,null,"BEAURAINS-LES-NOYON","60"]
[null,null,null,null,null,null,null,null,null,null,null,"BEAURAINVILLE","62"]
[null,null,null,null,null,null,null,null,null,null,null,"BEAURECUEIL","13"]
[null,null,null,null,null,null,null,null,null,null,null,"BEAUREGARD","01"]
[null,null,null,null,null,null,null,null,null,null,null,"BEAUREGARD-BARET","26"]
[null,null,null,null,null,null,null,null,null,null,null,"BEAUREGARD-DE-TERRASSON","24"]
[null,null,null,null,null,null,null,null,null,null,null,"BEAUREGARD-ET-BASSAC","24"]
[null,null,null,null,null,null,null,null,null,null,null,"BEAUREGARD-L'EVEQUE","63"]
[null,null,null,null,null,null,null,null,null,null,null,"BEAUREGARD-VENDON","63"]
[null,null,null,null,null,null,null,null,null,null,null,"BEAUREPAIRE","38"]
[null,null,null,null,null,null,null,null,null,null,null,"BEAUREPAIRE","85"]
[null,null,null,null,null,null,null,null,null,null,null,"BEAUREPAIRE","76"]
[null,null,null,null,null,null,null,null,null,null,null,"BEAUREPAIRE-EN-BRESSE","71"]
[null,null,null,null,null,null,null,null,null,null,null,"BEAUREPAIRE-SUR-SAMBRE","59"]
[null,null,null,null,null,null,null,null,null,null,null,"BEAUREVOIR","02"]
[null,null,null,null,null,null,null,null,null,null,null,"BEAURIEUX","02"]
[null,null,null,null,null,null,null,null,null,null,null,"BEAURONNE","24"]
[null,null,null,null,null,null,null,null,null,null,null,"BEAUSEMBLANT","26"]
[null,null,null,null,null,null,null,null,null,null,null,"BEAUSITE","55"]
[null,null,null,null,null,null,null,null,null,null,null,"BEAUSOLEIL","06"]
[null,null,null,null,null,null,null,null,null,null,null,"BEAUSSAIS","79"]
[null,null,null,null,null,null,null,null,null,null,null,"BEAUSSAULT","76"]
[null,null,null,null,null,null,null,null,null,null,null,"BEAUSSE","49"]
[null,null,null,null,null,null,null,null,null,null,null,"BEAUTHEIL","77"]
[null,null,null,null,null,null,null,null,null,null,null,"BEAUTIRAN","33"]
[null,null,null,null,null,null,null,null,null,null,null,"BEAUTOR","02"]
[null,null,null,null,null,null,null,null,null,null,null,"BEAUVAIN","61"]
[null,null,null,null,null,null,null,null,null,null,null,"BEAUVAIS","60"]
[null,null,null,null,null,null,null,null,null,null,null,"BEAUVAIS-SUR-MATHA","17"]
[null,null,null,null,null,null,null,null,null,null,null,"BEAUVAIS-SUR-TESCOU","81"]
[null,null,null,null,null,null,null,null,null,null,null,"BEAUVAL","80"]
[null,null,null,null,null,null,null,null,null,null,null,"BEAUVAL-EN-CAUX","76"]
[null,null,null,null,null,null,null,null,null,null,null,"BEAUVALLON","26"]
[null,null,null,null,null,null,null,null,null,null,null,"BEAUVAU","49"]
[null,null,null,null,null,null,null,null,null,null,null,"BEAUVEZER","04"]
[null,null,null,null,null,null,null,null,null,null,null,"BEAUVILLE","47"]
[null,null,null,null,null,null,null,null,null,null,null,"BEAUVILLIERS","28"]
[null,null,null,null,null,null,null,null,null,null,null,"BEAUVOIR","50"]
[null,null,null,null,null,null,null,null,null,null,null,"BEAUVOIR","89"]
[null,null,null,null,null,null,null,null,null,null,null,"BEAUVOIR","60"]
[null,null,null,null,null,null,null,null,null,null,null,"BEAUVOIR-DE-MARC","38"]
[null,null,null,null,null,null,null,null,null,null,null,"BEAUVOIR-EN-LYONS","76"]
[null,null,null,null,null,null,null,null,null,null,null,"BEAUVOIR-SUR-MER","85"]
[null,null,null,null,null,null,null,null,null,null,null,"BEAUVOIR-SUR-NIORT","79"]
[null,null,null,null,null,null,null,null,null,null,null,"BEAUVOIR-WAVANS","62"]
[null,null,null,null,null,null,null,null,null,null,null,"BEAUVOIS-EN-CAMBRESIS","59"]
[null,null,null,null,null,null,null,null,null,null,null,"BEAUVOIS-EN-VERMANDOIS","02"]
[null,null,null,null,null,null,null,null,null,null,null,"BEAUVOISIN","30"]
[null,null,null,null,null,null,null,null,null,null,null,"BEAUX","43"]
[null,null,null,null,null,null,null,null,null,null,null,"BEAUZAC","43"]
[null,null,null,null,null,null,null,null,null,null,null,"BEAUZELLE","31"]
[null,null,null,null,null,null,null,null,null,null,null,"BEBLENHEIM","68"]
[null,null,null,null,null,null,null,null,null,null,null,"BEC-DE-MORTAGNE","76"]
[null,null,null,null,null,null,null,null,null,null,null,"BECELEUF","79"]
[null,null,null,null,null,null,null,null,null,null,null,"BECHEREL","35"]
[null,null,null,null,null,null,null,null,null,null,null,"BECHY","57"]
[null,null,null,null,null,null,null,null,null,null,null,"BECON-LES-GRANITS","49"]
[null,null,null,null,null,null,null,null,null,null,null,"BECOURT","62"]
[null,null,null,null,null,null,null,null,null,null,null,"BECQUIGNY","02"]
[null,null,null,null,null,null,null,null,null,null,null,"BEDARIEUX","34"]
[null,null,null,null,null,null,null,null,null,null,null,"BEDARRIDES","84"]
[null,null,null,null,null,null,null,null,null,null,null,"BEDEE","35"]
[null,null,null,null,null,null,null,null,null,null,null,"BEDENAC","17"]
[null,null,null,null,null,null,null,null,null,null,null,"BEDOIN","84"]
[null,null,null,null,null,null,null,null,null,null,null,"BEDOUES","48"]
[null,null,null,null,null,null,null,null,null,null,null,"BEDOUS","64"]
[null,null,null,null,null,null,null,null,null,null,null,"BEDUER","46"]
[null,null,null,null,null,null,null,null,null,null,null,"BEFFES","18"]
[null,null,null,null,null,null,null,null,null,null,null,"BEGAAR","40"]
[null,null,null,null,null,null,null,null,null,null,null,"BEGADAN","33"]
[null,null,null,null,null,null,null,null,null,null,null,"BEGANNE","56"]
[null,null,null,null,null,null,null,null,null,null,null,"BEGARD","22"]
[null,null,null,null,null,null,null,null,null,null,null,"BEGLES","33"]
[null,null,null,null,null,null,null,null,null,null,null,"BEGROLLES-EN-MAUGES","49"]
[null,null,null,null,null,null,null,null,null,null,null,"BEGUEY","33"]
[null,null,null,null,null,null,null,null,null,null,null,"BEGUIOS","64"]
[null,null,null,null,null,null,null,null,null,null,null,"BEHASQUE-LAPISTE","64"]
[null,null,null,null,null,null,null,null,null,null,null,"BEHEN","80"]
[null,null,null,null,null,null,null,null,null,null,null,"BEHENCOURT","80"]
[null,null,null,null,null,null,null,null,null,null,null,"BEHONNE","55"]
[null,null,null,null,null,null,null,null,null,null,null,"BEHOUST","78"]
[null,null,null,null,null,null,null,null,null,null,null,"BEHREN-LES-FORBACH","57"]
[null,null,null,null,null,null,null,null,null,null,null,"BEIGNON","56"]
[null,null,null,null,null,null,null,null,null,null,null,"BEILLE","72"]
[null,null,null,null,null,null,null,null,null,null,null,"BEINE","89"]
[null,null,null,null,null,null,null,null,null,null,null,"BEINE-NAUROY","51"]
[null,null,null,null,null,null,null,null,null,null,null,"BEINHEIM","67"]
[null,null,null,null,null,null,null,null,null,null,null,"BEIRE-LE-CHATEL","21"]
[null,null,null,null,null,null,null,null,null,null,null,"BEIRE-LE-FORT","21"]
[null,null,null,null,null,null,null,null,null,null,null,"BELABRE","36"]
[null,null,null,null,null,null,null,null,null,null,null,"BELAN-SUR-OURCE","21"]
[null,null,null,null,null,null,null,null,null,null,null,"BELARGA","34"]
[null,null,null,null,null,null,null,null,null,null,null,"BELBERAUD","31"]
[null,null,null,null,null,null,null,null,null,null,null,"BELBEUF","76"]
[null,null,null,null,null,null,null,null,null,null,null,"BELCAIRE","11"]
[null,null,null,null,null,null,null,null,null,null,null,"BELCODENE","13"]
[null,null,null,null,null,null,null,null,null,null,null,"BELESTA","09"]
[null,null,null,null,null,null,null,null,null,null,null,"BELFORT","90"]
[null,null,null,null,null,null,null,null,null,null,null,"BELFORT-DU-QUERCY","46"]
[null,null,null,null,null,null,null,null,null,null,null,"BELGEARD","53"]
[null,null,null,null,null,null,null,null,null,null,null,"BELGENTIER","83"]
[null,null,null,null,null,null,null,null,null,null,null,"BELGODERE","2B"]
[null,null,null,null,null,null,null,null,null,null,null,"BELHOMERT-GUEHOUVILLE","28"]
[null,null,null,null,null,null,null,null,null,null,null,"BELIGNEUX","01"]
[null,null,null,null,null,null,null,null,null,null,null,"BELIN-BELIET","33"]
[null,null,null,null,null,null,null,null,null,null,null,"BELLAC","87"]
[null,null,null,null,null,null,null,null,null,null,null,"BELLAING","59"]
[null,null,null,null,null,null,null,null,null,null,null,"BELLANCOURT","80"]
[null,null,null,null,null,null,null,null,null,null,null,"BELLEAU","54"]
[null,null,null,null,null,null,null,null,null,null,null,"BELLEBRUNE","62"]
[null,null,null,null,null,null,null,null,null,null,null,"BELLECHAUME","89"]
[null,null,null,null,null,null,null,null,null,null,null,"BELLECOMBE-EN-BAUGES","73"]
[null,null,null,null,null,null,null,null,null,null,null,"BELLE-EGLISE","60"]
[null,null,null,null,null,null,null,null,null,null,null,"BELLE-ET-HOULLEFORT","62"]
[null,null,null,null,null,null,null,null,null,null,null,"BELLEFOND","21"]
[null,null,null,null,null,null,null,null,null,null,null,"BELLEFONTAINE","972"]
[null,null,null,null,null,null,null,null,null,null,null,"BELLEFONTAINE","88"]
[null,null,null,null,null,null,null,null,null,null,null,"BELLEFONTAINE","39"]
[null,null,null,null,null,null,null,null,null,null,null,"BELLEFONTAINE","95"]
[null,null,null,null,null,null,null,null,null,null,null,"BELLEGARDE","30"]
[null,null,null,null,null,null,null,null,null,null,null,"BELLEGARDE","45"]
[null,null,null,null,null,null,null,null,null,null,null,"BELLEGARDE","81"]
[null,null,null,null,null,null,null,null,null,null,null,"BELLEGARDE-EN-FOREZ","42"]
[null,null,null,null,null,null,null,null,null,null,null,"BELLEGARDE-EN-MARCHE","23"]
[null,null,null,null,null,null,null,null,null,null,null,"BELLEGARDE-POUSSIEU","38"]
[null,null,null,null,null,null,null,null,null,null,null,"BELLEGARDE-SUR-VALSERINE","01"]
[null,null,null,null,null,null,null,null,null,null,null,"BELLEHERBE","25"]
[null,null,null,null,null,null,null,null,null,null,null,"BELLE-ISLE-EN-TERRE","22"]
[null,null,null,null,null,null,null,null,null,null,null,"BELLEME","61"]
[null,null,null,null,null,null,null,null,null,null,null,"BELLENAVES","03"]
[null,null,null,null,null,null,null,null,null,null,null,"BELLENCOMBRE","76"]
[null,null,null,null,null,null,null,null,null,null,null,"BELLENEUVE","21"]
[null,null,null,null,null,null,null,null,null,null,null,"BELLENGLISE","02"]
[null,null,null,null,null,null,null,null,null,null,null,"BELLENGREVILLE","14"]
[null,null,null,null,null,null,null,null,null,null,null,"BELLENGREVILLE","76"]
[null,null,null,null,null,null,null,null,null,null,null,"BELLENTRE","73"]
[null,null,null,null,null,null,null,null,null,null,null,"BELLERAY","55"]
[null,null,null,null,null,null,null,null,null,null,null,"BELLERIVE-SUR-ALLIER","03"]
[null,null,null,null,null,null,null,null,null,null,null,"BELLEROCHE","42"]
[null,null,null,null,null,null,null,null,null,null,null,"BELLES-FORETS","57"]
[null,null,null,null,null,null,null,null,null,null,null,"BELLEU","02"]
[null,null,null,null,null,null,null,null,null,null,null,"BELLEUSE","80"]
[null,null,null,null,null,null,null,null,null,null,null,"BELLEVAUX","74"]
[null,null,null,null,null,null,null,null,null,null,null,"BELLEVESVRE","71"]
[null,null,null,null,null,null,null,null,null,null,null,"BELLEVILLE","69"]
[null,null,null,null,null,null,null,null,null,null,null,"BELLEVILLE","54"]
[null,null,null,null,null,null,null,null,null,null,null,"BELLEVILLE-EN-CAUX","76"]
[null,null,null,null,null,null,null,null,null,null,null,"BELLEVILLE-ET-CHATILLON-SUR-BAR","08"]
[null,null,null,null,null,null,null,null,null,null,null,"BELLEVILLE-SUR-LOIRE","18"]
[null,null,null,null,null,null,null,null,null,null,null,"BELLEVILLE-SUR-MER","76"]
[null,null,null,null,null,null,null,null,null,null,null,"BELLEVILLE-SUR-MEUSE","55"]
[null,null,null,null,null,null,null,null,null,null,null,"BELLEVILLE-SUR-VIE","85"]
[null,null,null,null,null,null,null,null,null,null,null,"BELLEVUE-LA-MONTAGNE","43"]
[null,null,null,null,null,null,null,null,null,null,null,"BELLEY","01"]
[null,null,null,null,null,null,null,null,null,null,null,"BELLEYDOUX","01"]
[null,null,null,null,null,null,null,null,null,null,null,"BELLICOURT","02"]
[null,null,null,null,null,null,null,null,null,null,null,"BELLIGNAT","01"]
[null,null,null,null,null,null,null,null,null,null,null,"BELLIGNE","44"]
[null,null,null,null,null,null,null,null,null,null,null,"BELLIGNIES","59"]
[null,null,null,null,null,null,null,null,null,null,null,"BELLOCQ","64"]
[null,null,null,null,null,null,null,null,null,null,null,"BELLONNE","62"]
[null,null,null,null,null,null,null,null,null,null,null,"BELLOT","77"]
[null,null,null,null,null,null,null,null,null,null,null,"BELLOU-EN-HOULME","61"]
[null,null,null,null,null,null,null,null,null,null,null,"BELLOU-SUR-HUISNE","61"]
[null,null,null,null,null,null,null,null,null,null,null,"BELLOY-EN-FRANCE","95"]
[null,null,null,null,null,null,null,null,null,null,null,"BELLOY-SUR-SOMME","80"]
[null,null,null,null,null,null,null,null,null,null,null,"BELMESNIL","76"]
[null,null,null,null,null,null,null,null,null,null,null,"BELMONT","38"]
[null,null,null,null,null,null,null,null,null,null,null,"BELMONT-BRETENOUX","46"]
[null,null,null,null,null,null,null,null,null,null,null,"BELMONT-D'AZERGUES","69"]
[null,null,null,null,null,null,null,null,null,null,null,"BELMONT-DE-LA-LOIRE","42"]
[null,null,null,null,null,null,null,null,null,null,null,"BELMONT-LUTHEZIEU","01"]
[null,null,null,null,null,null,null,null,null,null,null,"BELMONT-SUR-BUTTANT","88"]
[null,null,null,null,null,null,null,null,null,null,null,"BELMONT-SUR-RANCE","12"]
[null,null,null,null,null,null,null,null,null,null,null,"BELMONT-TRAMONET","73"]
[null,null,null,null,null,null,null,null,null,null,null,"BELPECH","11"]
[null,null,null,null,null,null,null,null,null,null,null,"BELRUPT-EN-VERDUNOIS","55"]
[null,null,null,null,null,null,null,null,null,null,null,"BELUS","40"]
[null,null,null,null,null,null,null,null,null,null,null,"BELVAL","50"]
[null,null,null,null,null,null,null,null,null,null,null,"BELVEDERE","06"]
[null,null,null,null,null,null,null,null,null,null,null,"BELVES","24"]
[null,null,null,null,null,null,null,null,null,null,null,"BELVES-DE-CASTILLON","33"]
[null,null,null,null,null,null,null,null,null,null,null,"BELVEZE-DU-RAZES","11"]
[null,null,null,null,null,null,null,null,null,null,null,"BELVIANES-ET-CAVIRAC","11"]
[null,null,null,null,null,null,null,null,null,null,null,"BELZ","56"]
[null,null,null,null,null,null,null,null,null,null,null,"BEMECOURT","27"]
[null,null,null,null,null,null,null,null,null,null,null,"BENAC","65"]
[null,null,null,null,null,null,null,null,null,null,null,"BENAGUES","09"]
[null,null,null,null,null,null,null,null,null,null,null,"BENAIS","37"]
[null,null,null,null,null,null,null,null,null,null,null,"BENAMENIL","54"]
[null,null,null,null,null,null,null,null,null,null,null,"BENASSAY","86"]
[null,null,null,null,null,null,null,null,null,null,null,"BENAYES","19"]
[null,null,null,null,null,null,null,null,null,null,null,"BENDEJUN","06"]
[null,null,null,null,null,null,null,null,null,null,null,"BENEJACQ","64"]
[null,null,null,null,null,null,null,null,null,null,null,"BENERVILLE-SUR-MER","14"]
[null,null,null,null,null,null,null,null,null,null,null,"BENESSE-LES-DAX","40"]
[null,null,null,null,null,null,null,null,null,null,null,"BENESSE-MAREMNE","40"]
[null,null,null,null,null,null,null,null,null,null,null,"BENEST","16"]
[null,null,null,null,null,null,null,null,null,null,null,"BENESTROFF","57"]
[null,null,null,null,null,null,null,null,null,null,null,"BENET","85"]
[null,null,null,null,null,null,null,null,null,null,null,"BENEVENT-ET-CHARBILLAC","05"]
[null,null,null,null,null,null,null,null,null,null,null,"BENEVENT-L'ABBAYE","23"]
[null,null,null,null,null,null,null,null,null,null,null,"BENFELD","67"]
[null,null,null,null,null,null,null,null,null,null,null,"BENGY-SUR-CRAON","18"]
[null,null,null,null,null,null,null,null,null,null,null,"BENIFONTAINE","62"]
[null,null,null,null,null,null,null,null,null,null,null,"BENING-LES-SAINT-AVOLD","57"]
[null,null,null,null,null,null,null,null,null,null,null,"BENNECOURT","78"]
[null,null,null,null,null,null,null,null,null,null,null,"BENNEY","54"]
[null,null,null,null,null,null,null,null,null,null,null,"BENNWIHR","68"]
[null,null,null,null,null,null,null,null,null,null,null,"BENODET","29"]
[null,null,null,null,null,null,null,null,null,null,null,"BENOITVILLE","50"]
[null,null,null,null,null,null,null,null,null,null,null,"BENON","17"]
[null,null,null,null,null,null,null,null,null,null,null,"BENONCES","01"]
[null,null,null,null,null,null,null,null,null,null,null,"BENOUVILLE","14"]
[null,null,null,null,null,null,null,null,null,null,null,"BENQUET","40"]
[null,null,null,null,null,null,null,null,null,null,null,"BENY","01"]
[null,null,null,null,null,null,null,null,null,null,null,"BENY-SUR-MER","14"]
[null,null,null,null,null,null,null,null,null,null,null,"BEON","89"]
[null,null,null,null,null,null,null,null,null,null,null,"BEON","01"]
[null,null,null,null,null,null,null,null,null,null,null,"BERAT","31"]
[null,null,null,null,null,null,null,null,null,null,null,"BERAUT","32"]
[null,null,null,null,null,null,null,null,null,null,null,"BERCENAY-EN-OTHE","10"]
[null,null,null,null,null,null,null,null,null,null,null,"BERCHE","25"]
[null,null,null,null,null,null,null,null,null,null,null,"BERCHERES-LES-PIERRES","28"]
[null,null,null,null,null,null,null,null,null,null,null,"BERCHERES-SAINT-GERMAIN","28"]
[null,null,null,null,null,null,null,null,null,null,null,"BERCHERES-SUR-VESGRE","28"]
[null,null,null,null,null,null,null,null,null,null,null,"BERCK","62"]
[null,null,null,null,null,null,null,null,null,null,null,"BERCLOUX","17"]
[null,null,null,null,null,null,null,null,null,null,null,"BERD'HUIS","61"]
[null,null,null,null,null,null,null,null,null,null,null,"BERDOUES","32"]
[null,null,null,null,null,null,null,null,null,null,null,"BERENGEVILLE-LA-CAMPAGNE","27"]
[null,null,null,null,null,null,null,null,null,null,null,"BERENTZWILLER","68"]
[null,null,null,null,null,null,null,null,null,null,null,"BERENX","64"]
[null,null,null,null,null,null,null,null,null,null,null,"BEREZIAT","01"]
[null,null,null,null,null,null,null,null,null,null,null,"BERFAY","72"]
[null,null,null,null,null,null,null,null,null,null,null,"BERG","67"]
[null,null,null,null,null,null,null,null,null,null,null,"BERGBIETEN","67"]
[null,null,null,null,null,null,null,null,null,null,null,"BERGERAC","24"]
[null,null,null,null,null,null,null,null,null,null,null,"BERGERES-LES-VERTUS","51"]
[null,null,null,null,null,null,null,null,null,null,null,"BERGHEIM","68"]
[null,null,null,null,null,null,null,null,null,null,null,"BERGHOLTZ","68"]
[null,null,null,null,null,null,null,null,null,null,null,"BERGHOLTZZELL","68"]
[null,null,null,null,null,null,null,null,null,null,null,"BERGONNE","63"]
[null,null,null,null,null,null,null,null,null,null,null,"BERG-SUR-MOSELLE","57"]
[null,null,null,null,null,null,null,null,null,null,null,"BERGUES","59"]
[null,null,null,null,null,null,null,null,null,null,null,"BERIGNY","50"]
[null,null,null,null,null,null,null,null,null,null,null,"BERJOU","61"]
[null,null,null,null,null,null,null,null,null,null,null,"BERLAIMONT","59"]
[null,null,null,null,null,null,null,null,null,null,null,"BERLANCOURT","60"]
[null,null,null,null,null,null,null,null,null,null,null,"BERLENCOURT-LE-CAUROY","62"]
[null,null,null,null,null,null,null,null,null,null,null,"BERLES-AU-BOIS","62"]
[null,null,null,null,null,null,null,null,null,null,null,"BERLES-MONCHEL","62"]
[null,null,null,null,null,null,null,null,null,null,null,"BERLING","57"]
[null,null,null,null,null,null,null,null,null,null,null,"BERMERAIN","59"]
[null,null,null,null,null,null,null,null,null,null,null,"BERMERIES","59"]
[null,null,null,null,null,null,null,null,null,null,null,"BERNAC-DEBAT","65"]
[null,null,null,null,null,null,null,null,null,null,null,"BERNES","80"]
[null,null,null,null,null,null,null,null,null,null,null,"BERNIN","38"]
[null,null,null,null,null,null,null,null,null,null,null,"BERRE-L'ETANG","13"]
[null,null,null,null,null,null,null,null,null,null,null,"BERRU","51"]
[null,null,null,null,null,null,null,null,null,null,null,"BERTHEGON","86"]
[null,null,null,null,null,null,null,null,null,null,null,"BERTRANGE","57"]
[null,null,null,null,null,null,null,null,null,null,null,"BERTRY","59"]
[null,null,null,null,null,null,null,null,null,null,null,"BERZE-LA-VILLE","71"]
[null,null,null,null,null,null,null,null,null,null,null,"BESSEGES","30"]
[null,null,null,null,null,null,null,null,null,null,null,"BESSEY-LES-CITEAUX","21"]
[null,null,null,null,null,null,null,null,null,null,null,"BETHANCOURT-EN-VAUX","02"]
[null,null,null,null,null,null,null,null,null,null,null,"BETTBORN","57"]
[null,null,null,null,null,null,null,null,null,null,null,"BETTING","57"]
[null,null,null,null,null,null,null,null,null,null,null,"BEUGNON","89"]
[null,null,null,null,null,null,null,null,null,null,null,"BEUVREQUEN","62"]
[null,null,null,null,null,null,null,null,null,null,null,"BEVILLE-LE-COMTE","28"]
[null,null,null,null,null,null,null,null,null,null,null,"BEYNAC-ET-CAZENAC","24"]
[null,null,null,null,null,null,null,null,null,null,null,"BEZONS","95"]
[null,null,null,null,null,null,null,null,null,null,null,"BIARRITZ","64"]
[null,null,null,null,null,null,null,null,null,null,null,"BIBLISHEIM","67"]
[null,null,null,null,null,null,null,null,null,null,null,"BIEDERTHAL","68"]
[null,null,null,null,null,null,null,null,null,null,null,"BIFFONTAINE","88"]
[null,null,null,null,null,null,null,null,null,null,null,"BIGUGLIA","2B"]
[null,null,null,null,null,null,null,null,null,null,null,"BILLIO","56"]
[null,null,null,null,null,null,null,null,null,null,null,"BINING","57"]
[null,null,null,null,null,null,null,null,null,null,null,"BIONVILLE-SUR-NIED","57"]
[null,null,null,null,null,null,null,null,null,null,null,"BIRON","64"]
[null,null,null,null,null,null,null,null,null,null,null,"BIVIERS","38"]
[null,null,null,null,null,null,null,null,null,null,null,"BLACE","69"]
[null,null,null,null,null,null,null,null,null,null,null,"BLAGNY","08"]
[null,null,null,null,null,null,null,null,null,null,null,"BLANDAINVILLE","28"]
[null,null,null,null,null,null,null,null,null,null,null,"BLANZAC-LES-MATHA","17"]
[null,null,null,null,null,null,null,null,null,null,null,"BLARGIES","60"]
[null,null,null,null,null,null,null,null,null,null,null,"BLENOD-LES-PONT-A-MOUSSON","54"]
[null,null,null,null,null,null,null,null,null,null,null,"BLET","18"]
[null,null,null,null,null,null,null,null,null,null,null,"BLIESBRUCK","57"]
[null,null,null,null,null,null,null,null,null,null,null,"BOCOGNANO","2A"]
[null,null,null,null,null,null,null,null,null,null,null,"BOERSCH","67"]
[null,null,null,null,null,null,null,null,null,null,null,"BOEURS-EN-OTHE","89"]
[null,null,null,null,null,null,null,null,null,null,null,"BOIS-COLOMBES","92"]
[null,null,null,null,null,null,null,null,null,null,null,"BOIS-D'ENNEBOURG","76"]
[null,null,null,null,null,null,null,null,null,null,null,"BOIS-LE-ROI","27"]
[null,null,null,null,null,null,null,null,null,null,null,"BOISSET-LES-MONTROND","42"]
[null,null,null,null,null,null,null,null,null,null,null,"BOISSEY-LE-CHATEL","27"]
[null,null,null,null,null,null,null,null,null,null,null,"BOISSY-LA-RIVIERE","91"]
[null,null,null,null,null,null,null,null,null,null,null,"BOLLEVILLE","76"]
[null,null,null,null,null,null,null,null,null,null,null,"BOLSENHEIM","67"]
[null,null,null,null,null,null,null,null,null,null,null,"BONCOURT-SUR-MEUSE","55"]
[null,null,null,null,null,null,null,null,null,null,null,"BONNAY","25"]
[null,null,null,null,null,null,null,null,null,null,null,"BONNELLES","78"]
[null,null,null,null,null,null,null,null,null,null,null,"BONNETABLE","72"]
[null,null,null,null,null,null,null,null,null,null,null,"BONNEVILLE-LA-LOUVET","14"]
[null,null,null,null,null,null,null,null,null,null,null,"BONO","56"]
[null,null,null,null,null,null,null,null,null,null,null,"BONS-TASSILLY","14"]
[null,null,null,null,null,null,null,null,null,null,null,"BOQUEHO","22"]
[null,null,null,null,null,null,null,null,null,null,null,"BORNE","43"]
[null,null,null,null,null,null,null,null,null,null,null,"BORT-LES-ORGUES","19"]
[null,null,null,null,null,null,null,null,null,null,null,"BOSC-MESNIL","76"]
[null,null,null,null,null,null,null,null,null,null,null,"BOSVILLE","76"]
[null,null,null,null,null,null,null,null,null,null,null,"BOUAFLE","78"]
[null,null,null,null,null,null,null,null,null,null,null,"BOUCHAMPS-LES-CRAON","53"]
[null,null,null,null,null,null,null,null,null,null,null,"BOUER","72"]
[null,null,null,null,null,null,null,null,null,null,null,"BOUGES-LE-CHATEAU","36"]
[null,null,null,null,null,null,null,null,null,null,null,"BOUGNON","70"]
[null,null,null,null,null,null,null,null,null,null,null,"BOUILLE-SAINT-PAUL","79"]
[null,null,null,null,null,null,null,null,null,null,null,"BOULAY-MOSELLE","57"]
[null,null,null,null,null,null,null,null,null,null,null,"BOULIEU-LES-ANNONAY","07"]
[null,null,null,null,null,null,null,null,null,null,null,"BOULOT","70"]
[null,null,null,null,null,null,null,null,null,null,null,"BOURANTON","10"]
[null,null,null,null,null,null,null,null,null,null,null,"BOURBON-L'ARCHAMBAULT","03"]
[null,null,null,null,null,null,null,null,null,null,null,"BOURDIC","30"]
[null,null,null,null,null,null,null,null,null,null,null,"BOURG-DE-PEAGE","26"]
[null,null,null,null,null,null,null,null,null,null,null,"BOURG-ET-COMIN","02"]
[null,null,null,null,null,null,null,null,null,null,null,"BOURGNEUF","17"]
[null,null,null,null,null,null,null,null,null,null,null,"BOURGUIGNONS","10"]
[null,null,null,null,null,null,null,null,null,null,null,"BOURNEL","47"]
[null,null,null,null,null,null,null,null,null,null,null,"BOURRAN","47"]
[null,null,null,null,null,null,null,null,null,null,null,"BOUSBACH","57"]
[null,null,null,null,null,null,null,null,null,null,null,"BOUSSE","57"]
[null,null,null,null,null,null,null,null,null,null,null,"BOUSSOIS","59"]
[null,null,null,null,null,null,null,null,null,null,null,"BOUVERANS","25"]
[null,null,null,null,null,null,null,null,null,null,null,"BOUXIERES-AUX-DAMES","54"]
[null,null,null,null,null,null,null,null,null,null,null,"BOUZAIS","18"]
[null,null,null,null,null,null,null,null,null,null,null,"BOVEL","35"]
[null,null,null,null,null,null,null,null,null,null,null,"BRAGNY-SUR-SAONE","71"]
[null,null,null,null,null,null,null,null,null,null,null,"BRAIN-SUR-LONGUENEE","49"]
[null,null,null,null,null,null,null,null,null,null,null,"BRANDO","2B"]
[null,null,null,null,null,null,null,null,null,null,null,"BRASSAC","81"]
[null,null,null,null,null,null,null,null,null,null,null,"BRASSY","58"]
[null,null,null,null,null,null,null,null,null,null,null,"BRAY-SUR-SOMME","80"]
[null,null,null,null,null,null,null,null,null,null,null,"BRECY","18"]
[null,null,null,null,null,null,null,null,null,null,null,"BREIDENBACH","57"]
[null,null,null,null,null,null,null,null,null,null,null,"BREITENBACH","67"]
[null,null,null,null,null,null,null,null,null,null,null,"BRESDON","17"]
[null,null,null,null,null,null,null,null,null,null,null,"BRESTOT","27"]
[null,null,null,null,null,null,null,null,null,null,null,"BRETEUIL","60"]
[null,null,null,null,null,null,null,null,null,null,null,"BRETTEVILLE","50"]
[null,null,null,null,null,null,null,null,null,null,null,"BREUILLET","91"]
[null,null,null,null,null,null,null,null,null,null,null,"BREUSCHWICKERSHEIM","67"]
[null,null,null,null,null,null,null,null,null,null,null,"BREVIANDES","10"]
[null,null,null,null,null,null,null,null,null,null,null,"BRIATEXTE","81"]
[null,null,null,null,null,null,null,null,null,null,null,"BRICY","45"]
[null,null,null,null,null,null,null,null,null,null,null,"BRIENNE","71"]
[null,null,null,null,null,null,null,null,null,null,null,"BRIGNON","30"]
[null,null,null,null,null,null,null,null,null,null,null,"BRINAY","18"]
[null,null,null,null,null,null,null,null,null,null,null,"BRIOLLAY","49"]
[null,null,null,null,null,null,null,null,null,null,null,"BRISSAC-QUINCE","49"]
[null,null,null,null,null,null,null,null,null,null,null,"BRIZON","74"]
[null,null,null,null,null,null,null,null,null,null,null,"BROGNON","21"]
[null,null,null,null,null,null,null,null,null,null,null,"BROUSSE","63"]
[null,null,null,null,null,null,null,null,null,null,null,"BROU-SUR-CHANTEREINE","77"]
[null,null,null,null,null,null,null,null,null,null,null,"BROYE","71"]
[null,null,null,null,null,null,null,null,null,null,null,"BRULAIN","79"]
[null,null,null,null,null,null,null,null,null,null,null,"BRUNELLES","28"]
[null,null,null,null,null,null,null,null,null,null,null,"BRUNSTATT","68"]
[null,null,null,null,null,null,null,null,null,null,null,"BUCEY-EN-OTHE","10"]
[null,null,null,null,null,null,null,null,null,null,null,"BUCY-LE-LONG","02"]
[null,null,null,null,null,null,null,null,null,null,null,"BUFFIERES","71"]
[null,null,null,null,null,null,null,null,null,null,null,"BUISSONCOURT","54"]
[null,null,null,null,null,null,null,null,null,null,null,"BULHON","63"]
[null,null,null,null,null,null,null,null,null,null,null,"BUNCEY","21"]
[null,null,null,null,null,null,null,null,null,null,null,"BURNHAUPT-LE-BAS","68"]
[null,null,null,null,null,null,null,null,null,null,null,"BUSIGNY","59"]
[null,null,null,null,null,null,null,null,null,null,null,"BUSSET","03"]
[null,null,null,null,null,null,null,null,null,null,null,"BUSSY-LE-REPOS","89"]
[null,null,null,null,null,null,null,null,null,null,null,"BUTOT-VENESVILLE","76"]
[null,null,null,null,null,null,null,null,null,null,null,"BUXEUIL","86"]
[null,null,null,null,null,null,null,null,null,null,null,"CABARA","33"]
[null,null,null,null,null,null,null,null,null,null,null,"CABRIES","13"]
[null,null,null,null,null,null,null,null,null,null,null,"CADEN","56"]
[null,null,null,null,null,null,null,null,null,null,null,"CAGNAC-LES-MINES","81"]
[null,null,null,null,null,null,null,null,null,null,null,"CAILLEVILLE","76"]
[null,null,null,null,null,null,null,null,null,null,null,"CAIRON","14"]
[null,null,null,null,null,null,null,null,null,null,null,"CALANHEL","22"]
[null,null,null,null,null,null,null,null,null,null,null,"CALONNE-SUR-LA-LYS","62"]
[null,null,null,null,null,null,null,null,null,null,null,"CALVISSON","30"]
[null,null,null,null,null,null,null,null,null,null,null,"CAMBES-EN-PLAINE","14"]
[null,null,null,null,null,null,null,null,null,null,null,"CAMBURAT","46"]
[null,null,null,null,null,null,null,null,null,null,null,"CAMOEL","56"]
[null,null,null,null,null,null,null,null,null,null,null,"CAMPAGNAN","34"]
[null,null,null,null,null,null,null,null,null,null,null,"CAMPET-ET-LAMOLERE","40"]
[null,null,null,null,null,null,null,null,null,null,null,"CAMPREMY","60"]
[null,null,null,null,null,null,null,null,null,null,null,"CAMPUAC","12"]
[null,null,null,null,null,null,null,null,null,null,null,"CANCON","47"]
[null,null,null,null,null,null,null,null,null,null,null,"CANLY","60"]
[null,null,null,null,null,null,null,null,null,null,null,"CANOHES","66"]
[null,null,null,null,null,null,null,null,null,null,null,"CANVILLE-LES-DEUX-EGLISES","76"]
[null,null,null,null,null,null,null,null,null,null,null,"CAPIAN","33"]
[null,null,null,null,null,null,null,null,null,null,null,"CAPPY","80"]
[null,null,null,null,null,null,null,null,null,null,null,"CARCAGNY","14"]
[null,null,null,null,null,null,null,null,null,null,null,"CARGESE","2A"]
[null,null,null,null,null,null,null,null,null,null,null,"CARLUS","81"]
[null,null,null,null,null,null,null,null,null,null,null,"CARNET","50"]
[null,null,null,null,null,null,null,null,null,null,null,"CARRIERES-SOUS-POISSY","78"]
[null,null,null,null,null,null,null,null,null,null,null,"CARTELEGUE","33"]
[null,null,null,null,null,null,null,null,null,null,null,"CARVIN","62"]
[null,null,null,null,null,null,null,null,null,null,null,"CASSON","44"]
[null,null,null,null,null,null,null,null,null,null,null,"CASTELFRANC","46"]
[null,null,null,null,null,null,null,null,null,null,null,"CASTELLARE-DI-CASINCA","2B"]
[null,null,null,null,null,null,null,null,null,null,null,"CASTELNAUD-DE-GRATECAMBE","47"]
[null,null,null,null,null,null,null,null,null,null,null,"CASTELNOU","66"]
[null,null,null,null,null,null,null,null,null,null,null,"CASTERA-VERDUZAN","32"]
[null,null,null,null,null,null,null,null,null,null,null,"CASTILLON-DE-SAINT-MARTORY","31"]
[null,null,null,null,null,null,null,null,null,null,null,"CATTENOM","57"]
[null,null,null,null,null,null,null,null,null,null,null,"CAUDIES-DE-FENOUILLEDES","66"]
[null,null,null,null,null,null,null,null,null,null,null,"CAULLERY","59"]
[null,null,null,null,null,null,null,null,null,null,null,"CAUROIR","59"]
[null,null,null,null,null,null,null,null,null,null,null,"CAUVIGNY","60"]
[null,null,null,null,null,null,null,null,null,null,null,"CAVAILLON","84"]
[null,null,null,null,null,null,null,null,null,null,null,"CAZAUBON","32"]
[null,null,null,null,null,null,null,null,null,null,null,"CAZOULS-D'HERAULT","34"]
[null,null,null,null,null,null,null,null,null,null,null,"CEAUX-EN-COUHE","86"]
[null,null,null,null,null,null,null,null,null,null,null,"CELLEFROUIN","16"]
[null,null,null,null,null,null,null,null,null,null,null,"CENAC-ET-SAINT-JULIEN","24"]
[null,null,null,null,null,null,null,null,null,null,null,"CENSEAU","39"]
[null,null,null,null,null,null,null,null,null,null,null,"CERCIER","74"]
[null,null,null,null,null,null,null,null,null,null,null,"CERISIERS","89"]
[null,null,null,null,null,null,null,null,null,null,null,"CERIZAY","79"]
[null,null,null,null,null,null,null,null,null,null,null,"CERNUSSON","49"]
[null,null,null,null,null,null,null,null,null,null,null,"CESSENS","73"]
[null,null,null,null,null,null,null,null,null,null,null,"CESSY","01"]
[null,null,null,null,null,null,null,null,null,null,null,"CEYRAT","63"]
[null,null,null,null,null,null,null,null,null,null,null,"CHABRELOCHE","63"]
[null,null,null,null,null,null,null,null,null,null,null,"CHAFFOIS","25"]
[null,null,null,null,null,null,null,null,null,null,null,"CHAIGNES","27"]
[null,null,null,null,null,null,null,null,null,null,null,"CHAIX","85"]
[null,null,null,null,null,null,null,null,null,null,null,"CHALAIS","16"]
[null,null,null,null,null,null,null,null,null,null,null,"CHALANDRY-ELAIRE","08"]
[null,null,null,null,null,null,null,null,null,null,null,"CHALLONGES","74"]
[null,null,null,null,null,null,null,null,null,null,null,"CHALONS-DU-MAINE","53"]
[null,null,null,null,null,null,null,null,null,null,null,"CHALUS","87"]
[null,null,null,null,null,null,null,null,null,null,null,"CHAMBLES","42"]
[null,null,null,null,null,null,null,null,null,null,null,"CHAMBOIS","61"]
[null,null,null,null,null,null,null,null,null,null,null,"CHAMBON-SUR-VOUEIZE","23"]
[null,null,null,null,null,null,null,null,null,null,null,"CHAMERY","51"]
[null,null,null,null,null,null,null,null,null,null,null,"CHAMONIX-MONT-BLANC","74"]
[null,null,null,null,null,null,null,null,null,null,null,"CHAMPAGNAC-LA-RIVIERE","87"]
[null,null,null,null,null,null,null,null,null,null,null,"CHAMPAGNEY","25"]
[null,null,null,null,null,null,null,null,null,null,null,"CHAMPCUEIL","91"]
[null,null,null,null,null,null,null,null,null,null,null,"CHAMP-DU-BOULT","14"]
[null,null,null,null,null,null,null,null,null,null,null,"CHAMPHOL","28"]
[null,null,null,null,null,null,null,null,null,null,null,"CHAMPIGNY-EN-BEAUCE","41"]
[null,null,null,null,null,null,null,null,null,null,null,"CHAMPIS","07"]
[null,null,null,null,null,null,null,null,null,null,null,"CHAMPROND-EN-PERCHET","28"]
[null,null,null,null,null,null,null,null,null,null,null,"CHAMPS-SUR-YONNE","89"]
[null,null,null,null,null,null,null,null,null,null,null,"CHAMPVALLON","89"]
[null,null,null,null,null,null,null,null,null,null,null,"CHANAT-LA-MOUTEYRE","63"]
[null,null,null,null,null,null,null,null,null,null,null,"CHANGIS-SUR-MARNE","77"]
[null,null,null,null,null,null,null,null,null,null,null,"CHANOS-CURSON","26"]
[null,null,null,null,null,null,null,null,null,null,null,"CHANTELOUP","50"]
[null,null,null,null,null,null,null,null,null,null,null,"CHANU","61"]
[null,null,null,null,null,null,null,null,null,null,null,"CHAPDES-BEAUFORT","63"]
[null,null,null,null,null,null,null,null,null,null,null,"CHAPONOST","69"]
[null,null,null,null,null,null,null,null,null,null,null,"CHARCHIGNE","53"]
[null,null,null,null,null,null,null,null,null,null,null,"CHARENTONNAY","18"]
[null,null,null,null,null,null,null,null,null,null,null,"CHARLEVAL","13"]
[null,null,null,null,null,null,null,null,null,null,null,"CHARMES-SUR-RHONE","07"]
[null,null,null,null,null,null,null,null,null,null,null,"CHARNAS","07"]
[null,null,null,null,null,null,null,null,null,null,null,"CHARNOZ-SUR-AIN","01"]
[null,null,null,null,null,null,null,null,null,null,null,"CHARQUEMONT","25"]
[null,null,null,null,null,null,null,null,null,null,null,"CHARTRONGES","77"]
[null,null,null,null,null,null,null,null,null,null,null,"CHASPINHAC","43"]
[null,null,null,null,null,null,null,null,null,null,null,"CHASSENEUIL","36"]
[null,null,null,null,null,null,null,null,null,null,null,"CHASTEL-NOUVEL","48"]
[null,null,null,null,null,null,null,null,null,null,null,"CHATEAUBOURG","35"]
[null,null,null,null,null,null,null,null,null,null,null,"CHATEAUFORT","78"]
[null,null,null,null,null,null,null,null,null,null,null,"CHATEAUNEUF-DE-CHABRE","05"]
[null,null,null,null,null,null,null,null,null,null,null,"CHATEAUNEUF-LA-FORET","87"]
[null,null,null,null,null,null,null,null,null,null,null,"CHATEAUNEUF-SUR-ISERE","26"]
[null,null,null,null,null,null,null,null,null,null,null,"CHATEAUVIEUX","41"]
[null,null,null,null,null,null,null,null,null,null,null,"CHATEL-CENSOIR","89"]
[null,null,null,null,null,null,null,null,null,null,null,"CHATEL-MONTAGNE","03"]
[null,null,null,null,null,null,null,null,null,null,null,"CHATILLON","92"]
[null,null,null,null,null,null,null,null,null,null,null,"CHATILLON-LE-DUC","25"]
[null,null,null,null,null,null,null,null,null,null,null,"CHATILLON-SUR-COLMONT","53"]
[null,null,null,null,null,null,null,null,null,null,null,"CHATRES","77"]
[null,null,null,null,null,null,null,null,null,null,null,"CHAUDRON-EN-MAUGES","49"]
[null,null,null,null,null,null,null,null,null,null,null,"CHAUFFRY","77"]
[null,null,null,null,null,null,null,null,null,null,null,"CHAUMONT","74"]
[null,null,null,null,null,null,null,null,null,null,null,"CHAUSSOY-EPAGNY","80"]
[null,null,null,null,null,null,null,null,null,null,null,"CHAUX","90"]
[null,null,null,null,null,null,null,null,null,null,null,"CHAVAGNAC","24"]
[null,null,null,null,null,null,null,null,null,null,null,"CHAVELOT","88"]
[null,null,null,null,null,null,null,null,null,null,null,"CHAZAY-D'AZERGUES","69"]
[null,null,null,null,null,null,null,null,null,null,null,"CHAZEY-BONS","01"]
[null,null,null,null,null,null,null,null,null,null,null,"CHEMAZE","53"]
[null,null,null,null,null,null,null,null,null,null,null,"CHEMILLY-SUR-YONNE","89"]
[null,null,null,null,null,null,null,null,null,null,null,"CHEMIRE-SUR-SARTHE","49"]
[null,null,null,null,null,null,null,null,null,null,null,"CHENECHE","86"]
[null,null,null,null,null,null,null,null,null,null,null,"CHENNEVIERES-SUR-MARNE","94"]
[null,null,null,null,null,null,null,null,null,null,null,"CHENU","72"]
[null,null,null,null,null,null,null,null,null,null,null,"CHERBONNIERES","17"]
[null,null,null,null,null,null,null,null,null,null,null,"CHERRUEIX","35"]
[null,null,null,null,null,null,null,null,null,null,null,"CHESNY","57"]
[null,null,null,null,null,null,null,null,null,null,null,"CHEVAGNES","03"]
[null,null,null,null,null,null,null,null,null,null,null,"CHEVILLON","89"]
[null,null,null,null,null,null,null,null,null,null,null,"CHEVREVILLE","60"]
[null,null,null,null,null,null,null,null,null,null,null,"CHEVRU","77"]
[null,null,null,null,null,null,null,null,null,null,null,"CHICHILIANNE","38"]
[null,null,null,null,null,null,null,null,null,null,null,"CHILLE","39"]
[null,null,null,null,null,null,null,null,null,null,null,"CHINDRIEUX","73"]
[null,null,null,null,null,null,null,null,null,null,null,"CHIVRES-VAL","02"]
[null,null,null,null,null,null,null,null,null,null,null,"CHOISY","74"]
[null,null,null,null,null,null,null,null,null,null,null,"CHOLOY-MENILLOT","54"]
[null,null,null,null,null,null,null,null,null,null,null,"CHUZELLES","38"]
[null,null,null,null,null,null,null,null,null,null,null,"CIERP-GAUD","31"]
[null,null,null,null,null,null,null,null,null,null,null,"CIGOGNE","37"]
[null,null,null,null,null,null,null,null,null,null,null,"CISSAC-MEDOC","33"]
[null,null,null,null,null,null,null,null,null,null,null,"CIVAUX","86"]
[null,null,null,null,null,null,null,null,null,null,null,"CIVRY-LA-FORET","78"]
[null,null,null,null,null,null,null,null,null,null,null,"CLAM","17"]
[null,null,null,null,null,null,null,null,null,null,null,"CLARAC","31"]
[null,null,null,null,null,null,null,null,null,null,null,"CLAVE","79"]
[null,null,null,null,null,null,null,null,null,null,null,"CLEGUEREC","56"]
[null,null,null,null,null,null,null,null,null,null,null,"CLERE-LES-PINS","37"]
[null,null,null,null,null,null,null,null,null,null,null,"CLERLANDE","63"]
[null,null,null,null,null,null,null,null,null,null,null,"CLERY-SUR-SOMME","80"]
[null,null,null,null,null,null,null,null,null,null,null,"CLICHY-SOUS-BOIS","93"]
[null,null,null,null,null,null,null,null,null,null,null,"CLIRON","08"]
[null,null,null,null,null,null,null,null,null,null,null,"COATASCORN","22"]
[null,null,null,null,null,null,null,null,null,null,null,"COESMES","35"]
[null,null,null,null,null,null,null,null,null,null,null,"COGNA","39"]
[null,null,null,null,null,null,null,null,null,null,null,"COHONS","52"]
[null,null,null,null,null,null,null,null,null,null,null,"COLIGNY","01"]
[null,null,null,null,null,null,null,null,null,null,null,"COLLIAS","30"]
[null,null,null,null,null,null,null,null,null,null,null,"COLLOREC","29"]
[null,null,null,null,null,null,null,null,null,null,null,"COLOMBIER-EN-BRIONNAIS","71"]
[null,null,null,null,null,null,null,null,null,null,null,"COLOMBIERS","61"]
[null,null,null,null,null,null,null,null,null,null,null,"COLOMIERS","31"]
[null,null,null,null,null,null,null,null,null,null,null,"COMBLES-EN-BARROIS","55"]
[null,null,null,null,null,null,null,null,null,null,null,"COMBREE","49"]
[null,null,null,null,null,null,null,null,null,null,null,"COMBS-LA-VILLE","77"]
[null,null,null,null,null,null,null,null,null,null,null,"COMPIEGNE","60"]
[null,null,null,null,null,null,null,null,null,null,null,"CONCEZE","19"]
[null,null,null,null,null,null,null,null,null,null,null,"CONCORET","56"]
[null,null,null,null,null,null,null,null,null,null,null,"CONDAT-EN-COMBRAILLE","63"]
[null,null,null,null,null,null,null,null,null,null,null,"CONDE-SUR-ITON","27"]
[null,null,null,null,null,null,null,null,null,null,null,"CONDE-SUR-VESGRE","78"]
[null,null,null,null,null,null,null,null,null,null,null,"CONFLANS-EN-JARNISY","54"]
[null,null,null,null,null,null,null,null,null,null,null,"CONLIE","72"]
[null,null,null,null,null,null,null,null,null,null,null,"CONQUEREUIL","44"]
[null,null,null,null,null,null,null,null,null,null,null,"CONTES","62"]
[null,null,null,null,null,null,null,null,null,null,null,"COQUAINVILLIERS","14"]
[null,null,null,null,null,null,null,null,null,null,null,"CORBEIL-ESSONNES","91"]
[null,null,null,null,null,null,null,null,null,null,null,"CORBERE-LES-CABANES","66"]
[null,null,null,null,null,null,null,null,null,null,null,"CORDES-SUR-CIEL","81"]
[null,null,null,null,null,null,null,null,null,null,null,"CORLAY","22"]
[null,null,null,null,null,null,null,null,null,null,null,"CORMEILLES-EN-PARISIS","95"]
[null,null,null,null,null,null,null,null,null,null,null,"CORMONT","62"]
[null,null,null,null,null,null,null,null,null,null,null,"CORNIL","19"]
[null,null,null,null,null,null,null,null,null,null,null,"CORNIMONT","88"]
[null,null,null,null,null,null,null,null,null,null,null,"CORQUILLEROY","45"]
[null,null,null,null,null,null,null,null,null,null,null,"COSNAC","19"]
[null,null,null,null,null,null,null,null,null,null,null,"COSSE-D'ANJOU","49"]
[null,null,null,null,null,null,null,null,null,null,null,"COUBERT","77"]
[null,null,null,null,null,null,null,null,null,null,null,"COUDOUX","13"]
[null,null,null,null,null,null,null,null,null,null,null,"COUDURES","40"]
[null,null,null,null,null,null,null,null,null,null,null,"COUFFY","41"]
[null,null,null,null,null,null,null,null,null,null,null,"COULIMER","61"]
[null,null,null,null,null,null,null,null,null,null,null,"COULOMBS","28"]
[null,null,null,null,null,null,null,null,null,null,null,"COULOMMIERS-LA-TOUR","41"]
[null,null,null,null,null,null,null,null,null,null,null,"COURANCES","91"]
[null,null,null,null,null,null,null,null,null,null,null,"COURCAIS","03"]
[null,null,null,null,null,null,null,null,null,null,null,"COURCELLES-DE-TOURAINE","37"]
[null,null,null,null,null,null,null,null,null,null,null,"COURCELLES-SUR-VIOSNE","95"]
[null,null,null,null,null,null,null,null,null,null,null,"COURDEMANCHE","27"]
[null,null,null,null,null,null,null,null,null,null,null,"COURGENARD","72"]
[null,null,null,null,null,null,null,null,null,null,null,"COURLAY","79"]
[null,null,null,null,null,null,null,null,null,null,null,"COURS","79"]
[null,null,null,null,null,null,null,null,null,null,null,"COURS-LES-BARRES","18"]
[null,null,null,null,null,null,null,null,null,null,null,"COURTAVON","68"]
[null,null,null,null,null,null,null,null,null,null,null,"COURTONNE-LES-DEUX-EGLISES","14"]
[null,null,null,null,null,null,null,null,null,null,null,"COUSSAY-LES-BOIS","86"]
[null,null,null,null,null,null,null,null,null,null,null,"COUTERNON","21"]
[null,null,null,null,null,null,null,null,null,null,null,"COUX-ET-BIGAROQUE","24"]
[null,null,null,null,null,null,null,null,null,null,null,"COZES","17"]
[null,null,null,null,null,null,null,null,null,null,null,"CRAINTILLEUX","42"]
[null,null,null,null,null,null,null,null,null,null,null,"CRAVANS","17"]
[null,null,null,null,null,null,null,null,null,null,null,"CRAYWICK","59"]
[null,null,null,null,null,null,null,null,null,null,null,"CRECHY","03"]
[null,null,null,null,null,null,null,null,null,null,null,"CREPAND","21"]
[null,null,null,null,null,null,null,null,null,null,null,"CRESANTIGNES","10"]
[null,null,null,null,null,null,null,null,null,null,null,"CRESSIA","39"]
[null,null,null,null,null,null,null,null,null,null,null,"CREVECOEUR-EN-AUGE","14"]
[null,null,null,null,null,null,null,null,null,null,null,"CREYS-MEPIEU","38"]
[null,null,null,null,null,null,null,null,null,null,null,"CRIQUEBEUF-EN-CAUX","76"]
[null,null,null,null,null,null,null,null,null,null,null,"CROISILLES","62"]
[null,null,null,null,null,null,null,null,null,null,null,"CROISSY-SUR-SEINE","78"]
[null,null,null,null,null,null,null,null,null,null,null,"CROMAC","87"]
[null,null,null,null,null,null,null,null,null,null,null,"CROUTTES-SUR-MARNE","02"]
[null,null,null,null,null,null,null,null,null,null,null,"CROZON","29"]
[null,null,null,null,null,null,null,null,null,null,null,"CRUET","73"]
[null,null,null,null,null,null,null,null,null,null,null,"CUBZAC-LES-PONTS","33"]
[null,null,null,null,null,null,null,null,null,null,null,"CUGES-LES-PINS","13"]
[null,null,null,null,null,null,null,null,null,null,null,"CUILLE","53"]
[null,null,null,null,null,null,null,null,null,null,null,"CULOZ","01"]
[null,null,null,null,null,null,null,null,null,null,null,"CURAN","12"]
[null,null,null,null,null,null,null,null,null,null,null,"CURDIN","71"]
[null,null,null,null,null,null,null,null,null,null,null,"CURVALLE","81"]
[null,null,null,null,null,null,null,null,null,null,null,"CUTTURA","39"]
[null,null,null,null,null,null,null,null,null,null,null,"CUVILLY","60"]
[null,null,null,null,null,null,null,null,null,null,null,"CUZORN","47"]
[null,null,null,null,null,null,null,null,null,null,null,"DALOU","09"]
[null,null,null,null,null,null,null,null,null,null,null,"DAMBLAIN","88"]
[null,null,null,null,null,null,null,null,null,null,null,"DAMIATTE","81"]
[null,null,null,null,null,null,null,null,null,null,null,"DAMPIERRE-EN-BRAY","76"]
[null,null,null,null,null,null,null,null,null,null,null,"DAMPIERRE-SUR-LE-DOUBS","25"]
[null,null,null,null,null,null,null,null,null,null,null,"DAMPRICHARD","25"]
[null,null,null,null,null,null,null,null,null,null,null,"DANNEMARIE","68"]
[null,null,null,null,null,null,null,null,null,null,null,"DARCEY","21"]
[null,null,null,null,null,null,null,null,null,null,null,"DARNAC","87"]
[null,null,null,null,null,null,null,null,null,null,null,"DAUBEUF-PRES-VATTEVILLE","27"]
[null,null,null,null,null,null,null,null,null,null,null,"DECAZEVILLE","12"]
[null,null,null,null,null,null,null,null,null,null,null,"DEHAULT","72"]
[null,null,null,null,null,null,null,null,null,null,null,"DEMIGNY","71"]
[null,null,null,null,null,null,null,null,null,null,null,"DENNEVY","71"]
[null,null,null,null,null,null,null,null,null,null,null,"DESCARTES","37"]
[null,null,null,null,null,null,null,null,null,null,null,"DESIRADE","971"]
[null,null,null,null,null,null,null,null,null,null,null,"DEYME","31"]
[null,null,null,null,null,null,null,null,null,null,null,"DIE","26"]
[null,null,null,null,null,null,null,null,null,null,null,"DIEFFENTHAL","67"]
[null,null,null,null,null,null,null,null,null,null,null,"DIEULOUARD","54"]
[null,null,null,null,null,null,null,null,null,null,null,"DIGOIN","71"]
[null,null,null,null,null,null,null,null,null,null,null,"DIMONT","59"]
[null,null,null,null,null,null,null,null,null,null,null,"DINSHEIM-SUR-BRUCHE","67"]
[null,null,null,null,null,null,null,null,null,null,null,"DIXMONT","89"]
[null,null,null,null,null,null,null,null,null,null,null,"DOEUIL-SUR-LE-MIGNON","17"]
[null,null,null,null,null,null,null,null,null,null,null,"DOLLEREN","68"]
[null,null,null,null,null,null,null,null,null,null,null,"DOMAZAN","30"]
[null,null,null,null,null,null,null,null,null,null,null,"DOMECY-SUR-CURE","89"]
[null,null,null,null,null,null,null,null,null,null,null,"DOMFESSEL","67"]
[null,null,null,null,null,null,null,null,null,null,null,"DOMMARTIN-LES-REMIREMONT","88"]
[null,null,null,null,null,null,null,null,null,null,null,"DOMPIERRE","61"]
[null,null,null,null,null,null,null,null,null,null,null,"DOMPIERRE-LES-TILLEULS","25"]
[null,null,null,null,null,null,null,null,null,null,null,"DONCOURT-LES-LONGUYON","54"]
[null,null,null,null,null,null,null,null,null,null,null,"DONVILLE-LES-BAINS","50"]
[null,null,null,null,null,null,null,null,null,null,null,"DORANS","90"]
[null,null,null,null,null,null,null,null,null,null,null,"DORNES","58"]
[null,null,null,null,null,null,null,null,null,null,null,"DOUCHY-LES-AYETTE","62"]
[null,null,null,null,null,null,null,null,null,null,null,"DOULEVANT-LE-CHATEAU","52"]
[null,null,null,null,null,null,null,null,null,null,null,"DOURLERS","59"]
[null,null,null,null,null,null,null,null,null,null,null,"DOUZY","08"]
[null,null,null,null,null,null,null,null,null,null,null,"DRACHENBRONN-BIRLENBACH","67"]
[null,null,null,null,null,null,null,null,null,null,null,"DREFFEAC","44"]
[null,null,null,null,null,null,null,null,null,null,null,"DROYES","52"]
[null,null,null,null,null,null,null,null,null,null,null,"DRUYE","37"]
[null,null,null,null,null,null,null,null,null,null,null,"DUCLAIR","76"]
[null,null,null,null,null,null,null,null,null,null,null,"DUN-LE-PALESTEL","23"]
[null,null,null,null,null,null,null,null,null,null,null,"DURAVEL","46"]
[null,null,null,null,null,null,null,null,null,null,null,"DURFORT-LACAPELETTE","82"]
[null,null,null,null,null,null,null,null,null,null,null,"EAUBONNE","95"]
[null,null,null,null,null,null,null,null,null,null,null,"EBLANGE","57"]
[null,null,null,null,null,null,null,null,null,null,null,"ECARDENVILLE-SUR-EURE","27"]
[null,null,null,null,null,null,null,null,null,null,null,"ECHIRE","79"]
[null,null,null,null,null,null,null,null,null,null,null,"ECKWERSHEIM","67"]
[null,null,null,null,null,null,null,null,null,null,null,"ECOCHE","42"]
[null,null,null,null,null,null,null,null,null,null,null,"ECQUEVILLY","78"]
[null,null,null,null,null,null,null,null,null,null,null,"ECTOT-LES-BAONS","76"]
[null,null,null,null,null,null,null,null,null,null,null,"ECURCEY","25"]
[null,null,null,null,null,null,null,null,null,null,null,"EGREVILLE","77"]
[null,null,null,null,null,null,null,null,null,null,null,"EGUISHEIM","68"]
[null,null,null,null,null,null,null,null,null,null,null,"ELBEUF-EN-BRAY","76"]
[null,null,null,null,null,null,null,null,null,null,null,"ELZANGE","57"]
[null,null,null,null,null,null,null,null,null,null,null,"EMBERMENIL","54"]
[null,null,null,null,null,null,null,null,null,null,null,"EMPURANY","07"]
[null,null,null,null,null,null,null,null,null,null,null,"ENNEVELIN","59"]
[null,null,null,null,null,null,null,null,null,null,null,"ENTRANGE","57"]
[null,null,null,null,null,null,null,null,null,null,null,"ENTRE-DEUX-GUIERS","38"]
[null,null,null,null,null,null,null,null,null,null,null,"EPARGNES","17"]
[null,null,null,null,null,null,null,null,null,null,null,"EPERSY","73"]
[null,null,null,null,null,null,null,null,null,null,null,"EPIEDS","27"]
[null,null,null,null,null,null,null,null,null,null,null,"EPINAY-SUR-ORGE","91"]
[null,null,null,null,null,null,null,null,null,null,null,"EPPES","02"]
[null,null,null,null,null,null,null,null,null,null,null,"EPREVILLE-EN-ROUMOIS","27"]
[null,null,null,null,null,null,null,null,null,null,null,"EQUIHEN-PLAGE","62"]
[null,null,null,null,null,null,null,null,null,null,null,"ERGERSHEIM","67"]
[null,null,null,null,null,null,null,null,null,null,null,"ERMONT","95"]
[null,null,null,null,null,null,null,null,null,null,null,"ERQUINGHEM-LE-SEC","59"]
[null,null,null,null,null,null,null,null,null,null,null,"ESCALQUENS","31"]
[null,null,null,null,null,null,null,null,null,null,null,"ESCHBACH","67"]
[null,null,null,null,null,null,null,null,null,null,null,"ESCLANEDES","48"]
[null,null,null,null,null,null,null,null,null,null,null,"ESCOUSSENS","81"]
[null,null,null,null,null,null,null,null,null,null,null,"ESNANDES","17"]
[null,null,null,null,null,null,null,null,null,null,null,"ESPALEM","43"]
[null,null,null,null,null,null,null,null,null,null,null,"ESPINASSES","05"]
[null,null,null,null,null,null,null,null,null,null,null,"ESQUELBECQ","59"]
[null,null,null,null,null,null,null,null,null,null,null,"ESQUIULE","64"]
[null,null,null,null,null,null,null,null,null,null,null,"ESSERTINES-EN-DONZY","42"]
[null,null,null,null,null,null,null,null,null,null,null,"ESTANDEUIL","63"]
[null,null,null,null,null,null,null,null,null,null,null,"ESTEVILLE","76"]
[null,null,null,null,null,null,null,null,null,null,null,"ESTOURMEL","59"]
[null,null,null,null,null,null,null,null,null,null,null,"ESTRUN","59"]
[null,null,null,null,null,null,null,null,null,null,null,"ETAING","62"]
[null,null,null,null,null,null,null,null,null,null,null,"ETAMPES","91"]
[null,null,null,null,null,null,null,null,null,null,null,"ETEVAUX","21"]
[null,null,null,null,null,null,null,null,null,null,null,"ETOGES","51"]
[null,null,null,null,null,null,null,null,null,null,null,"ETREAUPONT","02"]
[null,null,null,null,null,null,null,null,null,null,null,"ETRICOURT-MANANCOURT","80"]
[null,null,null,null,null,null,null,null,null,null,null,"ETUSSON","79"]
[null,null,null,null,null,null,null,null,null,null,null,"EULMONT","54"]
[null,null,null,null,null,null,null,null,null,null,null,"EVE","60"]
[null,null,null,null,null,null,null,null,null,null,null,"EVRY-GREGY-SUR-YERRE","77"]
[null,null,null,null,null,null,null,null,null,null,null,"EXMES","61"]
[null,null,null,null,null,null,null,null,null,null,null,"EYGURANDE","19"]
[null,null,null,null,null,null,null,null,null,null,null,"EYZERAC","24"]
[null,null,null,null,null,null,null,null,null,null,null,"FABAS","82"]
[null,null,null,null,null,null,null,null,null,null,null,"FAINS","27"]
[null,null,null,null,null,null,null,null,null,null,null,"FARAMANS","38"]
[null,null,null,null,null,null,null,null,null,null,null,"FARGUES","33"]
[null,null,null,null,null,null,null,null,null,null,null,"FATINES","72"]
[null,null,null,null,null,null,null,null,null,null,null,"FAUVILLE","27"]
[null,null,null,null,null,null,null,null,null,null,null,"FAVEROLLES","28"]
[null,null,null,null,null,null,null,null,null,null,null,"FAVIERES","77"]
[null,null,null,null,null,null,null,null,null,null,null,"FAYE-L'ABBESSE","79"]
[null,null,null,null,null,null,null,null,null,null,null,"FECHE-L'EGLISE","90"]
[null,null,null,null,null,null,null,null,null,null,null,"FEILLENS","01"]
[null,null,null,null,null,null,null,null,null,null,null,"FELLERIES","59"]
[null,null,null,null,null,null,null,null,null,null,null,"FERE-CHAMPENOISE","51"]
[null,null,null,null,null,null,null,null,null,null,null,"FERMANVILLE","50"]
[null,null,null,null,null,null,null,null,null,null,null,"FERRIERE-LA-PETITE","59"]
[null,null,null,null,null,null,null,null,null,null,null,"FESCHES-LE-CHATEL","25"]
[null,null,null,null,null,null,null,null,null,null,null,"FEUCHY","62"]
[null,null,null,null,null,null,null,null,null,null,null,"FEUQUIERES-EN-VIMEU","80"]
[null,null,null,null,null,null,null,null,null,null,null,"FIGANIERES","83"]
[null,null,null,null,null,null,null,null,null,null,null,"FINHAN","82"]
[null,null,null,null,null,null,null,null,null,null,null,"FIRMINY","42"]
[null,null,null,null,null,null,null,null,null,null,null,"FLAT","63"]
[null,null,null,null,null,null,null,null,null,null,null,"FLAUMONT-WAUDRECHIES","59"]
[null,null,null,null,null,null,null,null,null,null,null,"FLAVIGNY-SUR-MOSELLE","54"]
[null,null,null,null,null,null,null,null,null,null,null,"FLEURAT","23"]
[null,null,null,null,null,null,null,null,null,null,null,"FLEURIEL","03"]
[null,null,null,null,null,null,null,null,null,null,null,"FLEURY","11"]
[null,null,null,null,null,null,null,null,null,null,null,"FLINS-SUR-SEINE","78"]
[null,null,null,null,null,null,null,null,null,null,null,"FLOING","08"]
[null,null,null,null,null,null,null,null,null,null,null,"FLORIMONT","90"]
[null,null,null,null,null,null,null,null,null,null,null,"FOLLAINVILLE-DENNEMONT","78"]
[null,null,null,null,null,null,null,null,null,null,null,"FONCINE-LE-HAUT","39"]
[null,null,null,null,null,null,null,null,null,null,null,"FONSOMME","02"]
[null,null,null,null,null,null,null,null,null,null,null,"FONTAINE-GUERIN","49"]
[null,null,null,null,null,null,null,null,null,null,null,"FONTAINE-LA-LOUVET","27"]
[null,null,null,null,null,null,null,null,null,null,null,"FONTAINE-LES-COTEAUX","41"]
[null,null,null,null,null,null,null,null,null,null,null,"FONTAINE-SOUS-PREAUX","76"]
[null,null,null,null,null,null,null,null,null,null,null,"FONTANIERES","23"]
[null,null,null,null,null,null,null,null,null,null,null,"FONTCOUVERTE-LA-TOUSSUIRE","73"]
[null,null,null,null,null,null,null,null,null,null,null,"FONTENAY-SAINT-PERE","78"]
[null,null,null,null,null,null,null,null,null,null,null,"FONTENILLE-SAINT-MARTIN-D'ENTRAIGUES","79"]
[null,null,null,null,null,null,null,null,null,null,null,"FONTENOY-SUR-MOSELLE","54"]
[null,null,null,null,null,null,null,null,null,null,null,"FONTVIEILLE","13"]
[null,null,null,null,null,null,null,null,null,null,null,"FORGES-LES-BAINS","91"]
[null,null,null,null,null,null,null,null,null,null,null,"FORSTFELD","67"]
[null,null,null,null,null,null,null,null,null,null,null,"FOSSE","41"]
[null,null,null,null,null,null,null,null,null,null,null,"FOUG","54"]
[null,null,null,null,null,null,null,null,null,null,null,"FOUGEROLLES","70"]
[null,null,null,null,null,null,null,null,null,null,null,"FOUQUENIES","60"]
[null,null,null,null,null,null,null,null,null,null,null,"FOURNEAUX","73"]
[null,null,null,null,null,null,null,null,null,null,null,"FOURQUES","30"]
[null,null,null,null,null,null,null,null,null,null,null,"FOURS","33"]
[null,null,null,null,null,null,null,null,null,null,null,"FRANCESCAS","47"]
[null,null,null,null,null,null,null,null,null,null,null,"FRANCIN","73"]
[null,null,null,null,null,null,null,null,null,null,null,"FRANCUEIL","37"]
[null,null,null,null,null,null,null,null,null,null,null,"FRANS","01"]
[null,null,null,null,null,null,null,null,null,null,null,"FREISTROFF","57"]
[null,null,null,null,null,null,null,null,null,null,null,"FREMAINVILLE","95"]
[null,null,null,null,null,null,null,null,null,null,null,"FRENICHES","60"]
[null,null,null,null,null,null,null,null,null,null,null,"FRESNES-EN-WOEVRE","55"]
[null,null,null,null,null,null,null,null,null,null,null,"FRESNEY-LE-VIEUX","14"]
[null,null,null,null,null,null,null,null,null,null,null,"FRESPECH","47"]
[null,null,null,null,null,null,null,null,null,null,null,"FRETTEMEULE","80"]
[null,null,null,null,null,null,null,null,null,null,null,"FRICHEMESNIL","76"]
[null,null,null,null,null,null,null,null,null,null,null,"FRIVILLE-ESCARBOTIN","80"]
[null,null,null,null,null,null,null,null,null,null,null,"FROMENTIERES","51"]
[null,null,null,null,null,null,null,null,null,null,null,"FRONTONAS","38"]
[null,null,null,null,null,null,null,null,null,null,null,"FROUVILLE","95"]
[null,null,null,null,null,null,null,null,null,null,null,"FUSSY","18"]
[null,null,null,null,null,null,null,null,null,null,null,"GACOGNE","58"]
[null,null,null,null,null,null,null,null,null,null,null,"GAGNIERES","30"]
[null,null,null,null,null,null,null,null,null,null,null,"GAILLERES","40"]
[null,null,null,null,null,null,null,null,null,null,null,"GALLUIS","78"]
[null,null,null,null,null,null,null,null,null,null,null,"GAN","64"]
[null,null,null,null,null,null,null,null,null,null,null,"GANZEVILLE","76"]
[null,null,null,null,null,null,null,null,null,null,null,"GARENCIERES","27"]
[null,null,null,null,null,null,null,null,null,null,null,"GARINDEIN","64"]
[null,null,null,null,null,null,null,null,null,null,null,"GARONS","30"]
[null,null,null,null,null,null,null,null,null,null,null,"GATTIERES","06"]
[null,null,null,null,null,null,null,null,null,null,null,"GAURE","31"]
[null,null,null,null,null,null,null,null,null,null,null,"GAUVILLE-LA-CAMPAGNE","27"]
[null,null,null,null,null,null,null,null,null,null,null,"GEHEE","36"]
[null,null,null,null,null,null,null,null,null,null,null,"GEMEAUX","21"]
[null,null,null,null,null,null,null,null,null,null,null,"GENAS","69"]
[null,null,null,null,null,null,null,null,null,null,null,"GENERAC","33"]
[null,null,null,null,null,null,null,null,null,null,null,"GENNES-SUR-GLAIZE","53"]
[null,null,null,null,null,null,null,null,null,null,null,"GENNEVILLIERS","92"]
[null,null,null,null,null,null,null,null,null,null,null,"GENSAC-LA-PALLUE","16"]
[null,null,null,null,null,null,null,null,null,null,null,"GERDE","65"]
[null,null,null,null,null,null,null,null,null,null,null,"GERMIGNY","89"]
[null,null,null,null,null,null,null,null,null,null,null,"GERTWILLER","67"]
[null,null,null,null,null,null,null,null,null,null,null,"GEX","01"]
[null,null,null,null,null,null,null,null,null,null,null,"GIBLES","71"]
[null,null,null,null,null,null,null,null,null,null,null,"GIEVRES","41"]
[null,null,null,null,null,null,null,null,null,null,null,"GILLONNAY","38"]
[null,null,null,null,null,null,null,null,null,null,null,"GIMOUILLE","58"]
[null,null,null,null,null,null,null,null,null,null,null,"GINOLES","11"]
[null,null,null,null,null,null,null,null,null,null,null,"GIVERVILLE","27"]
[null,null,null,null,null,null,null,null,null,null,null,"GIVRAUVAL","55"]
[null,null,null,null,null,null,null,null,null,null,null,"GLAGEON","59"]
[null,null,null,null,null,null,null,null,null,null,null,"GLUIRAS","07"]
[null,null,null,null,null,null,null,null,null,null,null,"GOETZENBRUCK","57"]
[null,null,null,null,null,null,null,null,null,null,null,"GOLANCOURT","60"]
[null,null,null,null,null,null,null,null,null,null,null,"GONDRECOURT-LE-CHATEAU","55"]
[null,null,null,null,null,null,null,null,null,null,null,"GONFARON","83"]
[null,null,null,null,null,null,null,null,null,null,null,"GONNEVILLE-SUR-SCIE","76"]
[null,null,null,null,null,null,null,null,null,null,null,"GOSNE","35"]
[null,null,null,null,null,null,null,null,null,null,null,"GOUAREC","22"]
[null,null,null,null,null,null,null,null,null,null,null,"GOUILLONS","28"]
[null,null,null,null,null,null,null,null,null,null,null,"GOURHEL","56"]
[null,null,null,null,null,null,null,null,null,null,null,"GOUSSAINVILLE","95"]
[null,null,null,null,null,null,null,null,null,null,null,"GOUTTIERES","63"]
[null,null,null,null,null,null,null,null,null,null,null,"GOVEN","35"]
[null,null,null,null,null,null,null,null,null,null,null,"GRAGNAGUE","31"]
[null,null,null,null,null,null,null,null,null,null,null,"GRAINVILLE-LA-TEINTURIERE","76"]
[null,null,null,null,null,null,null,null,null,null,null,"GRANDCHAMP","89"]
[null,null,null,null,null,null,null,null,null,null,null,"GRAND-FAILLY","54"]
[null,null,null,null,null,null,null,null,null,null,null,"GRANDFRESNOY","60"]
[null,null,null,null,null,null,null,null,null,null,null,"GRAND-ROZOY","02"]
[null,null,null,null,null,null,null,null,null,null,null,"GRANGES-SUR-VOLOGNE","88"]
[null,null,null,null,null,null,null,null,null,null,null,"GRAS","07"]
[null,null,null,null,null,null,null,null,null,null,null,"GRAVELINES","59"]
[null,null,null,null,null,null,null,null,null,null,null,"GREGES","76"]
[null,null,null,null,null,null,null,null,null,null,null,"GRENAY","38"]
[null,null,null,null,null,null,null,null,null,null,null,"GRESSE-EN-VERCORS","38"]
[null,null,null,null,null,null,null,null,null,null,null,"GREZ-NEUVILLE","49"]
[null,null,null,null,null,null,null,null,null,null,null,"GRIGNEUSEVILLE","76"]
[null,null,null,null,null,null,null,null,null,null,null,"GRIGNY","62"]
[null,null,null,null,null,null,null,null,null,null,null,"GRON","18"]
[null,null,null,null,null,null,null,null,null,null,null,"GROS-REDERCHING","57"]
[null,null,null,null,null,null,null,null,null,null,null,"GROSVILLE","50"]
[null,null,null,null,null,null,null,null,null,null,null,"GRUGNY","76"]
[null,null,null,null,null,null,null,null,null,null,null,"GUEGON","56"]
[null,null,null,null,null,null,null,null,null,null,null,"GUEMPS","62"]
[null,null,null,null,null,null,null,null,null,null,null,"GUERCHEVILLE","77"]
[null,null,null,null,null,null,null,null,null,null,null,"GUETHARY","64"]
[null,null,null,null,null,null,null,null,null,null,null,"GUIBEVILLE","91"]
[null,null,null,null,null,null,null,null,null,null,null,"GUIGNEVILLE-SUR-ESSONNE","91"]
[null,null,null,null,null,null,null,null,null,null,null,"GUILLY","45"]
[null,null,null,null,null,null,null,null,null,null,null,"GUIPEL","35"]
[null,null,null,null,null,null,null,null,null,null,null,"GUISENIERS","27"]
[null,null,null,null,null,null,null,null,null,null,null,"GUNSTETT","67"]
[null,null,null,null,null,null,null,null,null,null,null,"GUYANS-VENNES","25"]
[null,null,null,null,null,null,null,null,null,null,null,"GY-L'EVEQUE","89"]
[null,null,null,null,null,null,null,null,null,null,null,"HAGETAUBIN","64"]
[null,null,null,null,null,null,null,null,null,null,null,"HALINGHEN","62"]
[null,null,null,null,null,null,null,null,null,null,null,"HALLOY-LES-PERNOIS","80"]
[null,null,null,null,null,null,null,null,null,null,null,"HAMEL","59"]
[null,null,null,null,null,null,null,null,null,null,null,"HANNOGNE-SAINT-MARTIN","08"]
[null,null,null,null,null,null,null,null,null,null,null,"HANVILLER","57"]
[null,null,null,null,null,null,null,null,null,null,null,"HARCOURT","27"]
[null,null,null,null,null,null,null,null,null,null,null,"HARNES","62"]
[null,null,null,null,null,null,null,null,null,null,null,"HARTZVILLER","57"]
[null,null,null,null,null,null,null,null,null,null,null,"HASTINGUES","40"]
[null,null,null,null,null,null,null,null,null,null,null,"HAUSSIGNEMONT","51"]
[null,null,null,null,null,null,null,null,null,null,null,"HAUTE-EPINE","60"]
[null,null,null,null,null,null,null,null,null,null,null,"HAUTE-GOULAINE","44"]
[null,null,null,null,null,null,null,null,null,null,null,"HAUTEVILLE-SUR-MER","50"]
[null,null,null,null,null,null,null,null,null,null,null,"HAUTVILLERS-OUVILLE","80"]
[null,null,null,null,null,null,null,null,null,null,null,"HAVERNAS","80"]
[null,null,null,null,null,null,null,null,null,null,null,"HEBECREVON","50"]
[null,null,null,null,null,null,null,null,null,null,null,"HEILTZ-LE-MAURUPT","51"]
[null,null,null,null,null,null,null,null,null,null,null,"HELESMES","59"]
[null,null,null,null,null,null,null,null,null,null,null,"HEMEVILLERS","60"]
[null,null,null,null,null,null,null,null,null,null,null,"HENONVILLE","60"]
[null,null,null,null,null,null,null,null,null,null,null,"HERBIGNAC","44"]
[null,null,null,null,null,null,null,null,null,null,null,"HERCHIES","60"]
[null,null,null,null,null,null,null,null,null,null,null,"HERME","77"]
[null,null,null,null,null,null,null,null,null,null,null,"HERNICOURT","62"]
[null,null,null,null,null,null,null,null,null,null,null,"HERRIN","59"]
[null,null,null,null,null,null,null,null,null,null,null,"HESTROFF","57"]
[null,null,null,null,null,null,null,null,null,null,null,"HEUGAS","40"]
[null,null,null,null,null,null,null,null,null,null,null,"HEUQUEVILLE","76"]
[null,null,null,null,null,null,null,null,null,null,null,"HIPSHEIM","67"]
[null,null,null,null,null,null,null,null,null,null,null,"HIRTZFELDEN","68"]
[null,null,null,null,null,null,null,null,null,null,null,"HODENG-HODENGER","76"]
[null,null,null,null,null,null,null,null,null,null,null,"HOMMERT","57"]
[null,null,null,null,null,null,null,null,null,null,null,"HONDSCHOOTE","59"]
[null,null,null,null,null,null,null,null,null,null,null,"HONTANX","40"]
[null,null,null,null,null,null,null,null,null,null,null,"HOUDEMONT","54"]
[null,null,null,null,null,null,null,null,null,null,null,"HOULBEC-COCHEREL","27"]
[null,null,null,null,null,null,null,null,null,null,null,"HOUSSAY","53"]
[null,null,null,null,null,null,null,null,null,null,null,"HUEST","27"]
[null,null,null,null,null,null,null,null,null,null,null,"HUISMES","37"]
[null,null,null,null,null,null,null,null,null,null,null,"HUNAWIHR","68"]
[null,null,null,null,null,null,null,null,null,null,null,"HUTTENHEIM","67"]
[null,null,null,null,null,null,null,null,null,null,null,"IFFENDIC","35"]
[null,null,null,null,null,null,null,null,null,null,null,"IGNY-COMBLIZY","51"]
[null,null,null,null,null,null,null,null,null,null,null,"ILLHAEUSERN","68"]
[null,null,null,null,null,null,null,null,null,null,null,"ILLZACH","68"]
[null,null,null,null,null,null,null,null,null,null,null,"INCHY","59"]
[null,null,null,null,null,null,null,null,null,null,null,"INJOUX-GENISSIAT","01"]
[null,null,null,null,null,null,null,null,null,null,null,"IRODOUER","35"]
[null,null,null,null,null,null,null,null,null,null,null,"IS-EN-BASSIGNY","52"]
[null,null,null,null,null,null,null,null,null,null,null,"ISNEAUVILLE","76"]
[null,null,null,null,null,null,null,null,null,null,null,"ISSOU","78"]
[null,null,null,null,null,null,null,null,null,null,null,"ISSY-L'EVEQUE","71"]
[null,null,null,null,null,null,null,null,null,null,null,"IVERNY","77"]
[null,null,null,null,null,null,null,null,null,null,null,"IZON","33"]
[null,null,null,null,null,null,null,null,null,null,null,"JALIGNY-SUR-BESBRE","03"]
[null,null,null,null,null,null,null,null,null,null,null,"JALONS","51"]
[null,null,null,null,null,null,null,null,null,null,null,"JARDIN","38"]
[null,null,null,null,null,null,null,null,null,null,null,"JARNOSSE","42"]
[null,null,null,null,null,null,null,null,null,null,null,"JARSY","73"]
[null,null,null,null,null,null,null,null,null,null,null,"JAUSIERS","04"]
[null,null,null,null,null,null,null,null,null,null,null,"JAZENNES","17"]
[null,null,null,null,null,null,null,null,null,null,null,"JENLAIN","59"]
[null,null,null,null,null,null,null,null,null,null,null,"JOANNAS","07"]
[null,null,null,null,null,null,null,null,null,null,null,"JONGIEUX","73"]
[null,null,null,null,null,null,null,null,null,null,null,"JONQUIERES","34"]
[null,null,null,null,null,null,null,null,null,null,null,"JOSSIGNY","77"]
[null,null,null,null,null,null,null,null,null,null,null,"JOUILLAT","23"]
[null,null,null,null,null,null,null,null,null,null,null,"JOURNY","62"]
[null,null,null,null,null,null,null,null,null,null,null,"JOUY-LE-MOUTIER","95"]
[null,null,null,null,null,null,null,null,null,null,null,"JUIGNAC","16"]
[null,null,null,null,null,null,null,null,null,null,null,"JUILLY","77"]
[null,null,null,null,null,null,null,null,null,null,null,"JULLOUVILLE","50"]
[null,null,null,null,null,null,null,null,null,null,null,"JURE","42"]
[null,null,null,null,null,null,null,null,null,null,null,"JUSSY","89"]
[null,null,null,null,null,null,null,null,null,null,null,"JUVIGNIES","60"]
[null,null,null,null,null,null,null,null,null,null,null,"JUZET-DE-LUCHON","31"]
[null,null,null,null,null,null,null,null,null,null,null,"KERGRIST","56"]
[null,null,null,null,null,null,null,null,null,null,null,"KERMARIA-SULARD","22"]
[null,null,null,null,null,null,null,null,null,null,null,"KESSELDORF","67"]
[null,null,null,null,null,null,null,null,null,null,null,"KOESTLACH","68"]
[null,null,null,null,null,null,null,null,null,null,null,"KOUROU","973"]
[null,null,null,null,null,null,null,null,null,null,null,"LA BACONNIERE","53"]
[null,null,null,null,null,null,null,null,null,null,null,"LA BASTIDE-DE-SEROU","09"]
[null,null,null,null,null,null,null,null,null,null,null,"LA BATIE-VIEILLE","05"]
[null,null,null,null,null,null,null,null,null,null,null,"LA BAUME-D'HOSTUN","26"]
[null,null,null,null,null,null,null,null,null,null,null,"LA BLOUTIERE","50"]
[null,null,null,null,null,null,null,null,null,null,null,"LA BOLLENE-VESUBIE","06"]
[null,null,null,null,null,null,null,null,null,null,null,"LA BOUILLIE","22"]
[null,null,null,null,null,null,null,null,null,null,null,"LA BROSSE-MONTCEAUX","77"]
[null,null,null,null,null,null,null,null,null,null,null,"LA CABANASSE","66"]
[null,null,null,null,null,null,null,null,null,null,null,"LA CANOURGUE","48"]
[null,null,null,null,null,null,null,null,null,null,null,"LA CELLE","18"]
[null,null,null,null,null,null,null,null,null,null,null,"LA CHAMBRE","73"]
[null,null,null,null,null,null,null,null,null,null,null,"LA CHAPELLE-AGNON","63"]
[null,null,null,null,null,null,null,null,null,null,null,"LA CHAPELLE-AUX-NAUX","37"]
[null,null,null,null,null,null,null,null,null,null,null,"LA CHAPELLE-D'ARMENTIERES","59"]
[null,null,null,null,null,null,null,null,null,null,null,"LA CHAPELLE-DEVANT-BRUYERES","88"]
[null,null,null,null,null,null,null,null,null,null,null,"LA CHAPELLE-DU-LOU","35"]
[null,null,null,null,null,null,null,null,null,null,null,"LA CHAPELLE-HUGON","18"]
[null,null,null,null,null,null,null,null,null,null,null,"LA CHAPELLE-MONTMARTIN","41"]
[null,null,null,null,null,null,null,null,null,null,null,"LA CHAPELLE-NEUVE","22"]
[null,null,null,null,null,null,null,null,null,null,null,"LA CHAPELLE-SAINT-MESMIN","45"]
[null,null,null,null,null,null,null,null,null,null,null,"LA CHAPELLE-SUR-COISE","69"]
[null,null,null,null,null,null,null,null,null,null,null,"LA CHAPELLE-TAILLEFERT","23"]
[null,null,null,null,null,null,null,null,null,null,null,"LA CHAUSSEE-TIRANCOURT","80"]
[null,null,null,null,null,null,null,null,null,null,null,"LA CHEPPE","51"]
[null,null,null,null,null,null,null,null,null,null,null,"LA CLISSE","17"]
[null,null,null,null,null,null,null,null,null,null,null,"LA COURONNE","16"]
[null,null,null,null,null,null,null,null,null,null,null,"LA CRECHE","79"]
[null,null,null,null,null,null,null,null,null,null,null,"LA CROIX-EN-TOURAINE","37"]
[null,null,null,null,null,null,null,null,null,null,null,"LA FARE-LES-OLIVIERS","13"]
[null,null,null,null,null,null,null,null,null,null,null,"LA FERMETE","58"]
[null,null,null,null,null,null,null,null,null,null,null,"LA FERRIERE-SUR-RISLE","27"]
[null,null,null,null,null,null,null,null,null,null,null,"LA FERTE-VILLENEUIL","28"]
[null,null,null,null,null,null,null,null,null,null,null,"LA FLAMENGRIE","02"]
[null,null,null,null,null,null,null,null,null,null,null,"LA FORET-FOUESNANT","29"]
[null,null,null,null,null,null,null,null,null,null,null,"LA GACILLY","56"]
[null,null,null,null,null,null,null,null,null,null,null,"LA GENETOUZE","85"]
[null,null,null,null,null,null,null,null,null,null,null,"LA GONFRIERE","61"]
[null,null,null,null,null,null,null,null,null,null,null,"LA GRIMAUDIERE","86"]
[null,null,null,null,null,null,null,null,null,null,null,"LA HAIE-FOUASSIERE","44"]
[null,null,null,null,null,null,null,null,null,null,null,"LA HAYE","76"]
[null,null,null,null,null,null,null,null,null,null,null,"LA JARNE","17"]
[null,null,null,null,null,null,null,null,null,null,null,"LA LANDEC","22"]
[null,null,null,null,null,null,null,null,null,null,null,"LA LECHERE","73"]
[null,null,null,null,null,null,null,null,null,null,null,"LA LOUPE","28"]
[null,null,null,null,null,null,null,null,null,null,null,"LA MARNE","44"]
[null,null,null,null,null,null,null,null,null,null,null,"LA MEAUGON","22"]
[null,null,null,null,null,null,null,null,null,null,null,"LA MEZIERE","35"]
[null,null,null,null,null,null,null,null,null,null,null,"LA MOTTE-SERVOLEX","73"]
[null,null,null,null,null,null,null,null,null,null,null,"LA NEUVELLE-LES-LURE","70"]
[null,null,null,null,null,null,null,null,null,null,null,"LA NEUVILLE-AUX-JOUTES","08"]
[null,null,null,null,null,null,null,null,null,null,null,"LA NOUE","51"]
[null,null,null,null,null,null,null,null,null,null,null,"LA PERRIERE","73"]
[null,null,null,null,null,null,null,null,null,null,null,"LA PETITE-RAON","88"]
[null,null,null,null,null,null,null,null,null,null,null,"LA QUEUE-EN-BRIE","94"]
[null,null,null,null,null,null,null,null,null,null,null,"LA REOLE","33"]
[null,null,null,null,null,null,null,null,null,null,null,"LA RIVIERE","38"]
[null,null,null,null,null,null,null,null,null,null,null,"LA ROCHE-BLANCHE","44"]
[null,null,null,null,null,null,null,null,null,null,null,"LA ROCHE-POSAY","86"]
[null,null,null,null,null,null,null,null,null,null,null,"LA ROCHETTE","73"]
[null,null,null,null,null,null,null,null,null,null,null,"LA ROQUE-D'ANTHERON","13"]
[null,null,null,null,null,null,null,null,null,null,null,"LA SALLE-ET-CHAPELLE-AUBRY","49"]
[null,null,null,null,null,null,null,null,null,null,null,"LA SAUVAGERE","61"]
[null,null,null,null,null,null,null,null,null,null,null,"LA SAUVETAT-SUR-LEDE","47"]
[null,null,null,null,null,null,null,null,null,null,null,"LA TAGNIERE","71"]
[null,null,null,null,null,null,null,null,null,null,null,"LA TOUR","74"]
[null,null,null,null,null,null,null,null,null,null,null,"LA TOUR-DU-CRIEU","09"]
[null,null,null,null,null,null,null,null,null,null,null,"LA TRINITE-PORHOET","56"]
[null,null,null,null,null,null,null,null,null,null,null,"LA VALLA-EN-GIER","42"]
[null,null,null,null,null,null,null,null,null,null,null,"LA VENDELEE","50"]
[null,null,null,null,null,null,null,null,null,null,null,"LA VESPIERE","14"]
[null,null,null,null,null,null,null,null,null,null,null,"LA VOIVRE","88"]
[null,null,null,null,null,null,null,null,null,null,null,"LAAS","32"]
[null,null,null,null,null,null,null,null,null,null,null,"LABASTIDE-CEZERACQ","64"]
[null,null,null,null,null,null,null,null,null,null,null,"LABATMALE","64"]
[null,null,null,null,null,null,null,null,null,null,null,"LABEGE","31"]
[null,null,null,null,null,null,null,null,null,null,null,"LABERGEMENT-SAINTE-MARIE","25"]
[null,null,null,null,null,null,null,null,null,null,null,"LABURGADE","46"]
[null,null,null,null,null,null,null,null,null,null,null,"LACAZE","81"]
[null,null,null,null,null,null,null,null,null,null,null,"LACHAPELLE-AUX-POTS","60"]
[null,null,null,null,null,null,null,null,null,null,null,"LACROIX-SAINT-OUEN","60"]
[null,null,null,null,null,null,null,null,null,null,null,"LADIGNAC-SUR-RONDELLES","19"]
[null,null,null,null,null,null,null,null,null,null,null,"LAFERTE-SUR-AUBE","52"]
[null,null,null,null,null,null,null,null,null,null,null,"LAGARDE","65"]
[null,null,null,null,null,null,null,null,null,null,null,"LAGORCE","33"]
[null,null,null,null,null,null,null,null,null,null,null,"LAGRASSE","11"]
[null,null,null,null,null,null,null,null,null,null,null,"LAHEYCOURT","55"]
[null,null,null,null,null,null,null,null,null,null,null,"LAILLE","35"]
[null,null,null,null,null,null,null,null,null,null,null,"LAIRE","25"]
[null,null,null,null,null,null,null,null,null,null,null,"LAIZE-LA-VILLE","14"]
[null,null,null,null,null,null,null,null,null,null,null,"LALOEUF","54"]
[null,null,null,null,null,null,null,null,null,null,null,"LAMARCHE-SUR-SAONE","21"]
[null,null,null,null,null,null,null,null,null,null,null,"LAMBACH","57"]
[null,null,null,null,null,null,null,null,null,null,null,"LAMORVILLE","55"]
[null,null,null,null,null,null,null,null,null,null,null,"LAMOTTE-WARFUSEE","80"]
[null,null,null,null,null,null,null,null,null,null,null,"LAMPERTSLOCH","67"]
[null,null,null,null,null,null,null,null,null,null,null,"LANDEDA","29"]
[null,null,null,null,null,null,null,null,null,null,null,"LANDES-LE-GAULOIS","41"]
[null,null,null,null,null,null,null,null,null,null,null,"LANDIGOU","61"]
[null,null,null,null,null,null,null,null,null,null,null,"LANDUNVEZ","29"]
[null,null,null,null,null,null,null,null,null,null,null,"LANEUVILLE-SUR-MEUSE","55"]
[null,null,null,null,null,null,null,null,null,null,null,"LANGEAC","43"]
[null,null,null,null,null,null,null,null,null,null,null,"LANGUENAN","22"]
[null,null,null,null,null,null,null,null,null,null,null,"LANING","57"]
[null,null,null,null,null,null,null,null,null,null,null,"LANNE-EN-BARETOUS","64"]
[null,null,null,null,null,null,null,null,null,null,null,"LANRODEC","22"]
[null,null,null,null,null,null,null,null,null,null,null,"LANSLEVILLARD","73"]
[null,null,null,null,null,null,null,null,null,null,null,"LANTENNE-VERTIERE","25"]
[null,null,null,null,null,null,null,null,null,null,null,"LAPALISSE","03"]
[null,null,null,null,null,null,null,null,null,null,null,"LAPEYROUSE","63"]
[null,null,null,null,null,null,null,null,null,null,null,"LAPS","63"]
[null,null,null,null,null,null,null,null,null,null,null,"LARDY","91"]
[null,null,null,null,null,null,null,null,null,null,null,"LARNOD","25"]
[null,null,null,null,null,null,null,null,null,null,null,"LAROQUE","34"]
[null,null,null,null,null,null,null,null,null,null,null,"LARROQUE","31"]
[null,null,null,null,null,null,null,null,null,null,null,"LASLADES","65"]
[null,null,null,null,null,null,null,null,null,null,null,"LASSEUBE","64"]
[null,null,null,null,null,null,null,null,null,null,null,"LATOUE","31"]
[null,null,null,null,null,null,null,null,null,null,null,"LAUNAC","31"]
[null,null,null,null,null,null,null,null,null,null,null,"LAURAC-EN-VIVARAIS","07"]
[null,null,null,null,null,null,null,null,null,null,null,"LAUSSONNE","43"]
[null,null,null,null,null,null,null,null,null,null,null,"LAVAL-EN-LAONNOIS","02"]
[null,null,null,null,null,null,null,null,null,null,null,"LAVANCIA-EPERCY","39"]
[null,null,null,null,null,null,null,null,null,null,null,"LAVAULT-SAINTE-ANNE","03"]
[null,null,null,null,null,null,null,null,null,null,null,"LAVERSINES","60"]
[null,null,null,null,null,null,null,null,null,null,null,"LAVOUTE-SUR-LOIRE","43"]
[null,null,null,null,null,null,null,null,null,null,null,"LAY-SAINT-CHRISTOPHE","54"]
[null,null,null,null,null,null,null,null,null,null,null,"LE BELIEU","25"]
[null,null,null,null,null,null,null,null,null,null,null,"LE BIZOT","25"]
[null,null,null,null,null,null,null,null,null,null,null,"LE BOIS-D'OINGT","69"]
[null,null,null,null,null,null,null,null,null,null,null,"LE BOURG","46"]
[null,null,null,null,null,null,null,null,null,null,null,"LE BREIL-SUR-MERIZE","72"]
[null,null,null,null,null,null,null,null,null,null,null,"LE BREUIL-BERNARD","79"]
[null,null,null,null,null,null,null,null,null,null,null,"LE BRUSQUET","04"]
[null,null,null,null,null,null,null,null,null,null,null,"LE CAYROL","12"]
[null,null,null,null,null,null,null,null,null,null,null,"LE CHAMBON-FEUGEROLLES","42"]
[null,null,null,null,null,null,null,null,null,null,null,"LE CHATELET-EN-BRIE","77"]
[null,null,null,null,null,null,null,null,null,null,null,"LE CLOITRE-SAINT-THEGONNEC","29"]
[null,null,null,null,null,null,null,null,null,null,null,"LE COURS","56"]
[null,null,null,null,null,null,null,null,null,null,null,"LE CROISTY","56"]
[null,null,null,null,null,null,null,null,null,null,null,"LE FAUGA","31"]
[null,null,null,null,null,null,null,null,null,null,null,"LE FIEU","33"]
[null,null,null,null,null,null,null,null,null,null,null,"LE FOUILLOUX","17"]
[null,null,null,null,null,null,null,null,null,null,null,"LE GIVRE","85"]
[null,null,null,null,null,null,null,null,null,null,null,"LE GRAND-VILLAGE-PLAGE","17"]
[null,null,null,null,null,null,null,null,null,null,null,"LE GUA","38"]
[null,null,null,null,null,null,null,null,null,null,null,"LE HAMEL","80"]
[null,null,null,null,null,null,null,null,null,null,null,"LE LIEGE","37"]
[null,null,null,null,null,null,null,null,null,null,null,"LE LOREY","50"]
[null,null,null,null,null,null,null,null,null,null,null,"LE MAGNY","36"]
[null,null,null,null,null,null,null,null,null,null,null,"LE MEE-SUR-SEINE","77"]
[null,null,null,null,null,null,null,null,null,null,null,"LE MERLERAULT","61"]
[null,null,null,null,null,null,null,null,null,null,null,"LE MESNIL-EN-VALLEE","49"]
[null,null,null,null,null,null,null,null,null,null,null,"LE MESNIL-THERIBUS","60"]
[null,null,null,null,null,null,null,null,null,null,null,"LE MONASTIER-SUR-GAZEILLE","43"]
[null,null,null,null,null,null,null,null,null,null,null,"LE MONT-SAINT-ADRIEN","60"]
[null,null,null,null,null,null,null,null,null,null,null,"LE PASQUIER","39"]
[null,null,null,null,null,null,null,null,null,null,null,"LE PERRAY-EN-YVELINES","78"]
[null,null,null,null,null,null,null,null,null,null,null,"LE PERTUIS","43"]
[null,null,null,null,null,null,null,null,null,null,null,"LE PIN","38"]
[null,null,null,null,null,null,null,null,null,null,null,"LE PLESSIS-BOUCHARD","95"]
[null,null,null,null,null,null,null,null,null,null,null,"LE PLESSIS-HEBERT","27"]
[null,null,null,null,null,null,null,null,null,null,null,"LE POINCONNET","36"]
[null,null,null,null,null,null,null,null,null,null,null,"LE POUZIN","07"]
[null,null,null,null,null,null,null,null,null,null,null,"LE PUISET-DORE","49"]
[null,null,null,null,null,null,null,null,null,null,null,"LE QUIOU","22"]
[null,null,null,null,null,null,null,null,null,null,null,"LE RUSSEY","25"]
[null,null,null,null,null,null,null,null,null,null,null,"LE SOURN","56"]
[null,null,null,null,null,null,null,null,null,null,null,"LE TANU","50"]
[null,null,null,null,null,null,null,null,null,null,null,"LE THOLONET","13"]
[null,null,null,null,null,null,null,null,null,null,null,"LE TIGNET","06"]
[null,null,null,null,null,null,null,null,null,null,null,"LE TORQUESNE","14"]
[null,null,null,null,null,null,null,null,null,null,null,"LE VAL-DAVID","27"]
[null,null,null,null,null,null,null,null,null,null,null,"LE VAST","50"]
[null,null,null,null,null,null,null,null,null,null,null,"LE VERGER","35"]
[null,null,null,null,null,null,null,null,null,null,null,"LE VIVIER-SUR-MER","35"]
[null,null,null,null,null,null,null,null,null,null,null,"LECELLES","59"]
[null,null,null,null,null,null,null,null,null,null,null,"LECTOURE","32"]
[null,null,null,null,null,null,null,null,null,null,null,"LEGUEVIN","31"]
[null,null,null,null,null,null,null,null,null,null,null,"LEIGNE-LES-BOIS","86"]
[null,null,null,null,null,null,null,null,null,null,null,"LEMBRAS","24"]
[null,null,null,null,null,null,null,null,null,null,null,"LENT","01"]
[null,null,null,null,null,null,null,null,null,null,null,"LEON","40"]
[null,null,null,null,null,null,null,null,null,null,null,"LEPUIX-NEUF","90"]
[null,null,null,null,null,null,null,null,null,null,null,"LES ALLEUDS","79"]
[null,null,null,null,null,null,null,null,null,null,null,"LES ANGLES","66"]
[null,null,null,null,null,null,null,null,null,null,null,"LES AVANCHERS-VALMOREL","73"]
[null,null,null,null,null,null,null,null,null,null,null,"LES BORDES-SUR-ARIZE","09"]
[null,null,null,null,null,null,null,null,null,null,null,"LES CARS","87"]
[null,null,null,null,null,null,null,null,null,null,null,"LES CHATELLIERS-CHATEAUMUR","85"]
[null,null,null,null,null,null,null,null,null,null,null,"LES ECORCES","25"]
[null,null,null,null,null,null,null,null,null,null,null,"LES ESSARTS-LES-SEZANNE","51"]
[null,null,null,null,null,null,null,null,null,null,null,"LES FINS","25"]
[null,null,null,null,null,null,null,null,null,null,null,"LES GRANDES-LOGES","51"]
[null,null,null,null,null,null,null,null,null,null,null,"LES HOUCHES","74"]
[null,null,null,null,null,null,null,null,null,null,null,"LES LEVES-ET-THOUMEYRAGUES","33"]
[null,null,null,null,null,null,null,null,null,null,null,"LES MARTRES-D'ARTIERE","63"]
[null,null,null,null,null,null,null,null,null,null,null,"LES MONTILS","41"]
[null,null,null,null,null,null,null,null,null,null,null,"LES NOES-PRES-TROYES","10"]
[null,null,null,null,null,null,null,null,null,null,null,"LES PAVILLONS-SOUS-BOIS","93"]
[null,null,null,null,null,null,null,null,null,null,null,"LES RICEYS","10"]
[null,null,null,null,null,null,null,null,null,null,null,"LES SALLES-DU-GARDON","30"]
[null,null,null,null,null,null,null,null,null,null,null,"LES THILLIERS-EN-VEXIN","27"]
[null,null,null,null,null,null,null,null,null,null,null,"LES VOIVRES","88"]
[null,null,null,null,null,null,null,null,null,null,null,"LESCOUT","81"]
[null,null,null,null,null,null,null,null,null,null,null,"LESGOR","40"]
[null,null,null,null,null,null,null,null,null,null,null,"LESPIGNAN","34"]
[null,null,null,null,null,null,null,null,null,null,null,"L'ETANG-LA-VILLE","78"]
[null,null,null,null,null,null,null,null,null,null,null,"LEUC","11"]
[null,null,null,null,null,null,null,null,null,null,null,"LEUVILLE-SUR-ORGE","91"]
[null,null,null,null,null,null,null,null,null,null,null,"LEVIS-SAINT-NOM","78"]
[null,null,null,null,null,null,null,null,null,null,null,"LEYMEN","68"]
[null,null,null,null,null,null,null,null,null,null,null,"LEZAY","79"]
[null,null,null,null,null,null,null,null,null,null,null,"LHOMMAIZE","86"]
[null,null,null,null,null,null,null,null,null,null,null,"L'HOTELLERIE","14"]
[null,null,null,null,null,null,null,null,null,null,null,"LIANCOURT","60"]
[null,null,null,null,null,null,null,null,null,null,null,"LIESLE","25"]
[null,null,null,null,null,null,null,null,null,null,null,"LIEUSAINT","50"]
[null,null,null,null,null,null,null,null,null,null,null,"LIEZEY","88"]
[null,null,null,null,null,null,null,null,null,null,null,"LIGNIERES-CHATELAIN","80"]
[null,null,null,null,null,null,null,null,null,null,null,"LIGNY-LE-RIBAULT","45"]
[null,null,null,null,null,null,null,null,null,null,null,"LIGUEIL","37"]
[null,null,null,null,null,null,null,null,null,null,null,"L'ILE-SAINT-DENIS","93"]
[null,null,null,null,null,null,null,null,null,null,null,"LIMEUIL","24"]
[null,null,null,null,null,null,null,null,null,null,null,"LIMONS","63"]
[null,null,null,null,null,null,null,null,null,null,null,"LINDRY","89"]
[null,null,null,null,null,null,null,null,null,null,null,"LIPOSTHEY","40"]
[null,null,null,null,null,null,null,null,null,null,null,"L'ISLE-D'ESPAGNAC","16"]
[null,null,null,null,null,null,null,null,null,null,null,"L'ISLE-SUR-LE-DOUBS","25"]
[null,null,null,null,null,null,null,null,null,null,null,"LIVAROT","14"]
[null,null,null,null,null,null,null,null,null,null,null,"LIVRON-SUR-DROME","26"]
[null,null,null,null,null,null,null,null,null,null,null,"LIXHAUSEN","67"]
[null,null,null,null,null,null,null,null,null,null,null,"LOCHES-SUR-OURCE","10"]
[null,null,null,null,null,null,null,null,null,null,null,"LOCMIQUELIC","56"]
[null,null,null,null,null,null,null,null,null,null,null,"LOCQUIGNOL","59"]
[null,null,null,null,null,null,null,null,null,null,null,"LOGELHEIM","68"]
[null,null,null,null,null,null,null,null,null,null,null,"LOISIN","74"]
[null,null,null,null,null,null,null,null,null,null,null,"LOIX","17"]
[null,null,null,null,null,null,null,null,null,null,null,"LONDINIERES","76"]
[null,null,null,null,null,null,null,null,null,null,null,"LONGEVES","17"]
[null,null,null,null,null,null,null,null,null,null,null,"LONGEVILLE-SUR-MER","85"]
[null,null,null,null,null,null,null,null,null,null,null,"LONGPRE-LES-CORPS-SAINTS","80"]
[null,null,null,null,null,null,null,null,null,null,null,"LONGUEVILLE","14"]
[null,null,null,null,null,null,null,null,null,null,null,"LONRAI","61"]
[null,null,null,null,null,null,null,null,null,null,null,"LOOS-EN-GOHELLE","62"]
[null,null,null,null,null,null,null,null,null,null,null,"LORIOL-DU-COMTAT","84"]
[null,null,null,null,null,null,null,null,null,null,null,"LORRAIN","972"]
[null,null,null,null,null,null,null,null,null,null,null,"LOSCOUET-SUR-MEU","22"]
[null,null,null,null,null,null,null,null,null,null,null,"LOUCHES","62"]
[null,null,null,null,null,null,null,null,null,null,null,"LOUDREFING","57"]
[null,null,null,null,null,null,null,null,null,null,null,"LOUGE-SUR-MAIRE","61"]
[null,null,null,null,null,null,null,null,null,null,null,"LOURDOUEIX-SAINT-PIERRE","23"]
[null,null,null,null,null,null,null,null,null,null,null,"LOURNAND","71"]
[null,null,null,null,null,null,null,null,null,null,null,"LOUVEMONT","52"]
[null,null,null,null,null,null,null,null,null,null,null,"LOUZY","79"]
[null,null,null,null,null,null,null,null,null,null,null,"LOZINGHEM","62"]
[null,null,null,null,null,null,null,null,null,null,null,"LUCENAY-LES-AIX","58"]
[null,null,null,null,null,null,null,null,null,null,null,"LUCQUY","08"]
[null,null,null,null,null,null,null,null,null,null,null,"LUDON-MEDOC","33"]
[null,null,null,null,null,null,null,null,null,null,null,"LUGNY","71"]
[null,null,null,null,null,null,null,null,null,null,null,"LUNAN","46"]
[null,null,null,null,null,null,null,null,null,null,null,"L'UNION","31"]
[null,null,null,null,null,null,null,null,null,null,null,"LUPPY","57"]
[null,null,null,null,null,null,null,null,null,null,null,"LUSIGNY-SUR-BARSE","10"]
[null,null,null,null,null,null,null,null,null,null,null,"LUSSAT","63"]
[null,null,null,null,null,null,null,null,null,null,null,"LUTTENBACH-PRES-MUNSTER","68"]
[null,null,null,null,null,null,null,null,null,null,null,"LUZARCHES","95"]
[null,null,null,null,null,null,null,null,null,null,null,"LUZ-SAINT-SAUVEUR","65"]
[null,null,null,null,null,null,null,null,null,null,null,"LYNDE","59"]
[null,null,null,null,null,null,null,null,null,null,null,"MACEY","10"]
[null,null,null,null,null,null,null,null,null,null,null,"MACQUEVILLE","17"]
[null,null,null,null,null,null,null,null,null,null,null,"MAEL-CARHAIX","22"]
[null,null,null,null,null,null,null,null,null,null,null,"MAGNAC-SUR-TOUVRE","16"]
[null,null,null,null,null,null,null,null,null,null,null,"MAGNY-EN-VEXIN","95"]
[null,null,null,null,null,null,null,null,null,null,null,"MAGNY-LES-VILLERS","21"]
[null,null,null,null,null,null,null,null,null,null,null,"MAIGNE","72"]
[null,null,null,null,null,null,null,null,null,null,null,"MAILLY-LA-VILLE","89"]
[null,null,null,null,null,null,null,null,null,null,null,"MAINNEVILLE","27"]
[null,null,null,null,null,null,null,null,null,null,null,"MAINXE","16"]
[null,null,null,null,null,null,null,null,null,null,null,"MAISONNAY","79"]
[null,null,null,null,null,null,null,null,null,null,null,"MAISONS-LAFFITTE","78"]
[null,null,null,null,null,null,null,null,null,null,null,"MAIZIERES","14"]
[null,null,null,null,null,null,null,null,null,null,null,"MALANGE","39"]
[null,null,null,null,null,null,null,null,null,null,null,"MALESHERBES","45"]
[null,null,null,null,null,null,null,null,null,null,null,"MALIGNY","89"]
[null,null,null,null,null,null,null,null,null,null,null,"MALMERSPACH","68"]
[null,null,null,null,null,null,null,null,null,null,null,"MANCE","54"]
[null,null,null,null,null,null,null,null,null,null,null,"MANCIOUX","31"]
[null,null,null,null,null,null,null,null,null,null,null,"MANDRES-LA-COTE","52"]
[null,null,null,null,null,null,null,null,null,null,null,"MANNEVILLE-LA-PIPARD","14"]
[null,null,null,null,null,null,null,null,null,null,null,"MANSAC","19"]
[null,null,null,null,null,null,null,null,null,null,null,"MANTENAY-MONTLIN","01"]
[null,null,null,null,null,null,null,null,null,null,null,"MARANGE-SILVANGE","57"]
[null,null,null,null,null,null,null,null,null,null,null,"MARBAIX","59"]
[null,null,null,null,null,null,null,null,null,null,null,"MARCAY","37"]
[null,null,null,null,null,null,null,null,null,null,null,"MARCEY-LES-GREVES","50"]
[null,null,null,null,null,null,null,null,null,null,null,"MARCILLAC-LA-CROISILLE","19"]
[null,null,null,null,null,null,null,null,null,null,null,"MARCILLE-RAOUL","35"]
[null,null,null,null,null,null,null,null,null,null,null,"MARCILLY-LE-CHATEL","42"]
[null,null,null,null,null,null,null,null,null,null,null,"MARCORIGNAN","11"]
[null,null,null,null,null,null,null,null,null,null,null,"MARCQ-EN-OSTREVENT","59"]
[null,null,null,null,null,null,null,null,null,null,null,"MAREIL-LE-GUYON","78"]
[null,null,null,null,null,null,null,null,null,null,null,"MAREUIL-LA-MOTTE","60"]
[null,null,null,null,null,null,null,null,null,null,null,"MARGENCEL","74"]
[null,null,null,null,null,null,null,null,null,null,null,"MARGNY-LES-COMPIEGNE","60"]
[null,null,null,null,null,null,null,null,null,null,null,"MARIGNY","50"]
[null,null,null,null,null,null,null,null,null,null,null,"MARIGNY-SAINT-MARCEL","74"]
[null,null,null,null,null,null,null,null,null,null,null,"MARIPASOULA","973"]
[null,null,null,null,null,null,null,null,null,null,null,"MARLY-LA-VILLE","95"]
[null,null,null,null,null,null,null,null,null,null,null,"MARNAY","70"]
[null,null,null,null,null,null,null,null,null,null,null,"MARNOZ","39"]
[null,null,null,null,null,null,null,null,null,null,null,"MAROLLES-LES-BRAULTS","72"]
[null,null,null,null,null,null,null,null,null,null,null,"MARQUION","62"]
[null,null,null,null,null,null,null,null,null,null,null,"MARSAC","16"]
[null,null,null,null,null,null,null,null,null,null,null,"MARSAN","32"]
[null,null,null,null,null,null,null,null,null,null,null,"MARS-LA-TOUR","54"]
[null,null,null,null,null,null,null,null,null,null,null,"MARTEL","46"]
[null,null,null,null,null,null,null,null,null,null,null,"MARTIGNAT","01"]
[null,null,null,null,null,null,null,null,null,null,null,"MARTRAGNY","14"]
[null,null,null,null,null,null,null,null,null,null,null,"MARZENS","81"]
[null,null,null,null,null,null,null,null,null,null,null,"MAS-DE-LONDRES","34"]
[null,null,null,null,null,null,null,null,null,null,null,"MASSERET","19"]
[null,null,null,null,null,null,null,null,null,null,null,"MASSOGNES","86"]
[null,null,null,null,null,null,null,null,null,null,null,"MATAFELON-GRANGES","01"]
[null,null,null,null,null,null,null,null,null,null,null,"MAUCOURT","60"]
[null,null,null,null,null,null,null,null,null,null,null,"MAULEON-LICHARRE","64"]
[null,null,null,null,null,null,null,null,null,null,null,"MAUPERTUS-SUR-MER","50"]
[null,null,null,null,null,null,null,null,null,null,null,"MAURS","15"]
[null,null,null,null,null,null,null,null,null,null,null,"MAUVES","07"]
[null,null,null,null,null,null,null,null,null,null,null,"MAUZAC","31"]
[null,null,null,null,null,null,null,null,null,null,null,"MAYRES","07"]
[null,null,null,null,null,null,null,null,null,null,null,"MAZANGE","41"]
[null,null,null,null,null,null,null,null,null,null,null,"MAZERIER","03"]
[null,null,null,null,null,null,null,null,null,null,null,"MAZION","33"]
[null,null,null,null,null,null,null,null,null,null,null,"MEAULTE","80"]
[null,null,null,null,null,null,null,null,null,null,null,"MEDREAC","35"]
[null,null,null,null,null,null,null,null,null,null,null,"MEILLAC","35"]
[null,null,null,null,null,null,null,null,null,null,null,"MELAMARE","76"]
[null,null,null,null,null,null,null,null,null,null,null,"MELICOCQ","60"]
[null,null,null,null,null,null,null,null,null,null,null,"MELUN","77"]
[null,null,null,null,null,null,null,null,null,null,null,"MENERBES","84"]
[null,null,null,null,null,null,null,null,null,null,null,"MENETOU-COUTURE","18"]
[null,null,null,null,null,null,null,null,null,null,null,"MENNESSIS","02"]
[null,null,null,null,null,null,null,null,null,null,null,"MENS","38"]
[null,null,null,null,null,null,null,null,null,null,null,"MENTQUE-NORTBECOURT","62"]
[null,null,null,null,null,null,null,null,null,null,null,"MERCENAC","09"]
[null,null,null,null,null,null,null,null,null,null,null,"MERENVIELLE","31"]
[null,null,null,null,null,null,null,null,null,null,null,"MERGEY","10"]
[null,null,null,null,null,null,null,null,null,null,null,"MERINCHAL","23"]
[null,null,null,null,null,null,null,null,null,null,null,"MERRIS","59"]
[null,null,null,null,null,null,null,null,null,null,null,"MERVILLA","31"]
[null,null,null,null,null,null,null,null,null,null,null,"MERY","73"]
[null,null,null,null,null,null,null,null,null,null,null,"MESLAY-LE-VIDAME","28"]
[null,null,null,null,null,null,null,null,null,null,null,"MESNIL-RAOUL","76"]
[null,null,null,null,null,null,null,null,null,null,null,"MESNIL-SUR-L'ESTREE","27"]
[null,null,null,null,null,null,null,null,null,null,null,"MESSINCOURT","08"]
[null,null,null,null,null,null,null,null,null,null,null,"METTING","57"]
[null,null,null,null,null,null,null,null,null,null,null,"METZERVISSE","57"]
[null,null,null,null,null,null,null,null,null,null,null,"MEURCE","72"]
[null,null,null,null,null,null,null,null,null,null,null,"MEYRALS","24"]
[null,null,null,null,null,null,null,null,null,null,null,"MEYRIEU-LES-ETANGS","38"]
[null,null,null,null,null,null,null,null,null,null,null,"MEZANGERS","53"]
[null,null,null,null,null,null,null,null,null,null,null,"MEZIERES-SUR-OISE","02"]
[null,null,null,null,null,null,null,null,null,null,null,"MEZOS","40"]
[null,null,null,null,null,null,null,null,null,null,null,"MICHERY","89"]
[null,null,null,null,null,null,null,null,null,null,null,"MIGRON","17"]
[null,null,null,null,null,null,null,null,null,null,null,"MILLAS","66"]
[null,null,null,null,null,null,null,null,null,null,null,"MILLERY","69"]
[null,null,null,null,null,null,null,null,null,null,null,"MINOT","21"]
[null,null,null,null,null,null,null,null,null,null,null,"MIRABEL","07"]
[null,null,null,null,null,null,null,null,null,null,null,"MIRAMONT-D'ASTARAC","32"]
[null,null,null,null,null,null,null,null,null,null,null,"MIREBEAU-SUR-BEZE","21"]
[null,null,null,null,null,null,null,null,null,null,null,"MISEREY-SALINES","25"]
[null,null,null,null,null,null,null,null,null,null,null,"MISSON","40"]
[null,null,null,null,null,null,null,null,null,null,null,"MITTELHAUSEN","67"]
[null,null,null,null,null,null,null,null,null,null,null,"MOGNARD","73"]
[null,null,null,null,null,null,null,null,null,null,null,"MOIGNY-SUR-ECOLE","91"]
[null,null,null,null,null,null,null,null,null,null,null,"MOISSANNES","87"]
[null,null,null,null,null,null,null,null,null,null,null,"MOLIERES-SUR-CEZE","30"]
[null,null,null,null,null,null,null,null,null,null,null,"MOLLAU","68"]
[null,null,null,null,null,null,null,null,null,null,null,"MOLOMPIZE","15"]
[null,null,null,null,null,null,null,null,null,null,null,"MONCAUT","47"]
[null,null,null,null,null,null,null,null,null,null,null,"MONCEL-LES-LUNEVILLE","54"]
[null,null,null,null,null,null,null,null,null,null,null,"MONCHEAUX","59"]
[null,null,null,null,null,null,null,null,null,null,null,"MONDAVEZAN","31"]
[null,null,null,null,null,null,null,null,null,null,null,"MONDRAGON","84"]
[null,null,null,null,null,null,null,null,null,null,null,"MONESTIER","24"]
[null,null,null,null,null,null,null,null,null,null,null,"MONFERRAN-SAVES","32"]
[null,null,null,null,null,null,null,null,null,null,null,"MONOBLET","30"]
[null,null,null,null,null,null,null,null,null,null,null,"MONS","83"]
[null,null,null,null,null,null,null,null,null,null,null,"MONS-EN-BAROEUL","59"]
[null,null,null,null,null,null,null,null,null,null,null,"MONTAGNAC-SUR-AUVIGNON","47"]
[null,null,null,null,null,null,null,null,null,null,null,"MONTAGNY","42"]
[null,null,null,null,null,null,null,null,null,null,null,"MONTAGNY-SAINTE-FELICITE","60"]
[null,null,null,null,null,null,null,null,null,null,null,"MONTAINVILLE","78"]
[null,null,null,null,null,null,null,null,null,null,null,"MONTANER","64"]
[null,null,null,null,null,null,null,null,null,null,null,"MONTARGIS","45"]
[null,null,null,null,null,null,null,null,null,null,null,"MONTAUROUX","83"]
[null,null,null,null,null,null,null,null,null,null,null,"MONTAZEAU","24"]
[null,null,null,null,null,null,null,null,null,null,null,"MONTBAZENS","12"]
[null,null,null,null,null,null,null,null,null,null,null,"MONTBOYER","16"]
[null,null,null,null,null,null,null,null,null,null,null,"MONTBRISON-SUR-LEZ","26"]
[null,null,null,null,null,null,null,null,null,null,null,"MONTBRUN-LES-BAINS","26"]
[null,null,null,null,null,null,null,null,null,null,null,"MONTCHAUVET","14"]
[null,null,null,null,null,null,null,null,null,null,null,"MONTCOMBROUX-LES-MINES","03"]
[null,null,null,null,null,null,null,null,null,null,null,"MONT-DE-LANS","38"]
[null,null,null,null,null,null,null,null,null,null,null,"MONTEGUT-LAURAGAIS","31"]
[null,null,null,null,null,null,null,null,null,null,null,"MONTELEGER","26"]
[null,null,null,null,null,null,null,null,null,null,null,"MONTENOY","54"]
[null,null,null,null,null,null,null,null,null,null,null,"MONTESQUIOU","32"]
[null,null,null,null,null,null,null,null,null,null,null,"MONTEYNARD","38"]
[null,null,null,null,null,null,null,null,null,null,null,"MONTFERMEIL","93"]
[null,null,null,null,null,null,null,null,null,null,null,"MONTGAILLARD","40"]
[null,null,null,null,null,null,null,null,null,null,null,"MONTGERON","91"]
[null,null,null,null,null,null,null,null,null,null,null,"MONTGISCARD","31"]
[null,null,null,null,null,null,null,null,null,null,null,"MONTHUREUX-SUR-SAONE","88"]
[null,null,null,null,null,null,null,null,null,null,null,"MONTIGNAC-DE-LAUZUN","47"]
[null,null,null,null,null,null,null,null,null,null,null,"MONTIGNY","45"]
[null,null,null,null,null,null,null,null,null,null,null,"MONTIGNY-LES-METZ","57"]
[null,null,null,null,null,null,null,null,null,null,null,"MONTIGNY-SUR-VESLE","51"]
[null,null,null,null,null,null,null,null,null,null,null,"MONTIPOURET","36"]
[null,null,null,null,null,null,null,null,null,null,null,"MONTJOIRE","31"]
[null,null,null,null,null,null,null,null,null,null,null,"MONT-LOUIS","66"]
[null,null,null,null,null,null,null,null,null,null,null,"MONTMAIN","76"]
[null,null,null,null,null,null,null,null,null,null,null,"MONTMERLE-SUR-SAONE","01"]
[null,null,null,null,null,null,null,null,null,null,null,"MONTOIR-DE-BRETAGNE","44"]
[null,null,null,null,null,null,null,null,null,null,null,"MONTOURS","35"]
[null,null,null,null,null,null,null,null,null,null,null,"MONTPERREUX","25"]
[null,null,null,null,null,null,null,null,null,null,null,"MONTRACOL","01"]
[null,null,null,null,null,null,null,null,null,null,null,"MONTREJEAU","31"]
[null,null,null,null,null,null,null,null,null,null,null,"MONTREUIL","62"]
[null,null,null,null,null,null,null,null,null,null,null,"MONTREUIL-SUR-BRECHE","60"]
[null,null,null,null,null,null,null,null,null,null,null,"MONTREVEL","38"]
[null,null,null,null,null,null,null,null,null,null,null,"MONTRIGAUD","26"]
[null,null,null,null,null,null,null,null,null,null,null,"MONTROY","17"]
[null,null,null,null,null,null,null,null,null,null,null,"MONTS-EN-BESSIN","14"]
[null,null,null,null,null,null,null,null,null,null,null,"MONTSOULT","95"]
[null,null,null,null,null,null,null,null,null,null,null,"MONTVENDRE","26"]
[null,null,null,null,null,null,null,null,null,null,null,"MORANNES","49"]
[null,null,null,null,null,null,null,null,null,null,null,"MOREAC","56"]
[null,null,null,null,null,null,null,null,null,null,null,"MORETTE","38"]
[null,null,null,null,null,null,null,null,null,null,null,"MORIZES","33"]
[null,null,null,null,null,null,null,null,null,null,null,"MORMOIRON","84"]
[null,null,null,null,null,null,null,null,null,null,null,"MORNAY-SUR-ALLIER","18"]
[null,null,null,null,null,null,null,null,null,null,null,"MORTAGNE-SUR-GIRONDE","17"]
[null,null,null,null,null,null,null,null,null,null,null,"MORTREE","61"]
[null,null,null,null,null,null,null,null,null,null,null,"MORVILLERS-SAINT-SATURNIN","80"]
[null,null,null,null,null,null,null,null,null,null,null,"MOSNES","37"]
[null,null,null,null,null,null,null,null,null,null,null,"MOUGINS","06"]
[null,null,null,null,null,null,null,null,null,null,null,"MOULARES","81"]
[null,null,null,null,null,null,null,null,null,null,null,"MOULINEAUX","76"]
[null,null,null,null,null,null,null,null,null,null,null,"MOULISMES","86"]
[null,null,null,null,null,null,null,null,null,null,null,"MOURENX","64"]
[null,null,null,null,null,null,null,null,null,null,null,"MOURS-SAINT-EUSEBE","26"]
[null,null,null,null,null,null,null,null,null,null,null,"MOUSTERU","22"]
[null,null,null,null,null,null,null,null,null,null,null,"MOUTHIER-EN-BRESSE","71"]
[null,null,null,null,null,null,null,null,null,null,null,"MOUTIERS","54"]
[null,null,null,null,null,null,null,null,null,null,null,"MOUZAY","37"]
[null,null,null,null,null,null,null,null,null,null,null,"MOYEN","54"]
[null,null,null,null,null,null,null,null,null,null,null,"MOYENVIC","57"]
[null,null,null,null,null,null,null,null,null,null,null,"MUDAISON","34"]
[null,null,null,null,null,null,null,null,null,null,null,"MUNCHHOUSE","68"]
[null,null,null,null,null,null,null,null,null,null,null,"MUNTZENHEIM","68"]
[null,null,null,null,null,null,null,null,null,null,null,"MUREILS","26"]
[null,null,null,null,null,null,null,null,null,null,null,"MUSSEY-SUR-MARNE","52"]
[null,null,null,null,null,null,null,null,null,null,null,"MUTTERSHOLTZ","67"]
[null,null,null,null,null,null,null,null,null,null,null,"NAGES","81"]
[null,null,null,null,null,null,null,null,null,null,null,"NAMPS-MAISNIL","80"]
[null,null,null,null,null,null,null,null,null,null,null,"NANCY-SUR-CLUSES","74"]
[null,null,null,null,null,null,null,null,null,null,null,"NANT","12"]
[null,null,null,null,null,null,null,null,null,null,null,"NANTOIN","38"]
[null,null,null,null,null,null,null,null,null,null,null,"NASBINALS","48"]
[null,null,null,null,null,null,null,null,null,null,null,"NAUCELLES","15"]
[null,null,null,null,null,null,null,null,null,null,null,"NAYEMONT-LES-FOSSES","88"]
[null,null,null,null,null,null,null,null,null,null,null,"NEAUX","42"]
[null,null,null,null,null,null,null,null,null,null,null,"NEDDE","87"]
[null,null,null,null,null,null,null,null,null,null,null,"NERONDE","42"]
[null,null,null,null,null,null,null,null,null,null,null,"NERVILLE-LA-FORET","95"]
[null,null,null,null,null,null,null,null,null,null,null,"NESLES","62"]
[null,null,null,null,null,null,null,null,null,null,null,"NEUFLIZE","08"]
[null,null,null,null,null,null,null,null,null,null,null,"NEUGARTHEIM-ITTLENHEIM","67"]
[null,null,null,null,null,null,null,null,null,null,null,"NEUILLY-EN-THELLE","60"]
[null,null,null,null,null,null,null,null,null,null,null,"NEULLIAC","56"]
[null,null,null,null,null,null,null,null,null,null,null,"NEUVE-CHAPELLE","62"]
[null,null,null,null,null,null,null,null,null,null,null,"NEUVICQ-LE-CHATEAU","17"]
[null,null,null,null,null,null,null,null,null,null,null,"NEUVILLE-SAINT-REMY","59"]
[null,null,null,null,null,null,null,null,null,null,null,"NEUVILLE-SUR-OISE","95"]
[null,null,null,null,null,null,null,null,null,null,null,"NEUVY","03"]
[null,null,null,null,null,null,null,null,null,null,null,"NEVACHE","05"]
[null,null,null,null,null,null,null,null,null,null,null,"NEZEL","78"]
[null,null,null,null,null,null,null,null,null,null,null,"NICOLE","47"]
[null,null,null,null,null,null,null,null,null,null,null,"NIELLES-LES-ARDRES","62"]
[null,null,null,null,null,null,null,null,null,null,null,"NIEUL-LE-VIROUIL","17"]
[null,null,null,null,null,null,null,null,null,null,null,"NIHERNE","36"]
[null,null,null,null,null,null,null,null,null,null,null,"NIXEVILLE-BLERCOURT","55"]
[null,null,null,null,null,null,null,null,null,null,null,"NOELLET","49"]
[null,null,null,null,null,null,null,null,null,null,null,"NOGENT-L'ARTAUD","02"]
[null,null,null,null,null,null,null,null,null,null,null,"NOGENT-SUR-OISE","60"]
[null,null,null,null,null,null,null,null,null,null,null,"NOIRON-SOUS-GEVREY","21"]
[null,null,null,null,null,null,null,null,null,null,null,"NOISY-LE-ROI","78"]
[null,null,null,null,null,null,null,null,null,null,null,"NOMAIN","59"]
[null,null,null,null,null,null,null,null,null,null,null,"NORDHEIM","67"]
[null,null,null,null,null,null,null,null,null,null,null,"NORROY-LE-SEC","54"]
[null,null,null,null,null,null,null,null,null,null,null,"NOSTANG","56"]
[null,null,null,null,null,null,null,null,null,null,null,"NOTRE-DAME-DE-MESAGE","38"]
[null,null,null,null,null,null,null,null,null,null,null,"NOTRE-DAME-DU-PRE","73"]
[null,null,null,null,null,null,null,null,null,null,null,"NOUANS","72"]
[null,null,null,null,null,null,null,null,null,null,null,"NOUVION-SUR-MEUSE","08"]
[null,null,null,null,null,null,null,null,null,null,null,"NOVY-CHEVRIERES","08"]
[null,null,null,null,null,null,null,null,null,null,null,"NOYAL-SOUS-BAZOUGES","35"]
[null,null,null,null,null,null,null,null,null,null,null,"NOYELLES-EN-CHAUSSEE","80"]
[null,null,null,null,null,null,null,null,null,null,null,"NOYERS-SAINT-MARTIN","60"]
[null,null,null,null,null,null,null,null,null,null,null,"NOZEROY","39"]
[null,null,null,null,null,null,null,null,null,null,null,"NUILLE-SUR-VICOIN","53"]
[null,null,null,null,null,null,null,null,null,null,null,"OBERENTZEN","68"]
[null,null,null,null,null,null,null,null,null,null,null,"OBERMORSCHWILLER","68"]
[null,null,null,null,null,null,null,null,null,null,null,"OBERSTINZEL","57"]
[null,null,null,null,null,null,null,null,null,null,null,"ODOS","65"]
[null,null,null,null,null,null,null,null,null,null,null,"OFFEKERQUE","62"]
[null,null,null,null,null,null,null,null,null,null,null,"OGER","51"]
[null,null,null,null,null,null,null,null,null,null,null,"OIRY","51"]
[null,null,null,null,null,null,null,null,null,null,null,"OISY","58"]
[null,null,null,null,null,null,null,null,null,null,null,"OLEMPS","12"]
[null,null,null,null,null,null,null,null,null,null,null,"OLLIOULES","83"]
[null,null,null,null,null,null,null,null,null,null,null,"ONARD","40"]
[null,null,null,null,null,null,null,null,null,null,null,"ONESSE-ET-LAHARIE","40"]
[null,null,null,null,null,null,null,null,null,null,null,"OPIO","06"]
[null,null,null,null,null,null,null,null,null,null,null,"ORBESSAN","32"]
[null,null,null,null,null,null,null,null,null,null,null,"ORCHAISE","41"]
[null,null,null,null,null,null,null,null,null,null,null,"ORDAN-LARROQUE","32"]
[null,null,null,null,null,null,null,null,null,null,null,"ORGON","13"]
[null,null,null,null,null,null,null,null,null,null,null,"ORIST","40"]
[null,null,null,null,null,null,null,null,null,null,null,"ORLIENAS","69"]
[null,null,null,null,null,null,null,null,null,null,null,"ORNANS","25"]
[null,null,null,null,null,null,null,null,null,null,null,"ORSAN","30"]
[null,null,null,null,null,null,null,null,null,null,null,"ORSONVILLE","78"]
[null,null,null,null,null,null,null,null,null,null,null,"ORVILLE","62"]
[null,null,null,null,null,null,null,null,null,null,null,"OSSE","25"]
[null,null,null,null,null,null,null,null,null,null,null,"OSSUN","65"]
[null,null,null,null,null,null,null,null,null,null,null,"OTTERSTHAL","67"]
[null,null,null,null,null,null,null,null,null,null,null,"OUERRE","28"]
[null,null,null,null,null,null,null,null,null,null,null,"OUILLY-LE-TESSON","14"]
[null,null,null,null,null,null,null,null,null,null,null,"OUROUER","58"]
[null,null,null,null,null,null,null,null,null,null,null,"OUTRIAZ","01"]
[null,null,null,null,null,null,null,null,null,null,null,"OUZOUER-SOUS-BELLEGARDE","45"]
[null,null,null,null,null,null,null,null,null,null,null,"OYE-ET-PALLET","25"]
[null,null,null,null,null,null,null,null,null,null,null,"PAARS","02"]
[null,null,null,null,null,null,null,null,null,null,null,"PAGNY-LA-VILLE","21"]
[null,null,null,null,null,null,null,null,null,null,null,"PAILHES","34"]
[null,null,null,null,null,null,null,null,null,null,null,"PALAU-DE-CERDAGNE","66"]
[null,null,null,null,null,null,null,null,null,null,null,"PALLADUC","63"]
[null,null,null,null,null,null,null,null,null,null,null,"PALLUEL","62"]
[null,null,null,null,null,null,null,null,null,null,null,"PANTIN","93"]
[null,null,null,null,null,null,null,null,null,null,null,"PARAY-SOUS-BRIAILLES","03"]
[null,null,null,null,null,null,null,null,null,null,null,"PARC-D'ANXTOT","76"]
[null,null,null,null,null,null,null,null,null,null,null,"PARIGNE-L'EVEQUE","72"]
[null,null,null,null,null,null,null,null,null,null,null,"PARISOT","81"]
[null,null,null,null,null,null,null,null,null,null,null,"PARNAY","49"]
[null,null,null,null,null,null,null,null,null,null,null,"PASSA","66"]
[null,null,null,null,null,null,null,null,null,null,null,"PASSIRAC","16"]
[null,null,null,null,null,null,null,null,null,null,null,"PAUILHAC","32"]
[null,null,null,null,null,null,null,null,null,null,null,"PAUNAT","24"]
[null,null,null,null,null,null,null,null,null,null,null,"PAYNS","10"]
[null,null,null,null,null,null,null,null,null,null,null,"PAZY","58"]
[null,null,null,null,null,null,null,null,null,null,null,"PEIPIN","04"]
[null,null,null,null,null,null,null,null,null,null,null,"PELTRE","57"]
[null,null,null,null,null,null,null,null,null,null,null,"PENDE","80"]
[null,null,null,null,null,null,null,null,null,null,null,"PERCEY","89"]
[null,null,null,null,null,null,null,null,null,null,null,"PERIERS-SUR-LE-DAN","14"]
[null,null,null,null,null,null,null,null,null,null,null,"PERIGNEUX","42"]
[null,null,null,null,null,null,null,null,null,null,null,"PERNES","62"]
[null,null,null,null,null,null,null,null,null,null,null,"PERPIGNAN","66"]
[null,null,null,null,null,null,null,null,null,null,null,"PERREUX","89"]
[null,null,null,null,null,null,null,null,null,null,null,"PERRIGNY-SUR-L'OGNON","21"]
[null,null,null,null,null,null,null,null,null,null,null,"PESEUX","39"]
[null,null,null,null,null,null,null,null,null,null,null,"PESSINES","17"]
[null,null,null,null,null,null,null,null,null,null,null,"PETIT-FAYT","59"]
[null,null,null,null,null,null,null,null,null,null,null,"PEXONNE","54"]
[null,null,null,null,null,null,null,null,null,null,null,"PEYREHORADE","40"]
[null,null,null,null,null,null,null,null,null,null,null,"PEYRIAC-MINERVOIS","11"]
[null,null,null,null,null,null,null,null,null,null,null,"PEZENS","11"]
[null,null,null,null,null,null,null,null,null,null,null,"PFULGRIESHEIM","67"]
[null,null,null,null,null,null,null,null,null,null,null,"PIACE","72"]
[null,null,null,null,null,null,null,null,null,null,null,"PIEGUT-PLUVIERS","24"]
[null,null,null,null,null,null,null,null,null,null,null,"PIERREFITTE-SUR-LOIRE","03"]
[null,null,null,null,null,null,null,null,null,null,null,"PIERREFORT","15"]
[null,null,null,null,null,null,null,null,null,null,null,"PIERREPONT-SUR-AVRE","80"]
[null,null,null,null,null,null,null,null,null,null,null,"PIGNAN","34"]
[null,null,null,null,null,null,null,null,null,null,null,"PILA-CANALE","2A"]
[null,null,null,null,null,null,null,null,null,null,null,"PINEUILH","33"]
[null,null,null,null,null,null,null,null,null,null,null,"PIRMIL","72"]
[null,null,null,null,null,null,null,null,null,null,null,"PISSY-POVILLE","76"]
[null,null,null,null,null,null,null,null,null,null,null,"PLABENNEC","29"]
[null,null,null,null,null,null,null,null,null,null,null,"PLAISANCE-DU-TOUCH","31"]
[null,null,null,null,null,null,null,null,null,null,null,"PLANCY-L'ABBAYE","10"]
[null,null,null,null,null,null,null,null,null,null,null,"PLANIOLES","46"]
[null,null,null,null,null,null,null,null,null,null,null,"PLEDRAN","22"]
[null,null,null,null,null,null,null,null,null,null,null,"PLENEE-JUGON","22"]
[null,null,null,null,null,null,null,null,null,null,null,"PLESDER","35"]
[null,null,null,null,null,null,null,null,null,null,null,"PLEUCADEUC","56"]
[null,null,null,null,null,null,null,null,null,null,null,"PLEYBEN","29"]
[null,null,null,null,null,null,null,null,null,null,null,"PLOEMEUR","56"]
[null,null,null,null,null,null,null,null,null,null,null,"PLOMB","50"]
[null,null,null,null,null,null,null,null,null,null,null,"PLOUASNE","22"]
[null,null,null,null,null,null,null,null,null,null,null,"PLOUEGAT-GUERAND","29"]
[null,null,null,null,null,null,null,null,null,null,null,"PLOUEZOC'H","29"]
[null,null,null,null,null,null,null,null,null,null,null,"PLOUGUIN","29"]
[null,null,null,null,null,null,null,null,null,null,null,"PLOUMILLIAU","22"]
[null,null,null,null,null,null,null,null,null,null,null,"PLOUNEVEZEL","29"]
[null,null,null,null,null,null,null,null,null,null,null,"PLOVAN","29"]
[null,null,null,null,null,null,null,null,null,null,null,"PLUMELIAU","56"]
[null,null,null,null,null,null,null,null,null,null,null,"PLUSQUELLEC","22"]
[null,null,null,null,null,null,null,null,null,null,null,"POGGIO-MEZZANA","2B"]
[null,null,null,null,null,null,null,null,null,null,null,"POINTIS-INARD","31"]
[null,null,null,null,null,null,null,null,null,null,null,"POISSY","78"]
[null,null,null,null,null,null,null,null,null,null,null,"POLIGNAC","43"]
[null,null,null,null,null,null,null,null,null,null,null,"POMMARD","21"]
[null,null,null,null,null,null,null,null,null,null,null,"POMMERIEUX","53"]
[null,null,null,null,null,null,null,null,null,null,null,"POMMIERS-LA-PLACETTE","38"]
[null,null,null,null,null,null,null,null,null,null,null,"PONLAT-TAILLEBOURG","31"]
[null,null,null,null,null,null,null,null,null,null,null,"PONTARION","23"]
[null,null,null,null,null,null,null,null,null,null,null,"PONTAULT-COMBAULT","77"]
[null,null,null,null,null,null,null,null,null,null,null,"PONT-DE-L'ARCHE","27"]
[null,null,null,null,null,null,null,null,null,null,null,"PONT-D'HERY","39"]
[null,null,null,null,null,null,null,null,null,null,null,"PONT-EN-ROYANS","38"]
[null,null,null,null,null,null,null,null,null,null,null,"PONT-NOYELLES","80"]
[null,null,null,null,null,null,null,null,null,null,null,"PONT-PEAN","35"]
[null,null,null,null,null,null,null,null,null,null,null,"PONTRUET","02"]
[null,null,null,null,null,null,null,null,null,null,null,"PORCHEVILLE","78"]
[null,null,null,null,null,null,null,null,null,null,null,"PORSPODER","29"]
[null,null,null,null,null,null,null,null,null,null,null,"PORT-DE-LANNE","40"]
[null,null,null,null,null,null,null,null,null,null,null,"PORTO-VECCHIO","2A"]
[null,null,null,null,null,null,null,null,null,null,null,"PORT-SUR-SAONE","70"]
[null,null,null,null,null,null,null,null,null,null,null,"POUCHARRAMET","31"]
[null,null,null,null,null,null,null,null,null,null,null,"POUILLOUX","71"]
[null,null,null,null,null,null,null,null,null,null,null,"POUILLY-SOUS-CHARLIEU","42"]
[null,null,null,null,null,null,null,null,null,null,null,"POULE-LES-ECHARMEAUX","69"]
[null,null,null,null,null,null,null,null,null,null,null,"POUSSIGNAC","47"]
[null,null,null,null,null,null,null,null,null,null,null,"POUZOLLES","34"]
[null,null,null,null,null,null,null,null,null,null,null,"PRADELLES","43"]
[null,null,null,null,null,null,null,null,null,null,null,"PRANZAC","16"]
[null,null,null,null,null,null,null,null,null,null,null,"PRAYOLS","09"]
[null,null,null,null,null,null,null,null,null,null,null,"PREAUX-DU-PERCHE","61"]
[null,null,null,null,null,null,null,null,null,null,null,"PREFAILLES","44"]
[null,null,null,null,null,null,null,null,null,null,null,"PREMEYZEL","01"]
[null,null,null,null,null,null,null,null,null,null,null,"PRENOVEL","39"]
[null,null,null,null,null,null,null,null,null,null,null,"PRESLES-EN-BRIE","77"]
[null,null,null,null,null,null,null,null,null,null,null,"PREURES","62"]
[null,null,null,null,null,null,null,null,null,null,null,"PREVERANGES","18"]
[null,null,null,null,null,null,null,null,null,null,null,"PRIMELIN","29"]
[null,null,null,null,null,null,null,null,null,null,null,"PROISY","02"]
[null,null,null,null,null,null,null,null,null,null,null,"PROPRIANO","2A"]
[null,null,null,null,null,null,null,null,null,null,null,"PROVERVILLE","10"]
[null,null,null,null,null,null,null,null,null,null,null,"PRUNAY-LE-TEMPLE","78"]
[null,null,null,null,null,null,null,null,null,null,null,"PUBERG","67"]
[null,null,null,null,null,null,null,null,null,null,null,"PUCHEVILLERS","80"]
[null,null,null,null,null,null,null,null,null,null,null,"PUISEAUX","45"]
[null,null,null,null,null,null,null,null,null,null,null,"PUISSALICON","34"]
[null,null,null,null,null,null,null,null,null,null,null,"PUJO","65"]
[null,null,null,null,null,null,null,null,null,null,null,"PULVERSHEIM","68"]
[null,null,null,null,null,null,null,null,null,null,null,"PUYCASQUIER","32"]
[null,null,null,null,null,null,null,null,null,null,null,"PUY-DU-LAC","17"]
[null,null,null,null,null,null,null,null,null,null,null,"PUYLOUBIER","13"]
[null,null,null,null,null,null,null,null,null,null,null,"QUAIX-EN-CHARTREUSE","38"]
[null,null,null,null,null,null,null,null,null,null,null,"QUATZENHEIM","67"]
[null,null,null,null,null,null,null,null,null,null,null,"QUEMPER-GUEZENNEC","22"]
[null,null,null,null,null,null,null,null,null,null,null,"QUESTEMBERT","56"]
[null,null,null,null,null,null,null,null,null,null,null,"QUEVERT","22"]
[null,null,null,null,null,null,null,null,null,null,null,"QUEZAC","15"]
[null,null,null,null,null,null,null,null,null,null,null,"QUILY","56"]
[null,null,null,null,null,null,null,null,null,null,null,"QUINCY","18"]
[null,null,null,null,null,null,null,null,null,null,null,"QUINS","12"]
[null,null,null,null,null,null,null,null,null,null,null,"QUIRY-LE-SEC","80"]
[null,null,null,null,null,null,null,null,null,null,null,"RADON","61"]
[null,null,null,null,null,null,null,null,null,null,null,"RAHLING","57"]
[null,null,null,null,null,null,null,null,null,null,null,"RAISSAC-SUR-LAMPY","11"]
[null,null,null,null,null,null,null,null,null,null,null,"RAMPILLON","77"]
[null,null,null,null,null,null,null,null,null,null,null,"RANCOGNE","16"]
[null,null,null,null,null,null,null,null,null,null,null,"RANNEE","35"]
[null,null,null,null,null,null,null,null,null,null,null,"RAUCOULES","43"]
[null,null,null,null,null,null,null,null,null,null,null,"RAVES","88"]
[null,null,null,null,null,null,null,null,null,null,null,"RAZAC-DE-SAUSSIGNAC","24"]
[null,null,null,null,null,null,null,null,null,null,null,"REBENACQ","64"]
[null,null,null,null,null,null,null,null,null,null,null,"RECLESNE","71"]
[null,null,null,null,null,null,null,null,null,null,null,"RECQUIGNIES","59"]
[null,null,null,null,null,null,null,null,null,null,null,"REHAINCOURT","88"]
[null,null,null,null,null,null,null,null,null,null,null,"REIGNIER-ESERY","74"]
[null,null,null,null,null,null,null,null,null,null,null,"REININGUE","68"]
[null,null,null,null,null,null,null,null,null,null,null,"REMELING","57"]
[null,null,null,null,null,null,null,null,null,null,null,"REMONCOURT","88"]
[null,null,null,null,null,null,null,null,null,null,null,"REMY","60"]
[null,null,null,null,null,null,null,null,null,null,null,"RENNES","35"]
[null,null,null,null,null,null,null,null,null,null,null,"RETHEL","08"]
[null,null,null,null,null,null,null,null,null,null,null,"RETY","62"]
[null,null,null,null,null,null,null,null,null,null,null,"REUIL-EN-BRIE","77"]
[null,null,null,null,null,null,null,null,null,null,null,"REVILLE","50"]
[null,null,null,null,null,null,null,null,null,null,null,"REYVROZ","74"]
[null,null,null,null,null,null,null,null,null,null,null,"RIANS","18"]
[null,null,null,null,null,null,null,null,null,null,null,"RICHARVILLE","91"]
[null,null,null,null,null,null,null,null,null,null,null,"RICHTOLSHEIM","67"]
[null,null,null,null,null,null,null,null,null,null,null,"RIENCOURT-LES-CAGNICOURT","62"]
[null,null,null,null,null,null,null,null,null,null,null,"RIGNY-LA-SALLE","55"]
[null,null,null,null,null,null,null,null,null,null,null,"RILHAC-XAINTRIE","19"]
[null,null,null,null,null,null,null,null,null,null,null,"RILLY-SUR-VIENNE","37"]
[null,null,null,null,null,null,null,null,null,null,null,"RIS","63"]
[null,null,null,null,null,null,null,null,null,null,null,"RIVARENNES","36"]
[null,null,null,null,null,null,null,null,null,null,null,"RIVERY","80"]
[null,null,null,null,null,null,null,null,null,null,null,"ROAILLAN","33"]
[null,null,null,null,null,null,null,null,null,null,null,"ROCHE","38"]
[null,null,null,null,null,null,null,null,null,null,null,"ROCHEFORT-MONTAGNE","63"]
[null,null,null,null,null,null,null,null,null,null,null,"ROCHESSAUVE","07"]
[null,null,null,null,null,null,null,null,null,null,null,"ROCHEVILLE","50"]
[null,null,null,null,null,null,null,null,null,null,null,"ROCQUIGNY","08"]
[null,null,null,null,null,null,null,null,null,null,null,"ROFFIAC","15"]
[null,null,null,null,null,null,null,null,null,null,null,"ROHR","67"]
[null,null,null,null,null,null,null,null,null,null,null,"ROINVILLE","28"]
[null,null,null,null,null,null,null,null,null,null,null,"ROMAGNIEU","38"]
[null,null,null,null,null,null,null,null,null,null,null,"ROMAZY","35"]
[null,null,null,null,null,null,null,null,null,null,null,"ROMENAY","71"]
[null,null,null,null,null,null,null,null,null,null,null,"RONCOURT","57"]
[null,null,null,null,null,null,null,null,null,null,null,"ROOST-WARENDIN","59"]
[null,null,null,null,null,null,null,null,null,null,null,"ROQUEBRUNE-CAP-MARTIN","06"]
[null,null,null,null,null,null,null,null,null,null,null,"ROQUEFORT-LES-PINS","06"]
[null,null,null,null,null,null,null,null,null,null,null,"ROSBRUCK","57"]
[null,null,null,null,null,null,null,null,null,null,null,"ROSET-FLUANS","25"]
[null,null,null,null,null,null,null,null,null,null,null,"ROSNAY","36"]
[null,null,null,null,null,null,null,null,null,null,null,"ROTHBACH","67"]
[null,null,null,null,null,null,null,null,null,null,null,"ROUCY","02"]
[null,null,null,null,null,null,null,null,null,null,null,"ROUFFACH","68"]
[null,null,null,null,null,null,null,null,null,null,null,"ROUGNAT","23"]
[null,null,null,null,null,null,null,null,null,null,null,"ROULANS","25"]
[null,null,null,null,null,null,null,null,null,null,null,"ROUMARE","76"]
[null,null,null,null,null,null,null,null,null,null,null,"ROUSSILLON","84"]
[null,null,null,null,null,null,null,null,null,null,null,"ROUVIGNIES","59"]
[null,null,null,null,null,null,null,null,null,null,null,"ROUVRAY","27"]
[null,null,null,null,null,null,null,null,null,null,null,"ROUVRES-LES-BOIS","36"]
[null,null,null,null,null,null,null,null,null,null,null,"ROYAUMEIX","54"]
[null,null,null,null,null,null,null,null,null,null,null,"ROYERES","87"]
[null,null,null,null,null,null,null,null,null,null,null,"ROZOY-LE-VIEIL","45"]
[null,null,null,null,null,null,null,null,null,null,null,"RUFFEC","36"]
[null,null,null,null,null,null,null,null,null,null,null,"RUFFIEUX","73"]
[null,null,null,null,null,null,null,null,null,null,null,"RULLY","60"]
[null,null,null,null,null,null,null,null,null,null,null,"RUPT-SUR-MOSELLE","88"]
[null,null,null,null,null,null,null,null,null,null,null,"RUVIGNY","10"]
[null,null,null,null,null,null,null,null,null,null,null,"SAACY-SUR-MARNE","77"]
[null,null,null,null,null,null,null,null,null,null,null,"SACIERGES-SAINT-MARTIN","36"]
[null,null,null,null,null,null,null,null,null,null,null,"SADROC","19"]
[null,null,null,null,null,null,null,null,null,null,null,"SAHORRE","66"]
[null,null,null,null,null,null,null,null,null,null,null,"SAILLANT","63"]
[null,null,null,null,null,null,null,null,null,null,null,"SAINGHIN-EN-MELANTOIS","59"]
[null,null,null,null,null,null,null,null,null,null,null,"SAINS-EN-AMIENOIS","80"]
[null,null,null,null,null,null,null,null,null,null,null,"SAINT-ABRAHAM","56"]
[null,null,null,null,null,null,null,null,null,null,null,"SAINT-AIGNAN","56"]
[null,null,null,null,null,null,null,null,null,null,null,"SAINT-AIGNAN-LE-JAILLARD","45"]
[null,null,null,null,null,null,null,null,null,null,null,"SAINT-ALBAN-D'AY","07"]
[null,null,null,null,null,null,null,null,null,null,null,"SAINT-AMAND-LES-EAUX","59"]
[null,null,null,null,null,null,null,null,null,null,null,"SAINT-AMANT-DE-BOIXE","16"]
[null,null,null,null,null,null,null,null,null,null,null,"SAINT-AMBREUIL","71"]
[null,null,null,null,null,null,null,null,null,null,null,"SAINT-ANDRE-DE-BOHON","50"]
[null,null,null,null,null,null,null,null,null,null,null,"SAINT-ANDRE-DE-MAJENCOULES","30"]
[null,null,null,null,null,null,null,null,null,null,null,"SAINT-ANDRE-DE-SANGONIS","34"]
[null,null,null,null,null,null,null,null,null,null,null,"SAINT-ANDRE-LE-DESERT","71"]
[null,null,null,null,null,null,null,null,null,null,null,"SAINT-ANDRE-TREIZE-VOIES","85"]
[null,null,null,null,null,null,null,null,null,null,null,"SAINT-ANGEL","63"]
[null,null,null,null,null,null,null,null,null,null,null,"SAINT-ANTOINE-SUR-L'ISLE","33"]
[null,null,null,null,null,null,null,null,null,null,null,"SAINT-ASTIER","24"]
[null,null,null,null,null,null,null,null,null,null,null,"SAINT-AUBIN","59"]
[null,null,null,null,null,null,null,null,null,null,null,"SAINT-AUBIN-DE-BRANNE","33"]
[null,null,null,null,null,null,null,null,null,null,null,"SAINT-AUBIN-DU-DESERT","53"]
[null,null,null,null,null,null,null,null,null,null,null,"SAINT-AUBIN-LE-CLOUD","79"]
[null,null,null,null,null,null,null,null,null,null,null,"SAINT-AUBIN-LE-VERTUEUX","27"]
[null,null,null,null,null,null,null,null,null,null,null,"SAINT-AUPRE","38"]
[null,null,null,null,null,null,null,null,null,null,null,"SAINT-AVIT-SENIEUR","24"]
[null,null,null,null,null,null,null,null,null,null,null,"SAINT-BALDOPH","73"]
[null,null,null,null,null,null,null,null,null,null,null,"SAINT-BARTHELEMY-LESTRA","42"]
[null,null,null,null,null,null,null,null,null,null,null,"SAINT-BAUZILLE-DE-MONTMEL","34"]
[null,null,null,null,null,null,null,null,null,null,null,"SAINT-BENEZET","30"]
[null,null,null,null,null,null,null,null,null,null,null,"SAINT-BERNARD","21"]
[null,null,null,null,null,null,null,null,null,null,null,"SAINT-BLAISE","06"]
[null,null,null,null,null,null,null,null,null,null,null,"SAINT-BOES","64"]
[null,null,null,null,null,null,null,null,null,null,null,"SAINT-BONNET-L'ENFANTIER","19"]
[null,null,null,null,null,null,null,null,null,null,null,"SAINT-BONNET-SUR-GIRONDE","17"]
[null,null,null,null,null,null,null,null,null,null,null,"SAINT-BREVIN-LES-PINS","44"]
[null,null,null,null,null,null,null,null,null,null,null,"SAINT-BRISSON-SUR-LOIRE","45"]
[null,null,null,null,null,null,null,null,null,null,null,"SAINT-CAPRAIS","18"]
[null,null,null,null,null,null,null,null,null,null,null,"SAINT-CASSIN","73"]
[null,null,null,null,null,null,null,null,null,null,null,"SAINT-CHAMAS","13"]
[null,null,null,null,null,null,null,null,null,null,null,"SAINT-CHELY-D'APCHER","48"]
[null,null,null,null,null,null,null,null,null,null,null,"SAINT-CHRISTOLY-DE-BLAYE","33"]
[null,null,null,null,null,null,null,null,null,null,null,"SAINT-CHRISTOPHE-EN-BRESSE","71"]
[null,null,null,null,null,null,null,null,null,null,null,"SAINT-CIERS-CHAMPAGNE","17"]
[null,null,null,null,null,null,null,null,null,null,null,"SAINT-CIRGUES","46"]
[null,null,null,null,null,null,null,null,null,null,null,"SAINT-CLAUDE-DE-DIRAY","41"]
[null,null,null,null,null,null,null,null,null,null,null,"SAINT-CLEMENT-DES-LEVEES","49"]
[null,null,null,null,null,null,null,null,null,null,null,"SAINT-CLET","22"]
[null,null,null,null,null,null,null,null,null,null,null,"SAINT-COULITZ","29"]
[null,null,null,null,null,null,null,null,null,null,null,"SAINT-CRESPIN","76"]
[null,null,null,null,null,null,null,null,null,null,null,"SAINT-CYBARDEAUX","16"]
[null,null,null,null,null,null,null,null,null,null,null,"SAINT-CYR","71"]
[null,null,null,null,null,null,null,null,null,null,null,"SAINT-CYR-LA-ROSIERE","61"]
[null,null,null,null,null,null,null,null,null,null,null,"SAINT-CYR-SOUS-DOURDAN","91"]
[null,null,null,null,null,null,null,null,null,null,null,"SAINT-DENIS-D'ANJOU","53"]
[null,null,null,null,null,null,null,null,null,null,null,"SAINT-DENIS-EN-BUGEY","01"]
[null,null,null,null,null,null,null,null,null,null,null,"SAINT-DENIS-LE-VETU","50"]
[null,null,null,null,null,null,null,null,null,null,null,"SAINT-DERRIEN","29"]
[null,null,null,null,null,null,null,null,null,null,null,"SAINT-DIDIER-LA-FORET","03"]
[null,null,null,null,null,null,null,null,null,null,null,"SAINT-DIVY","29"]
[null,null,null,null,null,null,null,null,null,null,null,"SAINT-DOMINEUC","35"]
[null,null,null,null,null,null,null,null,null,null,null,"SAINTE-ANNE","41"]
[null,null,null,null,null,null,null,null,null,null,null,"SAINTE-BAZEILLE","47"]
[null,null,null,null,null,null,null,null,null,null,null,"SAINTE-CATHERINE-DE-FIERBOIS","37"]
[null,null,null,null,null,null,null,null,null,null,null,"SAINTE-CHRISTINE","49"]
[null,null,null,null,null,null,null,null,null,null,null,"SAINTE-CROIX","71"]
[null,null,null,null,null,null,null,null,null,null,null,"SAINTE-CROIX-EN-JAREZ","42"]
[null,null,null,null,null,null,null,null,null,null,null,"SAINTE-ENIMIE","48"]
[null,null,null,null,null,null,null,null,null,null,null,"SAINTE-FOY-D'AIGREFEUILLE","31"]
[null,null,null,null,null,null,null,null,null,null,null,"SAINTE-GEMME","79"]
[null,null,null,null,null,null,null,null,null,null,null,"SAINTE-GEMMES-D'ANDIGNE","49"]
[null,null,null,null,null,null,null,null,null,null,null,"SAINTE-HELENE-SUR-ISERE","73"]
[null,null,null,null,null,null,null,null,null,null,null,"SAINTE-LHEURINE","17"]
[null,null,null,null,null,null,null,null,null,null,null,"SAINT-ELIX-LE-CHATEAU","31"]
[null,null,null,null,null,null,null,null,null,null,null,"SAINTE-MARGUERITE-SUR-DUCLAIR","76"]
[null,null,null,null,null,null,null,null,null,null,null,"SAINTE-MARIE-AUX-MINES","68"]
[null,null,null,null,null,null,null,null,null,null,null,"SAINTE-MARIE-DE-RE","17"]
[null,null,null,null,null,null,null,null,null,null,null,"SAINTE-MAURE","10"]
[null,null,null,null,null,null,null,null,null,null,null,"SAINTE-OUENNE","79"]
[null,null,null,null,null,null,null,null,null,null,null,"SAINTE-RADEGONDE","12"]
[null,null,null,null,null,null,null,null,null,null,null,"SAINTES","17"]
[null,null,null,null,null,null,null,null,null,null,null,"SAINT-ESTEPHE","24"]
[null,null,null,null,null,null,null,null,null,null,null,"SAINTE-SUZANNE-SUR-VIRE","50"]
[null,null,null,null,null,null,null,null,null,null,null,"SAINT-ETIENNE-DE-CHIGNY","37"]
[null,null,null,null,null,null,null,null,null,null,null,"SAINT-ETIENNE-DE-TULMONT","82"]
[null,null,null,null,null,null,null,null,null,null,null,"SAINT-ETIENNE-DU-VALDONNEZ","48"]
[null,null,null,null,null,null,null,null,null,null,null,"SAINT-ETIENNE-LARDEYROL","43"]
[null,null,null,null,null,null,null,null,null,null,null,"SAINT-EUSEBE","71"]
[null,null,null,null,null,null,null,null,null,null,null,"SAINT-EXUPERY-LES-ROCHES","19"]
[null,null,null,null,null,null,null,null,null,null,null,"SAINT-FELIU-D'AVALL","66"]
[null,null,null,null,null,null,null,null,null,null,null,"SAINT-FELIX-DE-VILLADEIX","24"]
[null,null,null,null,null,null,null,null,null,null,null,"SAINT-FLORENT","45"]
[null,null,null,null,null,null,null,null,null,null,null,"SAINT-FLORENT-SUR-CHER","18"]
[null,null,null,null,null,null,null,null,null,null,null,"SAINT-FORGEUX","69"]
[null,null,null,null,null,null,null,null,null,null,null,"SAINT-FRONT-DE-PRADOUX","24"]
[null,null,null,null,null,null,null,null,null,null,null,"SAINT-GABRIEL-BRECY","14"]
[null,null,null,null,null,null,null,null,null,null,null,"SAINT-GELVEN","22"]
[null,null,null,null,null,null,null,null,null,null,null,"SAINT-GENGOUX-DE-SCISSE","71"]
[null,null,null,null,null,null,null,null,null,null,null,"SAINT-GENIS-DES-FONTAINES","66"]
[null,null,null,null,null,null,null,null,null,null,null,"SAINT-GENIS-SUR-MENTHON","01"]
[null,null,null,null,null,null,null,null,null,null,null,"SAINT-GEORGES-DE-COMMIERS","38"]
[null,null,null,null,null,null,null,null,null,null,null,"SAINT-GEORGES-DE-NOISNE","79"]
[null,null,null,null,null,null,null,null,null,null,null,"SAINT-GEORGES-DE-ROUELLEY","50"]
[null,null,null,null,null,null,null,null,null,null,null,"SAINT-GEORGES-LAGRICOL","43"]
[null,null,null,null,null,null,null,null,null,null,null,"SAINT-GEORGES-SUR-ARNON","36"]
[null,null,null,null,null,null,null,null,null,null,null,"SAINT-GEORGES-SUR-L'AA","59"]
[null,null,null,null,null,null,null,null,null,null,null,"SAINT-GERMAIN-DE-COULAMER","53"]
[null,null,null,null,null,null,null,null,null,null,null,"SAINT-GERMAIN-DE-LIVET","14"]
[null,null,null,null,null,null,null,null,null,null,null,"SAINT-GERMAIN-DE-SALLES","03"]
[null,null,null,null,null,null,null,null,null,null,null,"SAINT-GERMAIN-DU-PUY","18"]
[null,null,null,null,null,null,null,null,null,null,null,"SAINT-GERMAIN-EN-MONTAGNE","39"]
[null,null,null,null,null,null,null,null,null,null,null,"SAINT-GERMAIN-LAVAL","42"]
[null,null,null,null,null,null,null,null,null,null,null,"SAINT-GERMAIN-LE-VASSON","14"]
[null,null,null,null,null,null,null,null,null,null,null,"SAINT-GERMAIN-SUR-AY","50"]
[null,null,null,null,null,null,null,null,null,null,null,"SAINT-GERMAIN-VILLAGE","27"]
[null,null,null,null,null,null,null,null,null,null,null,"SAINT-GERVAIS-SUR-MARE","34"]
[null,null,null,null,null,null,null,null,null,null,null,"SAINT-GILDAS","22"]
[null,null,null,null,null,null,null,null,null,null,null,"SAINT-GILLES-DE-LA-NEUVILLE","76"]
[null,null,null,null,null,null,null,null,null,null,null,"SAINT-GOR","40"]
[null,null,null,null,null,null,null,null,null,null,null,"SAINT-GREGOIRE-DU-VIEVRE","27"]
[null,null,null,null,null,null,null,null,null,null,null,"SAINT-HAON","43"]
[null,null,null,null,null,null,null,null,null,null,null,"SAINT-HILAIRE-COTTES","62"]
[null,null,null,null,null,null,null,null,null,null,null,"SAINT-HILAIRE-DE-LA-NOAILLE","33"]
[null,null,null,null,null,null,null,null,null,null,null,"SAINT-HILAIRE-DE-VILLEFRANCHE","17"]
[null,null,null,null,null,null,null,null,null,null,null,"SAINT-HILAIRE-LA-GRAVELLE","41"]
[null,null,null,null,null,null,null,null,null,null,null,"SAINT-HILAIRE-SUR-ERRE","61"]
[null,null,null,null,null,null,null,null,null,null,null,"SAINT-HIPPOLYTE","66"]
[null,null,null,null,null,null,null,null,null,null,null,"SAINT-HYMER","14"]
[null,null,null,null,null,null,null,null,null,null,null,"SAINT-JACQUES-DES-BLATS","15"]
[null,null,null,null,null,null,null,null,null,null,null,"SAINT-JAL","19"]
[null,null,null,null,null,null,null,null,null,null,null,"SAINT-JEAN-CHAMBRE","07"]
[null,null,null,null,null,null,null,null,null,null,null,"SAINT-JEAN-DE-BOISEAU","44"]
[null,null,null,null,null,null,null,null,null,null,null,"SAINT-JEAN-DE-FOS","34"]
[null,null,null,null,null,null,null,null,null,null,null,"SAINT-JEAN-DE-LA-PORTE","73"]
[null,null,null,null,null,null,null,null,null,null,null,"SAINT-JEAN-DE-NIOST","01"]
[null,null,null,null,null,null,null,null,null,null,null,"SAINT-JEAN-DES-OLLIERES","63"]
[null,null,null,null,null,null,null,null,null,null,null,"SAINT-JEAN-DE-THURIGNEUX","01"]
[null,null,null,null,null,null,null,null,null,null,null,"SAINT-JEAN-DU-GARD","30"]
[null,null,null,null,null,null,null,null,null,null,null,"SAINT-JEAN-LAGINESTE","46"]
[null,null,null,null,null,null,null,null,null,null,null,"SAINT-JEAN-LE-CENTENIER","07"]
[null,null,null,null,null,null,null,null,null,null,null,"SAINT-JEAN-LIGOURE","87"]
[null,null,null,null,null,null,null,null,null,null,null,"SAINT-JEAN-SUR-VEYLE","01"]
[null,null,null,null,null,null,null,null,null,null,null,"SAINT-JEURES","43"]
[null,null,null,null,null,null,null,null,null,null,null,"SAINT-JOSEPH","972"]
[null,null,null,null,null,null,null,null,null,null,null,"SAINT-JULIEN","21"]
[null,null,null,null,null,null,null,null,null,null,null,"SAINT-JULIEN-DE-COPPEL","63"]
[null,null,null,null,null,null,null,null,null,null,null,"SAINT-JULIEN-DE-PEYROLAS","30"]
[null,null,null,null,null,null,null,null,null,null,null,"SAINT-JULIEN-LE-FAUCON","14"]
[null,null,null,null,null,null,null,null,null,null,null,"SAINT-JULIEN-SUR-BIBOST","69"]
[null,null,null,null,null,null,null,null,null,null,null,"SAINT-JULIEN-VOCANCE","07"]
[null,null,null,null,null,null,null,null,null,null,null,"SAINT-JUSTIN","40"]
[null,null,null,null,null,null,null,null,null,null,null,"SAINT-LACTENCIN","36"]
[null,null,null,null,null,null,null,null,null,null,null,"SAINT-LANGIS-LES-MORTAGNE","61"]
[null,null,null,null,null,null,null,null,null,null,null,"SAINT-LAURENT-BLANGY","62"]
[null,null,null,null,null,null,null,null,null,null,null,"SAINT-LAURENT-DE-LA-PLAINE","49"]
[null,null,null,null,null,null,null,null,null,null,null,"SAINT-LAURENT-DE-NESTE","65"]
[null,null,null,null,null,null,null,null,null,null,null,"SAINT-LAURENT-D'OLT","12"]
[null,null,null,null,null,null,null,null,null,null,null,"SAINT-LAURENT-LA-VERNEDE","30"]
[null,null,null,null,null,null,null,null,null,null,null,"SAINT-LAURENT-ROCHEFORT","42"]
[null,null,null,null,null,null,null,null,null,null,null,"SAINT-LEGER","53"]
[null,null,null,null,null,null,null,null,null,null,null,"SAINT-LEGER-LES-DOMART","80"]
[null,null,null,null,null,null,null,null,null,null,null,"SAINT-LEGER-SUR-DHEUNE","71"]
[null,null,null,null,null,null,null,null,null,null,null,"SAINT-LEON","03"]
[null,null,null,null,null,null,null,null,null,null,null,"SAINT-LEZIN","49"]
[null,null,null,null,null,null,null,null,null,null,null,"SAINT-LOTHAIN","39"]
[null,null,null,null,null,null,null,null,null,null,null,"SAINT-LOUIS","57"]
[null,null,null,null,null,null,null,null,null,null,null,"SAINT-LOUP","41"]
[null,null,null,null,null,null,null,null,null,null,null,"SAINT-LUMINE-DE-CLISSON","44"]
[null,null,null,null,null,null,null,null,null,null,null,"SAINT-LYE-LA-FORET","45"]
[null,null,null,null,null,null,null,null,null,null,null,"SAINT-MAGNE","33"]
[null,null,null,null,null,null,null,null,null,null,null,"SAINT-MALO-DU-BOIS","85"]
[null,null,null,null,null,null,null,null,null,null,null,"SAINT-MANDE","94"]
[null,null,null,null,null,null,null,null,null,null,null,"SAINT-MARCEL","27"]
[null,null,null,null,null,null,null,null,null,null,null,"SAINT-MARCELLIN-LES-VAISON","84"]
[null,null,null,null,null,null,null,null,null,null,null,"SAINT-MARD","17"]
[null,null,null,null,null,null,null,null,null,null,null,"SAINT-MARIENS","33"]
[null,null,null,null,null,null,null,null,null,null,null,"SAINT-MARTIAL-DE-NABIRAT","24"]
[null,null,null,null,null,null,null,null,null,null,null,"SAINT-MARTIN-AUX-BOIS","60"]
[null,null,null,null,null,null,null,null,null,null,null,"SAINT-MARTIN-CHOQUEL","62"]
[null,null,null,null,null,null,null,null,null,null,null,"SAINT-MARTIN-DE-BROMES","04"]
[null,null,null,null,null,null,null,null,null,null,null,"SAINT-MARTIN-D'ECUBLEI","61"]
[null,null,null,null,null,null,null,null,null,null,null,"SAINT-MARTIN-DE-JUSSAC","87"]
[null,null,null,null,null,null,null,null,null,null,null,"SAINT-MARTIN-DES-BESACES","14"]
[null,null,null,null,null,null,null,null,null,null,null,"SAINT-MARTIN-DES-CHAMPS","18"]
[null,null,null,null,null,null,null,null,null,null,null,"SAINT-MARTIN-DES-OLMES","63"]
[null,null,null,null,null,null,null,null,null,null,null,"SAINT-MARTIN-DU-MANOIR","76"]
[null,null,null,null,null,null,null,null,null,null,null,"SAINT-MARTIN-DU-TERTRE","89"]
[null,null,null,null,null,null,null,null,null,null,null,"SAINT-MARTIN-LACAUSSADE","33"]
[null,null,null,null,null,null,null,null,null,null,null,"SAINT-MARTIN-LESTRA","42"]
[null,null,null,null,null,null,null,null,null,null,null,"SAINT-MARTIN-SAINTE-CATHERINE","23"]
[null,null,null,null,null,null,null,null,null,null,null,"SAINT-MARTIN-SUR-OUANNE","89"]
[null,null,null,null,null,null,null,null,null,null,null,"SAINT-MAUR","60"]
[null,null,null,null,null,null,null,null,null,null,null,"SAINT-MAURICE-AUX-RICHES-HOMMES","89"]
[null,null,null,null,null,null,null,null,null,null,null,"SAINT-MAURICE-DES-NOUES","85"]
[null,null,null,null,null,null,null,null,null,null,null,"SAINT-MAURICE-SAINT-GERMAIN","28"]
[null,null,null,null,null,null,null,null,null,null,null,"SAINT-MAUR-SUR-LE-LOIR","28"]
[null,null,null,null,null,null,null,null,null,null,null,"SAINT-MAXIMIN-LA-SAINTE-BAUME","83"]
[null,null,null,null,null,null,null,null,null,null,null,"SAINT-MEEN","29"]
[null,null,null,null,null,null,null,null,null,null,null,"SAINT-MERY","77"]
[null,null,null,null,null,null,null,null,null,null,null,"SAINT-M'HERVE","35"]
[null,null,null,null,null,null,null,null,null,null,null,"SAINT-MICHEL-DE-CHAVAIGNES","72"]
[null,null,null,null,null,null,null,null,null,null,null,"SAINT-MICHEL-EN-GREVE","22"]
[null,null,null,null,null,null,null,null,null,null,null,"SAINT-MICHEL-LOUBEJOU","46"]
[null,null,null,null,null,null,null,null,null,null,null,"SAINT-MITRE-LES-REMPARTS","13"]
[null,null,null,null,null,null,null,null,null,null,null,"SAINT-NAZAIRE-DE-PEZAN","34"]
[null,null,null,null,null,null,null,null,null,null,null,"SAINT-NEXANS","24"]
[null,null,null,null,null,null,null,null,null,null,null,"SAINT-NICOLAS-DE-MACHERIN","38"]
[null,null,null,null,null,null,null,null,null,null,null,"SAINT-NOLFF","56"]
[null,null,null,null,null,null,null,null,null,null,null,"SAINT-OUEN","93"]
[null,null,null,null,null,null,null,null,null,null,null,"SAINT-OUEN-DES-ALLEUX","35"]
[null,null,null,null,null,null,null,null,null,null,null,"SAINT-OUEN-SUR-MORIN","77"]
[null,null,null,null,null,null,null,null,null,null,null,"SAINT-PALAIS-DE-NEGRIGNAC","17"]
[null,null,null,null,null,null,null,null,null,null,null,"SAINT-PANCRASSE","38"]
[null,null,null,null,null,null,null,null,null,null,null,"SAINT-PARDOUX-CORBIER","19"]
[null,null,null,null,null,null,null,null,null,null,null,"SAINT-PAUL","974"]
[null,null,null,null,null,null,null,null,null,null,null,"SAINT-PAUL","65"]
[null,null,null,null,null,null,null,null,null,null,null,"SAINT-PAUL-DE-VARAX","01"]
[null,null,null,null,null,null,null,null,null,null,null,"SAINT-PAUL-LA-COSTE","30"]
[null,null,null,null,null,null,null,null,null,null,null,"SAINT-PAUL-LES-FONTS","30"]
[null,null,null,null,null,null,null,null,null,null,null,"SAINT-PEE-SUR-NIVELLE","64"]
[null,null,null,null,null,null,null,null,null,null,null,"SAINT-PEY-DE-CASTETS","33"]
[null,null,null,null,null,null,null,null,null,null,null,"SAINT-PHILIPPE","974"]
[null,null,null,null,null,null,null,null,null,null,null,"SAINT-PIERRE","67"]
[null,null,null,null,null,null,null,null,null,null,null,"SAINT-PIERRE-DE-BRESSIEUX","38"]
[null,null,null,null,null,null,null,null,null,null,null,"SAINT-PIERRE-DE-COUTANCES","50"]
[null,null,null,null,null,null,null,null,null,null,null,"SAINT-PIERRE-DE-LAGES","31"]
[null,null,null,null,null,null,null,null,null,null,null,"SAINT-PIERRE-DES-IFS","14"]
[null,null,null,null,null,null,null,null,null,null,null,"SAINT-PIERRE-D'IRUBE","64"]
[null,null,null,null,null,null,null,null,null,null,null,"SAINT-PIERRE-DU-LOROUER","72"]
[null,null,null,null,null,null,null,null,null,null,null,"SAINT-PIERRE-EN-VAL","76"]
[null,null,null,null,null,null,null,null,null,null,null,"SAINT-PIERRE-LES-NEMOURS","77"]
[null,null,null,null,null,null,null,null,null,null,null,"SAINT-PIERRE-QUIBERON","56"]
[null,null,null,null,null,null,null,null,null,null,null,"SAINT-PLANTAIRE","36"]
[null,null,null,null,null,null,null,null,null,null,null,"SAINT-PORQUIER","82"]
[null,null,null,null,null,null,null,null,null,null,null,"SAINT-PRIEST-DE-GIMEL","19"]
[null,null,null,null,null,null,null,null,null,null,null,"SAINT-PRIEST-LA-ROCHE","42"]
[null,null,null,null,null,null,null,null,null,null,null,"SAINT-PRIX","03"]
[null,null,null,null,null,null,null,null,null,null,null,"SAINT-QUAY-PERROS","22"]
[null,null,null,null,null,null,null,null,null,null,null,"SAINT-QUENTIN-DES-PRES","60"]
[null,null,null,null,null,null,null,null,null,null,null,"SAINT-RABIER","24"]
[null,null,null,null,null,null,null,null,null,null,null,"SAINT-REMY","79"]
[null,null,null,null,null,null,null,null,null,null,null,"SAINT-REMY","12"]
[null,null,null,null,null,null,null,null,null,null,null,"SAINT-REMY-DU-VAL","72"]
[null,null,null,null,null,null,null,null,null,null,null,"SAINT-RIGOMER-DES-BOIS","72"]
[null,null,null,null,null,null,null,null,null,null,null,"SAINT-ROGATIEN","17"]
[null,null,null,null,null,null,null,null,null,null,null,"SAINT-ROMAIN-DE-SURIEU","38"]
[null,null,null,null,null,null,null,null,null,null,null,"SAINT-ROMANS-LES-MELLE","79"]
[null,null,null,null,null,null,null,null,null,null,null,"SAINTS","77"]
[null,null,null,null,null,null,null,null,null,null,null,"SAINT-SAMSON-DE-LA-ROQUE","27"]
[null,null,null,null,null,null,null,null,null,null,null,"SAINT-SATURNIN-LES-APT","84"]
[null,null,null,null,null,null,null,null,null,null,null,"SAINT-SAUVEUR","70"]
[null,null,null,null,null,null,null,null,null,null,null,"SAINT-SAUVEUR","86"]
[null,null,null,null,null,null,null,null,null,null,null,"SAINT-SAUVEUR-EN-RUE","42"]
[null,null,null,null,null,null,null,null,null,null,null,"SAINT-SAVIN","38"]
[null,null,null,null,null,null,null,null,null,null,null,"SAINT-SAVOURNIN","13"]
[null,null,null,null,null,null,null,null,null,null,null,"SAINT-SERNIN-DU-PLAIN","71"]
[null,null,null,null,null,null,null,null,null,null,null,"SAINT-SEURIN-DE-BOURG","33"]
[null,null,null,null,null,null,null,null,null,null,null,"SAINT-SEVER-CALVADOS","14"]
[null,null,null,null,null,null,null,null,null,null,null,"SAINT-SIXTE","47"]
[null,null,null,null,null,null,null,null,null,null,null,"SAINT-SORLIN-EN-BUGEY","01"]
[null,null,null,null,null,null,null,null,null,null,null,"SAINT-SOUPLET","59"]
[null,null,null,null,null,null,null,null,null,null,null,"SAINT-SULPICE-LAURIERE","87"]
[null,null,null,null,null,null,null,null,null,null,null,"SAINT-SULPICE-SUR-LEZE","31"]
[null,null,null,null,null,null,null,null,null,null,null,"SAINT-SYMPHORIEN","79"]
[null,null,null,null,null,null,null,null,null,null,null,"SAINT-THEGONNEC","29"]
[null,null,null,null,null,null,null,null,null,null,null,"SAINT-THIBAULT","60"]
[null,null,null,null,null,null,null,null,null,null,null,"SAINT-THOME","07"]
[null,null,null,null,null,null,null,null,null,null,null,"SAINT-URBAIN","29"]
[null,null,null,null,null,null,null,null,null,null,null,"SAINT-VAAST-EN-CAMBRESIS","59"]
[null,null,null,null,null,null,null,null,null,null,null,"SAINT-VALERIEN","89"]
[null,null,null,null,null,null,null,null,null,null,null,"SAINT-VIAUD","44"]
[null,null,null,null,null,null,null,null,null,null,null,"SAINT-VICTOR-DES-OULES","30"]
[null,null,null,null,null,null,null,null,null,null,null,"SAINT-VICTOR-MALESCOURS","43"]
[null,null,null,null,null,null,null,null,null,null,null,"SAINT-VINCENT-DE-BOISSET","42"]
[null,null,null,null,null,null,null,null,null,null,null,"SAINT-VINCENT-DES-PRES","72"]
[null,null,null,null,null,null,null,null,null,null,null,"SAINT-VINCENT-JALMOUTIERS","24"]
[null,null,null,null,null,null,null,null,null,null,null,"SAINT-VINCENT-SUR-OUST","56"]
[null,null,null,null,null,null,null,null,null,null,null,"SAINT-XANDRE","17"]
[null,null,null,null,null,null,null,null,null,null,null,"SAINT-YORRE","03"]
[null,null,null,null,null,null,null,null,null,null,null,"SAINT-ZACHARIE","83"]
[null,null,null,null,null,null,null,null,null,null,null,"SALBRIS","41"]
[null,null,null,null,null,null,null,null,null,null,null,"SALES","74"]
[null,null,null,null,null,null,null,null,null,null,null,"SALIGNY","85"]
[null,null,null,null,null,null,null,null,null,null,null,"SALLERTAINE","85"]
[null,null,null,null,null,null,null,null,null,null,null,"SALLES-DE-BARBEZIEUX","16"]
[null,null,null,null,null,null,null,null,null,null,null,"SALLES-SUR-GARONNE","31"]
[null,null,null,null,null,null,null,null,null,null,null,"SALVIAC","46"]
[null,null,null,null,null,null,null,null,null,null,null,"SAMMARCOLLES","86"]
[null,null,null,null,null,null,null,null,null,null,null,"SAMOREAU","77"]
[null,null,null,null,null,null,null,null,null,null,null,"SANCHEVILLE","28"]
[null,null,null,null,null,null,null,null,null,null,null,"SANILHAC","07"]
[null,null,null,null,null,null,null,null,null,null,null,"SANNOIS","95"]
[null,null,null,null,null,null,null,null,null,null,null,"SANTA-MARIA-SICHE","2A"]
[null,null,null,null,null,null,null,null,null,null,null,"SAONE","25"]
[null,null,null,null,null,null,null,null,null,null,null,"SAPOIS","39"]
[null,null,null,null,null,null,null,null,null,null,null,"SARCY","51"]
[null,null,null,null,null,null,null,null,null,null,null,"SARRAGACHIES","32"]
[null,null,null,null,null,null,null,null,null,null,null,"SARREGUEMINES","57"]
[null,null,null,null,null,null,null,null,null,null,null,"SARRIANS","84"]
[null,null,null,null,null,null,null,null,null,null,null,"SASSETOT-LE-MAUCONDUIT","76"]
[null,null,null,null,null,null,null,null,null,null,null,"SAUBRIGUES","40"]
[null,null,null,null,null,null,null,null,null,null,null,"SAUDEMONT","62"]
[null,null,null,null,null,null,null,null,null,null,null,"SAULCHERY","02"]
[null,null,null,null,null,null,null,null,null,null,null,"SAULT-BRENAZ","01"]
[null,null,null,null,null,null,null,null,null,null,null,"SAULX-LES-CHARTREUX","91"]
[null,null,null,null,null,null,null,null,null,null,null,"SAULZOIR","59"]
[null,null,null,null,null,null,null,null,null,null,null,"SAUSSET-LES-PINS","13"]
[null,null,null,null,null,null,null,null,null,null,null,"SAUTEYRARGUES","34"]
[null,null,null,null,null,null,null,null,null,null,null,"SAUVETERRE-DE-BEARN","64"]
[null,null,null,null,null,null,null,null,null,null,null,"SAUZET","30"]
[null,null,null,null,null,null,null,null,null,null,null,"SAVERDUN","09"]
[null,null,null,null,null,null,null,null,null,null,null,"SAVIGNAC-DE-L'ISLE","33"]
[null,null,null,null,null,null,null,null,null,null,null,"SAVIGNY-EN-SEPTAINE","18"]
[null,null,null,null,null,null,null,null,null,null,null,"SAVIGNY-SUR-BRAYE","41"]
[null,null,null,null,null,null,null,null,null,null,null,"SAVONNIERES","37"]
[null,null,null,null,null,null,null,null,null,null,null,"SCEY-MAISIERES","25"]
[null,null,null,null,null,null,null,null,null,null,null,"SCHILLERSDORF","67"]
[null,null,null,null,null,null,null,null,null,null,null,"SCHLIERBACH","68"]
[null,null,null,null,null,null,null,null,null,null,null,"SCHWEIGHOUSE-SUR-MODER","67"]
[null,null,null,null,null,null,null,null,null,null,null,"SEBECOURT","27"]
[null,null,null,null,null,null,null,null,null,null,null,"SECHILIENNE","38"]
[null,null,null,null,null,null,null,null,null,null,null,"SEEZ","73"]
[null,null,null,null,null,null,null,null,null,null,null,"SEIGY","41"]
[null,null,null,null,null,null,null,null,null,null,null,"SELLES","27"]
[null,null,null,null,null,null,null,null,null,null,null,"SELOMMES","41"]
[null,null,null,null,null,null,null,null,null,null,null,"SEMPESSERRE","32"]
[null,null,null,null,null,null,null,null,null,null,null,"SENARGENT-MIGNAFANS","70"]
[null,null,null,null,null,null,null,null,null,null,null,"SENERGUES","12"]
[null,null,null,null,null,null,null,null,null,null,null,"SENOUILLAC","81"]
[null,null,null,null,null,null,null,null,null,null,null,"SEPPOIS-LE-BAS","68"]
[null,null,null,null,null,null,null,null,null,null,null,"SEPTFONTAINES","25"]
[null,null,null,null,null,null,null,null,null,null,null,"SERCUS","59"]
[null,null,null,null,null,null,null,null,null,null,null,"SEREZIN-DU-RHONE","69"]
[null,null,null,null,null,null,null,null,null,null,null,"SERIGNAC-SUR-GARONNE","47"]
[null,null,null,null,null,null,null,null,null,null,null,"SERMOISE","02"]
[null,null,null,null,null,null,null,null,null,null,null,"SERQUES","62"]
[null,null,null,null,null,null,null,null,null,null,null,"SERRALONGUE","66"]
[null,null,null,null,null,null,null,null,null,null,null,"SERVAS","01"]
[null,null,null,null,null,null,null,null,null,null,null,"SERVIERS-ET-LABAUME","30"]
[null,null,null,null,null,null,null,null,null,null,null,"SERVOZ","74"]
[null,null,null,null,null,null,null,null,null,null,null,"SEVERAC-L'EGLISE","12"]
[null,null,null,null,null,null,null,null,null,null,null,"SEVIGNY-WALEPPE","08"]
[null,null,null,null,null,null,null,null,null,null,null,"SEYCHALLES","63"]
[null,null,null,null,null,null,null,null,null,null,null,"SIAUGUES-SAINTE-MARIE","43"]
[null,null,null,null,null,null,null,null,null,null,null,"SIERVILLE","76"]
[null,null,null,null,null,null,null,null,null,null,null,"SIGNY-L'ABBAYE","08"]
[null,null,null,null,null,null,null,null,null,null,null,"SILLE-LE-PHILIPPE","72"]
[null,null,null,null,null,null,null,null,null,null,null,"SIMANDRES","69"]
[null,null,null,null,null,null,null,null,null,null,null,"SIMORRE","32"]
[null,null,null,null,null,null,null,null,null,null,null,"SIROS","64"]
[null,null,null,null,null,null,null,null,null,null,null,"SIXT-FER-A-CHEVAL","74"]
[null,null,null,null,null,null,null,null,null,null,null,"SOCX","59"]
[null,null,null,null,null,null,null,null,null,null,null,"SOISY-BOUY","77"]
[null,null,null,null,null,null,null,null,null,null,null,"SOLIGNAC-SUR-LOIRE","43"]
[null,null,null,null,null,null,null,null,null,null,null,"SOLLIES-VILLE","83"]
[null,null,null,null,null,null,null,null,null,null,null,"SOMMAING","59"]
[null,null,null,null,null,null,null,null,null,null,null,"SOMPUIS","51"]
[null,null,null,null,null,null,null,null,null,null,null,"SONNAZ","73"]
[null,null,null,null,null,null,null,null,null,null,null,"SORANS-LES-BREUREY","70"]
[null,null,null,null,null,null,null,null,null,null,null,"SORNAC","19"]
[null,null,null,null,null,null,null,null,null,null,null,"SORTOSVILLE-EN-BEAUMONT","50"]
[null,null,null,null,null,null,null,null,null,null,null,"SOUAL","81"]
[null,null,null,null,null,null,null,null,null,null,null,"SOUDRON","51"]
[null,null,null,null,null,null,null,null,null,null,null,"SOUGERES-EN-PUISAYE","89"]
[null,null,null,null,null,null,null,null,null,null,null,"SOUILLE","72"]
[null,null,null,null,null,null,null,null,null,null,null,"SOULANGIS","18"]
[null,null,null,null,null,null,null,null,null,null,null,"SOULTZMATT","68"]
[null,null,null,null,null,null,null,null,null,null,null,"SOUMOULOU","64"]
[null,null,null,null,null,null,null,null,null,null,null,"SOURNIA","66"]
[null,null,null,null,null,null,null,null,null,null,null,"SOUZAY-CHAMPIGNY","49"]
[null,null,null,null,null,null,null,null,null,null,null,"SOYE-EN-SEPTAINE","18"]
[null,null,null,null,null,null,null,null,null,null,null,"SPINCOURT","55"]
[null,null,null,null,null,null,null,null,null,null,null,"STEINBRUNN-LE-HAUT","68"]
[null,null,null,null,null,null,null,null,null,null,null,"STRASBOURG","67"]
[null,null,null,null,null,null,null,null,null,null,null,"STUTZHEIM-OFFENHEIM","67"]
[null,null,null,null,null,null,null,null,null,null,null,"SULLY-LA-CHAPELLE","45"]
[null,null,null,null,null,null,null,null,null,null,null,"SURESNES","92"]
[null,null,null,null,null,null,null,null,null,null,null,"SURQUES","62"]
[null,null,null,null,null,null,null,null,null,null,null,"SURY-PRES-LERE","18"]
[null,null,null,null,null,null,null,null,null,null,null,"TADEN","22"]
[null,null,null,null,null,null,null,null,null,null,null,"TAILLEBOURG","17"]
[null,null,null,null,null,null,null,null,null,null,null,"TAISNIERES-SUR-HON","59"]
[null,null,null,null,null,null,null,null,null,null,null,"TALLENAY","25"]
[null,null,null,null,null,null,null,null,null,null,null,"TALMAS","80"]
[null,null,null,null,null,null,null,null,null,null,null,"TANCON","71"]
[null,null,null,null,null,null,null,null,null,null,null,"TARARE","69"]
[null,null,null,null,null,null,null,null,null,null,null,"TARNAC","19"]
[null,null,null,null,null,null,null,null,null,null,null,"TARTIGNY","60"]
[null,null,null,null,null,null,null,null,null,null,null,"TAUVES","63"]
[null,null,null,null,null,null,null,null,null,null,null,"TAVERNES","83"]
[null,null,null,null,null,null,null,null,null,null,null,"TECHE","38"]
[null,null,null,null,null,null,null,null,null,null,null,"TENCIN","38"]
[null,null,null,null,null,null,null,null,null,null,null,"TERGNIER","02"]
[null,null,null,null,null,null,null,null,null,null,null,"TERNAY","41"]
[null,null,null,null,null,null,null,null,null,null,null,"TERSANNE","26"]
[null,null,null,null,null,null,null,null,null,null,null,"TEYRAN","34"]
[null,null,null,null,null,null,null,null,null,null,null,"THANNENKIRCH","68"]
[null,null,null,null,null,null,null,null,null,null,null,"THEILLAY","41"]
[null,null,null,null,null,null,null,null,null,null,null,"THENEUILLE","03"]
[null,null,null,null,null,null,null,null,null,null,null,"THEROUANNE","62"]
[null,null,null,null,null,null,null,null,null,null,null,"THEVET-SAINT-JULIEN","36"]
[null,null,null,null,null,null,null,null,null,null,null,"THIBERVILLE","27"]
[null,null,null,null,null,null,null,null,null,null,null,"THIERS","63"]
[null,null,null,null,null,null,null,null,null,null,null,"THIEULLOY-L'ABBAYE","80"]
[null,null,null,null,null,null,null,null,null,null,null,"THIN-LE-MOUTIER","08"]
[null,null,null,null,null,null,null,null,null,null,null,"THIVERVAL-GRIGNON","78"]
[null,null,null,null,null,null,null,null,null,null,null,"THIZY","69"]
[null,null,null,null,null,null,null,null,null,null,null,"THOREE-LES-PINS","72"]
[null,null,null,null,null,null,null,null,null,null,null,"THORIGNE-FOUILLARD","35"]
[null,null,null,null,null,null,null,null,null,null,null,"THOUARCE","49"]
[null,null,null,null,null,null,null,null,null,null,null,"THUREY","71"]
[null,null,null,null,null,null,null,null,null,null,null,"THURY-SOUS-CLERMONT","60"]
[null,null,null,null,null,null,null,null,null,null,null,"TIGNE","49"]
[null,null,null,null,null,null,null,null,null,null,null,"TILLOY-LEZ-CAMBRAI","59"]
[null,null,null,null,null,null,null,null,null,null,null,"TILQUES","62"]
[null,null,null,null,null,null,null,null,null,null,null,"TIZAC-DE-LAPOUYADE","33"]
[null,null,null,null,null,null,null,null,null,null,null,"TORCENAY","52"]
[null,null,null,null,null,null,null,null,null,null,null,"TORCY","71"]
[null,null,null,null,null,null,null,null,null,null,null,"TORPES","71"]
[null,null,null,null,null,null,null,null,null,null,null,"TOUET-SUR-VAR","06"]
[null,null,null,null,null,null,null,null,null,null,null,"TOUL","54"]
[null,null,null,null,null,null,null,null,null,null,null,"TOULON-SUR-ARROUX","71"]
[null,null,null,null,null,null,null,null,null,null,null,"TOURNAI-SUR-DIVE","61"]
[null,null,null,null,null,null,null,null,null,null,null,"TOURNES","08"]
[null,null,null,null,null,null,null,null,null,null,null,"TOURNON-SAINT-MARTIN","36"]
[null,null,null,null,null,null,null,null,null,null,null,"TOURTOUR","83"]
[null,null,null,null,null,null,null,null,null,null,null,"TOURY","28"]
[null,null,null,null,null,null,null,null,null,null,null,"TOUSSUS-LE-NOBLE","78"]
[null,null,null,null,null,null,null,null,null,null,null,"TRACY-BOCAGE","14"]
[null,null,null,null,null,null,null,null,null,null,null,"TRANS-LA-FORET","35"]
[null,null,null,null,null,null,null,null,null,null,null,"TRAUSSE","11"]
[null,null,null,null,null,null,null,null,null,null,null,"TREBES","11"]
[null,null,null,null,null,null,null,null,null,null,null,"TREFFRIN","22"]
[null,null,null,null,null,null,null,null,null,null,null,"TREGONNEAU","22"]
[null,null,null,null,null,null,null,null,null,null,null,"TREGUIER","22"]
[null,null,null,null,null,null,null,null,null,null,null,"TRELOU-SUR-MARNE","02"]
[null,null,null,null,null,null,null,null,null,null,null,"TREMEREUC","22"]
[null,null,null,null,null,null,null,null,null,null,null,"TREMOLAT","24"]
[null,null,null,null,null,null,null,null,null,null,null,"TRESCLEOUX","05"]
[null,null,null,null,null,null,null,null,null,null,null,"TRESSIN","59"]
[null,null,null,null,null,null,null,null,null,null,null,"TREVE","22"]
[null,null,null,null,null,null,null,null,null,null,null,"TREVOU-TREGUIGNEC","22"]
[null,null,null,null,null,null,null,null,null,null,null,"TRIGNAC","44"]
[null,null,null,null,null,null,null,null,null,null,null,"TRINITE","972"]
[null,null,null,null,null,null,null,null,null,null,null,"TRIZAY-LES-BONNEVAL","28"]
[null,null,null,null,null,null,null,null,null,null,null,"TROISVILLES","59"]
[null,null,null,null,null,null,null,null,null,null,null,"TROUILLAS","66"]
[null,null,null,null,null,null,null,null,null,null,null,"TROUY","18"]
[null,null,null,null,null,null,null,null,null,null,null,"TULLY","80"]
[null,null,null,null,null,null,null,null,null,null,null,"TUSSON","16"]
[null,null,null,null,null,null,null,null,null,null,null,"UCHAUD","30"]
[null,null,null,null,null,null,null,null,null,null,null,"UNIEUX","42"]
[null,null,null,null,null,null,null,null,null,null,null,"URCUIT","64"]
[null,null,null,null,null,null,null,null,null,null,null,"UROU-ET-CRENNES","61"]
[null,null,null,null,null,null,null,null,null,null,null,"US","95"]
[null,null,null,null,null,null,null,null,null,null,null,"UTTENHEIM","67"]
[null,null,null,null,null,null,null,null,null,null,null,"UZEIN","64"]
[null,null,null,null,null,null,null,null,null,null,null,"VABRES-L'ABBAYE","12"]
[null,null,null,null,null,null,null,null,null,null,null,"VAILHAUQUES","34"]
[null,null,null,null,null,null,null,null,null,null,null,"VAINS","50"]
[null,null,null,null,null,null,null,null,null,null,null,"VALANJOU","49"]
[null,null,null,null,null,null,null,null,null,null,null,"VALDERIES","81"]
[null,null,null,null,null,null,null,null,null,null,null,"VALDOIE","90"]
[null,null,null,null,null,null,null,null,null,null,null,"VALENCE","82"]
[null,null,null,null,null,null,null,null,null,null,null,"VALEYRAC","33"]
[null,null,null,null,null,null,null,null,null,null,null,"VALLABRIX","30"]
[null,null,null,null,null,null,null,null,null,null,null,"VALLE-DI-CAMPOLORO","2B"]
[null,null,null,null,null,null,null,null,null,null,null,"VALLEROY","54"]
[null,null,null,null,null,null,null,null,null,null,null,"VALMEINIER","73"]
[null,null,null,null,null,null,null,null,null,null,null,"VALOJOULX","24"]
[null,null,null,null,null,null,null,null,null,null,null,"VALS-PRES-LE-PUY","43"]
[null,null,null,null,null,null,null,null,null,null,null,"VANNES-LE-CHATEL","54"]
[null,null,null,null,null,null,null,null,null,null,null,"VANY","57"]
[null,null,null,null,null,null,null,null,null,null,null,"VARANGES","21"]
[null,null,null,null,null,null,null,null,null,null,null,"VARENNES-LE-GRAND","71"]
[null,null,null,null,null,null,null,null,null,null,null,"VARENNES-SUR-TECHE","03"]
[null,null,null,null,null,null,null,null,null,null,null,"VARIZE","57"]
[null,null,null,null,null,null,null,null,null,null,null,"VASSIEUX-EN-VERCORS","26"]
[null,null,null,null,null,null,null,null,null,null,null,"VATTETOT-SUR-MER","76"]
[null,null,null,null,null,null,null,null,null,null,null,"VAUCHASSIS","10"]
[null,null,null,null,null,null,null,null,null,null,null,"VAUDREUILLE","31"]
[null,null,null,null,null,null,null,null,null,null,null,"VAUHALLAN","91"]
[null,null,null,null,null,null,null,null,null,null,null,"VAULRY","87"]
[null,null,null,null,null,null,null,null,null,null,null,"VAUVILLERS","80"]
[null,null,null,null,null,null,null,null,null,null,null,"VAUX-ANDIGNY","02"]
[null,null,null,null,null,null,null,null,null,null,null,"VAUX-LE-PENIL","77"]
[null,null,null,null,null,null,null,null,null,null,null,"VAYRES-SUR-ESSONNE","91"]
[null,null,null,null,null,null,null,null,null,null,null,"VEAUVILLE-LES-BAONS","76"]
[null,null,null,null,null,null,null,null,null,null,null,"VELAINE-EN-HAYE","54"]
[null,null,null,null,null,null,null,null,null,null,null,"VELLESCOT","90"]
[null,null,null,null,null,null,null,null,null,null,null,"VENABLES","27"]
[null,null,null,null,null,null,null,null,null,null,null,"VENDEGIES-AU-BOIS","59"]
[null,null,null,null,null,null,null,null,null,null,null,"VENDOEUVRES","36"]
[null,null,null,null,null,null,null,null,null,null,null,"VENDREST","77"]
[null,null,null,null,null,null,null,null,null,null,null,"VENGEONS","50"]
[null,null,null,null,null,null,null,null,null,null,null,"VENTENAC-EN-MINERVOIS","11"]
[null,null,null,null,null,null,null,null,null,null,null,"VERANNE","42"]
[null,null,null,null,null,null,null,null,null,null,null,"VERCHAIX","74"]
[null,null,null,null,null,null,null,null,null,null,null,"VERDUN-SUR-LE-DOUBS","71"]
[null,null,null,null,null,null,null,null,null,null,null,"VERGETOT","76"]
[null,null,null,null,null,null,null,null,null,null,null,"VERGONNES","49"]
[null,null,null,null,null,null,null,null,null,null,null,"VERLINCTHUN","62"]
[null,null,null,null,null,null,null,null,null,null,null,"VERNEUGHEOL","63"]
[null,null,null,null,null,null,null,null,null,null,null,"VERNEUIL-SUR-IGNERAIE","36"]
[null,null,null,null,null,null,null,null,null,null,null,"VERNIOZ","38"]
[null,null,null,null,null,null,null,null,null,null,null,"VEROSVRES","71"]
[null,null,null,null,null,null,null,null,null,null,null,"VERRIE","49"]
[null,null,null,null,null,null,null,null,null,null,null,"VERRUE","86"]
[null,null,null,null,null,null,null,null,null,null,null,"VERT","78"]
[null,null,null,null,null,null,null,null,null,null,null,"VERTOLAYE","63"]
[null,null,null,null,null,null,null,null,null,null,null,"VERTUS","51"]
[null,null,null,null,null,null,null,null,null,null,null,"VESSEY","50"]
[null,null,null,null,null,null,null,null,null,null,null,"VEYRAC","87"]
[null,null,null,null,null,null,null,null,null,null,null,"VEYSSILIEU","38"]
[null,null,null,null,null,null,null,null,null,null,null,"VIALAS","48"]
[null,null,null,null,null,null,null,null,null,null,null,"VICDESSOS","09"]
[null,null,null,null,null,null,null,null,null,null,null,"VIC-LA-GARDIOLE","34"]
[null,null,null,null,null,null,null,null,null,null,null,"VICQ-SUR-GARTEMPE","86"]
[null,null,null,null,null,null,null,null,null,null,null,"VIEILLEVIGNE","31"]
[null,null,null,null,null,null,null,null,null,null,null,"VIELLE-SAINT-GIRONS","40"]
[null,null,null,null,null,null,null,null,null,null,null,"VIENNE-EN-VAL","45"]
[null,null,null,null,null,null,null,null,null,null,null,"VIEUX-CONDE","59"]
[null,null,null,null,null,null,null,null,null,null,null,"VIEUX-MOULIN","88"]
[null,null,null,null,null,null,null,null,null,null,null,"VIEUX-VY-SUR-COUESNON","35"]
[null,null,null,null,null,null,null,null,null,null,null,"VIGNEUX-SUR-SEINE","91"]
[null,null,null,null,null,null,null,null,null,null,null,"VIGNY","95"]
[null,null,null,null,null,null,null,null,null,null,null,"VIJON","36"]
[null,null,null,null,null,null,null,null,null,null,null,"VILLAMBLAIN","45"]
[null,null,null,null,null,null,null,null,null,null,null,"VILLAR-D'ARENE","05"]
[null,null,null,null,null,null,null,null,null,null,null,"VILLARD-SAINT-SAUVEUR","39"]
[null,null,null,null,null,null,null,null,null,null,null,"VILLARS","84"]
[null,null,null,null,null,null,null,null,null,null,null,"VILLEBAUDON","50"]
[null,null,null,null,null,null,null,null,null,null,null,"VILLEBOIS-LAVALETTE","16"]
[null,null,null,null,null,null,null,null,null,null,null,"VILLECHETIF","10"]
[null,null,null,null,null,null,null,null,null,null,null,"VILLEDOMER","37"]
[null,null,null,null,null,null,null,null,null,null,null,"VILLEFARGEAU","89"]
[null,null,null,null,null,null,null,null,null,null,null,"VILLEFRANCHE-DE-LAURAGAIS","31"]
[null,null,null,null,null,null,null,null,null,null,null,"VILLEHERVIERS","41"]
[null,null,null,null,null,null,null,null,null,null,null,"VILLELOIN-COULANGE","37"]
[null,null,null,null,null,null,null,null,null,null,null,"VILLEMAGNE","11"]
[null,null,null,null,null,null,null,null,null,null,null,"VILLEMONTAIS","42"]
[null,null,null,null,null,null,null,null,null,null,null,"VILLENAVE-DE-RIONS","33"]
[null,null,null,null,null,null,null,null,null,null,null,"VILLENEUVE-D'ALLIER","43"]
[null,null,null,null,null,null,null,null,null,null,null,"VILLENEUVE-DU-PAREAGE","09"]
[null,null,null,null,null,null,null,null,null,null,null,"VILLENEUVE-LES-GENETS","89"]
[null,null,null,null,null,null,null,null,null,null,null,"VILLENEUVE-SAINT-DENIS","77"]
[null,null,null,null,null,null,null,null,null,null,null,"VILLENEUVE-SUR-FERE","02"]
[null,null,null,null,null,null,null,null,null,null,null,"VILLEPREUX","78"]
[null,null,null,null,null,null,null,null,null,null,null,"VILLEREAL","47"]
[null,null,null,null,null,null,null,null,null,null,null,"VILLERS","42"]
[null,null,null,null,null,null,null,null,null,null,null,"VILLERS-EN-CAUCHIES","59"]
[null,null,null,null,null,null,null,null,null,null,null,"VILLERS-LA-MONTAGNE","54"]
[null,null,null,null,null,null,null,null,null,null,null,"VILLERS-LES-NANCY","54"]
[null,null,null,null,null,null,null,null,null,null,null,"VILLERS-SOUS-CHALAMONT","25"]
[null,null,null,null,null,null,null,null,null,null,null,"VILLERS-SUR-TRIE","60"]
[null,null,null,null,null,null,null,null,null,null,null,"VILLESELVE","60"]
[null,null,null,null,null,null,null,null,null,null,null,"VILLETTE","78"]
[null,null,null,null,null,null,null,null,null,null,null,"VILLEURBANNE","69"]
[null,null,null,null,null,null,null,null,null,null,null,"VILLEVIEUX","39"]
[null,null,null,null,null,null,null,null,null,null,null,"VILLIERS-LE-MORHIER","28"]
[null,null,null,null,null,null,null,null,null,null,null,"VILLIERS-SOUS-MORTAGNE","61"]
[null,null,null,null,null,null,null,null,null,null,null,"VILLIERS-SUR-ORGE","91"]
[null,null,null,null,null,null,null,null,null,null,null,"VILLIERS-SUR-SEINE","77"]
[null,null,null,null,null,null,null,null,null,null,null,"VILLIERS-SUR-THOLON","89"]
[null,null,null,null,null,null,null,null,null,null,null,"VILLIERS-SUR-YONNE","58"]
[null,null,null,null,null,null,null,null,null,null,null,"VILLIERS-VINEUX","89"]
[null,null,null,null,null,null,null,null,null,null,null,"VILLIEU-LOYES-MOLLON","01"]
[null,null,null,null,null,null,null,null,null,null,null,"VILLING","57"]
[null,null,null,null,null,null,null,null,null,null,null,"VILLOGNON","16"]
[null,null,null,null,null,null,null,null,null,null,null,"VILLONS-LES-BUISSONS","14"]
[null,null,null,null,null,null,null,null,null,null,null,"VILLORCEAU","45"]
[null,null,null,null,null,null,null,null,null,null,null,"VILLOSANGES","63"]
[null,null,null,null,null,null,null,null,null,null,null,"VILLOTRAN","60"]
[null,null,null,null,null,null,null,null,null,null,null,"VILLUIS","77"]
[null,null,null,null,null,null,null,null,null,null,null,"VILLY-BOCAGE","14"]
[null,null,null,null,null,null,null,null,null,null,null,"VILLY-EN-TRODES","10"]
[null,null,null,null,null,null,null,null,null,null,null,"VILLY-LE-BOUVERET","74"]
[null,null,null,null,null,null,null,null,null,null,null,"VILLY-LE-MOUTIER","21"]
[null,null,null,null,null,null,null,null,null,null,null,"VILLY-LE-PELLOUX","74"]
[null,null,null,null,null,null,null,null,null,null,null,"VILSBERG","57"]
[null,null,null,null,null,null,null,null,null,null,null,"VIMENET","12"]
[null,null,null,null,null,null,null,null,null,null,null,"VIMINES","73"]
[null,null,null,null,null,null,null,null,null,null,null,"VIMONT","14"]
[null,null,null,null,null,null,null,null,null,null,null,"VIMORY","45"]
[null,null,null,null,null,null,null,null,null,null,null,"VIMOUTIERS","61"]
[null,null,null,null,null,null,null,null,null,null,null,"VIMPELLES","77"]
[null,null,null,null,null,null,null,null,null,null,null,"VIMY","62"]
[null,null,null,null,null,null,null,null,null,null,null,"VINANTES","77"]
[null,null,null,null,null,null,null,null,null,null,null,"VINASSAN","11"]
[null,null,null,null,null,null,null,null,null,null,null,"VINAY","38"]
[null,null,null,null,null,null,null,null,null,null,null,"VINAY","51"]
[null,null,null,null,null,null,null,null,null,null,null,"VINCA","66"]
[null,null,null,null,null,null,null,null,null,null,null,"VINCELLES","89"]
[null,null,null,null,null,null,null,null,null,null,null,"VINCELLES","71"]
[null,null,null,null,null,null,null,null,null,null,null,"VINCELLES","39"]
[null,null,null,null,null,null,null,null,null,null,null,"VINCELLES","51"]
[null,null,null,null,null,null,null,null,null,null,null,"VINCELOTTES","89"]
[null,null,null,null,null,null,null,null,null,null,null,"VINCENNES","94"]
[null,null,null,null,null,null,null,null,null,null,null,"VINCENT","39"]
[null,null,null,null,null,null,null,null,null,null,null,"VINCEY","88"]
[null,null,null,null,null,null,null,null,null,null,null,"VINDECY","71"]
[null,null,null,null,null,null,null,null,null,null,null,"VINDEFONTAINE","50"]
[null,null,null,null,null,null,null,null,null,null,null,"VINDELLE","16"]
[null,null,null,null,null,null,null,null,null,null,null,"VINEUIL","41"]
[null,null,null,null,null,null,null,null,null,null,null,"VINEUIL","36"]
[null,null,null,null,null,null,null,null,null,null,null,"VINEUIL-SAINT-FIRMIN","60"]
[null,null,null,null,null,null,null,null,null,null,null,"VINEZAC","07"]
[null,null,null,null,null,null,null,null,null,null,null,"VINGRAU","66"]
[null,null,null,null,null,null,null,null,null,null,null,"VINGT-HANAPS","61"]
[null,null,null,null,null,null,null,null,null,null,null,"VINNEUF","89"]
[null,null,null,null,null,null,null,null,null,null,null,"VINON","18"]
[null,null,null,null,null,null,null,null,null,null,null,"VINON-SUR-VERDON","83"]
[null,null,null,null,null,null,null,null,null,null,null,"VINSOBRES","26"]
[null,null,null,null,null,null,null,null,null,null,null,"VINS-SUR-CARAMY","83"]
[null,null,null,null,null,null,null,null,null,null,null,"VINZELLES","71"]
[null,null,null,null,null,null,null,null,null,null,null,"VINZELLES","63"]
[null,null,null,null,null,null,null,null,null,null,null,"VINZIER","74"]
[null,null,null,null,null,null,null,null,null,null,null,"VINZIEUX","07"]
[null,null,null,null,null,null,null,null,null,null,null,"VIODOS-ABENSE-DE-BAS","64"]
[null,null,null,null,null,null,null,null,null,null,null,"VIOLAINES","62"]
[null,null,null,null,null,null,null,null,null,null,null,"VIOLAY","42"]
[null,null,null,null,null,null,null,null,null,null,null,"VIOLES","84"]
[null,null,null,null,null,null,null,null,null,null,null,"VIOLS-LE-FORT","34"]
[null,null,null,null,null,null,null,null,null,null,null,"VION","72"]
[null,null,null,null,null,null,null,null,null,null,null,"VION","07"]
[null,null,null,null,null,null,null,null,null,null,null,"VIONS","73"]
[null,null,null,null,null,null,null,null,null,null,null,"VIPLAIX","03"]
[null,null,null,null,null,null,null,null,null,null,null,"VIRANDEVILLE","50"]
[null,null,null,null,null,null,null,null,null,null,null,"VIRAZEIL","47"]
[null,null,null,null,null,null,null,null,null,null,null,"VIRE","14"]
[null,null,null,null,null,null,null,null,null,null,null,"VIRE","71"]
[null,null,null,null,null,null,null,null,null,null,null,"VIRECOURT","54"]
[null,null,null,null,null,null,null,null,null,null,null,"VIRELADE","33"]
[null,null,null,null,null,null,null,null,null,null,null,"VIRE-SUR-LOT","46"]
[null,null,null,null,null,null,null,null,null,null,null,"VIREUX-MOLHAIN","08"]
[null,null,null,null,null,null,null,null,null,null,null,"VIREUX-WALLERAND","08"]
[null,null,null,null,null,null,null,null,null,null,null,"VIREY","50"]
[null,null,null,null,null,null,null,null,null,null,null,"VIREY-LE-GRAND","71"]
[null,null,null,null,null,null,null,null,null,null,null,"VIREY-SOUS-BAR","10"]
[null,null,null,null,null,null,null,null,null,null,null,"VIRIAT","01"]
[null,null,null,null,null,null,null,null,null,null,null,"VIRICELLES","42"]
[null,null,null,null,null,null,null,null,null,null,null,"VIRIEU","38"]
[null,null,null,null,null,null,null,null,null,null,null,"VIRIEU-LE-GRAND","01"]
[null,null,null,null,null,null,null,null,null,null,null,"VIRIEU-LE-PETIT","01"]
[null,null,null,null,null,null,null,null,null,null,null,"VIRIGNEUX","42"]
[null,null,null,null,null,null,null,null,null,null,null,"VIRIGNIN","01"]
[null,null,null,null,null,null,null,null,null,null,null,"VIRIVILLE","38"]
[null,null,null,null,null,null,null,null,null,null,null,"VIRLET","63"]
[null,null,null,null,null,null,null,null,null,null,null,"VIRMING","57"]
[null,null,null,null,null,null,null,null,null,null,null,"VIROFLAY","78"]
[null,null,null,null,null,null,null,null,null,null,null,"VIROLLET","17"]
[null,null,null,null,null,null,null,null,null,null,null,"VIRONCHAUX","80"]
[null,null,null,null,null,null,null,null,null,null,null,"VIRONVAY","27"]
[null,null,null,null,null,null,null,null,null,null,null,"VIRSAC","33"]
[null,null,null,null,null,null,null,null,null,null,null,"VIRSON","17"]
[null,null,null,null,null,null,null,null,null,null,null,"VIRVILLE","76"]
[null,null,null,null,null,null,null,null,null,null,null,"VIRY","74"]
[null,null,null,null,null,null,null,null,null,null,null,"VIRY","39"]
[null,null,null,null,null,null,null,null,null,null,null,"VIRY-CHATILLON","91"]
[null,null,null,null,null,null,null,null,null,null,null,"VIRY-NOUREUIL","02"]
[null,null,null,null,null,null,null,null,null,null,null,"VISAN","84"]
[null,null,null,null,null,null,null,null,null,null,null,"VISCOMTAT","63"]
[null,null,null,null,null,null,null,null,null,null,null,"VIS-EN-ARTOIS","62"]
[null,null,null,null,null,null,null,null,null,null,null,"VISKER","65"]
[null,null,null,null,null,null,null,null,null,null,null,"VISMES","80"]
[null,null,null,null,null,null,null,null,null,null,null,"VISSAC-AUTEYRAC","43"]
[null,null,null,null,null,null,null,null,null,null,null,"VISSEICHE","35"]
[null,null,null,null,null,null,null,null,null,null,null,"VITERBE","81"]
[null,null,null,null,null,null,null,null,null,null,null,"VITERNE","54"]
[null,null,null,null,null,null,null,null,null,null,null,"VITOT","27"]
[null,null,null,null,null,null,null,null,null,null,null,"VITRAC","24"]
[null,null,null,null,null,null,null,null,null,null,null,"VITRAC","63"]
[null,null,null,null,null,null,null,null,null,null,null,"VITRAC","15"]
[null,null,null,null,null,null,null,null,null,null,null,"VITRAC-SAINT-VINCENT","16"]
[null,null,null,null,null,null,null,null,null,null,null,"VITRAC-SUR-MONTANE","19"]
[null,null,null,null,null,null,null,null,null,null,null,"VITRAY-EN-BEAUCE","28"]
[null,null,null,null,null,null,null,null,null,null,null,"VITRE","35"]
[null,null,null,null,null,null,null,null,null,null,null,"VITRE","79"]
[null,null,null,null,null,null,null,null,null,null,null,"VITREUX","39"]
[null,null,null,null,null,null,null,null,null,null,null,"VITREY-SUR-MANCE","70"]
[null,null,null,null,null,null,null,null,null,null,null,"VITRIMONT","54"]
[null,null,null,null,null,null,null,null,null,null,null,"VITROLLES","13"]
[null,null,null,null,null,null,null,null,null,null,null,"VITRY-AUX-LOGES","45"]
[null,null,null,null,null,null,null,null,null,null,null,"VITRY-EN-ARTOIS","62"]
[null,null,null,null,null,null,null,null,null,null,null,"VITRY-EN-CHAROLLAIS","71"]
[null,null,null,null,null,null,null,null,null,null,null,"VITRY-EN-PERTHOIS","51"]
[null,null,null,null,null,null,null,null,null,null,null,"VITRY-LA-VILLE","51"]
[null,null,null,null,null,null,null,null,null,null,null,"VITRY-LE-CROISE","10"]
[null,null,null,null,null,null,null,null,null,null,null,"VITRY-LE-FRANCOIS","51"]
[null,null,null,null,null,null,null,null,null,null,null,"VITRY-SUR-LOIRE","71"]
[null,null,null,null,null,null,null,null,null,null,null,"VITRY-SUR-ORNE","57"]
[null,null,null,null,null,null,null,null,null,null,null,"VITRY-SUR-SEINE","94"]
[null,null,null,null,null,null,null,null,null,null,null,"VITTEAUX","21"]
[null,null,null,null,null,null,null,null,null,null,null,"VITTEFLEUR","76"]
[null,null,null,null,null,null,null,null,null,null,null,"VITTEL","88"]
[null,null,null,null,null,null,null,null,null,null,null,"VITTERSBOURG","57"]
[null,null,null,null,null,null,null,null,null,null,null,"VITTONCOURT","57"]
[null,null,null,null,null,null,null,null,null,null,null,"VIUZ-EN-SALLAZ","74"]
[null,null,null,null,null,null,null,null,null,null,null,"VIUZ-LA-CHIESAZ","74"]
[null,null,null,null,null,null,null,null,null,null,null,"VIVAISE","02"]
[null,null,null,null,null,null,null,null,null,null,null,"VIVARIO","2B"]
[null,null,null,null,null,null,null,null,null,null,null,"VIVEROLS","63"]
[null,null,null,null,null,null,null,null,null,null,null,"VIVIER-AU-COURT","08"]
[null,null,null,null,null,null,null,null,null,null,null,"VIVIERES","02"]
[null,null,null,null,null,null,null,null,null,null,null,"VIVIERS","07"]
[null,null,null,null,null,null,null,null,null,null,null,"VIVIERS-DU-LAC","73"]
[null,null,null,null,null,null,null,null,null,null,null,"VIVIERS-LES-MONTAGNES","81"]
[null,null,null,null,null,null,null,null,null,null,null,"VIVIERS-SUR-CHIERS","54"]
[null,null,null,null,null,null,null,null,null,null,null,"VIVIEZ","12"]
[null,null,null,null,null,null,null,null,null,null,null,"VIVOIN","72"]
[null,null,null,null,null,null,null,null,null,null,null,"VIVONNE","86"]
[null,null,null,null,null,null,null,null,null,null,null,"VIVY","49"]
[null,null,null,null,null,null,null,null,null,null,null,"VIX","85"]
[null,null,null,null,null,null,null,null,null,null,null,"VIZILLE","38"]
[null,null,null,null,null,null,null,null,null,null,null,"VOCANCE","07"]
[null,null,null,null,null,null,null,null,null,null,null,"VOEGTLINSHOFFEN","68"]
[null,null,null,null,null,null,null,null,null,null,null,"VOELLERDINGEN","67"]
[null,null,null,null,null,null,null,null,null,null,null,"VOEUIL-ET-GIGET","16"]
[null,null,null,null,null,null,null,null,null,null,null,"VOGELGRUN","68"]
[null,null,null,null,null,null,null,null,null,null,null,"VOGLANS","73"]
[null,null,null,null,null,null,null,null,null,null,null,"VOGUE","07"]
[null,null,null,null,null,null,null,null,null,null,null,"VOID-VACON","55"]
[null,null,null,null,null,null,null,null,null,null,null,"VOILLECOMTE","52"]
[null,null,null,null,null,null,null,null,null,null,null,"VOIMHAUT","57"]
[null,null,null,null,null,null,null,null,null,null,null,"VOINEMONT","54"]
[null,null,null,null,null,null,null,null,null,null,null,"VOINSLES","77"]
[null,null,null,null,null,null,null,null,null,null,null,"VOIRON","38"]
[null,null,null,null,null,null,null,null,null,null,null,"VOISE","28"]
[null,null,null,null,null,null,null,null,null,null,null,"VOISENON","77"]
[null,null,null,null,null,null,null,null,null,null,null,"VOISEY","52"]
[null,null,null,null,null,null,null,null,null,null,null,"VOISINES","89"]
[null,null,null,null,null,null,null,null,null,null,null,"VOISINS-LE-BRETONNEUX","78"]
[null,null,null,null,null,null,null,null,null,null,null,"VOITEUR","39"]
[null,null,null,null,null,null,null,null,null,null,null,"VOIVRES-LES-LE-MANS","72"]
[null,null,null,null,null,null,null,null,null,null,null,"VOLCKERINCKHOVE","59"]
[null,null,null,null,null,null,null,null,null,null,null,"VOLESVRES","71"]
[null,null,null,null,null,null,null,null,null,null,null,"VOLGELSHEIM","68"]
[null,null,null,null,null,null,null,null,null,null,null,"VOLGRE","89"]
[null,null,null,null,null,null,null,null,null,null,null,"VOLKSBERG","67"]
[null,null,null,null,null,null,null,null,null,null,null,"VOLLORE-MONTAGNE","63"]
[null,null,null,null,null,null,null,null,null,null,null,"VOLLORE-VILLE","63"]
[null,null,null,null,null,null,null,null,null,null,null,"VOLMERANGE-LES-BOULAY","57"]
[null,null,null,null,null,null,null,null,null,null,null,"VOLMERANGE-LES-MINES","57"]
[null,null,null,null,null,null,null,null,null,null,null,"VOLMUNSTER","57"]
[null,null,null,null,null,null,null,null,null,null,null,"VOLNAY","72"]
[null,null,null,null,null,null,null,null,null,null,null,"VOLNAY","21"]
[null,null,null,null,null,null,null,null,null,null,null,"VOLONNE","04"]
[null,null,null,null,null,null,null,null,null,null,null,"VOLPAJOLA","2B"]
[null,null,null,null,null,null,null,null,null,null,null,"VOLSTROFF","57"]
[null,null,null,null,null,null,null,null,null,null,null,"VOLVIC","63"]
[null,null,null,null,null,null,null,null,null,null,null,"VOLX","04"]
[null,null,null,null,null,null,null,null,null,null,null,"VOMECOURT","88"]
[null,null,null,null,null,null,null,null,null,null,null,"VONGES","21"]
[null,null,null,null,null,null,null,null,null,null,null,"VONNAS","01"]
[null,null,null,null,null,null,null,null,null,null,null,"VORAY-SUR-L'OGNON","70"]
[null,null,null,null,null,null,null,null,null,null,null,"VOREPPE","38"]
[null,null,null,null,null,null,null,null,null,null,null,"VOREY","43"]
[null,null,null,null,null,null,null,null,null,null,null,"VORGES","02"]
[null,null,null,null,null,null,null,null,null,null,null,"VORGES-LES-PINS","25"]
[null,null,null,null,null,null,null,null,null,null,null,"VORNAY","18"]
[null,null,null,null,null,null,null,null,null,null,null,"VOSNE-ROMANEE","21"]
[null,null,null,null,null,null,null,null,null,null,null,"VOUE","10"]
[null,null,null,null,null,null,null,null,null,null,null,"VOUGY","74"]
[null,null,null,null,null,null,null,null,null,null,null,"VOUGY","42"]
[null,null,null,null,null,null,null,null,null,null,null,"VOUHARTE","16"]
[null,null,null,null,null,null,null,null,null,null,null,"VOUHE","17"]
[null,null,null,null,null,null,null,null,null,null,null,"VOUHE","79"]
[null,null,null,null,null,null,null,null,null,null,null,"VOUHENANS","70"]
[null,null,null,null,null,null,null,null,null,null,null,"VOUILLE","86"]
[null,null,null,null,null,null,null,null,null,null,null,"VOUILLE","79"]
[null,null,null,null,null,null,null,null,null,null,null,"VOUILLE-LES-MARAIS","85"]
[null,null,null,null,null,null,null,null,null,null,null,"VOUILLON","36"]
[null,null,null,null,null,null,null,null,null,null,null,"VOUJEAUCOURT","25"]
[null,null,null,null,null,null,null,null,null,null,null,"VOULAINES-LES-TEMPLIERS","21"]
[null,null,null,null,null,null,null,null,null,null,null,"VOULANGIS","77"]
[null,null,null,null,null,null,null,null,null,null,null,"VOULEME","86"]
[null,null,null,null,null,null,null,null,null,null,null,"VOULGEZAC","16"]
[null,null,null,null,null,null,null,null,null,null,null,"VOULON","86"]
[null,null,null,null,null,null,null,null,null,null,null,"VOULPAIX","02"]
[null,null,null,null,null,null,null,null,null,null,null,"VOULTEGON","79"]
[null,null,null,null,null,null,null,null,null,null,null,"VOULTON","77"]
[null,null,null,null,null,null,null,null,null,null,null,"VOULX","77"]
[null,null,null,null,null,null,null,null,null,null,null,"VOUNEUIL-SOUS-BIARD","86"]
[null,null,null,null,null,null,null,null,null,null,null,"VOUNEUIL-SUR-VIENNE","86"]
[null,null,null,null,null,null,null,null,null,null,null,"VOUREY","38"]
[null,null,null,null,null,null,null,null,null,null,null,"VOURLES","69"]
[null,null,null,null,null,null,null,null,null,null,null,"VOUSSAC","03"]
[null,null,null,null,null,null,null,null,null,null,null,"VOUTEZAC","19"]
[null,null,null,null,null,null,null,null,null,null,null,"VOUTHON","16"]
[null,null,null,null,null,null,null,null,null,null,null,"VOUTRE","53"]
[null,null,null,null,null,null,null,null,null,null,null,"VOUVANT","85"]
[null,null,null,null,null,null,null,null,null,null,null,"VOUVRAY","37"]
[null,null,null,null,null,null,null,null,null,null,null,"VOUVRAY-SUR-LOIR","72"]
[null,null,null,null,null,null,null,null,null,null,null,"VOUZAILLES","86"]
[null,null,null,null,null,null,null,null,null,null,null,"VOUZAN","16"]
[null,null,null,null,null,null,null,null,null,null,null,"VOUZERON","18"]
[null,null,null,null,null,null,null,null,null,null,null,"VOUZIERS","08"]
[null,null,null,null,null,null,null,null,null,null,null,"VOUZON","41"]
[null,null,null,null,null,null,null,null,null,null,null,"VOUZY","51"]
[null,null,null,null,null,null,null,null,null,null,null,"VOVES","28"]
[null,null,null,null,null,null,null,null,null,null,null,"VOVRAY-EN-BORNES","74"]
[null,null,null,null,null,null,null,null,null,null,null,"VOYENNE","02"]
[null,null,null,null,null,null,null,null,null,null,null,"VOYENNES","80"]
[null,null,null,null,null,null,null,null,null,null,null,"VOYER","57"]
[null,null,null,null,null,null,null,null,null,null,null,"VRAIVILLE","27"]
[null,null,null,null,null,null,null,null,null,null,null,"VRAUX","51"]
[null,null,null,null,null,null,null,null,null,null,null,"VRECOURT","88"]
[null,null,null,null,null,null,null,null,null,null,null,"VRED","59"]
[null,null,null,null,null,null,null,null,null,null,null,"VRELY","80"]
[null,null,null,null,null,null,null,null,null,null,null,"VRIGNE-AUX-BOIS","08"]
[null,null,null,null,null,null,null,null,null,null,null,"VRIGNY","45"]
[null,null,null,null,null,null,null,null,null,null,null,"VRIGNY","61"]
[null,null,null,null,null,null,null,null,null,null,null,"VRITZ","44"]
[null,null,null,null,null,null,null,null,null,null,null,"VRIZY","08"]
[null,null,null,null,null,null,null,null,null,null,null,"VRON","80"]
[null,null,null,null,null,null,null,null,null,null,null,"VRY","57"]
[null,null,null,null,null,null,null,null,null,null,null,"VUE","44"]
[null,null,null,null,null,null,null,null,null,null,null,"VUILLAFANS","25"]
[null,null,null,null,null,null,null,null,null,null,null,"VUILLECIN","25"]
[null,null,null,null,null,null,null,null,null,null,null,"VULAINES-SUR-SEINE","77"]
[null,null,null,null,null,null,null,null,null,null,null,"VULBENS","74"]
[null,null,null,null,null,null,null,null,null,null,null,"VYANS-LE-VAL","70"]
[null,null,null,null,null,null,null,null,null,null,null,"VY-LES-LURE","70"]
[null,null,null,null,null,null,null,null,null,null,null,"WABEN","62"]
[null,null,null,null,null,null,null,null,null,null,null,"WACQUEMOULIN","60"]
[null,null,null,null,null,null,null,null,null,null,null,"WADELINCOURT","08"]
[null,null,null,null,null,null,null,null,null,null,null,"WAHAGNIES","59"]
[null,null,null,null,null,null,null,null,null,null,null,"WAHLBACH","68"]
[null,null,null,null,null,null,null,null,null,null,null,"WAHLENHEIM","67"]
[null,null,null,null,null,null,null,null,null,null,null,"WAIL","62"]
[null,null,null,null,null,null,null,null,null,null,null,"WAILLY","62"]
[null,null,null,null,null,null,null,null,null,null,null,"WAILLY-BEAUCAMP","62"]
[null,null,null,null,null,null,null,null,null,null,null,"WALBACH","68"]
[null,null,null,null,null,null,null,null,null,null,null,"WALBOURG","67"]
[null,null,null,null,null,null,null,null,null,null,null,"WALDHAMBACH","67"]
[null,null,null,null,null,null,null,null,null,null,null,"WALDHOUSE","57"]
[null,null,null,null,null,null,null,null,null,null,null,"WALDIGHOFEN","68"]
[null,null,null,null,null,null,null,null,null,null,null,"WALDOLWISHEIM","67"]
[null,null,null,null,null,null,null,null,null,null,null,"WALDWEISTROFF","57"]
[null,null,null,null,null,null,null,null,null,null,null,"WALDWISSE","57"]
[null,null,null,null,null,null,null,null,null,null,null,"WALHEIM","68"]
[null,null,null,null,null,null,null,null,null,null,null,"WALINCOURT-SELVIGNY","59"]
[null,null,null,null,null,null,null,null,null,null,null,"WALLERS","59"]
[null,null,null,null,null,null,null,null,null,null,null,"WALLERS-EN-FAGNE","59"]
[null,null,null,null,null,null,null,null,null,null,null,"WALLON-CAPPEL","59"]
[null,null,null,null,null,null,null,null,null,null,null,"WALSCHBRONN","57"]
[null,null,null,null,null,null,null,null,null,null,null,"WALSCHEID","57"]
[null,null,null,null,null,null,null,null,null,null,null,"WALTENHEIM","68"]
[null,null,null,null,null,null,null,null,null,null,null,"WALTENHEIM-SUR-ZORN","67"]
[null,null,null,null,null,null,null,null,null,null,null,"WAMBAIX","59"]
[null,null,null,null,null,null,null,null,null,null,null,"WAMBRECHIES","59"]
[null,null,null,null,null,null,null,null,null,null,null,"WAMIN","62"]
[null,null,null,null,null,null,null,null,null,null,null,"WANCHY-CAPVAL","76"]
[null,null,null,null,null,null,null,null,null,null,null,"WANCOURT","62"]
[null,null,null,null,null,null,null,null,null,null,null,"WANDIGNIES-HAMAGE","59"]
[null,null,null,null,null,null,null,null,null,null,null,"WANGEN","67"]
[null,null,null,null,null,null,null,null,null,null,null,"WANGENBOURG-ENGENTHAL","67"]
[null,null,null,null,null,null,null,null,null,null,null,"WANNEHAIN","59"]
[null,null,null,null,null,null,null,null,null,null,null,"WANQUETIN","62"]
[null,null,null,null,null,null,null,null,null,null,null,"WARCQ","08"]
[null,null,null,null,null,null,null,null,null,null,null,"WARDRECQUES","62"]
[null,null,null,null,null,null,null,null,null,null,null,"WARGNIES-LE-GRAND","59"]
[null,null,null,null,null,null,null,null,null,null,null,"WARGNIES-LE-PETIT","59"]
[null,null,null,null,null,null,null,null,null,null,null,"WARHEM","59"]
[null,null,null,null,null,null,null,null,null,null,null,"WARLAING","59"]
[null,null,null,null,null,null,null,null,null,null,null,"WARLOY-BAILLON","80"]
[null,null,null,null,null,null,null,null,null,null,null,"WARLUIS","60"]
[null,null,null,null,null,null,null,null,null,null,null,"WARLUS","62"]
[null,null,null,null,null,null,null,null,null,null,null,"WARMERIVILLE","51"]
[null,null,null,null,null,null,null,null,null,null,null,"WARNECOURT","08"]
[null,null,null,null,null,null,null,null,null,null,null,"WASIGNY","08"]
[null,null,null,null,null,null,null,null,null,null,null,"WASNES-AU-BAC","59"]
[null,null,null,null,null,null,null,null,null,null,null,"WASQUEHAL","59"]
[null,null,null,null,null,null,null,null,null,null,null,"WASSELONNE","67"]
[null,null,null,null,null,null,null,null,null,null,null,"WASSERBOURG","68"]
[null,null,null,null,null,null,null,null,null,null,null,"WASSIGNY","02"]
[null,null,null,null,null,null,null,null,null,null,null,"WASSY","52"]
[null,null,null,null,null,null,null,null,null,null,null,"WATIGNY","02"]
[null,null,null,null,null,null,null,null,null,null,null,"WATTEN","59"]
[null,null,null,null,null,null,null,null,null,null,null,"WATTIGNIES","59"]
[null,null,null,null,null,null,null,null,null,null,null,"WATTIGNIES-LA-VICTOIRE","59"]
[null,null,null,null,null,null,null,null,null,null,null,"WATTRELOS","59"]
[null,null,null,null,null,null,null,null,null,null,null,"WATTWILLER","68"]
[null,null,null,null,null,null,null,null,null,null,null,"WAVIGNIES","60"]
[null,null,null,null,null,null,null,null,null,null,null,"WAVILLE","54"]
[null,null,null,null,null,null,null,null,null,null,null,"WAVRANS-SUR-L'AA","62"]
[null,null,null,null,null,null,null,null,null,null,null,"WAVRECHAIN-SOUS-DENAIN","59"]
[null,null,null,null,null,null,null,null,null,null,null,"WAVRECHAIN-SOUS-FAULX","59"]
[null,null,null,null,null,null,null,null,null,null,null,"WAVRIN","59"]
[null,null,null,null,null,null,null,null,null,null,null,"WAZIERS","59"]
[null,null,null,null,null,null,null,null,null,null,null,"WECKOLSHEIM","68"]
[null,null,null,null,null,null,null,null,null,null,null,"WEGSCHEID","68"]
[null,null,null,null,null,null,null,null,null,null,null,"WEINBOURG","67"]
[null,null,null,null,null,null,null,null,null,null,null,"WEISLINGEN","67"]
[null,null,null,null,null,null,null,null,null,null,null,"WEITBRUCH","67"]
[null,null,null,null,null,null,null,null,null,null,null,"WEITERSWILLER","67"]
[null,null,null,null,null,null,null,null,null,null,null,"WEMAERS-CAPPEL","59"]
[null,null,null,null,null,null,null,null,null,null,null,"WENTZWILLER","68"]
[null,null,null,null,null,null,null,null,null,null,null,"WERENTZHOUSE","68"]
[null,null,null,null,null,null,null,null,null,null,null,"WERVICQ-SUD","59"]
[null,null,null,null,null,null,null,null,null,null,null,"WEST-CAPPEL","59"]
[null,null,null,null,null,null,null,null,null,null,null,"WESTHALTEN","68"]
[null,null,null,null,null,null,null,null,null,null,null,"WESTHOFFEN","67"]
[null,null,null,null,null,null,null,null,null,null,null,"WESTHOUSE","67"]
[null,null,null,null,null,null,null,null,null,null,null,"WESTHOUSE-MARMOUTIER","67"]
[null,null,null,null,null,null,null,null,null,null,null,"WETTOLSHEIM","68"]
[null,null,null,null,null,null,null,null,null,null,null,"WEYER","67"]
[null,null,null,null,null,null,null,null,null,null,null,"WEYERSHEIM","67"]
[null,null,null,null,null,null,null,null,null,null,null,"WICKERSCHWIHR","68"]
[null,null,null,null,null,null,null,null,null,null,null,"WICKERSHEIM-WILSHAUSEN","67"]
[null,null,null,null,null,null,null,null,null,null,null,"WICRES","59"]
[null,null,null,null,null,null,null,null,null,null,null,"WIDEHEM","62"]
[null,null,null,null,null,null,null,null,null,null,null,"WIDENSOLEN","68"]
[null,null,null,null,null,null,null,null,null,null,null,"WIENCOURT-L'EQUIPEE","80"]
[null,null,null,null,null,null,null,null,null,null,null,"WIERRE-EFFROY","62"]
[null,null,null,null,null,null,null,null,null,null,null,"WIESVILLER","57"]
[null,null,null,null,null,null,null,null,null,null,null,"WIGNEHIES","59"]
[null,null,null,null,null,null,null,null,null,null,null,"WIHR-AU-VAL","68"]
[null,null,null,null,null,null,null,null,null,null,null,"WILDERSBACH","67"]
[null,null,null,null,null,null,null,null,null,null,null,"WILLEMS","59"]
[null,null,null,null,null,null,null,null,null,null,null,"WILLER","68"]
[null,null,null,null,null,null,null,null,null,null,null,"WILLER-SUR-THUR","68"]
[null,null,null,null,null,null,null,null,null,null,null,"WILLERVAL","62"]
[null,null,null,null,null,null,null,null,null,null,null,"WILLERWALD","57"]
[null,null,null,null,null,null,null,null,null,null,null,"WILLGOTTHEIM","67"]
[null,null,null,null,null,null,null,null,null,null,null,"WILWISHEIM","67"]
[null,null,null,null,null,null,null,null,null,null,null,"WIMEREUX","62"]
[null,null,null,null,null,null,null,null,null,null,null,"WIMILLE","62"]
[null,null,null,null,null,null,null,null,null,null,null,"WIMMENAU","67"]
[null,null,null,null,null,null,null,null,null,null,null,"WIMY","02"]
[null,null,null,null,null,null,null,null,null,null,null,"WINGEN","67"]
[null,null,null,null,null,null,null,null,null,null,null,"WINGEN-SUR-MODER","67"]
[null,null,null,null,null,null,null,null,null,null,null,"WINGERSHEIM","67"]
[null,null,null,null,null,null,null,null,null,null,null,"WINGLES","62"]
[null,null,null,null,null,null,null,null,null,null,null,"WINKEL","68"]
[null,null,null,null,null,null,null,null,null,null,null,"WINNEZEELE","59"]
[null,null,null,null,null,null,null,null,null,null,null,"WINTERSHOUSE","67"]
[null,null,null,null,null,null,null,null,null,null,null,"WINTZENBACH","67"]
[null,null,null,null,null,null,null,null,null,null,null,"WINTZENHEIM","68"]
[null,null,null,null,null,null,null,null,null,null,null,"WINTZENHEIM-KOCHERSBERG","67"]
[null,null,null,null,null,null,null,null,null,null,null,"WIRWIGNES","62"]
[null,null,null,null,null,null,null,null,null,null,null,"WISCHES","67"]
[null,null,null,null,null,null,null,null,null,null,null,"WISEMBACH","88"]
[null,null,null,null,null,null,null,null,null,null,null,"WISMES","62"]
[null,null,null,null,null,null,null,null,null,null,null,"WISSANT","62"]
[null,null,null,null,null,null,null,null,null,null,null,"WISSEMBOURG","67"]
[null,null,null,null,null,null,null,null,null,null,null,"WISSOUS","91"]
[null,null,null,null,null,null,null,null,null,null,null,"WITRY-LES-REIMS","51"]
[null,null,null,null,null,null,null,null,null,null,null,"WITTELSHEIM","68"]
[null,null,null,null,null,null,null,null,null,null,null,"WITTENHEIM","68"]
[null,null,null,null,null,null,null,null,null,null,null,"WITTERNESSE","62"]
[null,null,null,null,null,null,null,null,null,null,null,"WITTERNHEIM","67"]
[null,null,null,null,null,null,null,null,null,null,null,"WITTERSDORF","68"]
[null,null,null,null,null,null,null,null,null,null,null,"WITTERSHEIM","67"]
[null,null,null,null,null,null,null,null,null,null,null,"WITTES","62"]
[null,null,null,null,null,null,null,null,null,null,null,"WITTISHEIM","67"]
[null,null,null,null,null,null,null,null,null,null,null,"WITTRING","57"]
[null,null,null,null,null,null,null,null,null,null,null,"WIWERSHEIM","67"]
[null,null,null,null,null,null,null,null,null,null,null,"WIZERNES","62"]
[null,null,null,null,null,null,null,null,null,null,null,"WOELFLING-LES-SARREGUEMINES","57"]
[null,null,null,null,null,null,null,null,null,null,null,"WOERTH","67"]
[null,null,null,null,null,null,null,null,null,null,null,"WOIGNARUE","80"]
[null,null,null,null,null,null,null,null,null,null,null,"WOINCOURT","80"]
[null,null,null,null,null,null,null,null,null,null,null,"WOIPPY","57"]
[null,null,null,null,null,null,null,null,null,null,null,"WOLFERSDORF","68"]
[null,null,null,null,null,null,null,null,null,null,null,"WOLFGANTZEN","68"]
[null,null,null,null,null,null,null,null,null,null,null,"WOLFISHEIM","67"]
[null,null,null,null,null,null,null,null,null,null,null,"WOLFSKIRCHEN","67"]
[null,null,null,null,null,null,null,null,null,null,null,"WOLSCHHEIM","67"]
[null,null,null,null,null,null,null,null,null,null,null,"WOLSCHWILLER","68"]
[null,null,null,null,null,null,null,null,null,null,null,"WOLXHEIM","67"]
[null,null,null,null,null,null,null,null,null,null,null,"WORMHOUT","59"]
[null,null,null,null,null,null,null,null,null,null,null,"WOUSTVILLER","57"]
[null,null,null,null,null,null,null,null,null,null,null,"WUENHEIM","68"]
[null,null,null,null,null,null,null,null,null,null,null,"WULVERDINGHE","59"]
[null,null,null,null,null,null,null,null,null,null,null,"WY-DIT-JOLI-VILLAGE","95"]
[null,null,null,null,null,null,null,null,null,null,null,"WYLDER","59"]
[null,null,null,null,null,null,null,null,null,null,null,"XAINTRAILLES","47"]
[null,null,null,null,null,null,null,null,null,null,null,"XAMBES","16"]
[null,null,null,null,null,null,null,null,null,null,null,"XANTON-CHASSENON","85"]
[null,null,null,null,null,null,null,null,null,null,null,"XERMAMENIL","54"]
[null,null,null,null,null,null,null,null,null,null,null,"XERTIGNY","88"]
[null,null,null,null,null,null,null,null,null,null,null,"XEUILLEY","54"]
[null,null,null,null,null,null,null,null,null,null,null,"XIROCOURT","54"]
[null,null,null,null,null,null,null,null,null,null,null,"XIVRY-CIRCOURT","54"]
[null,null,null,null,null,null,null,null,null,null,null,"XONRUPT-LONGEMER","88"]
[null,null,null,null,null,null,null,null,null,null,null,"XOUAXANGE","57"]
[null,null,null,null,null,null,null,null,null,null,null,"YAINVILLE","76"]
[null,null,null,null,null,null,null,null,null,null,null,"YCHOUX","40"]
[null,null,null,null,null,null,null,null,null,null,null,"YDES","15"]
[null,null,null,null,null,null,null,null,null,null,null,"YEBLERON","76"]
[null,null,null,null,null,null,null,null,null,null,null,"YEBLES","77"]
[null,null,null,null,null,null,null,null,null,null,null,"YENNE","73"]
[null,null,null,null,null,null,null,null,null,null,null,"YERMENONVILLE","28"]
[null,null,null,null,null,null,null,null,null,null,null,"YERRES","91"]
[null,null,null,null,null,null,null,null,null,null,null,"YERVILLE","76"]
[null,null,null,null,null,null,null,null,null,null,null,"YEVRE-LA-VILLE","45"]
[null,null,null,null,null,null,null,null,null,null,null,"YEVRES","28"]
[null,null,null,null,null,null,null,null,null,null,null,"YFFINIAC","22"]
[null,null,null,null,null,null,null,null,null,null,null,"YGOS-SAINT-SATURNIN","40"]
[null,null,null,null,null,null,null,null,null,null,null,"YGRANDE","03"]
[null,null,null,null,null,null,null,null,null,null,null,"YMARE","76"]
[null,null,null,null,null,null,null,null,null,null,null,"YMERAY","28"]
[null,null,null,null,null,null,null,null,null,null,null,"YMONVILLE","28"]
[null,null,null,null,null,null,null,null,null,null,null,"YOLET","15"]
[null,null,null,null,null,null,null,null,null,null,null,"YOUX","63"]
[null,null,null,null,null,null,null,null,null,null,null,"YPORT","76"]
[null,null,null,null,null,null,null,null,null,null,null,"YPREVILLE-BIVILLE","76"]
[null,null,null,null,null,null,null,null,null,null,null,"YQUELON","50"]
[null,null,null,null,null,null,null,null,null,null,null,"YRONDE-ET-BURON","63"]
[null,null,null,null,null,null,null,null,null,null,null,"YSSAC-LA-TOURETTE","63"]
[null,null,null,null,null,null,null,null,null,null,null,"YSSANDON","19"]
[null,null,null,null,null,null,null,null,null,null,null,"YSSINGEAUX","43"]
[null,null,null,null,null,null,null,null,null,null,null,"YTRAC","15"]
[null,null,null,null,null,null,null,null,null,null,null,"YTRES","62"]
[null,null,null,null,null,null,null,null,null,null,null,"YUTZ","57"]
[null,null,null,null,null,null,null,null,null,null,null,"YVECRIQUE","76"]
[null,null,null,null,null,null,null,null,null,null,null,"YVERSAY","86"]
[null,null,null,null,null,null,null,null,null,null,null,"YVES","17"]
[null,null,null,null,null,null,null,null,null,null,null,"YVETOT","76"]
[null,null,null,null,null,null,null,null,null,null,null,"YVETOT-BOCAGE","50"]
[null,null,null,null,null,null,null,null,null,null,null,"YVIAS","22"]
[null,null,null,null,null,null,null,null,null,null,null,"YVIERS","16"]
[null,null,null,null,null,null,null,null,null,null,null,"YVIGNAC-LA-TOUR","22"]
[null,null,null,null,null,null,null,null,null,null,null,"YVILLE-SUR-SEINE","76"]
[null,null,null,null,null,null,null,null,null,null,null,"YVOIRE","74"]
[null,null,null,null,null,null,null,null,null,null,null,"YVOY-LE-MARRON","41"]
[null,null,null,null,null,null,null,null,null,null,null,"YVRAC","33"]
[null,null,null,null,null,null,null,null,null,null,null,"YVRAC-ET-MALLEYRAND","16"]
[null,null,null,null,null,null,null,null,null,null,null,"YVRE-LE-POLIN","72"]
[null,null,null,null,null,null,null,null,null,null,null,"YVRE-L'EVEQUE","72"]
[null,null,null,null,null,null,null,null,null,null,null,"YVRENCH","80"]
[null,null,null,null,null,null,null,null,null,null,null,"YZENGREMER","80"]
[null,null,null,null,null,null,null,null,null,null,null,"YZERNAY","49"]
[null,null,null,null,null,null,null,null,null,null,null,"YZERON","69"]
[null,null,null,null,null,null,null,null,null,null,null,"YZEURE","03"]
[null,null,null,null,null,null,null,null,null,null,null,"YZEURES-SUR-CREUSE","37"]
[null,null,null,null,null,null,null,null,null,null,null,"YZEUX","80"]
[null,null,null,null,null,null,null,null,null,null,null,"YZOSSE","40"]
[null,null,null,null,null,null,null,null,null,null,null,"ZAESSINGUE","68"]
[null,null,null,null,null,null,null,null,null,null,null,"ZEGERSCAPPEL","59"]
[null,null,null,null,null,null,null,null,null,null,null,"ZEHNACKER","67"]
[null,null,null,null,null,null,null,null,null,null,null,"ZELLENBERG","68"]
[null,null,null,null,null,null,null,null,null,null,null,"ZELLWILLER","67"]
[null,null,null,null,null,null,null,null,null,null,null,"ZETTING","57"]
[null,null,null,null,null,null,null,null,null,null,null,"ZILLING","57"]
[null,null,null,null,null,null,null,null,null,null,null,"ZILLISHEIM","68"]
[null,null,null,null,null,null,null,null,null,null,null,"ZIMMERBACH","68"]
[null,null,null,null,null,null,null,null,null,null,null,"ZIMMERSHEIM","68"]
[null,null,null,null,null,null,null,null,null,null,null,"ZIMMING","57"]
[null,null,null,null,null,null,null,null,null,null,null,"ZINSWILLER","67"]
[null,null,null,null,null,null,null,null,null,null,null,"ZITTERSHEIM","67"]
[null,null,null,null,null,null,null,null,null,null,null,"ZONZA","2A"]
[null,null,null,null,null,null,null,null,null,null,null,"ZOTEUX","62"]
[null,null,null,null,null,null,null,null,null,null,null,"ZOUAFQUES","62"]
[null,null,null,null,null,null,null,null,null,null,null,"ZOUFFTGEN","57"]
[null,null,null,null,null,null,null,null,null,null,null,"ZUDAUSQUES","62"]
[null,null,null,null,null,null,null,null,null,null,null,"ZUTKERQUE","62"]
[null,null,null,null,null,null,null,null,null,null,null,"ZUYDCOOTE","59"]
[null,null,null,null,null,null,null,null,null,null,null,"ZUYTPEENE","59"]
[null,null,null,null,null,null,null,null,null,null,null,false,"24"]

{"sheet":"recap","index":2,"n_rows":2,"n_cols":3,"rows_kept":2,"cut":false,"hidden":false,"merged":[]}
["Etablissements associés (triés/GIRCI)","Etablissements associés","Typologie des lieux d'inclusion"]
[{"$f":"SUBSTITUTE(SUBSTITUTE(SUBSTITUTE('2.2_Centres'!O24,\"; |\",CHAR(10)),\"Total général\",\"\"),\"|\",\"\")","v":""},{"$f":"SUBSTITUTE(SUBSTITUTE(SUBSTITUTE('2.2_Centres'!O25,\"; |\",CHAR(10)),\"; Total général\",\"\"),\"|\",\"; \")","v":""},{"$f":"IF(TRIM('2.2_Centres'!O23)=\";\",\"\",TRIM('2.2_Centres'!O23))","v":""}]